{"text_format":"1","workbook":"xlsx","n_sheets":34,"sheets":["1","2","3","4","5","6","7","8","9","10","11","12","13","14","15","16","17","18","19","20","21","22","23","24","25","26","27","28","29","30","31","TotMeseCamera","TotMese","Cancella Tutto"],"not_rendered":{"charts":0,"images":0,"macros":1,"external_links":0,"defined_names":0,"comments":0,"pivot_tables":0},"unopened":[],"bounds":{"document_bytes":16777216,"sheet_cells":100000,"rows_first":2000,"rows_last":500,"rows_between":2000,"halvings":0,"cell_chars":16384,"cell_head_chars":4096},"cells_cut":0,"cells_raw":0,"read":"whole","date_system":"1900"}

{"sheet":"1","index":0,"n_rows":95,"n_cols":24,"rows_kept":95,"cut":false,"hidden":false,"merged":[[11,24,11,47]]}
[null,101,102,103,104,105,201,202,203,206,207,301,302,303,304,305,306,307,308,309,310,"TOT","PREZZO","PREZZO"]
["Coca Cola",null,null,null,null,null,null,null,null,null,null,null,null,null,null,null,null,null,null,null,null,{"$f":"SUM(B2:U2)","v":0},3,0]
["Coca Cola Light",null,null,null,null,null,null,null,1,null,null,null,null,null,null,null,null,null,null,null,null,{"$f":"SUM(B3:U3)","v":1},3,0]
["Tè",null,null,null,null,null,null,null,null,null,null,null,null,null,null,null,null,null,null,null,null,0,3,0]
["Acqua Tonica",null,null,null,null,null,null,null,null,null,null,null,null,null,null,null,null,null,null,null,null,0,3,0]
["Succo",null,null,null,null,null,null,null,1,null,null,null,null,null,null,null,null,null,null,null,null,1,3,0]
["Birra",null,null,null,null,null,2,null,null,null,null,null,null,null,null,null,null,null,null,null,null,2,3.5,0]
["Acqua Naturale",1,null,null,null,2,2,null,null,null,null,null,null,null,null,null,1,2,null,null,1,9,2.5,{"$f":"W8*V8","v":22.5}]
["Acqua Frizzante",null,null,null,null,null,null,null,null,null,null,null,null,null,null,null,null,null,null,null,null,0,2.5,0]
["Patatine",null,null,null,null,1,null,null,null,null,null,null,null,null,null,null,null,null,null,null,null,1,2,0]
["Kit Kat",null,null,null,null,1,null,null,null,null,null,null,null,null,null,null,null,null,null,null,null,1,2,0]
[]
[null,401,402,403,404,405,406,407,408,409,410,501,502,503,504,505,506,507,508,509,510,"TOT","PREZZO"]
["Coca Cola",null,null,null,null,null,null,null,null,null,null,null,null,null,null,null,null,null,null,null,null,{"$f":"SUM(B14:U14)","v":0},3,0]
["Coca Cola Light",null,null,null,null,null,null,null,null,null,null,null,null,null,null,null,null,null,null,null,null,{"$f":"SUM(B15:U15)","v":0},3,0]
["Tè",null,null,null,null,null,null,null,null,null,null,null,null,null,null,null,null,null,null,null,null,0,3,0]
["Acqua Tonica",null,null,null,null,null,null,null,null,null,null,null,null,null,null,null,null,null,null,null,null,0,3,0]
["Succo",null,null,null,null,null,1,null,null,null,null,null,null,null,null,null,null,null,null,null,null,1,3,0]
["Birra",null,null,null,null,null,null,null,null,null,null,null,null,null,null,null,null,null,null,null,null,0,3.5,0]
["Acqua Naturale",null,null,null,null,null,null,null,null,1,null,null,1,1,null,null,1,2,null,null,null,6,2.5,{"$f":"W20*V20","v":15}]
["Acqua Frizzante",null,null,null,null,null,null,null,1,null,null,1,null,null,1,null,null,null,null,null,null,3,2.5,7.5]
["Patatine",null,null,null,null,null,null,null,null,null,1,null,null,null,null,1,null,null,null,null,null,2,2,0]
["Kit Kat",null,null,null,null,null,null,null,null,null,1,null,null,null,1,null,1,null,null,null,null,3,2,0]
[]
[null,601,602,603,604,605,606,607,608,609,610,701,702,703,704,705,706,707,708,709,710,"TOT","PREZZO"]
["Coca Cola",null,null,null,null,null,null,null,null,null,null,null,null,null,null,null,null,null,null,null,null,{"$f":"SUM(B26:U26)","v":0},3,0]
["Coca Cola Light",null,null,null,null,null,null,null,null,null,1,null,null,null,null,null,null,null,null,null,null,{"$f":"SUM(B27:U27)","v":1},3,0]
["Tè",null,null,null,null,null,null,null,null,null,null,null,null,null,null,null,null,null,null,null,null,0,3,0]
["Acqua Tonica",null,null,null,null,null,null,null,null,null,null,null,null,null,null,null,null,null,null,null,null,0,3,0]
["Succo",null,null,null,null,null,1,1,null,null,1,null,null,null,null,null,null,null,null,null,null,3,3,0]
["Birra",null,null,null,null,null,null,null,null,null,null,null,null,null,null,null,null,null,null,null,null,0,3.5,0]
["Acqua Naturale",null,1,null,null,null,1,2,null,1,null,null,null,null,null,null,null,null,null,null,null,5,2.5,{"$f":"W32*V32","v":12.5}]
["Acqua Frizzante",1,null,null,null,null,null,null,null,null,1,null,null,null,null,null,null,null,null,null,null,2,2.5,5]
["Patatine",null,null,null,null,null,null,null,null,null,1,null,null,null,null,null,null,null,null,null,null,1,2,0]
["Kit Kat",1,null,null,null,null,null,null,null,null,1,null,null,null,null,null,null,null,null,null,null,2,2,0]
[]
[null,801,802,803,804,805,806,807,808,809,810,901,902,903,904,905,906,907,908,909,910,"TOT","PREZZO"]
["Coca Cola",null,null,null,null,null,null,null,null,null,null,null,null,null,null,null,null,null,null,null,null,{"$f":"SUM(B38:U38)","v":0},3,0]
["Coca Cola Light",null,null,null,null,null,null,null,null,null,null,null,null,null,null,null,null,null,null,null,null,0,3,0]
["Tè",null,null,null,null,null,1,null,null,null,null,null,null,null,null,null,null,null,null,null,null,0,3,0]
["Acqua Tonica",null,null,null,null,null,null,null,null,null,null,null,null,null,null,null,null,null,null,null,null,0,3,0]
["Succo",null,null,null,null,null,null,null,null,null,null,null,null,null,null,null,null,null,null,null,null,0,3,0]
["Birra",null,null,null,null,null,null,null,null,null,null,null,null,null,null,null,null,null,null,null,null,0,3.5,0]
["Acqua Naturale",null,1,null,1,null,null,null,null,null,null,null,null,null,1,null,null,null,null,null,1,{"$f":"SUM(B44:U44)","v":4},2.5,{"$f":"W44*V44","v":10}]
["Acqua Frizzante",null,null,null,null,null,1,null,null,null,null,null,null,null,null,1,null,null,2,null,null,4,2.5,10]
["Patatine",null,null,null,null,null,null,null,null,null,null,null,null,null,null,null,null,null,null,null,null,0,2,0]
["Kit Kat",null,null,null,null,null,null,null,null,null,null,null,1,null,null,null,null,null,null,null,null,0,2,0]
[]
[null,1001,1002,1003,1004,1005,1006,1007,1008,1009,1010,1101,1102,1103,1104,1105,1106,1107,1108,1109,1110,"TOT","PREZZO"]
["Coca Cola",null,null,null,null,null,null,null,null,null,null,null,null,null,null,null,null,null,null,null,null,{"$f":"SUM(B50:U50)","v":0},3,0]
["Coca Cola Light",null,null,null,null,null,null,null,null,null,null,null,null,null,null,null,null,null,null,null,null,0,3,0]
["Tè",null,null,null,null,null,null,null,null,null,null,null,null,null,null,null,null,null,null,null,null,0,3,0]
["Acqua Tonica",null,null,null,null,null,null,null,null,null,null,null,null,null,null,null,null,null,null,null,null,0,3,0]
["Succo",null,null,null,null,null,null,null,null,null,null,null,null,null,null,null,null,null,null,null,null,0,3,0]
["Birra",null,null,null,null,null,null,null,null,null,null,null,null,null,null,null,null,null,null,null,null,0,3.5,0]
["Acqua Naturale",null,null,null,null,1,1,null,null,null,1,null,null,null,null,1,null,null,null,null,null,{"$f":"SUM(B56:U56)","v":4},2.5,{"$f":"W56*V56","v":10}]
["Acqua Frizzante",null,null,null,null,null,null,null,null,1,null,null,null,null,null,null,null,null,null,null,1,2,2.5,5]
["Patatine",null,null,null,null,null,null,null,null,null,null,null,null,null,null,null,null,null,null,null,null,0,2,0]
["Kit Kat",null,null,null,null,null,null,null,null,null,null,null,null,null,null,null,null,null,null,null,null,0,2,0]
[]
[null,1201,1202,1203,1204,1205,1206,1207,1208,1209,1210,1301,1302,1303,1304,1305,1306,1307,1308,1309,1310,"TOT","PREZZO"]
["Coca Cola",null,null,null,null,null,null,null,null,null,1,null,null,null,null,null,null,null,null,null,null,{"$f":"SUM(B62:U62)","v":1},3,0]
["Coca Cola Light",null,null,null,null,null,null,null,null,null,null,null,null,null,null,null,null,null,null,null,null,{"$f":"SUM(B63:U63)","v":0},3,0]
["Tè",null,1,null,null,null,1,null,null,null,null,null,null,null,null,null,null,null,null,null,null,2,3,0]
["Acqua Tonica",null,null,null,null,null,null,null,null,null,null,null,null,null,null,null,null,null,null,null,null,0,3,0]
["Succo",null,1,null,null,null,null,null,null,null,null,null,null,null,null,null,1,null,null,null,null,2,3,0]
["Birra",null,null,null,null,null,null,null,null,null,null,null,null,null,null,null,null,null,null,null,null,0,3.5,0]
["Acqua Naturale",1,null,null,null,1,null,1,null,1,null,null,null,null,null,null,null,null,2,null,null,6,2.5,{"$f":"W68*V68","v":15}]
["Acqua Frizzante",null,null,null,null,null,null,null,null,null,null,null,null,1,null,null,null,null,null,null,null,1,2.5,2.5]
["Patatine",null,null,null,null,null,null,null,null,null,null,null,null,null,null,null,null,null,null,null,null,0,2,0]
["Kit Kat",null,null,null,null,null,null,null,null,null,null,null,null,null,null,null,null,null,null,null,null,0,2,0]
[]
[null,1401,1402,1403,1404,1405,1406,1407,1408,1409,1410,1501,1502,1503,1504,1505,1506,1507,1508,1509,1510,"TOT","PREZZO"]
["Coca Cola",null,null,null,null,2,null,null,null,null,null,null,null,null,null,null,null,null,null,null,null,{"$f":"SUM(B74:U74)","v":2},3,0]
["Coca Cola Light",null,1,null,null,1,null,null,null,null,null,null,null,null,null,null,null,null,null,null,null,{"$f":"SUM(B75:U75)","v":2},3,0]
["Tè",null,null,null,null,null,null,null,null,null,null,null,null,null,null,null,null,null,null,null,null,0,3,0]
["Acqua Tonica",null,null,null,null,null,null,null,null,null,null,null,null,null,null,null,null,null,null,null,null,0,3,0]
["Succo",1,null,null,null,null,null,null,null,null,null,null,null,null,null,null,null,null,null,null,null,1,3,0]
["Birra",1,null,null,null,null,null,null,null,null,null,null,null,null,null,null,null,null,null,null,1,2,3.5,0]
["Acqua Naturale",null,1,null,null,1,null,null,1,null,null,null,1,1,null,null,1,null,1,null,1,8,2.5,{"$f":"W80*V80","v":20}]
["Acqua Frizzante",null,2,null,null,null,null,1,null,null,null,1,null,null,1,null,null,null,null,null,null,5,2.5,12.5]
["Patatine",null,null,null,null,null,null,null,null,null,null,null,null,null,null,null,null,null,null,null,null,0,2,0]
["Kit Kat",null,null,null,null,null,null,null,null,null,null,null,null,null,null,null,null,null,null,null,null,0,2,0]
[]
[null,1601,1602,1603,1604,1605,1606,1607,1608,1609,1610,1701,1702,1703,1704,1705,1706,1707,1708,null,null,"TOT","PREZZO"]
["Coca Cola",null,null,null,null,null,null,null,null,null,null,null,null,null,null,null,null,null,null,null,null,{"$f":"SUM(B86:U86)","v":0},3,0]
["Coca Cola Light",null,null,null,null,null,null,null,null,null,null,null,null,null,null,null,1,null,null,null,null,{"$f":"SUM(B87:U87)","v":1},3,0]
["Tè",null,null,null,null,null,null,null,null,null,null,null,null,null,null,null,null,null,null,null,null,0,3,0]
["Acqua Tonica",null,null,null,null,null,null,null,null,null,null,null,null,null,null,null,null,null,null,null,null,0,3,0]
["Succo",null,null,null,null,null,1,null,null,null,null,null,null,null,null,null,null,null,null,null,null,1,3,0]
["Birra",null,null,null,null,null,1,null,null,null,null,null,null,null,null,null,null,null,null,null,null,1,3.5,0]
["Acqua Naturale",null,null,null,1,1,null,null,null,null,null,null,null,null,null,null,null,null,null,null,null,2,2.5,{"$f":"W92*V92","v":5}]
["Acqua Frizzante",null,null,null,1,null,null,null,null,null,null,null,null,null,null,null,null,null,null,null,null,1,2.5,2.5]
["Patatine",null,null,null,null,null,null,null,null,null,null,null,null,null,null,null,null,null,null,null,null,0,2,0]
["Kit Kat",null,null,null,null,null,null,null,null,null,null,null,null,null,null,null,null,null,null,null,null,0,2,0]

{"sheet":"2","index":1,"n_rows":95,"n_cols":24,"rows_kept":95,"cut":false,"hidden":false,"merged":[[11,24,11,47]]}
[null,101,102,103,104,105,201,202,203,206,207,301,302,303,304,305,306,307,308,309,310,"TOT","PREZZO","PREZZO"]
["Coca Cola",null,null,null,null,null,null,null,null,null,null,null,null,null,null,null,null,null,null,null,null,{"$f":"SUM(B2:U2)","v":0},3,0]
["Coca Cola Light",null,null,null,null,null,null,null,null,null,null,null,null,null,null,null,null,null,null,null,null,{"$f":"SUM(B3:U3)","v":0},3,0]
["Tè",null,null,null,null,null,null,null,null,null,null,null,null,null,null,null,null,null,null,null,null,0,3,0]
["Acqua Tonica",null,null,null,null,null,null,null,null,null,null,null,null,null,null,null,null,null,null,null,null,0,3,0]
["Succo",null,null,null,null,null,null,null,1,null,null,null,null,null,null,null,null,null,null,null,null,1,3,0]
["Birra",null,null,null,null,null,null,1,null,null,null,null,null,null,null,null,null,null,null,null,null,1,3.5,0]
["Acqua Naturale",1,null,null,2,1,null,null,null,null,1,null,null,null,2,null,null,null,null,1,null,8,2.5,{"$f":"W8*V8","v":20}]
["Acqua Frizzante",null,null,null,1,null,null,null,null,null,null,null,1,null,null,null,null,null,null,1,null,3,2.5,7.5]
["Patatine",null,null,null,null,null,null,null,null,null,null,null,null,null,null,null,null,null,null,null,null,0,2,0]
["Kit Kat",null,null,null,null,null,null,null,1,null,null,null,null,null,null,null,null,null,null,null,null,1,2,0]
[]
[null,401,402,403,404,405,406,407,408,409,410,501,502,503,504,505,506,507,508,509,510,"TOT","PREZZO"]
["Coca Cola",null,null,null,null,null,null,null,null,null,null,null,null,null,null,null,null,null,null,null,null,{"$f":"SUM(B14:U14)","v":0},3,0]
["Coca Cola Light",null,null,null,null,null,null,null,null,null,null,null,null,null,1,null,null,null,null,null,null,{"$f":"SUM(B15:U15)","v":1},3,0]
["Tè",null,null,null,null,null,null,null,null,null,null,null,null,null,null,null,null,null,null,null,null,0,3,0]
["Acqua Tonica",null,null,null,null,null,null,null,null,null,null,null,null,null,1,null,null,null,null,null,null,1,3,0]
["Succo",null,null,null,null,null,null,null,null,null,null,null,null,null,null,null,null,null,null,null,null,0,3,0]
["Birra",null,null,null,null,null,null,null,null,null,null,null,null,null,null,null,null,null,null,null,null,0,3.5,0]
["Acqua Naturale",null,null,1,1,null,null,null,null,null,null,1,1,null,1,null,null,null,1,null,null,6,2.5,{"$f":"W20*V20","v":15}]
["Acqua Frizzante",null,null,null,null,null,null,null,1,null,null,null,null,null,1,null,null,null,null,null,null,2,2.5,5]
["Patatine",null,null,null,null,null,null,null,null,null,null,null,null,null,null,null,null,null,null,null,null,0,2,0]
["Kit Kat",null,null,null,null,null,null,null,null,null,null,null,null,null,null,null,null,null,null,null,null,0,2,0]
[]
[null,601,602,603,604,605,606,607,608,609,610,701,702,703,704,705,706,707,708,709,710,"TOT","PREZZO"]
["Coca Cola",null,null,null,null,null,null,null,null,null,null,null,null,null,null,null,null,null,null,null,null,{"$f":"SUM(B26:U26)","v":0},3,0]
["Coca Cola Light",null,null,null,null,null,null,null,null,null,null,null,null,null,null,null,null,null,null,null,null,{"$f":"SUM(B27:U27)","v":0},3,0]
["Tè",null,null,null,null,null,null,null,null,null,null,null,null,null,null,null,null,null,null,null,null,0,3,0]
["Acqua Tonica",null,null,null,null,null,null,null,null,null,null,null,null,null,null,null,null,null,null,null,null,0,3,0]
["Succo",null,null,null,null,null,null,null,null,null,null,null,null,null,null,null,null,null,null,null,null,0,3,0]
["Birra",null,null,null,null,null,null,null,null,null,null,null,null,null,null,null,null,null,null,null,null,0,3.5,0]
["Acqua Naturale",null,null,1,null,null,2,null,null,1,null,null,null,null,null,null,null,null,null,null,null,4,2.5,{"$f":"W32*V32","v":10}]
["Acqua Frizzante",null,null,1,null,null,null,null,null,null,null,null,null,null,null,null,null,null,null,null,null,1,2.5,2.5]
["Patatine",null,null,null,null,null,null,null,null,null,null,null,null,null,null,null,null,null,null,null,null,0,2,0]
["Kit Kat",null,null,null,null,null,null,null,null,null,null,null,null,null,null,null,null,null,null,null,null,0,2,0]
[]
[null,801,802,803,804,805,806,807,808,809,810,901,902,903,904,905,906,907,908,909,910,"TOT","PREZZO"]
["Coca Cola",null,null,null,null,null,null,null,null,null,null,null,null,null,null,null,null,null,null,null,null,{"$f":"SUM(B38:U38)","v":0},3,0]
["Coca Cola Light",null,null,null,null,null,null,null,null,null,null,null,null,null,null,null,null,null,null,null,null,0,3,0]
["Tè",null,null,null,null,null,null,null,null,null,null,null,null,null,null,null,null,null,null,null,null,0,3,0]
["Acqua Tonica",null,null,null,null,null,null,null,null,null,null,null,null,null,null,null,null,null,null,null,null,0,3,0]
["Succo",null,null,null,null,null,1,null,null,null,null,null,1,null,null,null,null,null,null,null,null,0,3,0]
["Birra",null,null,null,null,null,null,null,null,null,null,null,null,null,null,null,null,null,null,null,null,0,3.5,0]
["Acqua Naturale",null,null,null,2,null,null,2,null,null,null,null,null,null,1,null,null,null,1,null,null,{"$f":"SUM(B44:U44)","v":6},2.5,{"$f":"W44*V44","v":15}]
["Acqua Frizzante",null,null,null,null,null,null,null,null,null,null,null,null,null,null,null,null,null,1,null,null,1,2.5,2.5]
["Patatine",null,null,null,null,null,null,null,null,null,null,null,null,null,null,null,null,null,null,null,null,0,2,0]
["Kit Kat",null,null,null,null,null,null,null,null,null,null,null,null,null,null,null,null,null,null,null,null,0,2,0]
[]
[null,1001,1002,1003,1004,1005,1006,1007,1008,1009,1010,1101,1102,1103,1104,1105,1106,1107,1108,1109,1110,"TOT","PREZZO"]
["Coca Cola",null,null,null,null,null,null,null,null,null,null,null,null,null,null,null,null,null,null,null,null,{"$f":"SUM(B50:U50)","v":0},3,0]
["Coca Cola Light",null,null,null,null,null,null,null,null,null,null,null,null,null,null,null,null,null,null,null,null,0,3,0]
["Tè",null,null,null,null,null,null,null,null,null,null,null,null,null,null,null,null,null,null,null,null,0,3,0]
["Acqua Tonica",null,null,null,null,null,null,null,null,null,null,null,null,null,null,null,null,null,null,null,null,0,3,0]
["Succo",null,null,null,null,null,null,null,null,null,null,null,null,null,null,null,null,null,null,null,null,0,3,0]
["Birra",null,null,null,null,null,null,null,null,null,null,null,null,null,null,null,null,null,null,null,null,0,3.5,0]
["Acqua Naturale",null,null,null,null,1,null,null,null,null,null,null,null,1,null,null,null,null,1,null,null,{"$f":"SUM(B56:U56)","v":3},2.5,{"$f":"W56*V56","v":7.5}]
["Acqua Frizzante",null,1,null,null,null,null,null,null,null,null,1,null,null,null,null,null,null,null,1,null,3,2.5,7.5]
["Patatine",null,null,null,null,null,null,null,null,null,null,null,null,null,null,null,null,null,null,null,null,0,2,0]
["Kit Kat",null,null,null,null,null,null,null,null,null,null,null,null,null,null,null,null,null,null,null,null,0,2,0]
[]
[null,1201,1202,1203,1204,1205,1206,1207,1208,1209,1210,1301,1302,1303,1304,1305,1306,1307,1308,1309,1310,"TOT","PREZZO"]
["Coca Cola",null,null,null,null,null,null,null,null,null,1,null,null,null,null,null,null,null,null,null,null,{"$f":"SUM(B62:U62)","v":1},3,0]
["Coca Cola Light",null,null,null,null,null,null,null,null,null,null,null,null,null,null,null,null,null,null,null,null,{"$f":"SUM(B63:U63)","v":0},3,0]
["Tè",null,null,null,null,null,null,null,null,null,null,null,null,null,null,null,null,null,null,null,null,0,3,0]
["Acqua Tonica",null,null,null,null,null,null,null,null,null,null,null,null,null,null,null,null,null,null,null,null,0,3,0]
["Succo",1,null,null,null,null,null,null,null,null,1,null,null,null,null,null,null,null,null,null,null,2,3,0]
["Birra",null,null,null,null,null,null,null,null,null,null,null,null,1,null,null,null,null,null,null,null,1,3.5,0]
["Acqua Naturale",null,null,null,null,null,1,2,2,null,null,null,null,null,2,null,1,null,null,null,null,8,2.5,{"$f":"W68*V68","v":20}]
["Acqua Frizzante",null,null,null,null,null,null,null,null,null,1,null,null,1,null,null,null,null,null,null,null,2,2.5,5]
["Patatine",null,null,null,null,null,null,null,null,null,null,null,null,null,null,null,null,null,null,null,null,0,2,0]
["Kit Kat",null,null,null,null,1,null,null,null,null,1,null,null,null,null,null,null,null,null,null,null,2,2,0]
[]
[null,1401,1402,1403,1404,1405,1406,1407,1408,1409,1410,1501,1502,1503,1504,1505,1506,1507,1508,1509,1510,"TOT","PREZZO"]
["Coca Cola",null,null,null,null,null,null,null,null,null,null,null,null,null,null,null,null,null,null,null,null,{"$f":"SUM(B74:U74)","v":0},3,0]
["Coca Cola Light",1,null,null,null,null,null,null,null,null,null,null,null,null,null,null,null,null,null,null,null,{"$f":"SUM(B75:U75)","v":1},3,0]
["Tè",null,null,null,null,null,null,null,null,null,null,null,null,null,null,null,null,null,null,null,null,0,3,0]
["Acqua Tonica",null,null,null,null,null,null,null,null,null,null,null,null,null,null,null,null,null,null,null,null,0,3,0]
["Succo",1,null,null,null,null,null,null,null,null,null,null,null,null,null,null,null,null,null,null,null,1,3,0]
["Birra",null,null,null,null,null,null,null,null,null,null,null,null,null,null,null,null,null,null,null,null,0,3.5,0]
["Acqua Naturale",null,null,null,null,null,null,null,1,null,null,null,null,null,null,null,1,null,null,null,1,3,2.5,{"$f":"W80*V80","v":7.5}]
["Acqua Frizzante",null,1,null,null,null,null,1,null,null,null,null,null,null,null,null,null,null,null,null,null,2,2.5,5]
["Patatine",null,1,null,null,null,null,null,null,null,null,null,null,null,null,null,null,null,null,null,null,1,2,0]
["Kit Kat",null,1,null,null,null,null,null,null,null,null,null,null,null,null,null,null,null,null,null,null,1,2,0]
[]
[null,1601,1602,1603,1604,1605,1606,1607,1608,1609,1610,1701,1702,1703,1704,1705,1706,1707,1708,null,null,"TOT","PREZZO"]
["Coca Cola",null,null,null,1,null,null,null,null,null,null,null,null,null,null,null,null,null,null,null,null,{"$f":"SUM(B86:U86)","v":1},3,0]
["Coca Cola Light",null,null,null,null,null,null,null,null,null,null,null,null,null,null,null,null,null,null,null,null,{"$f":"SUM(B87:U87)","v":0},3,0]
["Tè",null,null,null,null,null,null,null,null,null,null,null,null,null,null,null,null,null,null,null,null,0,3,0]
["Acqua Tonica",null,null,null,null,null,null,null,null,null,null,null,null,null,null,null,null,null,null,null,null,0,3,0]
["Succo",null,null,null,null,null,null,null,null,null,null,null,null,null,null,null,null,null,null,null,null,0,3,0]
["Birra",null,null,null,null,null,null,null,null,null,null,null,null,null,null,null,null,null,null,null,null,0,3.5,0]
["Acqua Naturale",null,1,null,null,null,null,null,null,null,1,null,null,null,null,null,null,null,1,null,null,3,2.5,{"$f":"W92*V92","v":7.5}]
["Acqua Frizzante",null,null,null,1,null,null,null,null,null,null,null,null,1,null,null,null,null,null,null,null,2,2.5,5]
["Patatine",null,null,null,null,null,null,null,null,null,null,null,null,null,null,null,null,null,null,null,null,0,2,0]
["Kit Kat",null,null,null,null,null,null,null,null,null,null,null,null,null,null,null,null,null,null,null,null,0,2,0]

{"sheet":"3","index":2,"n_rows":95,"n_cols":24,"rows_kept":95,"cut":false,"hidden":false,"merged":[[11,24,11,47]]}
[null,101,102,103,104,105,201,202,203,206,207,301,302,303,304,305,306,307,308,309,310,"TOT","PREZZO","PREZZO"]
["Coca Cola",null,null,null,null,null,null,null,null,null,null,null,null,null,null,null,null,null,null,null,null,{"$f":"SUM(B2:U2)","v":0},3,0]
["Coca Cola Light",null,null,null,null,null,null,null,null,null,null,null,null,null,null,null,null,null,null,null,null,{"$f":"SUM(B3:U3)","v":0},3,0]
["Tè",null,null,null,null,null,null,null,null,null,null,null,null,null,null,null,null,null,null,null,null,0,3,0]
["Acqua Tonica",null,null,null,null,null,null,null,null,null,null,null,null,null,null,null,null,null,null,null,null,0,3,0]
["Succo",null,null,null,null,1,null,null,null,null,null,null,null,null,null,null,null,null,null,null,null,1,3,0]
["Birra",null,null,null,null,null,null,1,null,null,null,null,null,null,null,null,null,null,null,null,null,1,3.5,0]
["Acqua Naturale",null,null,null,null,null,null,null,null,null,2,null,null,1,1,null,null,1,1,null,1,7,2.5,{"$f":"W8*V8","v":17.5}]
["Acqua Frizzante",null,null,null,null,null,null,null,null,null,null,1,null,null,1,1,null,null,null,null,null,3,2.5,7.5]
["Patatine",null,null,null,null,null,null,null,null,null,null,null,null,null,null,null,null,null,null,null,null,0,2,0]
["Kit Kat",null,null,null,null,1,null,null,null,null,null,null,null,null,1,1,null,null,null,null,null,3,2,0]
[]
[null,401,402,403,404,405,406,407,408,409,410,501,502,503,504,505,506,507,508,509,510,"TOT","PREZZO"]
["Coca Cola",null,null,null,null,null,null,null,null,null,null,null,null,null,null,null,null,null,null,null,null,{"$f":"SUM(B14:U14)","v":0},3,0]
["Coca Cola Light",null,null,null,null,null,null,null,null,null,null,null,null,null,null,null,null,null,null,null,null,{"$f":"SUM(B15:U15)","v":0},3,0]
["Tè",null,null,null,null,null,null,null,null,null,null,null,null,null,null,null,null,1,null,null,null,1,3,0]
["Acqua Tonica",null,null,null,null,null,null,null,null,null,null,null,null,null,null,null,null,null,null,null,null,0,3,0]
["Succo",null,null,null,null,null,null,null,null,null,null,null,null,null,null,null,null,null,null,null,null,0,3,0]
["Birra",null,null,null,null,null,null,null,null,null,null,null,null,null,null,null,null,null,null,null,null,0,3.5,0]
["Acqua Naturale",null,null,null,null,1,null,null,null,null,null,null,1,null,1,1,2,2,1,null,null,9,2.5,{"$f":"W20*V20","v":22.5}]
["Acqua Frizzante",1,1,null,null,null,null,null,null,null,null,null,null,null,null,null,null,null,null,null,null,2,2.5,5]
["Patatine",null,null,null,null,null,null,null,null,null,null,null,null,null,null,null,null,null,null,null,null,0,2,0]
["Kit Kat",null,null,null,null,null,null,null,null,null,null,null,null,null,null,null,1,null,null,null,null,1,2,0]
[]
[null,601,602,603,604,605,606,607,608,609,610,701,702,703,704,705,706,707,708,709,710,"TOT","PREZZO"]
["Coca Cola",null,1,null,null,null,null,null,null,null,null,null,null,null,null,null,null,null,null,null,null,{"$f":"SUM(B26:U26)","v":1},3,0]
["Coca Cola Light",null,null,null,null,null,null,null,null,null,null,null,null,null,null,null,null,null,null,null,null,{"$f":"SUM(B27:U27)","v":0},3,0]
["Tè",null,null,null,null,null,null,null,null,null,null,null,null,null,null,null,null,null,null,null,null,0,3,0]
["Acqua Tonica",null,null,null,null,null,null,null,null,null,null,null,null,null,null,null,null,null,null,null,null,0,3,0]
["Succo",null,null,null,null,null,1,null,null,null,null,null,null,null,null,null,null,null,null,null,null,1,3,0]
["Birra",null,1,null,null,null,null,null,null,2,null,null,null,null,1,null,null,null,null,null,null,4,3.5,0]
["Acqua Naturale",null,null,1,null,null,null,null,null,1,null,null,null,null,null,null,null,null,null,null,null,2,2.5,{"$f":"W32*V32","v":5}]
["Acqua Frizzante",null,null,1,null,null,null,2,null,null,null,null,null,null,null,null,null,null,null,null,null,3,2.5,7.5]
["Patatine",null,null,null,null,null,null,null,null,null,null,null,1,null,null,null,null,null,null,null,null,1,2,0]
["Kit Kat",null,null,null,null,null,null,null,null,null,1,null,null,null,null,null,null,null,null,null,null,1,2,0]
[]
[null,801,802,803,804,805,806,807,808,809,810,901,902,903,904,905,906,907,908,909,910,"TOT","PREZZO"]
["Coca Cola",null,null,null,null,null,null,null,null,null,null,null,null,null,null,null,null,null,null,null,null,{"$f":"SUM(B38:U38)","v":0},3,0]
["Coca Cola Light",null,null,null,null,null,null,null,null,null,null,null,null,null,null,null,null,null,null,null,null,0,3,0]
["Tè",null,null,null,null,null,null,null,null,null,null,null,null,null,null,null,null,null,null,null,null,0,3,0]
["Acqua Tonica",null,null,null,null,null,null,null,null,null,null,null,null,null,null,null,null,null,null,null,null,0,3,0]
["Succo",null,null,null,null,null,null,null,null,null,null,null,null,null,null,null,null,null,null,null,null,0,3,0]
["Birra",null,null,null,null,null,null,null,null,null,null,null,null,null,null,null,null,null,null,null,null,0,3.5,0]
["Acqua Naturale",null,null,null,null,null,null,null,null,null,1,null,null,null,null,null,null,null,null,null,null,{"$f":"SUM(B44:U44)","v":1},2.5,{"$f":"W44*V44","v":2.5}]
["Acqua Frizzante",null,1,null,null,null,null,null,null,null,null,null,null,null,1,null,null,null,1,null,null,3,2.5,7.5]
["Patatine",null,null,null,null,null,null,null,null,null,null,null,null,null,null,null,null,null,null,null,null,0,2,0]
["Kit Kat",null,null,null,null,null,null,null,null,null,null,null,null,null,null,null,null,null,null,null,null,0,2,0]
[]
[null,1001,1002,1003,1004,1005,1006,1007,1008,1009,1010,1101,1102,1103,1104,1105,1106,1107,1108,1109,1110,"TOT","PREZZO"]
["Coca Cola",null,null,null,null,null,null,null,null,1,null,null,null,null,null,null,null,null,null,null,null,{"$f":"SUM(B50:U50)","v":1},3,0]
["Coca Cola Light",null,null,null,null,null,null,null,null,null,null,null,null,null,null,null,null,null,null,null,null,0,3,0]
["Tè",null,null,null,null,null,null,null,null,null,null,null,null,null,null,null,null,null,null,null,null,0,3,0]
["Acqua Tonica",null,null,null,null,null,null,null,null,null,null,null,null,null,null,null,null,null,null,null,null,0,3,0]
["Succo",null,null,null,null,null,null,null,null,1,null,null,null,null,null,null,null,null,null,null,null,0,3,0]
["Birra",null,null,null,null,null,null,null,null,null,null,null,null,null,null,null,null,null,null,null,null,0,3.5,0]
["Acqua Naturale",null,null,null,null,null,null,null,null,1,null,null,null,null,null,null,null,null,null,1,null,{"$f":"SUM(B56:U56)","v":2},2.5,{"$f":"W56*V56","v":5}]
["Acqua Frizzante",null,null,null,null,null,null,null,null,null,null,null,null,null,null,null,null,null,null,null,null,0,2.5,0]
["Patatine",null,null,null,null,null,null,null,null,null,null,null,null,null,null,null,null,null,null,null,null,0,2,0]
["Kit Kat",null,null,null,null,null,null,null,null,null,null,null,null,null,null,null,null,null,1,null,null,0,2,0]
[]
[null,1201,1202,1203,1204,1205,1206,1207,1208,1209,1210,1301,1302,1303,1304,1305,1306,1307,1308,1309,1310,"TOT","PREZZO"]
["Coca Cola",null,null,null,null,null,null,null,null,null,null,null,null,null,null,null,null,null,null,null,null,{"$f":"SUM(B62:U62)","v":0},3,0]
["Coca Cola Light",null,null,null,null,null,null,null,null,null,null,null,null,null,null,null,null,null,null,null,null,{"$f":"SUM(B63:U63)","v":0},3,0]
["Tè",null,null,null,null,null,null,null,null,null,null,null,null,null,null,null,null,null,null,null,null,0,3,0]
["Acqua Tonica",null,null,null,null,null,null,null,null,null,null,null,null,null,null,null,null,null,null,null,null,0,3,0]
["Succo",null,null,null,null,null,null,null,null,null,null,null,null,null,null,null,null,null,null,null,null,0,3,0]
["Birra",null,null,null,null,null,null,null,null,null,null,null,null,null,null,null,null,null,null,null,null,0,3.5,0]
["Acqua Naturale",null,1,null,null,null,null,1,null,null,null,null,null,null,2,null,null,null,1,null,null,5,2.5,{"$f":"W68*V68","v":12.5}]
["Acqua Frizzante",null,null,null,null,null,null,null,null,null,1,null,null,1,null,null,null,null,null,null,null,2,2.5,5]
["Patatine",null,1,null,null,null,null,null,null,null,null,null,null,null,null,null,null,null,null,null,null,1,2,0]
["Kit Kat",null,null,null,null,1,null,null,null,null,null,null,null,null,null,null,null,null,null,null,null,1,2,0]
[]
[null,1401,1402,1403,1404,1405,1406,1407,1408,1409,1410,1501,1502,1503,1504,1505,1506,1507,1508,1509,1510,"TOT","PREZZO"]
["Coca Cola",null,null,null,null,null,null,null,null,null,null,null,null,null,null,null,null,null,null,null,null,{"$f":"SUM(B74:U74)","v":0},3,0]
["Coca Cola Light",1,null,null,null,null,null,null,null,null,null,null,null,null,null,null,null,null,null,null,null,{"$f":"SUM(B75:U75)","v":1},3,0]
["Tè",null,null,null,null,null,null,null,null,null,null,null,null,null,null,null,null,null,null,null,null,0,3,0]
["Acqua Tonica",null,null,null,null,null,null,null,null,null,null,null,null,null,null,null,null,null,null,null,null,0,3,0]
["Succo",2,null,null,null,null,null,null,null,null,null,null,null,null,null,null,null,null,null,null,null,2,3,0]
["Birra",2,null,null,null,null,null,null,null,null,null,1,2,null,null,null,null,null,null,null,null,5,3.5,0]
["Acqua Naturale",null,null,null,1,1,null,null,null,1,null,null,null,null,1,null,null,null,null,null,1,5,2.5,{"$f":"W80*V80","v":12.5}]
["Acqua Frizzante",2,null,null,null,null,1,null,null,null,null,null,null,null,null,null,null,null,null,null,null,3,2.5,7.5]
["Patatine",null,null,null,null,null,null,null,null,null,null,null,null,null,null,null,null,null,null,null,null,0,2,0]
["Kit Kat",null,null,null,null,null,null,null,1,null,null,null,null,null,null,null,null,null,null,null,null,1,2,0]
[]
[null,1601,1602,1603,1604,1605,1606,1607,1608,1609,1610,1701,1702,1703,1704,1705,1706,1707,1708,null,null,"TOT","PREZZO"]
["Coca Cola",null,null,null,null,null,null,null,null,null,null,null,null,null,null,null,null,null,null,null,null,{"$f":"SUM(B86:U86)","v":0},3,0]
["Coca Cola Light",null,null,null,null,null,null,null,null,null,null,null,null,null,null,null,null,null,null,null,null,{"$f":"SUM(B87:U87)","v":0},3,0]
["Tè",null,null,null,null,null,null,null,null,null,null,null,null,null,null,null,null,null,null,null,null,0,3,0]
["Acqua Tonica",null,null,null,null,null,null,null,null,null,null,null,null,null,null,null,null,null,null,null,null,0,3,0]
["Succo",null,null,null,null,null,null,null,null,null,null,null,null,null,null,null,null,null,null,null,null,0,3,0]
["Birra",null,null,null,null,null,null,null,null,null,null,null,null,null,null,null,null,null,null,null,null,0,3.5,0]
["Acqua Naturale",null,null,null,2,null,2,null,null,null,null,null,null,null,null,null,null,2,1,null,null,7,2.5,{"$f":"W92*V92","v":17.5}]
["Acqua Frizzante",null,null,null,null,1,null,null,null,null,null,null,null,null,null,null,null,null,null,null,null,1,2.5,2.5]
["Patatine",null,null,null,null,null,null,null,null,null,null,null,null,null,null,null,1,null,null,null,null,1,2,0]
["Kit Kat",null,null,null,null,null,null,null,null,null,null,null,null,null,null,null,1,null,null,null,null,1,2,0]

{"sheet":"4","index":3,"n_rows":95,"n_cols":24,"rows_kept":95,"cut":false,"hidden":false,"merged":[[11,24,11,47]]}
[null,101,102,103,104,105,201,202,203,204,207,301,302,303,304,305,306,307,308,309,310,"TOT","PREZZO","PREZZO"]
["Coca Cola",null,null,null,null,null,null,null,null,null,null,null,null,null,null,null,null,null,null,null,null,{"$f":"SUM(B2:U2)","v":0},3,0]
["Coca Cola Light",null,null,null,null,null,null,null,null,null,null,null,null,null,null,null,null,null,null,null,null,{"$f":"SUM(B3:U3)","v":0},3,0]
["Tè",null,null,null,null,null,null,null,null,1,null,null,null,null,null,null,null,null,null,null,null,1,3,0]
["Acqua Tonica",null,null,null,null,null,null,null,null,null,null,null,null,null,null,null,null,null,null,null,null,0,3,0]
["Succo",null,null,null,null,null,null,null,1,null,null,null,null,null,null,null,null,null,null,null,null,1,3,0]
["Birra",null,null,null,null,null,null,1,null,null,null,null,null,null,null,null,null,null,null,null,null,1,3.5,0]
["Acqua Naturale",null,null,null,null,1,null,null,null,2,2,null,null,null,null,null,null,null,null,1,null,6,2.5,{"$f":"W8*V8","v":15}]
["Acqua Frizzante",null,null,null,null,null,null,1,null,null,null,null,null,null,null,null,null,null,null,null,null,1,2.5,2.5]
["Patatine",null,null,null,null,null,null,null,null,null,null,null,null,null,null,null,1,null,null,null,null,1,2,0]
["Kit Kat",null,null,null,null,null,null,null,null,null,1,null,null,null,null,null,null,null,null,null,null,1,2,0]
[]
[null,401,402,403,404,405,406,407,408,409,410,501,502,503,504,505,506,507,508,509,510,"TOT","PREZZO"]
["Coca Cola",null,null,null,null,null,null,null,null,null,null,null,null,null,null,null,null,null,null,null,null,{"$f":"SUM(B14:U14)","v":0},3,0]
["Coca Cola Light",null,null,null,null,null,null,null,null,null,null,null,null,null,null,null,null,null,null,null,null,{"$f":"SUM(B15:U15)","v":0},3,0]
["Tè",null,null,null,null,null,null,null,null,null,null,null,null,null,null,null,null,null,null,null,null,0,3,0]
["Acqua Tonica",null,null,null,null,null,null,null,null,null,null,null,null,null,null,null,null,null,null,null,null,0,3,0]
["Succo",null,null,null,null,null,null,null,null,null,null,null,null,null,null,null,null,null,null,null,null,0,3,0]
["Birra",null,null,null,null,null,null,null,null,null,null,null,null,null,null,null,null,null,null,null,null,0,3.5,0]
["Acqua Naturale",null,null,null,1,null,null,null,null,null,null,null,null,null,1,1,null,1,null,null,null,4,2.5,{"$f":"W20*V20","v":10}]
["Acqua Frizzante",null,null,null,null,null,null,null,1,null,null,null,null,null,null,1,null,null,null,null,1,3,2.5,7.5]
["Patatine",null,null,null,null,null,null,null,null,null,1,null,null,null,null,null,null,null,null,null,null,1,2,0]
["Kit Kat",null,null,null,null,null,null,null,null,null,1,null,null,null,null,null,null,null,null,null,1,2,2,0]
[]
[null,601,602,603,604,605,606,607,608,609,610,701,702,703,704,705,706,707,708,709,710,"TOT","PREZZO"]
["Coca Cola",null,1,null,null,null,null,null,null,null,null,null,null,null,null,null,null,null,null,null,null,{"$f":"SUM(B26:U26)","v":1},3,0]
["Coca Cola Light",null,1,null,null,null,null,null,null,null,null,null,null,null,null,null,null,null,null,null,null,{"$f":"SUM(B27:U27)","v":1},3,0]
["Tè",null,null,null,null,null,null,null,null,null,null,null,null,null,null,null,null,null,null,null,null,0,3,0]
["Acqua Tonica",null,null,null,null,null,null,null,null,null,null,null,null,null,null,null,null,null,null,null,null,0,3,0]
["Succo",null,null,null,null,null,1,null,null,null,null,null,null,null,null,null,null,null,null,null,null,1,3,0]
["Birra",null,null,null,null,null,null,null,null,null,null,null,null,null,null,null,null,null,null,null,1,1,3.5,0]
["Acqua Naturale",null,null,null,null,null,1,null,null,null,null,null,null,null,null,null,null,null,null,null,null,1,2.5,{"$f":"W32*V32","v":2.5}]
["Acqua Frizzante",null,null,null,null,null,null,null,null,null,null,null,null,null,null,null,null,null,null,null,null,0,2.5,0]
["Patatine",null,null,null,null,null,null,null,null,null,null,null,null,null,null,null,null,null,null,null,null,0,2,0]
["Kit Kat",null,null,null,null,null,null,null,null,null,null,null,null,null,null,null,null,null,null,null,null,0,2,0]
[]
[null,801,802,803,804,805,806,807,808,809,810,901,902,903,904,905,906,907,908,909,910,"TOT","PREZZO"]
["Coca Cola",null,null,null,null,null,null,null,1,null,null,null,null,null,null,null,null,null,null,null,null,{"$f":"SUM(B38:U38)","v":1},3,0]
["Coca Cola Light",null,null,null,null,null,null,null,null,null,null,null,null,null,null,null,null,null,null,null,null,0,3,0]
["Tè",null,null,null,null,null,null,null,null,null,null,null,null,null,null,null,1,null,null,null,null,0,3,0]
["Acqua Tonica",null,null,null,null,null,null,null,null,null,null,null,null,null,null,null,null,null,null,null,null,0,3,0]
["Succo",null,null,null,null,null,null,null,null,null,null,null,null,null,null,null,null,null,null,null,null,0,3,0]
["Birra",null,null,null,null,null,null,null,null,null,null,null,null,null,null,null,null,null,null,null,null,0,3.5,0]
["Acqua Naturale",null,null,null,null,null,null,1,null,null,null,null,null,null,null,null,1,null,null,null,null,{"$f":"SUM(B44:U44)","v":2},2.5,{"$f":"W44*V44","v":5}]
["Acqua Frizzante",null,1,null,null,null,null,null,null,null,null,null,null,null,null,null,null,null,1,1,null,3,2.5,7.5]
["Patatine",null,null,null,null,null,null,null,null,null,null,null,null,null,null,null,null,null,null,null,null,0,2,0]
["Kit Kat",null,null,null,null,null,null,null,null,null,null,null,null,null,null,null,null,null,null,null,null,0,2,0]
[]
[null,1001,1002,1003,1004,1005,1006,1007,1008,1009,1010,1101,1102,1103,1104,1105,1106,1107,1108,1109,1110,"TOT","PREZZO"]
["Coca Cola",null,null,null,null,null,null,null,null,null,null,null,null,null,null,null,null,null,null,null,null,{"$f":"SUM(B50:U50)","v":0},3,0]
["Coca Cola Light",null,null,null,null,null,null,null,null,null,null,null,null,null,null,null,null,null,null,null,null,0,3,0]
["Tè",null,null,null,null,null,null,null,null,null,null,null,null,null,null,null,null,null,null,null,null,0,3,0]
["Acqua Tonica",null,null,null,null,null,null,null,null,null,null,null,null,null,null,null,null,null,null,null,null,0,3,0]
["Succo",null,null,null,null,null,null,null,null,null,null,null,null,null,null,null,null,null,null,null,null,0,3,0]
["Birra",null,null,null,null,null,null,null,null,null,null,null,null,null,null,null,null,null,null,null,null,0,3.5,0]
["Acqua Naturale",null,null,null,null,null,null,null,null,null,null,null,null,1,null,null,null,null,null,null,null,{"$f":"SUM(B56:U56)","v":1},2.5,{"$f":"W56*V56","v":2.5}]
["Acqua Frizzante",null,null,null,null,null,null,null,null,null,null,null,null,null,null,null,null,null,null,null,null,0,2.5,0]
["Patatine",null,null,null,null,null,null,null,null,null,null,null,null,null,null,null,null,null,null,null,null,0,2,0]
["Kit Kat",null,1,null,null,null,null,null,null,null,1,null,null,null,null,null,null,null,null,null,null,0,2,0]
[]
[null,1201,1202,1203,1204,1205,1206,1207,1208,1209,1210,1301,1302,1303,1304,1305,1306,1307,1308,1309,1310,"TOT","PREZZO"]
["Coca Cola",null,null,null,null,null,null,null,null,null,null,null,null,null,null,null,null,null,null,null,null,{"$f":"SUM(B62:U62)","v":0},3,0]
["Coca Cola Light",null,null,null,null,null,null,null,null,null,null,null,null,null,null,null,null,null,null,null,null,{"$f":"SUM(B63:U63)","v":0},3,0]
["Tè",null,null,1,null,null,null,null,null,null,null,null,null,null,null,null,null,null,null,null,null,1,3,0]
["Acqua Tonica",null,null,null,null,null,null,null,null,null,null,null,null,null,null,null,null,null,null,null,null,0,3,0]
["Succo",null,null,null,null,null,null,null,null,null,null,null,null,null,null,null,null,null,null,null,null,0,3,0]
["Birra",null,null,null,null,null,1,null,null,null,null,null,null,null,null,null,null,null,null,null,null,1,3.5,0]
["Acqua Naturale",null,null,null,null,null,null,null,null,null,null,null,1,null,2,2,1,null,null,1,null,7,2.5,{"$f":"W68*V68","v":17.5}]
["Acqua Frizzante",null,null,null,null,null,null,null,null,null,null,null,null,1,null,null,null,1,null,null,null,2,2.5,5]
["Patatine",null,null,null,null,null,null,null,null,null,null,null,null,null,null,null,null,null,null,null,null,0,2,0]
["Kit Kat",null,null,null,null,null,null,null,null,null,null,null,null,null,null,null,null,null,null,null,null,0,2,0]
[]
[null,1401,1402,1403,1404,1405,1406,1407,1408,1409,1410,1501,1502,1503,1504,1505,1506,1507,1508,1509,1510,"TOT","PREZZO"]
["Coca Cola",null,null,null,null,null,null,null,null,null,null,null,null,null,null,null,null,1,null,null,null,{"$f":"SUM(B74:U74)","v":1},3,0]
["Coca Cola Light",null,null,null,null,null,null,null,null,null,null,null,null,null,null,null,null,1,null,null,null,{"$f":"SUM(B75:U75)","v":1},3,0]
["Tè",null,null,null,null,null,null,null,null,null,null,null,null,null,null,null,null,null,null,null,null,0,3,0]
["Acqua Tonica",null,null,null,null,null,null,null,null,null,null,null,null,null,null,null,null,null,null,null,null,0,3,0]
["Succo",null,null,null,null,null,null,null,null,null,null,null,null,null,null,null,null,1,null,null,null,1,3,0]
["Birra",null,1,null,null,null,null,null,null,null,null,null,2,null,null,null,null,1,null,null,null,4,3.5,0]
["Acqua Naturale",1,null,null,null,null,1,null,null,null,null,null,1,null,null,1,null,1,null,1,null,6,2.5,{"$f":"W80*V80","v":15}]
["Acqua Frizzante",null,1,null,null,null,null,null,null,null,null,null,null,null,null,1,null,1,null,null,null,3,2.5,7.5]
["Patatine",1,null,null,null,null,null,null,null,null,null,null,null,null,null,null,null,null,null,null,null,1,2,0]
["Kit Kat",1,null,null,null,null,null,null,null,null,null,null,null,null,null,null,null,1,null,null,null,2,2,0]
[]
[null,1601,1602,1603,1604,1605,1606,1607,1608,1609,1610,1701,1702,1703,1704,1705,1706,1707,1708,null,null,"TOT","PREZZO"]
["Coca Cola",null,null,null,null,null,null,null,null,null,null,null,null,null,null,null,null,null,null,null,null,{"$f":"SUM(B86:U86)","v":0},3,0]
["Coca Cola Light",null,null,null,null,null,null,null,null,null,null,null,null,null,null,null,null,null,null,null,null,{"$f":"SUM(B87:U87)","v":0},3,0]
["Tè",null,null,null,null,null,null,null,null,null,null,null,null,null,1,null,null,null,null,null,null,1,3,0]
["Acqua Tonica",null,null,null,null,null,null,null,null,null,null,null,null,null,null,null,null,null,null,null,null,0,3,0]
["Succo",null,null,null,null,null,null,null,null,null,null,null,null,null,null,null,null,null,null,null,null,0,3,0]
["Birra",null,null,null,null,null,null,null,null,null,null,null,null,null,null,null,null,null,null,null,null,0,3.5,0]
["Acqua Naturale",2,null,null,null,null,null,null,null,null,null,null,null,null,null,null,null,null,null,null,null,2,2.5,{"$f":"W92*V92","v":5}]
["Acqua Frizzante",null,null,null,null,null,null,null,null,null,null,null,null,null,null,null,null,null,null,null,null,0,2.5,0]
["Patatine",null,null,null,null,null,null,null,null,null,null,null,null,null,null,null,null,null,null,null,null,0,2,0]
["Kit Kat",null,null,null,null,null,null,null,null,null,null,null,null,null,null,null,null,null,null,null,null,0,2,0]

{"sheet":"5","index":4,"n_rows":95,"n_cols":24,"rows_kept":95,"cut":false,"hidden":false,"merged":[[11,24,11,47]]}
[null,101,102,103,104,105,204,202,203,206,207,301,302,303,304,305,306,307,308,309,310,"TOT","PREZZO","PREZZO"]
["Coca Cola",null,null,null,null,null,null,null,null,null,null,null,null,null,null,null,null,null,null,null,null,{"$f":"SUM(B2:U2)","v":0},3,0]
["Coca Cola Light",null,null,null,null,null,null,null,null,null,null,null,null,null,null,null,null,null,null,null,null,{"$f":"SUM(B3:U3)","v":0},3,0]
["Tè",null,null,null,null,null,null,null,null,null,null,null,null,null,null,null,null,null,null,null,null,0,3,0]
["Acqua Tonica",null,null,null,null,null,null,null,null,null,null,null,null,null,null,null,null,null,null,null,null,0,3,0]
["Succo",null,null,null,null,null,null,null,null,null,null,null,null,null,null,null,null,null,null,null,null,0,3,0]
["Birra",null,null,null,null,null,null,null,null,null,null,null,null,null,null,null,null,null,null,null,null,0,3.5,0]
["Acqua Naturale",null,null,null,null,null,2,null,null,null,null,null,null,1,null,null,2,null,null,null,null,5,2.5,{"$f":"W8*V8","v":12.5}]
["Acqua Frizzante",null,null,null,null,null,null,null,null,null,null,null,null,1,null,null,null,null,null,null,null,1,2.5,2.5]
["Patatine",null,null,null,null,null,null,null,null,null,null,null,null,null,null,null,null,null,null,null,null,0,2,0]
["Kit Kat",null,null,null,null,null,null,null,null,null,null,null,null,1,null,null,null,null,null,null,null,1,2,0]
[]
[null,401,402,403,404,405,406,407,408,409,410,501,502,503,504,505,506,507,508,509,510,"TOT","PREZZO"]
["Coca Cola",null,null,null,null,null,null,null,null,null,null,null,null,1,null,null,null,null,null,null,null,{"$f":"SUM(B14:U14)","v":1},3,0]
["Coca Cola Light",null,null,null,null,null,null,null,null,null,null,null,null,null,null,null,null,null,null,null,null,{"$f":"SUM(B15:U15)","v":0},3,0]
["Tè",null,null,null,null,null,null,1,null,null,null,null,null,null,null,null,null,null,null,null,null,1,3,0]
["Acqua Tonica",null,null,null,null,null,null,null,null,null,null,null,null,null,null,null,null,null,null,null,null,0,3,0]
["Succo",null,null,null,null,null,null,null,null,null,null,null,null,null,null,null,null,null,null,null,null,0,3,0]
["Birra",null,null,null,null,null,null,2,null,2,null,null,null,null,null,null,null,null,null,null,1,5,3.5,0]
["Acqua Naturale",null,null,null,null,null,null,1,null,2,null,null,null,null,null,1,2,null,null,null,null,6,2.5,{"$f":"W20*V20","v":15}]
["Acqua Frizzante",null,null,null,null,null,null,1,null,null,null,null,null,null,null,null,null,null,null,null,1,2,2.5,5]
["Patatine",null,null,null,null,null,null,null,null,null,null,null,null,null,null,null,null,null,null,null,1,1,2,0]
["Kit Kat",null,null,null,null,null,null,null,null,null,null,null,null,null,null,null,null,null,null,null,null,0,2,0]
[]
[null,601,602,603,604,605,606,607,608,609,610,701,702,703,704,705,706,707,708,709,710,"TOT","PREZZO"]
["Coca Cola",null,null,null,null,null,null,null,null,null,null,null,null,null,null,null,null,null,null,null,null,{"$f":"SUM(B26:U26)","v":0},3,0]
["Coca Cola Light",null,null,null,null,null,null,null,null,null,null,null,null,null,null,null,null,null,null,null,null,{"$f":"SUM(B27:U27)","v":0},3,0]
["Tè",null,null,null,null,null,null,null,null,null,null,null,null,null,null,null,null,null,null,null,null,0,3,0]
["Acqua Tonica",null,null,null,null,null,null,null,null,null,null,null,null,null,null,null,null,null,null,null,null,0,3,0]
["Succo",null,null,null,null,null,null,null,null,null,null,null,null,null,null,null,null,null,null,null,null,0,3,0]
["Birra",null,null,null,2,null,null,null,null,null,null,null,null,null,null,null,null,null,null,null,null,2,3.5,0]
["Acqua Naturale",null,null,null,2,null,null,null,null,null,null,null,null,null,null,null,null,null,null,null,null,2,2.5,{"$f":"W32*V32","v":5}]
["Acqua Frizzante",null,1,null,null,null,null,null,null,null,null,null,null,null,null,null,null,null,null,null,null,1,2.5,2.5]
["Patatine",null,null,null,null,null,null,null,null,null,null,null,null,null,null,null,null,null,null,null,null,0,2,0]
["Kit Kat",null,1,null,null,null,null,null,null,null,null,null,null,null,null,null,null,null,null,null,null,1,2,0]
[]
[null,801,802,803,804,805,806,807,808,809,810,901,902,903,904,905,906,907,908,909,910,"TOT","PREZZO"]
["Coca Cola",null,null,null,null,null,null,null,null,null,null,null,null,null,null,null,null,null,null,null,null,{"$f":"SUM(B38:U38)","v":0},3,0]
["Coca Cola Light",null,null,null,1,null,null,null,null,null,null,null,null,null,1,null,null,null,null,null,null,0,3,0]
["Tè",null,null,null,null,null,null,null,null,null,null,null,null,null,null,null,null,null,null,null,null,0,3,0]
["Acqua Tonica",null,null,null,null,null,null,null,null,null,null,null,null,null,null,null,null,null,null,null,null,0,3,0]
["Succo",null,null,null,null,null,null,null,null,null,null,null,null,null,null,null,null,null,null,null,null,0,3,0]
["Birra",null,null,null,null,null,null,2,null,null,null,null,null,2,null,null,null,null,null,null,null,0,3.5,0]
["Acqua Naturale",null,null,null,null,null,null,1,null,null,null,1,1,null,1,null,null,null,null,null,null,{"$f":"SUM(B44:U44)","v":4},2.5,{"$f":"W44*V44","v":10}]
["Acqua Frizzante",null,null,null,1,null,null,null,null,null,null,null,null,null,1,null,null,null,null,null,null,2,2.5,5]
["Patatine",null,null,null,null,null,null,null,1,null,null,null,null,null,null,null,null,null,null,null,null,0,2,0]
["Kit Kat",null,null,null,null,null,null,null,1,null,null,1,null,null,null,null,null,null,null,null,null,0,2,0]
[]
[null,1001,1002,1003,1004,1005,1006,1007,1008,1009,1010,1101,1102,1103,1104,1105,1106,1107,1108,1109,1110,"TOT","PREZZO"]
["Coca Cola",null,null,null,null,null,null,null,null,null,null,null,null,null,null,null,null,null,null,null,null,{"$f":"SUM(B50:U50)","v":0},3,0]
["Coca Cola Light",null,null,null,null,null,null,null,null,null,null,null,null,null,null,null,null,null,null,null,null,0,3,0]
["Tè",null,null,null,null,null,null,null,null,null,null,null,null,null,null,null,null,null,null,null,null,0,3,0]
["Acqua Tonica",null,null,null,null,null,null,null,null,null,null,null,null,null,null,null,null,null,null,null,null,0,3,0]
["Succo",null,null,null,null,null,null,null,null,null,null,null,null,null,null,null,null,null,null,null,null,0,3,0]
["Birra",null,null,null,null,null,null,2,null,null,null,null,null,null,null,null,null,null,null,null,null,0,3.5,0]
["Acqua Naturale",1,null,null,null,null,null,1,null,null,null,2,null,null,null,null,null,null,null,null,null,{"$f":"SUM(B56:U56)","v":4},2.5,{"$f":"W56*V56","v":10}]
["Acqua Frizzante",null,null,null,null,null,null,null,null,null,null,2,null,null,null,null,null,null,null,null,null,2,2.5,5]
["Patatine",null,null,null,null,null,null,null,null,null,null,null,null,null,null,null,null,null,null,null,null,0,2,0]
["Kit Kat",null,null,null,null,null,null,null,null,null,null,null,null,null,null,null,null,null,null,null,null,0,2,0]
[]
[null,1201,1202,1203,1204,1205,1206,1207,1208,1209,1210,1301,1302,1303,1304,1305,1306,1307,1308,1309,1310,"TOT","PREZZO"]
["Coca Cola",null,null,null,1,null,null,null,null,null,null,null,null,null,null,null,null,null,null,null,null,{"$f":"SUM(B62:U62)","v":1},3,0]
["Coca Cola Light",null,null,null,null,null,null,null,null,null,null,null,1,null,null,null,null,null,null,null,null,{"$f":"SUM(B63:U63)","v":1},3,0]
["Tè",null,null,null,1,null,null,null,null,null,null,null,null,null,null,null,null,null,null,1,null,2,3,0]
["Acqua Tonica",null,null,null,1,null,null,null,null,null,null,null,null,null,null,null,null,null,null,null,null,1,3,0]
["Succo",null,null,null,1,null,null,null,null,null,null,null,null,null,null,null,null,null,null,null,null,1,3,0]
["Birra",null,null,null,null,2,null,null,null,null,null,null,null,null,null,null,null,null,null,null,null,2,3.5,0]
["Acqua Naturale",null,null,2,null,null,1,null,null,1,null,null,1,null,null,null,null,null,null,1,null,6,2.5,{"$f":"W68*V68","v":15}]
["Acqua Frizzante",null,null,2,1,null,null,null,null,null,null,null,null,null,2,null,null,null,null,1,null,6,2.5,15]
["Patatine",null,null,null,null,null,1,null,null,null,null,null,null,null,null,null,null,null,null,null,null,1,2,0]
["Kit Kat",null,null,null,null,null,1,null,null,null,null,null,null,null,null,null,null,null,null,null,null,1,2,0]
[]
[null,1401,1402,1403,1404,1405,1406,1407,1408,1409,1410,1501,1502,1503,1504,1505,1506,1507,1508,1509,1510,"TOT","PREZZO"]
["Coca Cola",null,null,null,null,null,null,null,null,null,null,null,null,null,null,null,null,1,null,null,null,{"$f":"SUM(B74:U74)","v":1},3,0]
["Coca Cola Light",null,null,null,null,null,null,null,null,null,null,null,null,null,null,null,null,null,null,null,null,{"$f":"SUM(B75:U75)","v":0},3,0]
["Tè",null,null,null,null,null,null,null,null,null,null,null,null,null,null,null,null,null,1,null,null,1,3,0]
["Acqua Tonica",null,null,null,null,null,null,null,null,null,null,null,null,null,null,null,null,null,null,null,null,0,3,0]
["Succo",null,null,null,null,null,null,null,null,null,null,null,null,null,null,null,null,null,null,null,null,0,3,0]
["Birra",1,null,null,2,null,null,null,null,null,null,null,2,null,null,null,null,null,null,null,null,5,3.5,0]
["Acqua Naturale",null,null,null,1,1,null,null,null,null,null,1,null,null,null,null,null,null,1,null,null,4,2.5,{"$f":"W80*V80","v":10}]
["Acqua Frizzante",null,null,null,null,null,null,null,null,null,null,null,null,null,null,null,null,null,null,null,null,0,2.5,0]
["Patatine",null,null,null,1,null,null,null,null,null,null,null,null,null,null,null,null,1,null,null,1,3,2,0]
["Kit Kat",null,null,null,null,null,null,null,null,null,null,null,null,null,null,null,null,1,1,null,1,3,2,0]
[]
[null,1601,1602,1603,1604,1605,1606,1607,1608,1609,1610,1701,1702,1703,1704,1705,1706,1707,1708,null,null,"TOT","PREZZO"]
["Coca Cola",null,null,null,null,null,null,null,null,null,null,null,null,null,null,null,null,null,null,null,null,{"$f":"SUM(B86:U86)","v":0},3,0]
["Coca Cola Light",null,null,null,null,null,null,null,null,null,null,null,null,null,1,null,null,null,null,null,null,{"$f":"SUM(B87:U87)","v":1},3,0]
["Tè",null,null,null,null,null,null,null,null,null,null,null,null,null,null,null,null,null,null,null,null,0,3,0]
["Acqua Tonica",null,null,null,null,null,null,null,null,null,null,null,null,null,null,null,null,null,null,null,null,0,3,0]
["Succo",null,null,null,null,null,null,null,null,null,null,null,null,null,null,null,null,null,null,null,null,0,3,0]
["Birra",null,null,1,null,null,null,null,null,null,null,1,null,null,null,null,null,null,null,null,null,2,3.5,0]
["Acqua Naturale",null,null,null,1,null,null,1,null,null,null,1,null,null,null,null,null,null,null,null,null,3,2.5,{"$f":"W92*V92","v":7.5}]
["Acqua Frizzante",null,null,null,null,null,null,null,null,null,null,1,null,null,null,null,null,null,null,null,null,1,2.5,2.5]
["Patatine",null,null,1,null,null,null,null,null,null,null,null,null,null,null,null,null,null,null,null,null,1,2,0]
["Kit Kat",null,null,null,null,null,null,null,null,null,null,null,null,null,null,null,null,null,null,null,null,0,2,0]

{"sheet":"6","index":5,"n_rows":95,"n_cols":24,"rows_kept":95,"cut":false,"hidden":false,"merged":[[11,24,11,47]]}
[null,101,102,103,104,105,201,202,203,206,207,301,302,303,304,305,306,307,308,309,310,"TOT","PREZZO","PREZZO"]
["Coca Cola",null,null,null,null,null,null,null,null,null,null,null,null,null,null,null,null,null,null,null,null,{"$f":"SUM(B2:U2)","v":0},3,0]
["Coca Cola Light",null,null,null,null,null,null,null,null,null,null,null,null,null,null,null,null,null,null,null,null,{"$f":"SUM(B3:U3)","v":0},3,0]
["Tè",null,null,null,null,null,null,null,null,null,null,null,null,null,null,null,null,null,null,null,null,0,3,0]
["Acqua Tonica",null,null,null,null,null,null,null,null,null,null,null,null,null,null,null,null,null,null,null,null,0,3,0]
["Succo",null,null,null,null,null,null,null,null,null,null,null,2,null,null,null,null,null,null,null,null,2,3,0]
["Birra",null,null,null,null,null,null,null,null,null,null,null,null,null,null,null,null,null,null,null,null,0,3.5,0]
["Acqua Naturale",null,null,null,null,null,null,null,1,null,null,null,null,null,null,null,null,null,null,null,1,2,2.5,{"$f":"W8*V8","v":5}]
["Acqua Frizzante",null,null,null,null,null,null,null,null,null,null,null,null,null,null,null,null,null,null,null,null,0,2.5,0]
["Patatine",null,null,null,null,null,null,null,null,null,null,null,null,null,null,null,null,null,null,null,null,0,2,0]
["Kit Kat",null,null,null,null,null,null,null,null,null,null,null,null,null,null,null,null,null,null,null,null,0,2,0]
[]
[null,401,402,403,404,405,406,407,408,409,410,501,502,503,504,505,506,507,508,509,510,"TOT","PREZZO"]
["Coca Cola",null,null,null,null,null,null,null,null,null,null,null,null,null,null,null,null,null,null,null,null,{"$f":"SUM(B14:U14)","v":0},3,0]
["Coca Cola Light",null,null,null,null,null,null,null,null,null,null,null,null,null,null,null,null,null,null,null,null,{"$f":"SUM(B15:U15)","v":0},3,0]
["Tè",null,null,null,null,null,null,null,null,null,null,null,null,null,null,null,null,null,null,null,null,0,3,0]
["Acqua Tonica",null,null,null,null,null,null,null,null,null,null,null,null,null,null,null,null,null,null,null,null,0,3,0]
["Succo",null,null,null,null,null,null,null,null,null,null,null,null,null,null,null,null,null,null,null,null,0,3,0]
["Birra",null,1,null,null,null,null,2,null,null,null,null,1,null,null,null,null,null,null,null,null,4,3.5,0]
["Acqua Naturale",null,2,null,null,null,null,1,null,2,null,null,null,null,null,null,null,null,null,null,null,5,2.5,{"$f":"W20*V20","v":12.5}]
["Acqua Frizzante",null,null,null,null,null,null,1,null,1,null,null,null,null,null,null,null,null,1,1,null,4,2.5,10]
["Patatine",null,null,null,1,null,null,null,null,null,null,null,null,null,null,null,null,null,null,null,null,1,2,0]
["Kit Kat",null,null,null,null,null,null,null,null,null,null,null,null,null,null,null,null,null,null,null,null,0,2,0]
[]
[null,601,602,603,604,605,606,607,608,609,610,701,702,703,704,705,706,707,708,709,710,"TOT","PREZZO"]
["Coca Cola",null,null,null,null,null,null,null,null,null,null,null,null,null,null,null,null,null,null,null,null,{"$f":"SUM(B26:U26)","v":0},3,0]
["Coca Cola Light",null,null,null,null,null,null,null,null,null,null,null,null,null,null,null,null,null,null,null,null,{"$f":"SUM(B27:U27)","v":0},3,0]
["Tè",null,null,null,null,null,null,null,null,null,null,null,null,null,null,null,null,null,null,null,null,0,3,0]
["Acqua Tonica",null,null,null,null,null,null,null,null,null,null,null,null,null,null,null,null,null,null,null,null,0,3,0]
["Succo",null,null,null,null,null,null,null,null,null,null,null,null,null,null,null,null,null,null,null,null,0,3,0]
["Birra",null,null,null,1,null,null,null,null,null,null,null,null,null,null,null,null,null,null,null,null,1,3.5,0]
["Acqua Naturale",null,1,null,2,null,null,null,null,null,null,null,null,null,null,null,null,null,null,null,null,3,2.5,{"$f":"W32*V32","v":7.5}]
["Acqua Frizzante",null,null,null,1,null,null,null,null,null,null,null,null,null,null,null,null,null,null,null,null,1,2.5,2.5]
["Patatine",null,null,null,null,null,null,null,null,null,null,null,null,null,null,null,null,null,null,null,null,0,2,0]
["Kit Kat",null,1,null,null,null,null,1,null,null,null,null,null,null,1,null,null,null,null,null,null,3,2,0]
[]
[null,801,802,803,804,805,806,807,808,809,810,901,902,903,904,905,906,907,908,909,910,"TOT","PREZZO"]
["Coca Cola",null,null,null,null,null,null,null,null,null,null,null,null,1,null,null,null,null,null,null,null,{"$f":"SUM(B38:U38)","v":1},3,0]
["Coca Cola Light",null,null,null,1,null,null,null,null,null,null,null,null,null,null,null,null,null,null,null,null,0,3,0]
["Tè",null,null,null,null,null,null,1,null,null,null,null,null,null,null,null,null,null,null,null,null,0,3,0]
["Acqua Tonica",null,null,null,null,null,null,null,null,null,null,null,null,null,null,null,null,null,null,null,null,0,3,0]
["Succo",null,null,null,null,null,null,null,null,null,null,null,null,null,null,null,null,null,null,null,null,0,3,0]
["Birra",null,null,null,null,null,null,null,null,null,null,null,null,null,1,null,null,null,1,null,null,0,3.5,0]
["Acqua Naturale",null,null,1,null,null,null,2,null,null,null,null,null,null,1,null,null,null,null,null,null,{"$f":"SUM(B44:U44)","v":4},2.5,{"$f":"W44*V44","v":10}]
["Acqua Frizzante",null,null,null,null,null,null,null,null,null,null,null,null,1,null,null,null,null,null,null,null,1,2.5,2.5]
["Patatine",null,null,null,null,null,null,1,null,null,null,null,null,null,null,null,null,null,null,null,null,0,2,0]
["Kit Kat",null,null,null,null,null,null,1,null,null,null,null,null,null,1,null,null,null,null,null,null,0,2,0]
[]
[null,1001,1002,1003,1004,1005,1006,1007,1008,1009,1010,1101,1102,1103,1104,1105,1106,1107,1108,1109,1110,"TOT","PREZZO"]
["Coca Cola",null,null,null,null,null,null,null,null,null,null,null,null,null,null,null,null,null,null,null,null,{"$f":"SUM(B50:U50)","v":0},3,0]
["Coca Cola Light",null,null,null,null,null,null,null,null,null,null,null,null,null,null,null,null,null,null,null,null,0,3,0]
["Tè",null,null,null,null,null,null,null,null,null,null,null,null,null,null,null,null,null,null,null,null,0,3,0]
["Acqua Tonica",null,null,null,null,null,null,null,null,null,null,null,null,null,null,null,null,null,null,null,null,0,3,0]
["Succo",null,null,null,null,null,null,null,null,null,null,null,null,null,null,null,null,null,null,null,null,0,3,0]
["Birra",null,null,null,null,null,null,null,null,null,null,null,null,null,null,null,null,1,null,null,null,0,3.5,0]
["Acqua Naturale",null,1,null,null,null,null,null,null,null,null,null,null,1,null,null,null,1,null,null,null,{"$f":"SUM(B56:U56)","v":3},2.5,{"$f":"W56*V56","v":7.5}]
["Acqua Frizzante",null,null,null,null,null,null,null,null,null,null,null,null,1,null,null,null,null,null,null,null,1,2.5,2.5]
["Patatine",null,null,null,null,null,null,null,null,null,null,null,null,null,null,null,null,null,null,null,null,0,2,0]
["Kit Kat",null,null,null,null,null,null,null,null,null,null,null,null,null,null,null,null,null,null,null,null,0,2,0]
[]
[null,1201,1202,1203,1204,1205,1206,1207,1208,1209,1210,1301,1302,1303,1304,1305,1306,1307,1308,1309,1310,"TOT","PREZZO"]
["Coca Cola",null,null,null,null,null,null,null,null,null,null,null,null,null,null,null,null,null,null,null,null,{"$f":"SUM(B62:U62)","v":0},3,0]
["Coca Cola Light",null,null,null,null,null,null,null,null,null,null,null,1,null,1,null,null,null,null,null,null,{"$f":"SUM(B63:U63)","v":2},3,0]
["Tè",null,null,null,null,null,null,null,null,null,null,null,null,null,null,null,null,null,null,null,null,0,3,0]
["Acqua Tonica",null,null,null,null,null,null,null,null,null,null,null,null,null,null,null,null,null,null,null,null,0,3,0]
["Succo",null,null,null,null,null,null,null,null,null,null,null,null,null,null,null,null,null,null,null,null,0,3,0]
["Birra",null,null,null,null,null,null,null,null,null,null,null,null,null,null,null,null,1,null,null,null,1,3.5,0]
["Acqua Naturale",null,null,2,null,null,1,1,null,null,null,null,null,null,null,1,2,null,null,2,1,10,2.5,{"$f":"W68*V68","v":25}]
["Acqua Frizzante",null,null,2,null,null,null,null,null,null,1,null,null,null,null,null,1,null,null,2,null,6,2.5,15]
["Patatine",null,null,null,null,null,null,null,null,null,null,null,null,null,null,null,null,null,null,null,null,0,2,0]
["Kit Kat",null,null,null,null,null,null,1,null,null,null,null,null,null,null,null,null,null,null,1,null,2,2,0]
[]
[null,1401,1402,1403,1404,1405,1406,1407,1408,1409,1410,1501,1502,1503,1504,1505,1506,1507,1508,1509,1510,"TOT","PREZZO"]
["Coca Cola",null,null,null,null,null,null,null,null,null,null,null,null,null,null,null,null,null,null,1,null,{"$f":"SUM(B74:U74)","v":1},3,0]
["Coca Cola Light",null,null,null,null,null,null,null,null,1,null,null,null,null,null,null,null,1,null,null,null,{"$f":"SUM(B75:U75)","v":2},3,0]
["Tè",null,null,null,null,null,null,null,null,1,null,null,null,null,null,null,null,null,null,null,1,2,3,0]
["Acqua Tonica",null,null,null,null,null,null,null,null,null,null,null,null,null,null,null,null,null,null,null,null,0,3,0]
["Succo",null,null,null,null,null,null,null,null,null,null,null,null,null,null,null,1,null,null,null,null,1,3,0]
["Birra",null,null,null,null,null,null,null,null,1,null,null,1,null,null,null,null,null,null,null,null,2,3.5,0]
["Acqua Naturale",null,1,null,1,1,null,null,2,1,1,null,null,null,null,null,2,null,null,null,2,11,2.5,{"$f":"W80*V80","v":27.5}]
["Acqua Frizzante",null,null,null,null,null,null,null,null,null,null,null,1,null,null,null,null,1,null,null,null,2,2.5,5]
["Patatine",1,null,null,1,null,null,null,null,null,null,null,null,null,null,null,1,1,null,null,null,4,2,0]
["Kit Kat",1,null,null,1,null,null,null,null,1,null,null,null,null,null,null,null,null,null,null,1,4,2,0]
[]
[null,1601,1602,1603,1604,1605,1606,1607,1608,1609,1610,1701,1702,1703,1704,1705,1706,1707,1708,null,null,"TOT","PREZZO"]
["Coca Cola",null,null,null,null,null,null,null,null,null,null,null,null,null,null,null,null,null,null,null,null,{"$f":"SUM(B86:U86)","v":0},3,0]
["Coca Cola Light",null,null,1,null,null,null,null,null,null,null,null,null,null,null,null,null,null,null,null,null,{"$f":"SUM(B87:U87)","v":1},3,0]
["Tè",null,null,null,null,null,null,null,null,null,null,null,null,null,null,null,null,null,null,null,null,0,3,0]
["Acqua Tonica",null,null,null,null,null,null,null,null,null,null,null,null,null,null,null,null,null,null,null,null,0,3,0]
["Succo",null,null,null,null,null,null,null,null,null,null,null,null,null,null,null,null,null,null,null,null,0,3,0]
["Birra",null,null,1,null,null,null,null,null,null,null,null,null,null,null,null,null,null,null,null,null,1,3.5,0]
["Acqua Naturale",null,null,1,1,null,null,null,null,null,null,null,null,null,null,null,null,1,1,null,null,4,2.5,{"$f":"W92*V92","v":10}]
["Acqua Frizzante",null,null,null,1,null,null,null,null,null,null,null,null,null,null,null,null,null,null,null,null,1,2.5,2.5]
["Patatine",null,null,null,null,null,null,null,null,null,null,null,null,null,null,null,null,null,null,null,null,0,2,0]
["Kit Kat",null,null,1,null,null,null,null,null,null,null,null,null,null,null,null,null,null,null,null,null,1,2,0]

{"sheet":"7","index":6,"n_rows":95,"n_cols":24,"rows_kept":95,"cut":false,"hidden":false,"merged":[[11,24,11,47]]}
[null,101,102,103,104,105,201,202,203,206,207,301,302,303,304,305,306,307,308,309,310,"TOT","PREZZO","PREZZO"]
["Coca Cola",null,null,null,null,null,null,null,null,null,null,null,null,null,null,null,null,null,null,null,null,{"$f":"SUM(B2:U2)","v":0},3,0]
["Coca Cola Light",null,null,null,null,null,null,null,null,null,null,null,null,null,null,null,null,null,null,null,null,{"$f":"SUM(B3:U3)","v":0},3,0]
["Tè",null,null,null,null,null,null,null,null,null,null,null,null,null,null,null,null,null,null,null,null,0,3,0]
["Acqua Tonica",null,null,null,null,null,null,null,null,null,null,null,null,null,null,null,null,null,null,null,null,0,3,0]
["Succo",null,null,null,null,null,null,null,null,null,null,null,null,null,null,null,null,null,null,null,null,0,3,0]
["Birra",null,null,null,null,null,null,null,null,null,null,null,null,null,null,null,null,null,null,null,null,0,3.5,0]
["Acqua Naturale",null,null,null,null,null,null,null,null,null,null,null,null,null,1,null,null,null,null,null,null,1,2.5,{"$f":"W8*V8","v":2.5}]
["Acqua Frizzante",null,null,null,null,null,null,null,null,null,null,null,null,null,null,null,null,null,null,null,null,0,2.5,0]
["Patatine",null,null,null,null,null,null,null,null,null,null,null,null,null,null,null,null,null,null,null,null,0,2,0]
["Kit Kat",null,null,null,null,null,null,null,null,null,null,null,null,null,null,null,null,null,null,null,null,0,2,0]
[]
[null,401,402,403,404,405,406,407,408,409,410,501,502,503,504,505,506,507,508,509,510,"TOT","PREZZO"]
["Coca Cola",null,1,null,null,null,null,null,null,null,null,null,null,null,null,null,null,null,null,null,null,{"$f":"SUM(B14:U14)","v":1},3,0]
["Coca Cola Light",null,null,null,null,null,null,null,null,null,null,null,null,null,null,null,null,null,null,null,null,{"$f":"SUM(B15:U15)","v":0},3,0]
["Tè",null,null,null,null,null,null,null,null,null,null,null,null,null,null,null,null,null,null,null,null,0,3,0]
["Acqua Tonica",null,null,null,null,null,null,null,null,null,null,null,null,null,null,null,null,null,null,null,null,0,3,0]
["Succo",null,null,null,null,null,null,null,null,null,null,null,null,null,null,null,null,null,null,null,null,0,3,0]
["Birra",null,null,null,null,null,null,2,null,null,null,null,null,1,null,null,null,null,null,null,null,3,3.5,0]
["Acqua Naturale",null,null,null,null,null,null,1,null,1,null,null,2,null,1,null,null,1,null,null,null,6,2.5,{"$f":"W20*V20","v":15}]
["Acqua Frizzante",null,null,null,null,null,null,1,null,null,null,null,null,null,null,null,null,null,null,null,null,1,2.5,2.5]
["Patatine",null,null,null,null,null,null,null,null,null,null,null,null,null,null,null,null,null,null,null,null,0,2,0]
["Kit Kat",null,null,null,null,null,null,null,null,null,null,null,null,null,null,null,null,1,null,null,null,1,2,0]
[]
[null,601,602,603,604,605,606,607,608,609,610,701,702,703,704,705,706,707,708,709,710,"TOT","PREZZO"]
["Coca Cola",null,null,null,null,null,null,null,null,null,null,null,null,null,null,null,null,null,null,null,null,{"$f":"SUM(B26:U26)","v":0},3,0]
["Coca Cola Light",null,null,null,1,null,null,null,null,null,null,null,null,null,null,null,null,null,null,null,null,{"$f":"SUM(B27:U27)","v":1},3,0]
["Tè",null,null,null,null,null,null,null,null,null,null,null,null,null,null,null,null,null,null,null,null,0,3,0]
["Acqua Tonica",null,null,null,null,null,null,null,null,null,null,null,null,null,null,null,null,null,null,null,null,0,3,0]
["Succo",null,null,null,null,null,null,null,null,null,null,null,null,null,null,null,null,null,null,null,null,0,3,0]
["Birra",null,null,null,null,null,null,null,null,null,null,null,null,null,null,null,null,null,null,null,null,0,3.5,0]
["Acqua Naturale",null,1,null,2,null,null,null,null,null,null,null,null,null,null,null,null,null,null,null,null,3,2.5,{"$f":"W32*V32","v":7.5}]
["Acqua Frizzante",null,1,null,null,null,null,null,1,null,null,null,null,null,null,null,null,null,null,null,null,2,2.5,5]
["Patatine",null,1,null,1,null,null,null,null,null,null,1,null,null,null,null,null,null,null,null,null,3,2,0]
["Kit Kat",null,1,null,1,null,null,null,null,null,null,null,1,null,null,null,null,null,null,null,null,3,2,0]
[]
[null,801,802,803,804,805,806,807,808,809,810,901,902,903,904,905,906,907,908,909,910,"TOT","PREZZO"]
["Coca Cola",null,null,null,null,null,null,1,null,null,null,null,null,null,null,null,null,null,null,null,null,{"$f":"SUM(B38:U38)","v":1},3,0]
["Coca Cola Light",null,null,null,1,null,null,null,null,null,null,null,null,null,1,null,null,null,null,null,null,0,3,0]
["Tè",null,null,null,1,null,null,1,null,null,null,null,null,null,null,null,null,null,null,null,null,0,3,0]
["Acqua Tonica",null,null,null,null,null,null,null,null,null,null,null,null,null,null,null,null,null,null,null,null,0,3,0]
["Succo",null,null,null,1,null,null,2,null,null,null,null,null,null,null,null,null,null,null,null,null,0,3,0]
["Birra",null,null,2,null,null,null,2,null,null,null,null,null,1,null,null,null,null,null,null,null,0,3.5,0]
["Acqua Naturale",null,null,null,2,null,null,2,null,null,1,null,null,null,null,null,null,null,null,null,null,{"$f":"SUM(B44:U44)","v":5},2.5,{"$f":"W44*V44","v":12.5}]
["Acqua Frizzante",null,null,null,1,null,null,2,null,null,null,null,null,null,null,null,null,null,1,null,null,4,2.5,10]
["Patatine",null,null,1,null,null,null,null,null,null,null,null,null,null,1,null,null,null,null,null,null,0,2,0]
["Kit Kat",null,null,1,null,null,null,null,null,null,null,null,null,null,1,null,null,null,null,null,null,0,2,0]
[]
[null,1001,1002,1003,1004,1005,1006,1007,1008,1009,1010,1101,1102,1103,1104,1105,1106,1107,1108,1109,1110,"TOT","PREZZO"]
["Coca Cola",null,null,null,null,null,null,null,null,null,null,null,null,null,null,1,null,null,null,null,null,{"$f":"SUM(B50:U50)","v":1},3,0]
["Coca Cola Light",null,null,null,null,null,null,null,null,null,null,null,null,null,null,null,null,null,null,null,null,0,3,0]
["Tè",null,null,null,null,null,null,null,null,null,null,null,null,null,null,null,null,null,null,null,null,0,3,0]
["Acqua Tonica",null,null,null,null,null,null,null,null,null,null,null,null,null,null,null,null,null,null,null,null,0,3,0]
["Succo",null,null,null,null,null,null,null,null,null,null,null,null,null,null,1,null,null,null,null,null,0,3,0]
["Birra",null,null,null,null,null,null,null,null,null,null,null,null,null,null,2,null,null,null,null,null,0,3.5,0]
["Acqua Naturale",null,null,null,null,null,null,null,null,null,1,null,null,1,null,2,null,1,null,null,null,{"$f":"SUM(B56:U56)","v":5},2.5,{"$f":"W56*V56","v":12.5}]
["Acqua Frizzante",null,null,null,null,null,null,null,null,null,null,null,null,1,null,2,null,null,null,null,null,3,2.5,7.5]
["Patatine",null,null,null,null,null,null,null,null,null,null,null,null,null,null,null,null,null,null,null,null,0,2,0]
["Kit Kat",null,1,null,null,null,null,null,null,null,null,null,null,null,null,null,null,null,null,null,null,0,2,0]
[]
[null,1201,1202,1203,1204,1205,1206,1207,1208,1209,1210,1301,1302,1303,1304,1305,1306,1307,1308,1309,1310,"TOT","PREZZO"]
["Coca Cola",null,null,null,null,null,null,null,null,null,null,null,null,null,null,null,null,null,null,null,null,{"$f":"SUM(B62:U62)","v":0},3,0]
["Coca Cola Light",null,null,null,null,null,null,null,null,null,null,null,null,null,null,null,null,null,null,null,null,{"$f":"SUM(B63:U63)","v":0},3,0]
["Tè",null,null,null,null,null,null,null,null,null,null,null,null,null,null,null,null,null,null,null,null,0,3,0]
["Acqua Tonica",null,null,null,null,null,null,null,null,null,null,null,null,null,null,null,null,null,null,null,null,0,3,0]
["Succo",null,null,null,null,null,null,null,null,null,null,null,null,null,null,null,null,null,1,null,null,1,3,0]
["Birra",null,null,null,null,null,null,null,null,null,null,null,null,null,null,null,null,null,null,null,null,0,3.5,0]
["Acqua Naturale",null,null,null,null,null,null,null,null,1,null,null,2,null,null,null,null,null,null,2,null,5,2.5,{"$f":"W68*V68","v":12.5}]
["Acqua Frizzante",null,null,null,null,null,null,null,null,1,null,null,null,null,null,null,null,null,null,2,null,3,2.5,7.5]
["Patatine",null,null,null,null,null,null,null,null,null,null,null,null,null,null,null,null,null,null,null,null,0,2,0]
["Kit Kat",null,null,null,null,null,null,null,null,null,null,null,null,null,null,null,null,null,null,null,null,0,2,0]
[]
[null,1401,1402,1403,1404,1405,1406,1407,1408,1409,1410,1501,1502,1503,1504,1505,1506,1507,1508,1509,1510,"TOT","PREZZO"]
["Coca Cola",null,null,null,null,null,null,null,null,null,null,null,null,null,null,null,null,null,null,null,null,{"$f":"SUM(B74:U74)","v":0},3,0]
["Coca Cola Light",null,null,null,null,null,null,null,null,null,null,null,null,null,null,null,null,null,null,null,null,{"$f":"SUM(B75:U75)","v":0},3,0]
["Tè",null,null,null,null,null,null,null,null,null,null,null,null,null,null,null,null,null,null,null,null,0,3,0]
["Acqua Tonica",null,null,null,null,null,null,null,null,null,null,null,null,null,null,null,null,null,null,null,null,0,3,0]
["Succo",null,null,null,null,1,null,null,null,null,null,null,null,null,null,null,null,null,null,null,null,1,3,0]
["Birra",null,null,1,null,null,null,2,null,null,null,null,2,1,null,null,null,null,null,1,null,7,3.5,0]
["Acqua Naturale",null,null,1,2,2,null,1,null,null,null,1,1,null,null,null,1,null,null,null,null,9,2.5,{"$f":"W80*V80","v":22.5}]
["Acqua Frizzante",null,null,null,1,null,null,1,null,null,null,null,null,null,null,null,null,null,null,null,null,2,2.5,5]
["Patatine",1,null,1,1,null,null,1,null,null,null,null,null,null,null,null,null,null,null,null,null,4,2,0]
["Kit Kat",1,null,null,1,null,null,null,null,null,null,null,null,null,null,null,null,null,null,null,null,2,2,0]
[]
[null,1601,1602,1603,1604,1605,1606,1607,1608,1609,1610,1701,1702,1703,1704,1705,1706,1707,1708,null,null,"TOT","PREZZO"]
["Coca Cola",null,null,null,null,null,null,null,null,null,null,null,null,null,null,null,null,null,null,null,null,{"$f":"SUM(B86:U86)","v":0},3,0]
["Coca Cola Light",null,null,null,null,null,null,null,null,null,null,null,null,null,null,null,null,1,null,null,null,{"$f":"SUM(B87:U87)","v":1},3,0]
["Tè",null,null,null,null,null,null,null,null,null,null,null,null,null,null,null,null,null,null,null,null,0,3,0]
["Acqua Tonica",null,null,null,null,null,null,null,null,null,null,null,null,null,null,null,null,null,null,null,null,0,3,0]
["Succo",null,null,null,null,null,null,null,null,null,null,null,null,null,null,null,null,1,null,null,null,1,3,0]
["Birra",null,null,null,null,null,null,null,null,null,null,null,null,null,null,null,2,null,null,null,null,2,3.5,0]
["Acqua Naturale",null,1,null,null,null,2,null,null,null,null,2,null,null,1,null,null,null,null,null,null,6,2.5,{"$f":"W92*V92","v":15}]
["Acqua Frizzante",null,null,null,null,null,null,null,null,null,null,null,null,null,null,null,null,null,null,null,null,0,2.5,0]
["Patatine",null,null,null,null,null,null,null,null,null,null,null,null,null,null,null,null,1,null,null,null,1,2,0]
["Kit Kat",null,null,null,null,null,1,null,null,null,null,null,null,null,null,null,null,null,null,null,null,1,2,0]

{"sheet":"8","index":7,"n_rows":95,"n_cols":24,"rows_kept":95,"cut":false,"hidden":false,"merged":[[11,24,11,47]]}
[null,101,102,103,104,105,201,202,203,206,207,301,302,303,304,305,306,307,308,309,310,"TOT","PREZZO","PREZZO"]
["Coca Cola",null,null,null,null,null,null,null,null,null,null,null,null,null,null,null,null,null,null,null,null,{"$f":"SUM(B2:U2)","v":0},3,0]
["Coca Cola Light",1,null,null,null,null,null,null,null,null,null,null,null,null,null,null,null,null,null,null,null,{"$f":"SUM(B3:U3)","v":1},3,0]
["Tè",1,null,null,null,null,null,null,null,null,null,null,null,null,null,null,null,null,null,null,null,1,3,0]
["Acqua Tonica",null,null,null,null,null,null,null,null,null,null,null,null,null,null,null,null,null,null,null,null,0,3,0]
["Succo",null,null,null,null,null,null,null,null,null,null,null,null,null,null,null,null,null,null,null,null,0,3,0]
["Birra",null,null,null,null,null,null,null,null,null,null,null,null,null,null,null,null,null,null,null,null,0,3.5,0]
["Acqua Naturale",2,null,1,null,null,null,null,null,null,null,null,null,1,null,1,null,null,1,null,null,6,2.5,{"$f":"W8*V8","v":15}]
["Acqua Frizzante",2,null,null,null,null,null,1,null,1,null,null,1,null,null,null,null,null,null,null,null,5,2.5,12.5]
["Patatine",null,null,null,null,null,null,null,null,null,null,null,null,null,null,null,null,null,null,null,null,0,2,0]
["Kit Kat",null,null,null,null,null,null,null,null,1,null,null,null,null,null,null,null,null,1,null,null,2,2,0]
[]
[null,401,402,403,404,405,406,407,408,409,410,501,502,503,504,505,506,507,508,509,510,"TOT","PREZZO"]
["Coca Cola",null,null,null,null,null,null,null,null,null,null,null,null,null,null,null,null,null,null,null,null,{"$f":"SUM(B14:U14)","v":0},3,0]
["Coca Cola Light",null,null,null,null,null,null,null,null,null,null,null,1,null,null,null,null,null,null,null,null,{"$f":"SUM(B15:U15)","v":1},3,0]
["Tè",null,null,1,null,null,null,null,null,null,null,null,null,null,null,null,null,null,null,null,null,1,3,0]
["Acqua Tonica",null,null,null,null,null,null,null,null,null,null,null,null,null,null,null,null,null,null,null,null,0,3,0]
["Succo",null,null,2,null,null,null,1,null,null,null,null,null,null,null,null,null,null,null,null,null,3,3,0]
["Birra",null,null,2,null,null,null,null,null,null,null,null,null,null,null,null,null,null,null,null,null,2,3.5,0]
["Acqua Naturale",null,null,null,null,1,null,null,1,null,null,null,null,null,null,null,null,null,null,null,null,2,2.5,{"$f":"W20*V20","v":5}]
["Acqua Frizzante",null,1,1,null,null,null,1,null,null,null,null,1,null,null,null,null,null,null,null,null,4,2.5,10]
["Patatine",null,null,1,null,1,null,null,null,null,null,null,null,null,null,null,null,null,null,null,null,2,2,0]
["Kit Kat",null,null,null,null,null,null,null,null,null,null,null,1,null,null,null,null,null,null,null,null,1,2,0]
[]
[null,601,602,603,604,605,606,607,608,609,610,701,702,703,704,705,706,707,708,709,710,"TOT","PREZZO"]
["Coca Cola",null,null,null,null,null,null,null,null,null,null,null,null,null,null,null,null,null,null,null,null,{"$f":"SUM(B26:U26)","v":0},3,0]
["Coca Cola Light",null,null,null,null,null,null,null,null,null,null,null,null,null,null,null,null,null,null,null,null,{"$f":"SUM(B27:U27)","v":0},3,0]
["Tè",null,null,null,null,null,null,null,null,null,null,null,null,null,null,null,null,null,null,null,null,0,3,0]
["Acqua Tonica",null,null,null,null,null,null,null,null,null,null,null,null,null,null,null,null,null,null,null,null,0,3,0]
["Succo",null,null,null,null,1,null,null,null,null,null,null,null,null,null,null,null,null,null,null,null,1,3,0]
["Birra",null,null,null,null,null,null,null,null,null,null,null,null,null,null,null,null,null,null,null,null,0,3.5,0]
["Acqua Naturale",null,null,null,1,null,null,null,null,null,1,null,null,null,null,null,null,null,null,null,null,2,2.5,{"$f":"W32*V32","v":5}]
["Acqua Frizzante",null,null,1,null,null,null,null,null,null,null,null,null,null,null,null,null,null,null,null,null,1,2.5,2.5]
["Patatine",null,null,null,null,null,null,null,null,null,null,null,null,null,null,null,null,null,null,null,null,0,2,0]
["Kit Kat",null,null,null,null,null,null,null,null,null,null,null,null,null,null,null,null,null,null,null,1,1,2,0]
[]
[null,801,802,803,804,805,806,807,808,809,810,901,902,903,904,905,906,907,908,909,910,"TOT","PREZZO"]
["Coca Cola",null,null,null,null,null,null,null,null,null,null,null,null,null,null,null,null,null,null,null,null,{"$f":"SUM(B38:U38)","v":0},3,0]
["Coca Cola Light",null,null,null,null,null,null,null,null,null,null,null,null,null,null,1,null,null,null,null,null,0,3,0]
["Tè",null,null,null,null,null,null,null,null,null,null,null,null,null,null,null,null,null,null,null,null,0,3,0]
["Acqua Tonica",null,null,null,null,null,null,null,null,null,null,null,null,null,null,null,null,null,null,null,null,0,3,0]
["Succo",null,null,1,null,null,null,null,null,null,null,null,null,null,null,null,null,null,null,null,null,0,3,0]
["Birra",null,null,null,null,null,null,null,null,null,null,1,null,null,null,null,null,1,null,null,null,0,3.5,0]
["Acqua Naturale",null,null,2,null,1,null,null,null,null,2,1,1,1,null,null,1,null,null,null,null,{"$f":"SUM(B44:U44)","v":9},2.5,{"$f":"W44*V44","v":22.5}]
["Acqua Frizzante",null,null,null,null,null,null,null,null,null,null,2,null,null,null,null,null,null,null,null,null,2,2.5,5]
["Patatine",null,null,1,null,null,null,null,null,null,null,null,null,null,null,1,null,1,null,null,null,0,2,0]
["Kit Kat",null,null,null,null,null,null,null,null,null,null,null,null,null,null,1,null,null,null,null,null,0,2,0]
[]
[null,1001,1002,1003,1004,1005,1006,1007,1008,1009,1010,1101,1102,1103,1104,1105,1106,1107,1108,1109,1110,"TOT","PREZZO"]
["Coca Cola",null,null,null,null,null,null,null,null,null,null,null,null,null,null,null,null,null,null,null,null,{"$f":"SUM(B50:U50)","v":0},3,0]
["Coca Cola Light",null,1,null,null,null,null,null,null,null,null,null,null,null,null,null,null,null,null,null,null,0,3,0]
["Tè",null,null,null,null,null,null,null,null,null,null,null,null,null,null,null,null,null,null,null,null,0,3,0]
["Acqua Tonica",null,null,null,null,null,null,null,null,null,null,null,null,null,null,null,null,null,null,null,null,0,3,0]
["Succo",null,null,null,null,null,null,null,null,null,null,null,null,null,null,null,null,null,null,null,null,0,3,0]
["Birra",null,null,null,null,null,null,null,null,null,null,null,null,null,null,null,null,null,null,null,null,0,3.5,0]
["Acqua Naturale",null,1,2,null,null,1,null,null,null,null,null,null,2,null,null,null,null,null,null,null,{"$f":"SUM(B56:U56)","v":6},2.5,{"$f":"W56*V56","v":15}]
["Acqua Frizzante",null,null,1,null,null,null,null,null,null,null,null,null,null,null,1,1,null,null,null,null,3,2.5,7.5]
["Patatine",null,1,null,null,null,null,null,null,null,null,null,null,1,null,null,null,null,1,null,null,0,2,0]
["Kit Kat",null,null,null,null,null,null,null,null,null,null,null,null,null,null,null,null,null,null,null,null,0,2,0]
[]
[null,1201,1202,1203,1204,1205,1206,1207,1208,1209,1210,1301,1302,1303,1304,1305,1306,1307,1308,1309,1310,"TOT","PREZZO"]
["Coca Cola",null,null,null,null,null,null,null,null,null,null,null,null,null,null,null,null,null,null,null,null,{"$f":"SUM(B62:U62)","v":0},3,0]
["Coca Cola Light",null,null,null,null,null,null,null,null,null,null,null,null,null,null,null,null,null,null,null,null,{"$f":"SUM(B63:U63)","v":0},3,0]
["Tè",null,null,null,null,null,null,null,null,null,1,null,null,null,null,null,null,null,null,null,null,1,3,0]
["Acqua Tonica",null,null,null,null,null,null,null,null,null,null,null,null,null,null,null,null,null,null,null,null,0,3,0]
["Succo",null,null,null,null,null,null,null,null,null,null,null,null,null,null,null,null,null,null,null,null,0,3,0]
["Birra",null,null,null,null,null,null,null,null,null,null,null,null,null,null,null,null,null,1,null,null,1,3.5,0]
["Acqua Naturale",null,1,null,null,null,null,null,null,null,null,null,null,null,null,null,null,null,null,null,null,1,2.5,{"$f":"W68*V68","v":2.5}]
["Acqua Frizzante",null,null,null,null,null,2,null,null,null,null,null,null,1,null,1,null,null,null,null,null,4,2.5,10]
["Patatine",null,null,null,null,null,null,null,null,null,null,null,null,null,null,null,null,null,null,1,null,1,2,0]
["Kit Kat",null,null,null,null,null,null,null,null,null,null,null,null,null,null,null,null,null,null,null,null,0,2,0]
[]
[null,1401,1402,1403,1404,1405,1406,1407,1408,1409,1410,1501,1502,1503,1504,1505,1506,1507,1508,1509,1510,"TOT","PREZZO"]
["Coca Cola",null,null,null,null,null,null,null,null,null,null,null,null,null,null,null,null,null,1,null,null,{"$f":"SUM(B74:U74)","v":1},3,0]
["Coca Cola Light",null,null,null,null,null,null,1,null,null,null,null,null,null,null,null,null,null,null,null,null,{"$f":"SUM(B75:U75)","v":1},3,0]
["Tè",null,null,null,null,null,null,null,null,null,null,null,null,null,null,null,null,null,null,null,null,0,3,0]
["Acqua Tonica",null,null,null,null,null,null,null,null,null,null,null,null,null,null,null,null,null,null,null,null,0,3,0]
["Succo",null,null,1,null,null,null,2,null,null,null,null,null,null,null,null,null,null,null,null,null,3,3,0]
["Birra",null,null,null,null,null,null,null,2,1,null,null,null,null,null,null,null,null,null,null,null,3,3.5,0]
["Acqua Naturale",null,null,null,null,null,null,null,null,2,null,null,null,null,null,null,null,null,null,null,null,2,2.5,{"$f":"W80*V80","v":5}]
["Acqua Frizzante",null,null,null,null,null,null,null,null,null,null,null,null,null,null,null,null,null,null,null,null,0,2.5,0]
["Patatine",null,null,null,null,null,null,null,null,null,null,null,null,null,null,null,null,null,null,null,null,0,2,0]
["Kit Kat",null,null,null,null,null,null,1,null,1,null,null,null,null,null,null,null,null,null,null,null,2,2,0]
[]
[null,1601,1602,1603,1604,1605,1606,1607,1608,1609,1610,1701,1702,1703,1704,1705,1706,1707,1708,null,null,"TOT","PREZZO"]
["Coca Cola",null,null,null,null,null,null,null,null,null,null,null,null,null,null,null,null,null,null,null,null,{"$f":"SUM(B86:U86)","v":0},3,0]
["Coca Cola Light",null,null,null,null,1,null,null,null,null,null,null,null,null,null,null,null,null,null,null,null,{"$f":"SUM(B87:U87)","v":1},3,0]
["Tè",null,null,null,null,1,null,null,null,null,null,null,null,null,null,null,null,null,null,null,null,1,3,0]
["Acqua Tonica",null,null,null,null,null,null,null,null,null,null,null,null,null,null,null,null,null,null,null,null,0,3,0]
["Succo",null,null,null,null,null,null,null,null,null,null,null,null,null,null,null,null,null,null,null,null,0,3,0]
["Birra",null,null,null,null,null,null,null,null,null,null,null,null,null,null,null,null,null,null,null,null,0,3.5,0]
["Acqua Naturale",null,null,null,1,1,null,null,2,null,null,null,null,null,1,null,null,null,null,null,null,5,2.5,{"$f":"W92*V92","v":12.5}]
["Acqua Frizzante",null,null,null,null,1,null,null,null,null,null,null,null,null,null,null,null,null,null,null,null,1,2.5,2.5]
["Patatine",null,null,null,null,1,null,null,null,null,null,null,null,null,null,null,null,null,null,null,null,1,2,0]
["Kit Kat",null,null,null,null,1,null,null,null,null,null,null,null,null,null,null,null,null,null,null,null,1,2,0]

{"sheet":"9","index":8,"n_rows":95,"n_cols":24,"rows_kept":95,"cut":false,"hidden":false,"merged":[[11,24,11,47]]}
[null,101,102,103,104,105,201,202,203,206,207,301,302,303,304,305,306,307,308,309,310,"TOT","PREZZO","PREZZO"]
["Coca Cola",null,null,null,null,null,null,null,null,null,null,null,null,null,null,null,null,null,null,null,1,{"$f":"SUM(B2:U2)","v":1},3,0]
["Coca Cola Light",null,null,null,null,1,null,null,null,null,null,null,null,null,null,null,null,null,null,null,null,{"$f":"SUM(B3:U3)","v":1},3,0]
["Tè",null,null,null,null,null,null,null,null,null,null,null,null,null,null,null,null,null,null,null,null,0,3,0]
["Acqua Tonica",null,null,null,null,null,null,null,null,null,null,null,null,null,null,null,null,null,null,null,null,0,3,0]
["Succo",null,null,1,null,null,null,1,null,null,null,null,null,null,null,null,null,null,null,null,null,2,3,0]
["Birra",null,null,null,null,null,null,null,null,null,null,null,null,null,null,null,null,null,null,null,null,0,3.5,0]
["Acqua Naturale",null,1,null,null,1,null,1,null,1,null,null,null,null,null,2,null,null,1,1,null,8,2.5,{"$f":"W8*V8","v":20}]
["Acqua Frizzante",null,1,1,1,1,null,null,null,1,null,null,null,null,null,null,null,null,null,null,null,5,2.5,12.5]
["Patatine",null,null,null,null,null,null,null,null,1,null,null,null,null,null,null,null,null,1,null,null,2,2,0]
["Kit Kat",null,null,null,null,null,null,null,null,1,null,null,null,null,null,null,null,null,1,null,null,2,2,0]
[]
[null,401,402,403,404,405,406,407,408,409,410,501,502,503,504,505,506,507,508,509,510,"TOT","PREZZO"]
["Coca Cola",null,null,null,null,null,null,null,null,null,null,null,null,null,null,null,null,null,null,null,null,{"$f":"SUM(B14:U14)","v":0},3,0]
["Coca Cola Light",null,null,null,null,null,null,null,null,null,null,null,null,null,null,null,null,null,null,null,null,{"$f":"SUM(B15:U15)","v":0},3,0]
["Tè",null,null,null,null,null,null,null,null,null,null,null,null,null,null,null,null,null,null,null,null,0,3,0]
["Acqua Tonica",null,null,null,null,null,null,null,null,null,null,null,null,null,null,null,null,null,null,null,null,0,3,0]
["Succo",null,null,null,null,null,null,null,null,null,null,null,null,null,null,null,null,null,null,null,null,0,3,0]
["Birra",null,null,null,null,null,null,null,null,null,null,null,null,null,null,null,null,null,null,null,null,0,3.5,0]
["Acqua Naturale",null,null,null,1,null,null,null,1,null,null,null,null,2,null,1,2,null,null,1,null,8,2.5,{"$f":"W20*V20","v":20}]
["Acqua Frizzante",null,null,2,null,null,null,1,null,null,null,null,null,null,null,null,null,null,null,null,null,3,2.5,7.5]
["Patatine",null,null,null,null,null,null,1,null,null,null,null,null,null,null,null,null,null,null,null,null,1,2,0]
["Kit Kat",null,null,null,1,null,null,1,null,null,null,null,1,null,null,null,null,null,null,null,null,3,2,0]
[]
[null,601,602,603,604,605,606,607,608,609,610,701,702,703,704,705,706,707,708,709,710,"TOT","PREZZO"]
["Coca Cola",null,null,null,null,null,null,null,null,null,null,null,null,null,null,null,null,null,null,null,null,{"$f":"SUM(B26:U26)","v":0},3,0]
["Coca Cola Light",null,null,null,null,null,null,null,null,null,null,null,null,null,null,null,null,null,null,null,null,{"$f":"SUM(B27:U27)","v":0},3,0]
["Tè",null,null,null,null,null,null,null,null,null,null,null,null,null,null,null,null,null,null,null,null,0,3,0]
["Acqua Tonica",null,null,null,null,null,null,null,null,null,null,null,null,null,null,null,null,null,null,null,null,0,3,0]
["Succo",null,null,null,null,null,null,null,null,null,null,null,null,null,null,null,null,null,null,null,null,0,3,0]
["Birra",null,null,null,null,null,null,null,null,null,null,null,null,null,null,null,null,null,null,null,null,0,3.5,0]
["Acqua Naturale",null,null,null,null,null,null,null,1,null,null,null,null,null,null,null,null,null,null,null,null,1,2.5,{"$f":"W32*V32","v":2.5}]
["Acqua Frizzante",null,null,null,null,null,null,null,null,null,null,null,null,null,null,null,null,null,null,null,null,0,2.5,0]
["Patatine",null,null,null,null,null,null,null,null,null,null,null,null,null,null,null,null,null,null,null,null,0,2,0]
["Kit Kat",null,null,null,1,null,null,null,null,null,null,null,null,null,null,null,null,null,null,null,null,1,2,0]
[]
[null,801,802,803,804,805,806,807,808,809,810,901,902,903,904,905,906,907,908,909,910,"TOT","PREZZO"]
["Coca Cola",null,null,null,null,null,null,null,null,null,null,null,null,null,null,null,null,null,null,null,null,{"$f":"SUM(B38:U38)","v":0},3,0]
["Coca Cola Light",null,null,null,null,null,null,null,null,null,null,null,null,null,null,null,null,null,null,null,null,0,3,0]
["Tè",null,null,null,null,null,null,null,null,null,null,null,null,null,null,null,null,null,null,null,null,0,3,0]
["Acqua Tonica",null,null,null,null,null,null,null,null,null,null,null,null,null,null,null,null,null,null,null,null,0,3,0]
["Succo",null,null,null,null,null,null,null,null,null,null,null,null,null,null,null,null,null,null,null,null,0,3,0]
["Birra",null,null,null,null,null,null,null,null,null,null,null,null,null,null,null,null,null,null,null,null,0,3.5,0]
["Acqua Naturale",null,null,null,1,1,null,null,null,null,1,null,1,null,null,null,1,null,null,null,null,{"$f":"SUM(B44:U44)","v":5},2.5,{"$f":"W44*V44","v":12.5}]
["Acqua Frizzante",null,null,null,null,null,null,null,null,null,null,null,null,null,1,1,null,null,1,null,null,3,2.5,7.5]
["Patatine",null,null,null,null,null,null,null,null,null,null,null,1,null,null,null,null,null,null,null,null,0,2,0]
["Kit Kat",null,null,null,null,null,null,null,null,null,null,null,1,null,null,null,null,null,1,null,null,0,2,0]
[]
[null,1001,1002,1003,1004,1005,1006,1007,1008,1009,1010,1101,1102,1103,1104,1105,1106,1107,1108,1109,1110,"TOT","PREZZO"]
["Coca Cola",null,null,null,null,null,null,null,null,null,null,null,null,null,null,null,null,null,null,null,null,{"$f":"SUM(B50:U50)","v":0},3,0]
["Coca Cola Light",null,null,null,null,null,null,null,null,null,null,null,1,null,null,null,null,null,null,null,null,0,3,0]
["Tè",null,null,null,null,null,null,null,null,null,null,null,null,null,null,null,null,null,null,null,null,0,3,0]
["Acqua Tonica",null,null,null,null,null,null,null,null,null,null,null,null,null,null,null,null,null,null,null,null,0,3,0]
["Succo",null,null,null,null,null,null,null,null,null,null,null,null,null,null,null,null,null,null,null,null,0,3,0]
["Birra",null,null,null,null,null,null,null,null,null,null,null,null,null,null,null,null,null,null,null,null,0,3.5,0]
["Acqua Naturale",2,1,null,null,null,null,null,null,null,null,1,1,null,null,null,null,null,null,null,null,{"$f":"SUM(B56:U56)","v":5},2.5,{"$f":"W56*V56","v":12.5}]
["Acqua Frizzante",null,null,null,null,1,null,null,null,null,null,null,null,null,null,null,1,null,null,null,null,2,2.5,5]
["Patatine",null,null,null,null,null,null,null,null,null,null,null,null,null,null,null,null,null,null,null,null,0,2,0]
["Kit Kat",null,null,null,null,null,null,null,null,null,null,null,1,null,null,null,null,null,null,null,null,0,2,0]
[]
[null,1201,1202,1203,1204,1205,1206,1207,1208,1209,1210,1301,1302,1303,1304,1305,1306,1307,1308,1309,1310,"TOT","PREZZO"]
["Coca Cola",null,null,null,null,null,null,null,null,null,null,null,null,null,null,null,null,null,null,null,null,{"$f":"SUM(B62:U62)","v":0},3,0]
["Coca Cola Light",null,null,null,null,null,null,null,null,null,null,null,null,null,null,null,null,null,null,null,null,{"$f":"SUM(B63:U63)","v":0},3,0]
["Tè",null,null,null,null,null,null,null,null,null,null,null,null,null,null,null,null,null,null,null,null,0,3,0]
["Acqua Tonica",null,null,null,null,null,null,null,null,null,null,1,null,null,null,null,null,null,null,null,null,1,3,0]
["Succo",null,null,null,null,null,null,null,null,null,null,null,null,null,null,null,null,null,null,null,1,1,3,0]
["Birra",null,null,1,null,null,null,null,null,null,null,null,null,null,null,null,null,null,null,null,null,1,3.5,0]
["Acqua Naturale",null,null,1,null,null,1,null,null,null,null,null,null,null,1,null,null,null,null,null,1,4,2.5,{"$f":"W68*V68","v":10}]
["Acqua Frizzante",null,null,null,null,null,null,null,null,null,null,null,null,null,null,null,null,null,null,null,null,0,2.5,0]
["Patatine",null,null,null,null,null,null,null,null,null,null,null,null,null,null,null,null,null,null,null,null,0,2,0]
["Kit Kat",1,null,null,null,null,null,null,null,null,null,null,null,null,null,null,null,1,null,null,null,2,2,0]
[]
[null,1401,1402,1403,1404,1405,1406,1407,1408,1409,1410,1501,1502,1503,1504,1505,1506,1507,1508,1509,1510,"TOT","PREZZO"]
["Coca Cola",null,null,null,null,null,null,null,null,null,null,null,null,null,null,null,null,null,null,null,null,{"$f":"SUM(B74:U74)","v":0},3,0]
["Coca Cola Light",null,1,null,null,null,null,null,null,null,null,null,null,null,null,null,null,null,null,null,null,{"$f":"SUM(B75:U75)","v":1},3,0]
["Tè",null,null,null,null,null,null,null,null,null,null,null,null,null,null,null,null,null,null,null,null,0,3,0]
["Acqua Tonica",null,null,null,null,null,null,null,null,null,null,null,null,null,null,null,null,null,null,null,null,0,3,0]
["Succo",null,null,null,null,null,null,null,null,null,null,null,null,null,null,null,null,null,null,null,null,0,3,0]
["Birra",null,null,1,null,null,null,null,null,null,null,null,null,null,null,null,null,null,null,null,null,1,3.5,0]
["Acqua Naturale",null,null,1,1,null,null,2,null,1,1,1,null,2,1,null,null,null,null,null,null,10,2.5,{"$f":"W80*V80","v":25}]
["Acqua Frizzante",null,null,null,null,null,null,null,null,null,null,null,null,null,null,null,null,null,null,null,2,2,2.5,5]
["Patatine",null,null,null,null,null,null,1,null,1,null,null,null,null,null,null,null,null,null,null,null,2,2,0]
["Kit Kat",null,null,null,null,null,null,null,null,1,1,null,null,1,null,null,1,null,null,null,null,4,2,0]
[]
[null,1601,1602,1603,1604,1605,1606,1607,1608,1609,1610,1701,1702,1703,1704,1705,1706,1707,1708,null,null,"TOT","PREZZO"]
["Coca Cola",null,null,null,null,null,null,null,null,null,null,null,null,null,null,null,null,null,null,null,null,{"$f":"SUM(B86:U86)","v":0},3,0]
["Coca Cola Light",null,null,null,null,null,null,null,null,null,null,null,null,null,null,null,null,null,null,null,null,{"$f":"SUM(B87:U87)","v":0},3,0]
["Tè",null,null,null,null,null,null,null,null,null,null,null,null,null,null,null,null,null,null,null,null,0,3,0]
["Acqua Tonica",null,null,null,null,null,null,null,null,null,null,null,null,null,null,null,null,null,null,null,null,0,3,0]
["Succo",null,null,null,null,null,null,null,null,null,null,null,null,null,null,null,null,null,null,null,null,0,3,0]
["Birra",null,null,null,null,null,null,null,null,null,null,null,1,null,null,null,null,null,null,null,null,1,3.5,0]
["Acqua Naturale",null,null,null,1,null,1,null,1,null,null,null,null,null,null,null,1,null,1,null,null,5,2.5,{"$f":"W92*V92","v":12.5}]
["Acqua Frizzante",null,null,null,null,null,null,null,null,null,1,null,null,null,null,null,null,null,null,null,null,1,2.5,2.5]
["Patatine",1,null,null,null,null,null,null,null,null,null,null,null,null,null,null,1,null,1,null,null,3,2,0]
["Kit Kat",1,null,null,null,null,null,null,null,null,null,null,null,null,null,null,null,null,null,null,null,1,2,0]

{"sheet":"10","index":9,"n_rows":95,"n_cols":24,"rows_kept":95,"cut":false,"hidden":false,"merged":[[11,24,11,47]]}
[null,101,102,103,104,105,201,202,203,206,207,301,302,303,304,305,306,307,308,309,310,"TOT","PREZZO","PREZZO"]
["Coca Cola",null,null,null,null,null,null,null,null,null,null,null,null,null,null,null,null,null,null,null,1,{"$f":"SUM(B2:U2)","v":1},3,0]
["Coca Cola Light",null,null,null,null,null,null,null,null,null,null,null,null,null,null,null,null,null,null,null,null,{"$f":"SUM(B3:U3)","v":0},3,0]
["Tè",null,null,null,null,null,null,null,null,null,null,null,null,null,null,null,null,null,null,null,null,0,3,0]
["Acqua Tonica",null,null,null,null,null,null,null,null,null,null,null,null,null,null,null,null,null,null,null,null,0,3,0]
["Succo",null,null,null,null,null,null,null,null,null,null,null,null,null,null,null,null,null,null,null,null,0,3,0]
["Birra",null,null,null,null,null,null,null,null,null,null,null,null,null,null,null,null,null,null,null,null,0,3.5,0]
["Acqua Naturale",null,2,1,2,1,null,null,null,null,null,null,null,null,null,null,null,null,1,null,null,7,2.5,{"$f":"W8*V8","v":17.5}]
["Acqua Frizzante",null,1,null,1,null,1,1,null,null,null,null,null,null,null,null,null,null,null,null,null,4,2.5,10]
["Patatine",null,null,null,null,null,null,null,null,null,null,null,null,null,null,null,null,null,null,null,null,0,2,0]
["Kit Kat",null,null,null,null,null,null,null,null,null,null,null,null,null,null,null,null,null,1,null,null,1,2,0]
[]
[null,401,402,403,404,405,406,407,408,409,410,501,502,503,504,505,506,507,508,509,510,"TOT","PREZZO"]
["Coca Cola",null,null,null,null,null,null,null,null,null,null,null,null,null,null,null,null,null,null,null,null,{"$f":"SUM(B14:U14)","v":0},3,0]
["Coca Cola Light",null,null,null,null,null,null,null,null,null,null,null,1,null,null,null,null,null,null,null,null,{"$f":"SUM(B15:U15)","v":1},3,0]
["Tè",null,null,null,null,null,null,null,null,null,null,null,null,null,null,null,null,null,null,null,null,0,3,0]
["Acqua Tonica",null,null,null,null,null,null,null,null,null,null,null,null,null,null,null,null,null,null,null,null,0,3,0]
["Succo",null,null,null,null,null,null,null,null,null,null,null,null,null,null,null,null,null,null,null,null,0,3,0]
["Birra",null,null,null,null,null,null,null,null,null,null,null,null,null,null,null,null,null,null,null,null,0,3.5,0]
["Acqua Naturale",1,null,null,null,null,null,2,null,null,null,1,null,2,null,null,2,1,2,null,null,11,2.5,{"$f":"W20*V20","v":27.5}]
["Acqua Frizzante",null,1,1,null,null,1,null,null,null,null,null,null,null,null,null,null,null,1,null,null,4,2.5,10]
["Patatine",null,null,null,null,null,null,null,null,null,null,null,null,null,null,null,null,null,null,null,null,0,2,0]
["Kit Kat",null,null,null,null,null,null,null,null,null,null,1,1,null,null,null,null,null,1,null,null,3,2,0]
[]
[null,601,602,603,604,605,606,607,608,609,610,701,702,703,704,705,706,707,708,709,710,"TOT","PREZZO"]
["Coca Cola",null,null,null,null,null,null,null,null,null,null,null,null,null,null,null,null,null,null,null,null,{"$f":"SUM(B26:U26)","v":0},3,0]
["Coca Cola Light",null,null,null,null,null,null,null,null,null,null,null,null,null,null,null,null,null,null,null,null,{"$f":"SUM(B27:U27)","v":0},3,0]
["Tè",null,null,null,null,null,null,null,null,null,null,null,null,null,null,null,null,null,null,null,null,0,3,0]
["Acqua Tonica",null,null,null,null,null,null,null,null,null,null,null,null,null,null,null,null,null,null,null,null,0,3,0]
["Succo",null,null,null,null,null,null,null,null,null,null,null,null,null,null,null,null,null,null,null,null,0,3,0]
["Birra",null,null,null,null,null,null,null,null,null,null,null,null,null,null,null,null,null,1,null,null,1,3.5,0]
["Acqua Naturale",null,null,null,null,null,null,null,2,null,null,null,null,null,null,null,null,null,null,null,null,2,2.5,{"$f":"W32*V32","v":5}]
["Acqua Frizzante",null,null,null,null,null,null,1,null,null,null,null,null,null,null,null,null,null,null,null,null,1,2.5,2.5]
["Patatine",null,null,null,null,null,null,null,null,null,null,null,null,null,null,null,null,null,null,null,null,0,2,0]
["Kit Kat",null,null,null,null,null,null,null,null,null,null,null,null,null,null,null,null,null,null,null,null,0,2,0]
[]
[null,801,802,803,804,805,806,807,808,809,810,901,902,903,904,905,906,907,908,909,910,"TOT","PREZZO"]
["Coca Cola",null,null,null,null,null,null,null,null,null,null,null,null,null,null,null,null,null,null,null,null,{"$f":"SUM(B38:U38)","v":0},3,0]
["Coca Cola Light",null,null,null,null,null,null,null,null,null,null,null,null,null,null,null,null,null,null,null,null,0,3,0]
["Tè",null,null,null,null,null,null,null,null,null,null,null,null,null,null,null,null,null,null,null,null,0,3,0]
["Acqua Tonica",null,null,null,null,null,null,null,null,null,null,null,null,null,null,null,null,null,null,null,null,0,3,0]
["Succo",null,null,null,null,null,null,null,null,null,null,null,null,null,null,null,null,null,null,null,null,0,3,0]
["Birra",null,null,1,null,null,null,null,null,null,null,null,null,null,null,null,null,null,null,null,null,0,3.5,0]
["Acqua Naturale",null,null,2,1,1,null,null,null,null,null,null,1,null,null,null,null,null,null,1,null,{"$f":"SUM(B44:U44)","v":6},2.5,{"$f":"W44*V44","v":15}]
["Acqua Frizzante",null,null,null,null,null,null,null,null,null,null,null,null,null,null,null,null,null,null,null,null,0,2.5,0]
["Patatine",null,null,null,null,null,null,null,null,null,null,null,null,null,null,null,null,null,null,null,null,0,2,0]
["Kit Kat",null,null,null,null,null,null,1,null,null,null,null,1,null,null,null,null,null,null,null,null,0,2,0]
[]
[null,1001,1002,1003,1004,1005,1006,1007,1008,1009,1010,1101,1102,1103,1104,1105,1106,1107,1108,1109,1110,"TOT","PREZZO"]
["Coca Cola",null,null,null,null,null,null,null,null,null,null,null,null,null,null,null,null,null,null,null,null,{"$f":"SUM(B50:U50)","v":0},3,0]
["Coca Cola Light",null,null,null,null,null,null,null,null,null,null,null,null,null,null,null,null,null,null,null,null,0,3,0]
["Tè",null,null,null,null,null,null,null,null,null,null,null,null,null,null,null,null,null,null,null,null,0,3,0]
["Acqua Tonica",null,null,null,null,null,null,null,null,null,null,null,null,null,null,null,null,null,null,null,null,0,3,0]
["Succo",null,null,null,null,null,null,null,null,null,null,null,null,null,null,null,null,null,null,null,null,0,3,0]
["Birra",null,null,null,null,null,1,null,null,null,null,null,null,null,null,null,null,null,null,2,null,0,3.5,0]
["Acqua Naturale",null,null,null,null,1,null,null,1,1,null,null,null,1,1,null,1,null,null,null,null,{"$f":"SUM(B56:U56)","v":6},2.5,{"$f":"W56*V56","v":15}]
["Acqua Frizzante",null,null,null,null,null,null,null,null,null,null,null,null,null,1,null,null,null,null,null,null,1,2.5,2.5]
["Patatine",null,null,null,null,null,null,null,null,null,null,null,null,null,null,null,null,null,null,null,null,0,2,0]
["Kit Kat",null,null,null,null,null,null,null,null,null,null,null,null,null,null,null,null,null,null,null,null,0,2,0]
[]
[null,1201,1202,1203,1204,1205,1206,1207,1208,1209,1210,1301,1302,1303,1304,1305,1306,1307,1308,1309,1310,"TOT","PREZZO"]
["Coca Cola",null,null,null,null,null,null,null,null,null,null,null,null,null,null,null,null,null,null,null,null,{"$f":"SUM(B62:U62)","v":0},3,0]
["Coca Cola Light",null,null,null,null,null,null,null,null,null,null,null,null,null,null,null,1,null,null,null,null,{"$f":"SUM(B63:U63)","v":1},3,0]
["Tè",null,null,null,null,null,null,null,null,null,null,null,null,null,null,null,null,null,null,null,null,0,3,0]
["Acqua Tonica",null,null,null,null,null,null,null,null,null,null,null,null,null,null,null,null,null,null,null,null,0,3,0]
["Succo",null,null,null,null,null,null,null,null,null,null,null,null,null,null,null,null,null,null,null,1,1,3,0]
["Birra",null,null,null,null,null,null,null,null,null,null,null,null,null,null,null,null,null,null,null,null,0,3.5,0]
["Acqua Naturale",null,1,null,null,null,null,null,null,null,null,null,null,null,null,null,null,null,2,null,null,3,2.5,{"$f":"W68*V68","v":7.5}]
["Acqua Frizzante",null,null,null,null,null,null,null,null,1,null,null,null,null,null,null,null,null,1,null,null,2,2.5,5]
["Patatine",null,null,1,null,null,null,null,null,null,null,null,null,null,null,null,1,null,null,null,null,2,2,0]
["Kit Kat",null,null,null,null,null,null,null,null,null,null,null,null,null,null,null,1,null,null,null,null,1,2,0]
[]
[null,1401,1402,1403,1404,1405,1406,1407,1408,1409,1410,1501,1502,1503,1504,1505,1506,1507,1508,1509,1510,"TOT","PREZZO"]
["Coca Cola",null,2,null,null,null,null,null,null,null,null,null,null,null,null,null,null,null,null,null,null,{"$f":"SUM(B74:U74)","v":2},3,0]
["Coca Cola Light",null,null,1,null,null,null,null,null,null,null,null,null,null,null,null,null,null,null,null,null,{"$f":"SUM(B75:U75)","v":1},3,0]
["Tè",null,null,null,null,null,null,null,null,null,1,null,1,null,null,1,null,null,null,null,null,3,3,0]
["Acqua Tonica",null,null,null,null,null,null,null,null,null,null,null,null,null,null,null,null,null,null,null,null,0,3,0]
["Succo",null,2,null,null,null,null,null,null,null,null,null,null,null,null,null,null,null,null,null,null,2,3,0]
["Birra",null,null,null,null,null,null,null,null,null,null,null,null,null,null,null,null,null,null,null,null,0,3.5,0]
["Acqua Naturale",null,1,2,null,null,null,1,null,2,2,null,2,null,null,null,null,null,null,null,null,10,2.5,{"$f":"W80*V80","v":25}]
["Acqua Frizzante",null,null,1,2,null,null,null,null,null,null,null,null,null,null,null,null,null,null,null,null,3,2.5,7.5]
["Patatine",null,1,1,null,null,null,null,null,null,1,null,1,null,null,null,null,null,null,null,null,4,2,0]
["Kit Kat",null,null,1,null,null,null,null,null,null,1,null,1,null,null,null,null,null,1,null,null,4,2,0]
[]
[null,1601,1602,1603,1604,1605,1606,1607,1608,1609,1610,1701,1702,1703,1704,1705,1706,1707,1708,null,null,"TOT","PREZZO"]
["Coca Cola",1,null,null,null,null,null,null,null,null,null,null,null,null,null,null,null,null,null,null,null,{"$f":"SUM(B86:U86)","v":1},3,0]
["Coca Cola Light",null,null,null,null,null,null,null,1,null,null,null,null,null,null,null,null,1,null,null,null,{"$f":"SUM(B87:U87)","v":2},3,0]
["Tè",null,null,null,null,null,null,null,null,null,null,null,null,null,null,null,null,null,null,null,null,0,3,0]
["Acqua Tonica",null,null,null,null,null,null,null,null,null,null,null,null,null,null,null,null,null,null,null,null,0,3,0]
["Succo",null,null,null,null,null,null,null,1,null,null,null,null,null,2,null,null,null,null,null,null,3,3,0]
["Birra",null,null,null,null,null,null,null,null,null,null,null,null,null,null,null,null,null,null,null,null,0,3.5,0]
["Acqua Naturale",null,2,null,1,null,1,null,1,null,null,null,null,null,null,null,null,null,1,null,null,6,2.5,{"$f":"W92*V92","v":15}]
["Acqua Frizzante",null,null,null,null,null,null,null,null,null,null,null,null,null,1,null,null,null,null,null,null,1,2.5,2.5]
["Patatine",null,null,null,null,null,null,null,1,null,null,null,null,null,null,null,null,null,null,null,null,1,2,0]
["Kit Kat",null,null,null,null,null,null,null,1,null,null,null,null,null,null,null,null,null,null,null,null,1,2,0]

{"sheet":"11","index":10,"n_rows":95,"n_cols":24,"rows_kept":95,"cut":false,"hidden":false,"merged":[[11,24,11,47]]}
[null,101,102,103,104,105,201,202,203,206,207,301,302,303,304,305,306,307,308,309,310,"TOT","PREZZO","PREZZO"]
["Coca Cola",null,null,null,null,null,null,null,null,null,null,null,null,null,null,null,null,null,null,null,null,{"$f":"SUM(B2:U2)","v":0},3,0]
["Coca Cola Light",null,null,null,null,null,null,null,null,null,null,null,null,null,null,null,null,null,null,null,null,{"$f":"SUM(B3:U3)","v":0},3,0]
["Tè",null,null,null,null,null,null,null,null,null,null,null,null,null,null,null,null,null,null,null,null,0,3,0]
["Acqua Tonica",null,null,null,null,null,null,null,null,null,null,null,null,null,null,null,null,null,null,null,null,0,3,0]
["Succo",null,null,null,null,null,null,null,null,null,null,null,null,null,null,null,null,null,null,null,null,0,3,0]
["Birra",null,null,null,null,null,null,null,null,null,null,null,null,null,null,null,null,null,null,null,null,0,3.5,0]
["Acqua Naturale",null,null,null,1,1,null,1,null,null,null,null,1,null,null,1,1,null,2,null,1,9,2.5,{"$f":"W8*V8","v":22.5}]
["Acqua Frizzante",1,null,null,null,null,null,null,null,null,null,null,null,null,null,null,null,null,null,null,null,1,2.5,2.5]
["Patatine",null,null,null,null,null,null,null,null,null,null,null,null,null,null,null,null,null,null,null,null,0,2,0]
["Kit Kat",null,null,null,null,null,null,null,null,null,null,null,null,null,1,null,null,null,1,null,null,2,2,0]
[]
[null,401,402,403,404,405,406,407,408,409,410,501,502,503,504,505,506,507,508,509,510,"TOT","PREZZO"]
["Coca Cola",null,1,null,null,null,null,null,null,null,null,null,null,null,null,null,null,null,null,null,null,{"$f":"SUM(B14:U14)","v":1},3,0]
["Coca Cola Light",null,null,null,null,null,null,null,null,null,null,null,1,null,null,null,null,null,null,null,null,{"$f":"SUM(B15:U15)","v":1},3,0]
["Tè",null,null,null,null,null,null,null,null,null,null,null,null,null,null,null,null,null,null,null,null,0,3,0]
["Acqua Tonica",null,null,null,null,null,null,null,null,null,null,null,null,null,null,null,null,null,null,null,null,0,3,0]
["Succo",null,null,null,null,null,1,null,null,null,null,null,null,null,null,null,null,null,null,null,null,1,3,0]
["Birra",1,null,null,null,null,null,null,null,null,null,null,null,null,null,null,null,null,null,null,null,1,3.5,0]
["Acqua Naturale",null,null,null,null,null,null,1,null,null,null,null,null,null,null,null,null,1,null,1,null,3,2.5,{"$f":"W20*V20","v":7.5}]
["Acqua Frizzante",null,null,1,1,null,1,null,null,null,null,null,null,1,null,null,2,null,null,null,null,6,2.5,15]
["Patatine",1,null,null,null,null,null,null,null,null,null,null,1,null,null,null,null,null,null,null,null,2,2,0]
["Kit Kat",null,null,null,null,null,null,null,null,null,null,null,1,null,null,null,null,null,null,null,null,1,2,0]
[]
[null,601,602,603,604,605,606,607,608,609,610,701,702,703,704,705,706,707,708,709,710,"TOT","PREZZO"]
["Coca Cola",null,null,null,null,null,null,null,null,null,null,null,null,null,null,null,null,null,null,null,null,{"$f":"SUM(B26:U26)","v":0},3,0]
["Coca Cola Light",null,null,null,null,null,null,null,null,null,null,null,null,null,null,null,null,null,null,null,null,{"$f":"SUM(B27:U27)","v":0},3,0]
["Tè",null,null,null,null,null,null,1,null,null,null,null,null,null,null,null,null,null,null,null,null,1,3,0]
["Acqua Tonica",null,null,null,null,null,null,null,null,null,null,null,null,null,null,null,null,null,null,null,null,0,3,0]
["Succo",null,null,null,null,null,null,null,null,null,null,null,null,null,null,null,null,null,null,null,null,0,3,0]
["Birra",null,null,null,null,null,null,null,null,null,null,null,null,null,null,null,null,null,null,null,null,0,3.5,0]
["Acqua Naturale",null,null,null,null,null,null,null,1,null,1,null,null,null,null,null,null,null,null,null,null,2,2.5,{"$f":"W32*V32","v":5}]
["Acqua Frizzante",null,null,null,null,null,null,null,null,null,null,null,null,null,null,null,null,null,null,null,null,0,2.5,0]
["Patatine",null,null,null,null,null,null,null,null,null,null,null,null,null,null,null,null,null,null,null,null,0,2,0]
["Kit Kat",null,null,null,null,null,null,null,null,null,null,null,null,null,null,null,null,null,null,null,null,0,2,0]
[]
[null,801,802,803,804,805,806,807,808,809,810,901,902,903,904,905,906,907,908,909,910,"TOT","PREZZO"]
["Coca Cola",null,null,null,null,null,null,null,null,null,null,null,null,null,null,null,null,null,null,null,null,{"$f":"SUM(B38:U38)","v":0},3,0]
["Coca Cola Light",null,null,null,null,null,null,null,null,null,null,null,null,null,null,null,null,null,null,null,null,0,3,0]
["Tè",null,null,null,null,null,null,null,null,null,null,null,null,null,null,null,null,null,null,null,null,0,3,0]
["Acqua Tonica",null,null,null,null,null,null,null,null,null,null,null,null,null,null,null,null,null,null,null,null,0,3,0]
["Succo",null,null,null,null,null,null,null,null,null,null,null,null,null,null,null,null,null,null,null,null,0,3,0]
["Birra",null,null,null,null,null,null,null,null,null,null,null,1,null,null,null,null,null,null,null,null,0,3.5,0]
["Acqua Naturale",null,null,1,null,null,null,null,null,null,null,1,1,null,null,null,1,null,1,null,null,{"$f":"SUM(B44:U44)","v":5},2.5,{"$f":"W44*V44","v":12.5}]
["Acqua Frizzante",null,null,null,null,1,null,null,null,null,null,null,null,null,null,null,null,1,null,null,null,2,2.5,5]
["Patatine",null,null,null,null,null,null,null,null,null,null,null,null,null,null,null,null,null,null,null,null,0,2,0]
["Kit Kat",null,null,null,null,null,null,null,null,null,null,null,null,null,null,null,null,null,null,null,null,0,2,0]
[]
[null,1001,1002,1003,1004,1005,1006,1007,1008,1009,1010,1101,1102,1103,1104,1105,1106,1107,1108,1109,1110,"TOT","PREZZO"]
["Coca Cola",null,null,null,null,null,null,null,null,null,null,null,null,null,null,null,null,null,null,null,null,{"$f":"SUM(B50:U50)","v":0},3,0]
["Coca Cola Light",null,null,null,null,null,null,null,null,null,null,null,1,null,null,null,null,null,null,null,null,0,3,0]
["Tè",null,null,null,null,null,null,null,null,null,null,null,null,null,null,null,null,null,null,null,null,0,3,0]
["Acqua Tonica",null,null,null,null,null,null,null,null,null,null,null,null,null,null,null,null,null,null,null,null,0,3,0]
["Succo",null,null,null,null,null,null,null,null,null,null,null,null,null,null,null,null,null,null,null,null,0,3,0]
["Birra",null,null,null,null,null,null,null,null,null,null,null,null,null,null,null,null,null,null,null,null,0,3.5,0]
["Acqua Naturale",null,null,null,null,null,1,null,null,null,null,null,null,1,null,null,null,null,null,null,null,{"$f":"SUM(B56:U56)","v":2},2.5,{"$f":"W56*V56","v":5}]
["Acqua Frizzante",null,null,null,null,null,null,null,null,null,null,null,null,null,1,null,null,null,null,null,null,1,2.5,2.5]
["Patatine",null,null,null,null,null,null,null,null,null,null,null,null,null,null,null,null,null,null,null,null,0,2,0]
["Kit Kat",null,null,null,null,null,null,null,null,null,null,null,null,null,null,null,null,null,null,null,null,0,2,0]
[]
[null,1201,1202,1203,1204,1205,1206,1207,1208,1209,1210,1301,1302,1303,1304,1305,1306,1307,1308,1309,1310,"TOT","PREZZO"]
["Coca Cola",null,null,null,null,null,null,null,null,null,null,null,null,null,null,null,null,null,null,null,null,{"$f":"SUM(B62:U62)","v":0},3,0]
["Coca Cola Light",null,null,null,null,null,null,null,null,null,null,null,null,null,null,null,null,null,null,null,1,{"$f":"SUM(B63:U63)","v":1},3,0]
["Tè",null,null,null,null,null,null,null,null,null,null,null,null,null,null,null,null,null,null,null,null,0,3,0]
["Acqua Tonica",null,null,null,null,null,null,null,null,null,null,null,null,null,null,null,null,null,null,null,null,0,3,0]
["Succo",null,null,null,null,null,null,null,1,null,null,null,null,null,null,null,null,null,null,null,1,2,3,0]
["Birra",null,null,null,null,null,null,null,null,null,null,null,null,null,null,null,null,null,null,null,null,0,3.5,0]
["Acqua Naturale",null,null,1,null,null,null,null,2,null,null,1,null,null,null,null,null,null,1,null,null,5,2.5,{"$f":"W68*V68","v":12.5}]
["Acqua Frizzante",null,null,null,null,null,null,null,null,null,null,null,null,null,null,null,2,null,null,null,null,2,2.5,5]
["Patatine",null,null,null,null,null,null,null,null,null,null,null,null,null,null,null,null,null,null,null,null,0,2,0]
["Kit Kat",null,null,null,null,null,null,null,null,null,null,null,null,1,null,null,null,null,null,null,null,1,2,0]
[]
[null,1401,1402,1403,1404,1405,1406,1407,1408,1409,1410,1501,1502,1503,1504,1505,1506,1507,1508,1509,1510,"TOT","PREZZO"]
["Coca Cola",null,null,null,null,null,null,null,null,null,null,null,null,null,null,null,null,null,null,null,null,{"$f":"SUM(B74:U74)","v":0},3,0]
["Coca Cola Light",null,null,1,null,null,null,null,null,null,null,null,null,null,null,1,null,null,null,null,null,{"$f":"SUM(B75:U75)","v":2},3,0]
["Tè",null,null,null,null,null,null,null,null,null,null,null,null,null,null,null,null,null,null,null,null,0,3,0]
["Acqua Tonica",null,null,null,null,null,null,null,null,null,null,null,null,null,null,null,null,null,null,null,null,0,3,0]
["Succo",null,null,null,null,null,null,1,null,null,null,null,null,1,null,null,null,null,null,null,null,2,3,0]
["Birra",null,null,null,null,null,null,null,null,null,null,null,null,null,null,null,null,null,null,null,null,0,3.5,0]
["Acqua Naturale",null,2,1,null,1,1,1,null,2,1,null,null,2,null,null,null,null,null,null,null,11,2.5,{"$f":"W80*V80","v":27.5}]
["Acqua Frizzante",null,null,2,null,null,null,1,1,null,1,null,null,null,1,1,1,null,null,null,null,8,2.5,20]
["Patatine",null,null,1,null,null,null,null,1,null,null,null,null,null,null,null,null,null,null,null,null,2,2,0]
["Kit Kat",null,1,1,null,null,null,1,null,1,null,null,null,null,null,null,1,null,null,null,null,5,2,0]
[]
[null,1601,1602,1603,1604,1605,1606,1607,1608,1609,1610,1701,1702,1703,1704,1705,1706,1707,1708,null,null,"TOT","PREZZO"]
["Coca Cola",null,null,null,null,null,null,null,null,null,null,null,null,null,null,null,null,null,1,null,null,{"$f":"SUM(B86:U86)","v":1},3,0]
["Coca Cola Light",null,null,null,null,null,null,null,null,null,null,null,null,null,null,null,null,null,null,null,null,{"$f":"SUM(B87:U87)","v":0},3,0]
["Tè",null,null,null,null,null,null,null,null,null,null,null,null,null,null,null,null,null,null,null,null,0,3,0]
["Acqua Tonica",null,null,null,null,null,null,null,null,null,null,null,null,null,null,null,null,null,null,null,null,0,3,0]
["Succo",null,null,null,null,null,null,null,null,null,null,null,null,null,null,null,null,null,null,null,null,0,3,0]
["Birra",null,null,null,null,null,null,null,null,null,null,null,null,null,null,null,null,null,null,null,null,0,3.5,0]
["Acqua Naturale",null,2,null,1,null,null,null,null,null,null,null,null,null,null,null,null,null,null,null,null,3,2.5,{"$f":"W92*V92","v":7.5}]
["Acqua Frizzante",null,null,null,null,1,null,null,null,null,null,null,1,null,null,null,null,null,null,null,null,2,2.5,5]
["Patatine",null,1,null,null,null,null,null,null,null,null,null,null,null,null,null,null,null,null,null,null,1,2,0]
["Kit Kat",null,null,null,null,null,null,null,null,null,null,null,null,null,null,null,null,null,null,null,null,0,2,0]

{"sheet":"12","index":11,"n_rows":95,"n_cols":24,"rows_kept":95,"cut":false,"hidden":false,"merged":[[11,24,11,47]]}
[null,101,102,103,104,105,201,202,203,206,207,301,302,303,304,305,306,307,308,309,310,"TOT","PREZZO","PREZZO"]
["Coca Cola",null,null,null,null,null,null,null,null,null,null,null,null,null,null,null,null,null,null,null,null,{"$f":"SUM(B2:U2)","v":0},3,0]
["Coca Cola Light",null,null,null,null,null,null,null,null,null,null,null,null,null,null,null,null,null,null,null,null,{"$f":"SUM(B3:U3)","v":0},3,0]
["Tè",null,null,null,null,null,null,null,null,null,null,null,null,null,null,null,null,null,null,null,null,0,3,0]
["Acqua Tonica",null,null,null,null,null,null,null,null,null,null,null,null,null,null,null,null,null,null,null,null,0,3,0]
["Succo",null,null,null,null,null,null,null,null,null,null,null,null,null,null,null,null,null,null,null,null,0,3,0]
["Birra",null,null,null,null,null,null,null,null,null,null,null,null,null,null,null,null,null,null,null,null,0,3.5,0]
["Acqua Naturale",null,null,null,null,null,null,null,null,null,null,null,null,null,null,1,null,null,null,null,null,1,2.5,{"$f":"W8*V8","v":2.5}]
["Acqua Frizzante",null,null,null,null,null,null,null,null,null,null,null,null,null,null,null,null,null,null,null,null,0,2.5,0]
["Patatine",null,null,null,null,null,null,null,null,null,null,null,null,null,null,null,null,null,null,null,null,0,2,0]
["Kit Kat",null,null,null,null,null,null,null,null,null,null,null,null,null,null,null,null,null,null,null,null,0,2,0]
[]
[null,401,402,403,404,405,406,407,408,409,410,501,502,503,504,505,506,507,508,509,510,"TOT","PREZZO"]
["Coca Cola",null,null,null,null,null,null,null,null,null,null,null,null,null,null,null,null,null,null,null,null,{"$f":"SUM(B14:U14)","v":0},3,0]
["Coca Cola Light",null,null,null,null,null,null,null,null,null,null,null,1,null,null,null,null,null,null,null,null,{"$f":"SUM(B15:U15)","v":1},3,0]
["Tè",null,null,null,null,null,null,null,null,null,null,null,null,null,null,null,null,null,null,null,null,0,3,0]
["Acqua Tonica",null,null,null,null,null,null,null,null,null,null,null,null,null,null,null,null,null,null,null,null,0,3,0]
["Succo",null,null,null,null,null,null,null,null,null,null,null,null,null,null,null,null,null,null,null,null,0,3,0]
["Birra",null,null,null,null,null,null,null,null,null,null,null,null,null,null,null,null,null,null,null,null,0,3.5,0]
["Acqua Naturale",null,null,1,null,1,null,null,null,null,null,null,null,null,null,null,null,null,null,null,null,2,2.5,{"$f":"W20*V20","v":5}]
["Acqua Frizzante",null,null,null,null,1,null,null,null,null,null,null,null,null,null,null,null,null,1,null,null,2,2.5,5]
["Patatine",null,null,null,null,null,null,null,null,null,null,null,1,null,null,null,null,null,null,null,null,1,2,0]
["Kit Kat",null,null,null,null,null,null,null,null,null,null,1,1,null,null,null,null,null,null,null,null,2,2,0]
[]
[null,601,602,603,604,605,606,607,608,609,610,701,702,703,704,705,706,707,708,709,710,"TOT","PREZZO"]
["Coca Cola",null,null,null,null,null,null,null,null,null,null,null,null,null,null,null,null,null,null,null,null,{"$f":"SUM(B26:U26)","v":0},3,0]
["Coca Cola Light",null,null,null,null,null,null,null,null,null,null,null,null,null,null,null,null,null,null,null,null,{"$f":"SUM(B27:U27)","v":0},3,0]
["Tè",1,null,null,null,null,null,null,null,null,null,null,null,null,null,null,null,null,null,null,null,1,3,0]
["Acqua Tonica",null,null,null,null,null,null,null,null,null,null,null,null,null,null,null,null,null,null,null,null,0,3,0]
["Succo",null,null,null,null,null,null,null,null,null,null,null,null,null,null,null,null,null,null,null,null,0,3,0]
["Birra",null,null,null,null,null,null,null,null,null,null,null,null,null,null,null,null,null,null,null,null,0,3.5,0]
["Acqua Naturale",null,null,null,null,null,null,null,null,null,1,null,null,null,null,null,null,null,null,null,null,1,2.5,{"$f":"W32*V32","v":2.5}]
["Acqua Frizzante",1,1,null,null,null,null,null,null,null,null,null,null,null,null,null,null,null,null,null,null,2,2.5,5]
["Patatine",null,null,null,null,null,null,null,1,null,null,null,null,null,null,null,null,null,null,null,null,1,2,0]
["Kit Kat",null,null,null,null,null,null,null,1,null,null,null,null,null,null,null,null,null,null,null,null,1,2,0]
[]
[null,801,802,803,804,805,806,807,808,809,810,901,902,903,904,905,906,907,908,909,910,"TOT","PREZZO"]
["Coca Cola",null,null,null,null,null,null,null,null,null,null,null,null,null,null,null,null,null,null,null,null,{"$f":"SUM(B38:U38)","v":0},3,0]
["Coca Cola Light",null,null,null,null,null,null,null,null,null,null,null,null,null,null,null,null,null,null,null,null,0,3,0]
["Tè",null,null,null,null,null,null,null,null,null,null,null,null,null,null,null,null,null,null,null,null,0,3,0]
["Acqua Tonica",null,null,null,null,null,null,null,null,null,null,null,null,null,null,null,null,null,null,null,null,0,3,0]
["Succo",null,null,null,null,null,null,null,null,null,null,null,null,null,null,null,null,null,null,null,null,0,3,0]
["Birra",null,null,null,null,null,null,null,null,null,null,null,null,null,null,null,null,null,null,null,null,0,3.5,0]
["Acqua Naturale",null,null,null,null,null,null,null,null,null,null,null,null,null,null,1,null,null,null,null,null,{"$f":"SUM(B44:U44)","v":1},2.5,{"$f":"W44*V44","v":2.5}]
["Acqua Frizzante",null,null,null,null,null,null,null,null,null,null,null,null,null,null,null,null,null,null,null,null,0,2.5,0]
["Patatine",null,null,null,null,null,null,null,null,null,null,null,null,null,null,1,null,null,null,null,null,0,2,0]
["Kit Kat",null,null,null,null,null,null,null,null,null,null,null,null,1,null,null,null,null,null,null,null,0,2,0]
[]
[null,1001,1002,1003,1004,1005,1006,1007,1008,1009,1010,1101,1102,1103,1104,1105,1106,1107,1108,1109,1110,"TOT","PREZZO"]
["Coca Cola",null,null,null,null,null,null,null,null,null,null,1,null,null,null,null,null,null,null,null,null,{"$f":"SUM(B50:U50)","v":1},3,0]
["Coca Cola Light",null,null,null,null,null,null,null,null,null,null,null,null,null,null,null,null,null,null,null,null,0,3,0]
["Tè",null,null,null,null,null,null,null,null,null,null,null,null,null,null,null,null,null,null,null,null,0,3,0]
["Acqua Tonica",null,null,null,null,null,null,null,null,null,null,null,null,null,null,null,null,null,null,null,null,0,3,0]
["Succo",null,null,null,null,null,null,null,null,null,null,null,null,null,null,null,null,null,null,null,null,0,3,0]
["Birra",null,null,null,null,null,null,null,null,null,null,null,null,null,null,null,null,null,null,null,null,0,3.5,0]
["Acqua Naturale",null,null,null,null,null,null,null,null,null,null,null,null,null,null,null,null,null,null,null,null,{"$f":"SUM(B56:U56)","v":0},2.5,{"$f":"W56*V56","v":0}]
["Acqua Frizzante",null,null,null,null,null,null,null,null,null,null,null,null,null,null,null,null,null,null,null,null,0,2.5,0]
["Patatine",null,null,null,null,null,null,1,null,null,null,null,null,null,null,null,null,null,null,null,null,0,2,0]
["Kit Kat",null,null,null,null,null,null,null,null,null,null,null,null,null,null,null,null,null,null,null,null,0,2,0]
[]
[null,1201,1202,1203,1204,1205,1206,1207,1208,1209,1210,1301,1302,1303,1304,1305,1306,1307,1308,1309,1310,"TOT","PREZZO"]
["Coca Cola",null,null,null,null,null,null,null,null,null,null,null,null,null,null,null,null,null,null,null,null,{"$f":"SUM(B62:U62)","v":0},3,0]
["Coca Cola Light",null,null,null,null,null,null,null,null,null,null,null,null,null,null,null,null,null,null,null,null,{"$f":"SUM(B63:U63)","v":0},3,0]
["Tè",null,null,null,null,null,null,null,null,null,null,null,null,null,null,null,null,null,null,null,null,0,3,0]
["Acqua Tonica",null,null,null,null,null,null,null,null,null,null,null,null,null,null,null,null,null,null,null,null,0,3,0]
["Succo",null,null,null,null,null,null,null,null,null,null,null,null,null,null,null,null,null,null,null,null,0,3,0]
["Birra",null,null,null,null,null,null,null,null,null,null,null,null,null,null,null,null,null,null,null,null,0,3.5,0]
["Acqua Naturale",null,null,null,null,null,null,null,1,null,null,null,null,null,1,null,null,null,null,null,null,2,2.5,{"$f":"W68*V68","v":5}]
["Acqua Frizzante",null,null,null,null,null,null,null,null,null,null,null,null,null,null,1,null,null,null,null,null,1,2.5,2.5]
["Patatine",null,null,null,null,null,null,null,null,null,null,null,null,null,null,null,null,null,null,null,null,0,2,0]
["Kit Kat",null,null,null,null,null,null,null,null,null,null,null,null,null,null,null,null,null,null,null,null,0,2,0]
[]
[null,1401,1402,1403,1404,1405,1406,1407,1408,1409,1410,1501,1502,1503,1504,1505,1506,1507,1508,1509,1510,"TOT","PREZZO"]
["Coca Cola",null,null,null,null,null,null,null,null,null,null,null,null,null,null,null,null,null,null,null,null,{"$f":"SUM(B74:U74)","v":0},3,0]
["Coca Cola Light",null,null,null,null,null,null,null,null,null,null,null,null,null,null,null,null,null,null,null,null,{"$f":"SUM(B75:U75)","v":0},3,0]
["Tè",null,null,null,null,null,null,null,null,null,null,1,null,null,null,null,null,null,null,null,null,1,3,0]
["Acqua Tonica",null,null,null,null,null,null,null,null,null,null,null,null,null,null,null,null,null,null,null,null,0,3,0]
["Succo",null,null,null,null,null,null,null,null,null,null,null,null,null,null,null,null,null,null,null,null,0,3,0]
["Birra",null,null,null,null,null,null,null,null,null,null,null,null,null,null,null,null,null,null,null,null,0,3.5,0]
["Acqua Naturale",null,null,2,null,null,null,null,null,null,null,1,null,null,null,null,null,null,null,null,null,3,2.5,{"$f":"W80*V80","v":7.5}]
["Acqua Frizzante",null,null,null,null,null,null,null,null,null,null,2,null,null,null,null,null,null,null,null,null,2,2.5,5]
["Patatine",null,null,null,null,null,null,null,1,null,null,null,null,null,null,null,null,null,null,null,null,1,2,0]
["Kit Kat",null,null,null,null,null,null,null,null,null,null,null,null,null,null,null,null,null,null,null,1,1,2,0]
[]
[null,1601,1602,1603,1604,1605,1606,1607,1608,1609,1610,1701,1702,1703,1704,1705,1706,1707,1708,null,null,"TOT","PREZZO"]
["Coca Cola",null,null,null,null,null,null,null,null,null,null,null,null,null,null,null,null,null,null,null,null,{"$f":"SUM(B86:U86)","v":0},3,0]
["Coca Cola Light",null,null,null,null,null,null,null,null,null,null,null,null,null,null,null,null,null,null,null,null,{"$f":"SUM(B87:U87)","v":0},3,0]
["Tè",null,null,null,null,null,null,null,null,null,null,null,1,null,null,null,null,null,null,null,null,1,3,0]
["Acqua Tonica",null,null,null,null,null,null,null,null,null,null,null,1,null,null,null,null,null,null,null,null,1,3,0]
["Succo",1,null,null,null,null,null,null,null,null,null,null,null,null,null,null,1,null,null,null,null,2,3,0]
["Birra",null,null,null,null,null,null,null,null,null,null,null,null,null,null,null,null,null,null,null,null,0,3.5,0]
["Acqua Naturale",null,null,null,1,null,null,null,2,null,null,null,null,null,null,null,null,null,null,null,null,3,2.5,{"$f":"W92*V92","v":7.5}]
["Acqua Frizzante",null,null,null,null,null,null,null,null,null,null,null,1,null,null,null,null,null,null,null,null,1,2.5,2.5]
["Patatine",null,null,null,null,null,null,null,null,null,null,null,null,null,null,null,1,null,null,null,null,1,2,0]
["Kit Kat",null,null,null,null,null,null,null,null,null,null,null,null,null,null,null,null,null,null,null,null,0,2,0]

{"sheet":"13","index":12,"n_rows":95,"n_cols":24,"rows_kept":95,"cut":false,"hidden":false,"merged":[[11,24,11,47]]}
[null,101,102,103,104,105,201,202,203,206,207,301,302,303,304,305,306,307,308,309,310,"TOT","PREZZO","PREZZO"]
["Coca Cola",null,null,null,null,null,null,null,null,null,null,null,null,null,null,null,null,null,null,null,null,{"$f":"SUM(B2:U2)","v":0},3,0]
["Coca Cola Light",null,null,null,null,null,null,null,null,null,null,null,null,null,null,null,null,null,null,null,null,{"$f":"SUM(B3:U3)","v":0},3,0]
["Tè",null,null,null,null,null,null,null,null,null,null,null,null,null,null,null,null,null,null,null,null,0,3,0]
["Acqua Tonica",null,null,null,null,null,null,null,null,null,null,null,null,null,null,null,null,null,null,null,null,0,3,0]
["Succo",null,null,null,null,null,null,null,null,null,null,null,null,null,null,null,null,null,null,null,null,0,3,0]
["Birra",null,null,null,null,null,null,null,null,null,null,null,null,null,null,null,null,null,null,null,null,0,3.5,0]
["Acqua Naturale",null,null,null,null,null,null,null,1,null,null,null,null,null,null,null,null,null,null,1,null,2,2.5,{"$f":"W8*V8","v":5}]
["Acqua Frizzante",null,null,null,null,null,null,null,null,null,null,null,null,null,null,null,null,null,1,null,null,1,2.5,2.5]
["Patatine",null,null,null,null,null,null,null,null,null,null,null,null,null,null,null,null,null,null,1,null,1,2,0]
["Kit Kat",null,1,null,null,null,null,null,null,null,null,null,null,null,null,null,null,null,null,null,null,1,2,0]
[]
[null,401,402,403,404,405,406,407,408,409,410,501,502,503,504,505,506,507,508,509,510,"TOT","PREZZO"]
["Coca Cola",null,null,null,null,null,null,null,null,null,null,null,null,null,null,null,null,null,null,null,null,{"$f":"SUM(B14:U14)","v":0},3,0]
["Coca Cola Light",null,null,null,null,null,null,null,null,null,null,null,null,null,null,null,null,null,null,null,null,{"$f":"SUM(B15:U15)","v":0},3,0]
["Tè",null,null,null,null,null,null,null,null,null,null,null,null,null,null,null,null,null,null,null,null,0,3,0]
["Acqua Tonica",null,null,null,null,null,null,null,null,null,null,null,null,null,null,null,null,null,null,null,null,0,3,0]
["Succo",null,null,null,null,null,null,null,null,null,null,null,null,null,null,null,null,null,null,null,null,0,3,0]
["Birra",null,null,null,null,null,null,null,null,null,2,null,null,null,null,null,null,null,null,null,null,2,3.5,0]
["Acqua Naturale",null,null,null,null,2,null,null,null,null,null,1,null,null,null,null,null,1,null,null,null,4,2.5,{"$f":"W20*V20","v":10}]
["Acqua Frizzante",null,null,null,null,null,null,null,null,null,null,1,null,1,null,null,1,null,null,null,1,4,2.5,10]
["Patatine",null,null,null,null,null,null,null,null,null,null,null,null,null,null,null,null,null,null,null,null,0,2,0]
["Kit Kat",null,null,null,null,null,null,null,null,null,null,null,null,null,null,null,null,null,null,null,1,1,2,0]
[]
[null,601,602,603,604,605,606,607,608,609,610,701,702,703,704,705,706,707,708,709,710,"TOT","PREZZO"]
["Coca Cola",null,null,null,null,null,null,null,null,null,null,null,null,null,null,null,null,null,null,null,null,{"$f":"SUM(B26:U26)","v":0},3,0]
["Coca Cola Light",null,null,null,null,null,null,null,null,null,null,null,null,null,1,null,null,null,null,null,null,{"$f":"SUM(B27:U27)","v":1},3,0]
["Tè",1,1,null,null,null,null,null,null,null,null,null,null,null,null,null,null,null,null,null,null,2,3,0]
["Acqua Tonica",null,null,null,null,null,null,null,null,null,null,null,null,null,null,null,null,null,null,null,null,0,3,0]
["Succo",null,null,null,null,null,null,null,null,null,null,null,null,null,null,null,null,null,null,null,null,0,3,0]
["Birra",null,null,null,null,null,null,null,null,null,null,null,null,null,null,null,null,null,null,null,null,0,3.5,0]
["Acqua Naturale",null,null,null,null,null,null,null,null,null,null,null,null,null,null,null,null,null,null,null,null,0,2.5,{"$f":"W32*V32","v":0}]
["Acqua Frizzante",1,null,null,null,null,null,null,null,null,null,null,null,null,null,null,null,null,null,null,null,1,2.5,2.5]
["Patatine",1,null,null,null,null,null,null,null,null,null,null,null,null,null,null,null,null,null,null,null,1,2,0]
["Kit Kat",1,null,null,null,null,null,null,null,null,null,null,null,null,null,null,null,null,null,null,null,1,2,0]
[]
[null,801,802,803,804,805,806,807,808,809,810,901,902,903,904,905,906,907,908,909,910,"TOT","PREZZO"]
["Coca Cola",null,null,null,null,null,null,null,null,null,null,null,null,null,null,null,null,null,null,null,null,{"$f":"SUM(B38:U38)","v":0},3,0]
["Coca Cola Light",null,null,null,null,null,null,null,null,null,null,null,null,null,null,null,null,null,null,null,null,0,3,0]
["Tè",null,null,null,null,null,null,null,null,null,null,null,null,null,null,null,null,null,null,null,null,0,3,0]
["Acqua Tonica",null,null,null,null,null,null,null,null,null,null,null,null,null,null,null,null,null,null,null,null,0,3,0]
["Succo",null,null,null,null,null,null,null,null,null,null,null,null,null,null,null,null,null,null,null,null,0,3,0]
["Birra",null,null,null,null,null,null,null,null,null,null,null,null,null,null,null,null,null,null,null,null,0,3.5,0]
["Acqua Naturale",null,null,null,null,null,null,null,null,null,null,1,null,null,null,1,null,1,null,null,null,{"$f":"SUM(B44:U44)","v":3},2.5,{"$f":"W44*V44","v":7.5}]
["Acqua Frizzante",null,null,null,null,null,null,null,null,null,null,null,null,null,null,null,null,null,null,null,null,0,2.5,0]
["Patatine",null,null,null,null,null,null,null,null,null,null,null,null,null,null,1,null,null,null,null,null,0,2,0]
["Kit Kat",null,null,null,null,null,null,null,null,null,null,null,null,null,null,null,null,null,null,null,null,0,2,0]
[]
[null,1001,1002,1003,1004,1005,1006,1007,1008,1009,1010,1101,1102,1103,1104,1105,1106,1107,1108,1109,1110,"TOT","PREZZO"]
["Coca Cola",null,null,null,null,null,null,null,null,null,null,null,null,null,null,null,null,null,null,null,null,{"$f":"SUM(B50:U50)","v":0},3,0]
["Coca Cola Light",null,null,null,null,null,null,null,null,null,null,null,null,null,null,null,null,null,null,null,null,0,3,0]
["Tè",null,null,null,null,null,null,null,null,null,null,null,null,null,null,null,null,null,null,null,null,0,3,0]
["Acqua Tonica",null,null,null,null,null,null,null,null,null,null,null,null,null,null,null,null,null,null,null,null,0,3,0]
["Succo",null,null,null,null,null,null,null,null,null,null,null,null,null,null,null,null,null,null,null,null,0,3,0]
["Birra",null,null,null,null,null,null,null,null,null,null,null,null,null,null,null,null,null,null,null,null,0,3.5,0]
["Acqua Naturale",null,null,null,null,null,null,null,null,null,null,null,null,null,null,1,null,null,null,null,null,{"$f":"SUM(B56:U56)","v":1},2.5,{"$f":"W56*V56","v":2.5}]
["Acqua Frizzante",null,null,null,null,null,null,1,null,null,null,null,null,null,null,null,null,null,null,null,null,1,2.5,2.5]
["Patatine",null,null,null,null,null,null,null,null,null,null,null,null,null,null,null,null,null,null,null,null,0,2,0]
["Kit Kat",null,null,null,null,null,null,null,null,null,null,null,null,null,null,null,null,null,null,null,null,0,2,0]
[]
[null,1201,1202,1203,1204,1205,1206,1207,1208,1209,1210,1301,1302,1303,1304,1305,1306,1307,1308,1309,1310,"TOT","PREZZO"]
["Coca Cola",null,null,null,null,null,null,null,null,null,null,null,null,null,null,null,null,null,null,null,null,{"$f":"SUM(B62:U62)","v":0},3,0]
["Coca Cola Light",null,null,null,null,null,null,null,null,null,null,null,null,null,null,null,null,null,null,null,null,{"$f":"SUM(B63:U63)","v":0},3,0]
["Tè",null,null,null,null,null,null,null,null,null,null,null,null,null,null,null,null,null,null,null,null,0,3,0]
["Acqua Tonica",null,null,null,null,null,null,null,null,null,null,null,null,null,null,null,null,null,null,null,null,0,3,0]
["Succo",null,null,null,null,null,null,null,null,2,null,null,null,null,null,null,null,null,null,null,null,2,3,0]
["Birra",null,null,null,null,null,null,null,null,1,null,null,null,null,null,null,null,null,null,null,null,1,3.5,0]
["Acqua Naturale",null,null,null,null,null,null,null,null,null,null,null,null,null,null,null,null,null,null,null,1,1,2.5,{"$f":"W68*V68","v":2.5}]
["Acqua Frizzante",1,null,null,null,null,null,null,null,null,null,null,1,null,null,1,null,null,null,null,null,3,2.5,7.5]
["Patatine",null,null,null,null,null,null,null,null,null,null,null,null,null,null,null,null,null,null,null,1,1,2,0]
["Kit Kat",null,null,null,null,null,null,null,null,1,null,null,null,null,null,null,null,null,null,1,1,3,2,0]
[]
[null,1401,1402,1403,1404,1405,1406,1407,1408,1409,1410,1501,1502,1503,1504,1505,1506,1507,1508,1509,1510,"TOT","PREZZO"]
["Coca Cola",null,null,null,null,null,null,null,null,null,null,null,null,null,null,null,null,null,null,null,null,{"$f":"SUM(B74:U74)","v":0},3,0]
["Coca Cola Light",null,null,null,null,null,null,null,null,null,null,null,null,null,null,null,null,null,null,null,null,{"$f":"SUM(B75:U75)","v":0},3,0]
["Tè",null,null,null,null,null,null,null,null,null,null,null,null,null,null,null,null,null,null,null,null,0,3,0]
["Acqua Tonica",null,null,null,null,null,null,null,null,null,null,null,null,null,null,null,null,null,null,null,null,0,3,0]
["Succo",null,null,1,null,null,null,null,null,null,null,null,null,null,null,null,null,null,null,null,null,1,3,0]
["Birra",null,null,null,null,null,null,null,null,null,null,null,null,null,null,null,null,null,null,null,null,0,3.5,0]
["Acqua Naturale",null,null,1,1,null,null,null,null,null,null,null,null,null,null,null,null,null,null,null,null,2,2.5,{"$f":"W80*V80","v":5}]
["Acqua Frizzante",null,null,1,null,null,null,null,null,null,null,null,null,null,null,null,null,null,null,null,null,1,2.5,2.5]
["Patatine",null,null,null,null,null,null,null,null,null,null,null,null,null,null,null,null,null,null,null,null,0,2,0]
["Kit Kat",1,null,null,null,null,null,null,null,null,null,null,null,null,null,null,null,null,null,null,null,1,2,0]
[]
[null,1601,1602,1603,1604,1605,1606,1607,1608,1609,1610,1701,1702,1703,1704,1705,1706,1707,1708,null,null,"TOT","PREZZO"]
["Coca Cola",null,null,null,null,null,null,null,null,null,null,2,1,null,null,null,null,null,null,null,null,{"$f":"SUM(B86:U86)","v":3},3,0]
["Coca Cola Light",null,null,null,null,null,null,null,null,null,null,null,null,null,1,null,null,null,null,null,null,{"$f":"SUM(B87:U87)","v":1},3,0]
["Tè",null,null,null,null,null,null,null,null,null,null,1,null,null,1,null,null,null,null,null,null,2,3,0]
["Acqua Tonica",null,null,null,null,null,null,null,null,null,null,null,1,null,null,null,null,null,null,null,null,1,3,0]
["Succo",null,null,null,null,null,null,null,null,null,null,2,1,null,null,null,null,null,null,null,null,3,3,0]
["Birra",null,null,null,null,null,null,null,null,null,null,null,null,null,1,null,null,null,null,null,null,1,3.5,0]
["Acqua Naturale",null,null,null,1,null,null,null,1,null,null,null,null,null,1,null,null,null,1,null,null,4,2.5,{"$f":"W92*V92","v":10}]
["Acqua Frizzante",null,null,null,null,null,null,null,null,null,1,null,null,null,2,null,null,null,1,null,null,4,2.5,10]
["Patatine",null,null,null,null,null,null,null,null,null,null,null,null,null,1,null,null,null,null,null,null,1,2,0]
["Kit Kat",null,null,null,null,null,null,null,null,null,null,null,1,null,null,null,null,null,null,null,null,1,2,0]

{"sheet":"14","index":13,"n_rows":95,"n_cols":24,"rows_kept":95,"cut":false,"hidden":false,"merged":[[11,24,11,47]]}
[null,101,102,103,104,105,201,202,203,206,207,301,302,303,304,305,306,307,308,309,310,"TOT","PREZZO","PREZZO"]
["Coca Cola",null,null,null,null,null,null,null,null,null,null,null,null,null,null,null,null,null,null,null,null,{"$f":"SUM(B2:U2)","v":0},3,0]
["Coca Cola Light",null,null,null,null,null,null,null,null,null,null,null,null,null,null,null,null,null,null,null,null,{"$f":"SUM(B3:U3)","v":0},3,0]
["Tè",null,null,null,null,null,null,null,null,null,null,null,null,null,null,null,null,null,null,null,null,0,3,0]
["Acqua Tonica",null,null,null,null,null,null,null,null,null,null,null,null,null,null,null,null,null,null,null,null,0,3,0]
["Succo",null,null,null,null,null,null,null,null,null,null,null,null,null,null,null,null,null,null,null,null,0,3,0]
["Birra",null,null,null,null,null,null,null,null,null,null,null,null,null,null,null,null,null,null,null,null,0,3.5,0]
["Acqua Naturale",null,null,null,null,null,null,null,1,null,null,null,null,null,null,null,null,null,null,1,null,2,2.5,{"$f":"W8*V8","v":5}]
["Acqua Frizzante",null,null,null,null,null,null,null,null,null,null,null,null,null,null,null,null,null,1,null,null,1,2.5,2.5]
["Patatine",null,null,null,null,null,null,null,null,null,null,null,null,null,null,null,null,null,null,1,null,1,2,0]
["Kit Kat",null,1,null,null,null,null,null,null,null,null,null,null,null,null,null,null,null,null,null,null,1,2,0]
[]
[null,401,402,403,404,405,406,407,408,409,410,501,502,503,504,505,506,507,508,509,510,"TOT","PREZZO"]
["Coca Cola",null,null,null,null,null,null,null,null,null,null,null,null,null,null,null,null,null,null,null,null,{"$f":"SUM(B14:U14)","v":0},3,0]
["Coca Cola Light",null,null,null,null,null,null,null,null,null,null,null,null,null,null,null,null,null,null,null,null,{"$f":"SUM(B15:U15)","v":0},3,0]
["Tè",null,null,null,null,null,null,null,null,null,null,null,null,null,null,null,null,null,null,null,null,0,3,0]
["Acqua Tonica",null,null,null,null,null,null,null,null,null,null,null,null,null,null,null,null,null,null,null,null,0,3,0]
["Succo",null,null,null,null,null,null,null,null,null,null,null,null,null,null,null,null,null,null,null,null,0,3,0]
["Birra",null,null,null,null,null,null,null,null,null,2,null,null,null,null,null,null,null,null,null,null,2,3.5,0]
["Acqua Naturale",null,null,null,null,2,null,null,null,null,null,1,null,null,null,null,null,1,null,null,null,4,2.5,{"$f":"W20*V20","v":10}]
["Acqua Frizzante",null,null,null,null,null,null,null,null,null,null,1,null,1,null,null,1,null,null,null,1,4,2.5,10]
["Patatine",null,null,null,null,null,null,null,null,null,null,null,null,null,null,null,null,null,null,null,null,0,2,0]
["Kit Kat",null,null,null,null,null,null,null,null,null,null,null,null,null,null,null,null,null,null,null,1,1,2,0]
[]
[null,601,602,603,604,605,606,607,608,609,610,701,702,703,704,705,706,707,708,709,710,"TOT","PREZZO"]
["Coca Cola",null,null,null,null,null,null,null,null,null,null,null,null,null,null,null,null,null,null,null,null,{"$f":"SUM(B26:U26)","v":0},3,0]
["Coca Cola Light",null,null,null,null,null,null,null,null,null,null,null,null,null,1,null,null,null,null,null,null,{"$f":"SUM(B27:U27)","v":1},3,0]
["Tè",1,1,null,null,null,null,null,null,null,null,null,null,null,null,null,null,null,null,null,null,2,3,0]
["Acqua Tonica",null,null,null,null,null,null,null,null,null,null,null,null,null,null,null,null,null,null,null,null,0,3,0]
["Succo",null,null,null,null,null,null,null,null,null,null,null,null,null,null,null,null,null,null,null,null,0,3,0]
["Birra",null,null,null,null,null,null,null,null,null,null,null,null,null,null,null,null,null,null,null,null,0,3.5,0]
["Acqua Naturale",null,null,null,null,null,null,null,null,null,null,null,null,null,null,null,null,null,null,null,null,0,2.5,{"$f":"W32*V32","v":0}]
["Acqua Frizzante",1,null,null,null,null,null,null,null,null,null,null,null,null,null,null,null,null,null,null,null,1,2.5,2.5]
["Patatine",1,null,null,null,null,null,null,null,null,null,null,null,null,null,null,null,null,null,null,null,1,2,0]
["Kit Kat",1,null,null,null,null,null,null,null,null,null,null,null,null,null,null,null,null,null,null,null,1,2,0]
[]
[null,801,802,803,804,805,806,807,808,809,810,901,902,903,904,905,906,907,908,909,910,"TOT","PREZZO"]
["Coca Cola",null,null,null,null,null,null,null,null,null,null,null,null,null,null,null,null,null,null,null,null,{"$f":"SUM(B38:U38)","v":0},3,0]
["Coca Cola Light",null,null,null,null,null,null,null,null,null,null,null,null,null,null,null,null,null,null,null,null,0,3,0]
["Tè",null,null,null,null,null,null,null,null,null,null,null,null,null,null,null,null,null,null,null,null,0,3,0]
["Acqua Tonica",null,null,null,null,null,null,null,null,null,null,null,null,null,null,null,null,null,null,null,null,0,3,0]
["Succo",null,null,null,null,null,null,null,null,null,null,null,null,null,null,null,null,null,null,null,null,0,3,0]
["Birra",null,null,null,null,null,null,null,null,null,null,null,null,null,null,null,null,null,null,null,null,0,3.5,0]
["Acqua Naturale",null,null,null,null,null,null,null,null,null,null,1,null,null,null,1,null,1,null,null,null,{"$f":"SUM(B44:U44)","v":3},2.5,{"$f":"W44*V44","v":7.5}]
["Acqua Frizzante",null,null,null,null,null,null,null,null,null,null,null,null,null,null,null,null,null,null,null,null,0,2.5,0]
["Patatine",null,null,null,null,null,null,null,null,null,null,null,null,null,null,1,null,null,null,null,null,0,2,0]
["Kit Kat",null,null,null,null,null,null,null,null,null,null,null,null,null,null,null,null,null,null,null,null,0,2,0]
[]
[null,1001,1002,1003,1004,1005,1006,1007,1008,1009,1010,1101,1102,1103,1104,1105,1106,1107,1108,1109,1110,"TOT","PREZZO"]
["Coca Cola",null,null,null,null,null,null,null,null,null,null,null,null,null,null,null,null,null,null,null,null,{"$f":"SUM(B50:U50)","v":0},3,0]
["Coca Cola Light",null,null,null,null,null,null,null,null,null,null,null,null,null,null,null,null,null,null,null,null,0,3,0]
["Tè",null,null,null,null,null,null,null,null,null,null,null,null,null,null,null,null,null,null,null,null,0,3,0]
["Acqua Tonica",null,null,null,null,null,null,null,null,null,null,null,null,null,null,null,null,null,null,null,null,0,3,0]
["Succo",null,null,null,null,null,null,null,null,null,null,null,null,null,null,null,null,null,null,null,null,0,3,0]
["Birra",null,null,null,null,null,null,null,null,null,null,null,null,null,null,null,null,null,null,null,null,0,3.5,0]
["Acqua Naturale",null,null,null,null,null,null,null,null,null,null,null,null,null,null,1,null,null,null,null,null,{"$f":"SUM(B56:U56)","v":1},2.5,{"$f":"W56*V56","v":2.5}]
["Acqua Frizzante",null,null,null,null,null,null,1,null,null,null,null,null,null,null,null,null,null,null,null,null,1,2.5,2.5]
["Patatine",null,null,null,null,null,null,null,null,null,null,null,null,null,null,null,null,null,null,null,null,0,2,0]
["Kit Kat",null,null,null,null,null,null,null,null,null,null,null,null,null,null,null,null,null,null,null,null,0,2,0]
[]
[null,1201,1202,1203,1204,1205,1206,1207,1208,1209,1210,1301,1302,1303,1304,1305,1306,1307,1308,1309,1310,"TOT","PREZZO"]
["Coca Cola",null,null,null,null,null,null,null,null,null,null,null,null,null,null,null,null,null,null,null,null,{"$f":"SUM(B62:U62)","v":0},3,0]
["Coca Cola Light",null,null,null,null,null,null,null,null,null,null,null,null,null,null,null,null,null,null,null,null,{"$f":"SUM(B63:U63)","v":0},3,0]
["Tè",null,null,null,null,null,null,null,null,null,null,null,null,null,null,null,null,null,null,null,null,0,3,0]
["Acqua Tonica",null,null,null,null,null,null,null,null,null,null,null,null,null,null,null,null,null,null,null,null,0,3,0]
["Succo",null,null,null,null,null,null,null,null,2,null,null,null,null,null,null,null,null,null,null,null,2,3,0]
["Birra",null,null,null,null,null,null,null,null,1,null,null,null,null,null,null,null,null,null,null,null,1,3.5,0]
["Acqua Naturale",null,null,null,null,null,null,null,null,null,null,null,null,null,null,null,null,null,null,null,1,1,2.5,{"$f":"W68*V68","v":2.5}]
["Acqua Frizzante",1,null,null,null,null,null,null,null,null,null,null,1,null,null,1,null,null,null,null,null,3,2.5,7.5]
["Patatine",null,null,null,null,null,null,null,null,null,null,null,null,null,null,null,null,null,null,null,1,1,2,0]
["Kit Kat",null,null,null,null,null,null,null,null,1,null,null,null,null,null,null,null,null,null,1,1,3,2,0]
[]
[null,1401,1402,1403,1404,1405,1406,1407,1408,1409,1410,1501,1502,1503,1504,1505,1506,1507,1508,1509,1510,"TOT","PREZZO"]
["Coca Cola",null,null,null,null,null,null,null,null,null,null,null,null,null,null,null,null,null,null,null,null,{"$f":"SUM(B74:U74)","v":0},3,0]
["Coca Cola Light",null,null,null,null,null,null,null,null,null,null,null,null,null,null,null,null,null,null,null,null,{"$f":"SUM(B75:U75)","v":0},3,0]
["Tè",null,null,null,null,null,null,null,null,null,null,null,null,null,null,null,null,null,null,null,null,0,3,0]
["Acqua Tonica",null,null,null,null,null,null,null,null,null,null,null,null,null,null,null,null,null,null,null,null,0,3,0]
["Succo",null,null,1,null,null,null,null,null,null,null,null,null,null,null,null,null,null,null,null,null,1,3,0]
["Birra",null,null,null,null,null,null,null,null,null,null,null,null,null,null,null,null,null,null,null,null,0,3.5,0]
["Acqua Naturale",null,null,1,1,null,null,null,null,null,null,null,null,null,null,null,null,null,null,null,null,2,2.5,{"$f":"W80*V80","v":5}]
["Acqua Frizzante",null,null,1,null,null,null,null,null,null,null,null,null,null,null,null,null,null,null,null,null,1,2.5,2.5]
["Patatine",null,null,null,null,null,null,null,null,null,null,null,null,null,null,null,null,null,null,null,null,0,2,0]
["Kit Kat",1,null,null,null,null,null,null,null,null,null,null,null,null,null,null,null,null,null,null,null,1,2,0]
[]
[null,1601,1602,1603,1604,1605,1606,1607,1608,1609,1610,1701,1702,1703,1704,1705,1706,1707,1708,null,null,"TOT","PREZZO"]
["Coca Cola",null,null,null,null,null,null,null,null,null,null,2,1,null,null,null,null,null,null,null,null,{"$f":"SUM(B86:U86)","v":3},3,0]
["Coca Cola Light",null,null,null,null,null,null,null,null,null,null,null,null,null,1,null,null,null,null,null,null,{"$f":"SUM(B87:U87)","v":1},3,0]
["Tè",null,null,null,null,null,null,null,null,null,null,1,null,null,1,null,null,null,null,null,null,2,3,0]
["Acqua Tonica",null,null,null,null,null,null,null,null,null,null,null,1,null,null,null,null,null,null,null,null,1,3,0]
["Succo",null,null,null,null,null,null,null,null,null,null,2,1,null,null,null,null,null,null,null,null,3,3,0]
["Birra",null,null,null,null,null,null,null,null,null,null,null,null,null,1,null,null,null,null,null,null,1,3.5,0]
["Acqua Naturale",null,null,null,1,null,null,null,1,null,null,null,null,null,1,null,null,null,1,null,null,4,2.5,{"$f":"W92*V92","v":10}]
["Acqua Frizzante",null,null,null,null,null,null,null,null,null,1,null,null,null,2,null,null,null,1,null,null,4,2.5,10]
["Patatine",null,null,null,null,null,null,null,null,null,null,null,null,null,1,null,null,null,null,null,null,1,2,0]
["Kit Kat",null,null,null,null,null,null,null,null,null,null,null,1,null,null,null,null,null,null,null,null,1,2,0]

{"sheet":"15","index":14,"n_rows":95,"n_cols":24,"rows_kept":95,"cut":false,"hidden":false,"merged":[[11,24,11,47]]}
[null,101,102,103,104,105,201,202,203,206,207,301,302,303,304,305,306,307,308,309,310,"TOT","PREZZO","PREZZO"]
["Coca Cola",null,null,null,null,null,null,null,null,null,null,null,null,null,null,null,null,null,null,null,null,{"$f":"SUM(B2:U2)","v":0},3,0]
["Coca Cola Light",null,null,null,null,null,null,null,null,null,null,null,null,null,null,null,null,null,null,null,null,{"$f":"SUM(B3:U3)","v":0},3,0]
["Tè",null,null,null,null,null,null,null,null,null,null,null,null,null,null,null,null,null,null,null,null,0,3,0]
["Acqua Tonica",null,null,null,null,null,null,null,null,null,null,null,null,null,null,null,null,null,null,null,null,0,3,0]
["Succo",null,null,null,null,null,null,null,null,null,null,null,null,null,null,null,null,null,null,null,null,0,3,0]
["Birra",null,null,null,null,null,null,null,null,null,null,null,null,null,null,null,null,null,null,null,null,0,3.5,0]
["Acqua Naturale",null,null,null,null,null,null,null,1,null,null,null,null,null,null,null,null,null,null,1,null,2,2.5,{"$f":"W8*V8","v":5}]
["Acqua Frizzante",null,null,null,null,null,null,null,null,null,null,null,null,null,null,null,null,null,1,null,null,1,2.5,2.5]
["Patatine",null,null,null,null,null,null,null,null,null,null,null,null,null,null,null,null,null,null,1,null,1,2,0]
["Kit Kat",null,1,null,null,null,null,null,null,null,null,null,null,null,null,null,null,null,null,null,null,1,2,0]
[]
[null,401,402,403,404,405,406,407,408,409,410,501,502,503,504,505,506,507,508,509,510,"TOT","PREZZO"]
["Coca Cola",null,null,null,null,null,null,null,null,null,null,null,null,null,null,null,null,null,null,null,null,{"$f":"SUM(B14:U14)","v":0},3,0]
["Coca Cola Light",null,null,null,null,null,null,null,null,null,null,null,null,null,null,null,null,null,null,null,null,{"$f":"SUM(B15:U15)","v":0},3,0]
["Tè",null,null,null,null,null,null,null,null,null,null,null,null,null,null,null,null,null,null,null,null,0,3,0]
["Acqua Tonica",null,null,null,null,null,null,null,null,null,null,null,null,null,null,null,null,null,null,null,null,0,3,0]
["Succo",null,null,null,null,null,null,null,null,null,null,null,null,null,null,null,null,null,null,null,null,0,3,0]
["Birra",null,null,null,null,null,null,null,null,null,2,null,null,null,null,null,null,null,null,null,null,2,3.5,0]
["Acqua Naturale",null,null,null,null,2,null,null,null,null,null,1,null,null,null,null,null,1,null,null,null,4,2.5,{"$f":"W20*V20","v":10}]
["Acqua Frizzante",null,null,null,null,null,null,null,null,null,null,1,null,1,null,null,1,null,null,null,1,4,2.5,10]
["Patatine",null,null,null,null,null,null,null,null,null,null,null,null,null,null,null,null,null,null,null,null,0,2,0]
["Kit Kat",null,null,null,null,null,null,null,null,null,null,null,null,null,null,null,null,null,null,null,1,1,2,0]
[]
[null,601,602,603,604,605,606,607,608,609,610,701,702,703,704,705,706,707,708,709,710,"TOT","PREZZO"]
["Coca Cola",null,null,null,null,null,null,null,null,null,null,null,null,null,null,null,null,null,null,null,null,{"$f":"SUM(B26:U26)","v":0},3,0]
["Coca Cola Light",null,null,null,null,null,null,null,null,null,null,null,null,null,1,null,null,null,null,null,null,{"$f":"SUM(B27:U27)","v":1},3,0]
["Tè",1,1,null,null,null,null,null,null,null,null,null,null,null,null,null,null,null,null,null,null,2,3,0]
["Acqua Tonica",null,null,null,null,null,null,null,null,null,null,null,null,null,null,null,null,null,null,null,null,0,3,0]
["Succo",null,null,null,null,null,null,null,null,null,null,null,null,null,null,null,null,null,null,null,null,0,3,0]
["Birra",null,null,null,null,null,null,null,null,null,null,null,null,null,null,null,null,null,null,null,null,0,3.5,0]
["Acqua Naturale",null,null,null,null,null,null,null,null,null,null,null,null,null,null,null,null,null,null,null,null,0,2.5,{"$f":"W32*V32","v":0}]
["Acqua Frizzante",1,null,null,null,null,null,null,null,null,null,null,null,null,null,null,null,null,null,null,null,1,2.5,2.5]
["Patatine",1,null,null,null,null,null,null,null,null,null,null,null,null,null,null,null,null,null,null,null,1,2,0]
["Kit Kat",1,null,null,null,null,null,null,null,null,null,null,null,null,null,null,null,null,null,null,null,1,2,0]
[]
[null,801,802,803,804,805,806,807,808,809,810,901,902,903,904,905,906,907,908,909,910,"TOT","PREZZO"]
["Coca Cola",null,null,null,null,null,null,null,null,null,null,null,null,null,null,null,null,null,null,null,null,{"$f":"SUM(B38:U38)","v":0},3,0]
["Coca Cola Light",null,null,null,null,null,null,null,null,null,null,null,null,null,null,null,null,null,null,null,null,0,3,0]
["Tè",null,null,null,null,null,null,null,null,null,null,null,null,null,null,null,null,null,null,null,null,0,3,0]
["Acqua Tonica",null,null,null,null,null,null,null,null,null,null,null,null,null,null,null,null,null,null,null,null,0,3,0]
["Succo",null,null,null,null,null,null,null,null,null,null,null,null,null,null,null,null,null,null,null,null,0,3,0]
["Birra",null,null,null,null,null,null,null,null,null,null,null,null,null,null,null,null,null,null,null,null,0,3.5,0]
["Acqua Naturale",null,null,null,null,null,null,null,null,null,null,1,null,null,null,1,null,1,null,null,null,{"$f":"SUM(B44:U44)","v":3},2.5,{"$f":"W44*V44","v":7.5}]
["Acqua Frizzante",null,null,null,null,null,null,null,null,null,null,null,null,null,null,null,null,null,null,null,null,0,2.5,0]
["Patatine",null,null,null,null,null,null,null,null,null,null,null,null,null,null,1,null,null,null,null,null,0,2,0]
["Kit Kat",null,null,null,null,null,null,null,null,null,null,null,null,null,null,null,null,null,null,null,null,0,2,0]
[]
[null,1001,1002,1003,1004,1005,1006,1007,1008,1009,1010,1101,1102,1103,1104,1105,1106,1107,1108,1109,1110,"TOT","PREZZO"]
["Coca Cola",null,null,null,null,null,null,null,null,null,null,null,null,null,null,null,null,null,null,null,null,{"$f":"SUM(B50:U50)","v":0},3,0]
["Coca Cola Light",null,null,null,null,null,null,null,null,null,null,null,null,null,null,null,null,null,null,null,null,0,3,0]
["Tè",null,null,null,null,null,null,null,null,null,null,null,null,null,null,null,null,null,null,null,null,0,3,0]
["Acqua Tonica",null,null,null,null,null,null,null,null,null,null,null,null,null,null,null,null,null,null,null,null,0,3,0]
["Succo",null,null,null,null,null,null,null,null,null,null,null,null,null,null,null,null,null,null,null,null,0,3,0]
["Birra",null,null,null,null,null,null,null,null,null,null,null,null,null,null,null,null,null,null,null,null,0,3.5,0]
["Acqua Naturale",null,null,null,null,null,null,null,null,null,null,null,null,null,null,1,null,null,null,null,null,{"$f":"SUM(B56:U56)","v":1},2.5,{"$f":"W56*V56","v":2.5}]
["Acqua Frizzante",null,null,null,null,null,null,1,null,null,null,null,null,null,null,null,null,null,null,null,null,1,2.5,2.5]
["Patatine",null,null,null,null,null,null,null,null,null,null,null,null,null,null,null,null,null,null,null,null,0,2,0]
["Kit Kat",null,null,null,null,null,null,null,null,null,null,null,null,null,null,null,null,null,null,null,null,0,2,0]
[]
[null,1201,1202,1203,1204,1205,1206,1207,1208,1209,1210,1301,1302,1303,1304,1305,1306,1307,1308,1309,1310,"TOT","PREZZO"]
["Coca Cola",null,null,null,null,null,null,null,null,null,null,null,null,null,null,null,null,null,null,null,null,{"$f":"SUM(B62:U62)","v":0},3,0]
["Coca Cola Light",null,null,null,null,null,null,null,null,null,null,null,null,null,null,null,null,null,null,null,null,{"$f":"SUM(B63:U63)","v":0},3,0]
["Tè",null,null,null,null,null,null,null,null,null,null,null,null,null,null,null,null,null,null,null,null,0,3,0]
["Acqua Tonica",null,null,null,null,null,null,null,null,null,null,null,null,null,null,null,null,null,null,null,null,0,3,0]
["Succo",null,null,null,null,null,null,null,null,2,null,null,null,null,null,null,null,null,null,null,null,2,3,0]
["Birra",null,null,null,null,null,null,null,null,1,null,null,null,null,null,null,null,null,null,null,null,1,3.5,0]
["Acqua Naturale",null,null,null,null,null,null,null,null,null,null,null,null,null,null,null,null,null,null,null,1,1,2.5,{"$f":"W68*V68","v":2.5}]
["Acqua Frizzante",1,null,null,null,null,null,null,null,null,null,null,1,null,null,1,null,null,null,null,null,3,2.5,7.5]
["Patatine",null,null,null,null,null,null,null,null,null,null,null,null,null,null,null,null,null,null,null,1,1,2,0]
["Kit Kat",null,null,null,null,null,null,null,null,1,null,null,null,null,null,null,null,null,null,1,1,3,2,0]
[]
[null,1401,1402,1403,1404,1405,1406,1407,1408,1409,1410,1501,1502,1503,1504,1505,1506,1507,1508,1509,1510,"TOT","PREZZO"]
["Coca Cola",null,null,null,null,null,null,null,null,null,null,null,null,null,null,null,null,null,null,null,null,{"$f":"SUM(B74:U74)","v":0},3,0]
["Coca Cola Light",null,null,null,null,null,null,null,null,null,null,null,null,null,null,null,null,null,null,null,null,{"$f":"SUM(B75:U75)","v":0},3,0]
["Tè",null,null,null,null,null,null,null,null,null,null,null,null,null,null,null,null,null,null,null,null,0,3,0]
["Acqua Tonica",null,null,null,null,null,null,null,null,null,null,null,null,null,null,null,null,null,null,null,null,0,3,0]
["Succo",null,null,1,null,null,null,null,null,null,null,null,null,null,null,null,null,null,null,null,null,1,3,0]
["Birra",null,null,null,null,null,null,null,null,null,null,null,null,null,null,null,null,null,null,null,null,0,3.5,0]
["Acqua Naturale",null,null,1,1,null,null,null,null,null,null,null,null,null,null,null,null,null,null,null,null,2,2.5,{"$f":"W80*V80","v":5}]
["Acqua Frizzante",null,null,1,null,null,null,null,null,null,null,null,null,null,null,null,null,null,null,null,null,1,2.5,2.5]
["Patatine",null,null,null,null,null,null,null,null,null,null,null,null,null,null,null,null,null,null,null,null,0,2,0]
["Kit Kat",1,null,null,null,null,null,null,null,null,null,null,null,null,null,null,null,null,null,null,null,1,2,0]
[]
[null,1601,1602,1603,1604,1605,1606,1607,1608,1609,1610,1701,1702,1703,1704,1705,1706,1707,1708,null,null,"TOT","PREZZO"]
["Coca Cola",null,null,null,null,null,null,null,null,null,null,2,1,null,null,null,null,null,null,null,null,{"$f":"SUM(B86:U86)","v":3},3,0]
["Coca Cola Light",null,null,null,null,null,null,null,null,null,null,null,null,null,1,null,null,null,null,null,null,{"$f":"SUM(B87:U87)","v":1},3,0]
["Tè",null,null,null,null,null,null,null,null,null,null,1,null,null,1,null,null,null,null,null,null,2,3,0]
["Acqua Tonica",null,null,null,null,null,null,null,null,null,null,null,1,null,null,null,null,null,null,null,null,1,3,0]
["Succo",null,null,null,null,null,null,null,null,null,null,2,1,null,null,null,null,null,null,null,null,3,3,0]
["Birra",null,null,null,null,null,null,null,null,null,null,null,null,null,1,null,null,null,null,null,null,1,3.5,0]
["Acqua Naturale",null,null,null,1,null,null,null,1,null,null,null,null,null,1,null,null,null,1,null,null,4,2.5,{"$f":"W92*V92","v":10}]
["Acqua Frizzante",null,null,null,null,null,null,null,null,null,1,null,null,null,2,null,null,null,1,null,null,4,2.5,10]
["Patatine",null,null,null,null,null,null,null,null,null,null,null,null,null,1,null,null,null,null,null,null,1,2,0]
["Kit Kat",null,null,null,null,null,null,null,null,null,null,null,1,null,null,null,null,null,null,null,null,1,2,0]

{"sheet":"16","index":15,"n_rows":95,"n_cols":24,"rows_kept":95,"cut":false,"hidden":false,"merged":[[11,24,11,47]]}
[null,101,102,103,104,105,201,202,203,206,207,301,302,303,304,305,306,307,308,309,310,"TOT","PREZZO","PREZZO"]
["Coca Cola",null,null,null,null,null,null,null,null,null,null,null,null,null,null,null,null,null,null,null,null,{"$f":"SUM(B2:U2)","v":0},3,0]
["Coca Cola Light",null,null,null,null,null,null,null,null,null,null,null,null,null,null,null,null,null,null,null,null,{"$f":"SUM(B3:U3)","v":0},3,0]
["Tè",null,null,null,null,null,null,null,null,null,null,null,null,null,null,null,null,null,null,null,null,0,3,0]
["Acqua Tonica",null,null,null,null,null,null,null,null,null,null,null,null,null,null,null,null,null,null,null,null,0,3,0]
["Succo",null,null,null,null,null,null,null,null,null,null,null,null,null,null,null,null,null,null,null,null,0,3,0]
["Birra",null,null,null,null,null,null,null,null,null,null,null,1,null,null,null,null,null,null,null,null,1,3.5,0]
["Acqua Naturale",null,null,1,null,null,null,null,null,null,null,1,null,null,null,null,null,1,1,null,null,4,2.5,{"$f":"W8*V8","v":10}]
["Acqua Frizzante",null,1,null,null,1,null,null,null,null,null,null,null,null,null,null,null,null,null,null,null,2,2.5,5]
["Patatine",null,null,null,null,null,null,null,null,null,null,null,null,null,null,null,null,null,null,null,null,0,2,0]
["Kit Kat",null,null,null,null,null,null,null,null,null,null,null,null,null,null,null,null,null,null,null,null,0,2,0]
[]
[null,401,402,403,404,405,406,407,408,409,410,501,502,503,504,505,506,507,508,509,510,"TOT","PREZZO"]
["Coca Cola",null,null,null,null,null,null,null,null,null,null,null,null,null,null,null,null,null,null,null,null,{"$f":"SUM(B14:U14)","v":0},3,0]
["Coca Cola Light",null,null,null,null,null,null,null,null,null,null,null,null,null,null,1,null,null,null,null,1,{"$f":"SUM(B15:U15)","v":2},3,0]
["Tè",null,null,null,null,null,null,null,null,null,null,null,null,null,null,null,null,null,null,null,null,0,3,0]
["Acqua Tonica",null,null,null,null,null,null,null,null,null,null,null,null,null,null,null,null,null,null,null,null,0,3,0]
["Succo",null,null,null,null,null,null,null,null,null,null,null,null,null,null,null,null,null,null,null,null,0,3,0]
["Birra",null,null,null,null,null,null,null,null,null,null,null,null,null,null,null,null,null,null,null,null,0,3.5,0]
["Acqua Naturale",1,null,null,null,null,1,null,null,null,null,null,1,null,null,null,null,null,null,null,2,5,2.5,{"$f":"W20*V20","v":12.5}]
["Acqua Frizzante",null,2,null,null,null,null,1,null,1,null,null,null,1,null,1,null,null,null,null,1,7,2.5,17.5]
["Patatine",null,null,null,null,null,null,null,null,null,null,null,null,null,null,null,null,null,null,null,1,1,2,0]
["Kit Kat",null,null,null,null,null,1,null,null,null,null,null,null,null,null,null,null,null,null,null,null,1,2,0]
[]
[null,601,602,603,604,605,606,607,608,609,610,701,702,703,704,705,706,707,708,709,710,"TOT","PREZZO"]
["Coca Cola",null,null,null,null,null,null,1,null,null,null,null,null,null,null,null,null,null,null,null,null,{"$f":"SUM(B26:U26)","v":1},3,0]
["Coca Cola Light",null,null,null,null,null,null,null,null,null,null,null,null,null,null,null,null,null,null,null,null,{"$f":"SUM(B27:U27)","v":0},3,0]
["Tè",null,null,null,null,null,null,null,null,null,null,null,null,null,null,null,null,null,null,null,null,0,3,0]
["Acqua Tonica",null,null,null,null,null,null,null,null,null,null,null,null,null,null,null,null,null,null,null,null,0,3,0]
["Succo",null,null,null,null,null,null,null,null,null,null,null,null,null,null,null,null,null,null,null,null,0,3,0]
["Birra",null,null,null,null,null,null,1,null,null,null,null,null,null,null,null,null,null,null,null,null,1,3.5,0]
["Acqua Naturale",null,1,null,null,null,null,null,null,null,null,null,null,null,null,null,null,null,null,null,null,1,2.5,{"$f":"W32*V32","v":2.5}]
["Acqua Frizzante",null,null,1,null,null,null,1,null,null,null,null,null,null,null,null,null,null,null,null,null,2,2.5,5]
["Patatine",null,null,null,null,null,null,null,null,null,null,null,null,null,null,null,null,null,null,null,null,0,2,0]
["Kit Kat",null,null,null,null,null,null,null,null,null,null,null,null,null,null,null,null,null,null,null,null,0,2,0]
[]
[null,801,802,803,804,805,806,807,808,809,810,901,902,903,904,905,906,907,908,909,910,"TOT","PREZZO"]
["Coca Cola",null,null,null,null,null,null,null,null,null,null,null,null,null,null,null,null,null,null,null,null,{"$f":"SUM(B38:U38)","v":0},3,0]
["Coca Cola Light",null,null,null,null,null,null,null,null,null,null,null,null,null,null,null,null,null,null,null,null,0,3,0]
["Tè",null,null,null,null,null,null,null,null,null,null,null,null,null,null,null,null,null,null,null,null,0,3,0]
["Acqua Tonica",null,null,null,null,null,null,null,null,null,null,null,null,null,null,null,null,null,null,null,null,0,3,0]
["Succo",null,null,null,null,null,null,null,null,null,null,null,null,null,null,null,null,null,null,null,null,0,3,0]
["Birra",1,null,null,null,null,null,null,null,null,null,null,null,null,null,null,null,1,null,null,null,0,3.5,0]
["Acqua Naturale",null,null,null,null,null,null,null,null,null,2,null,1,null,null,null,null,1,1,null,1,{"$f":"SUM(B44:U44)","v":6},2.5,{"$f":"W44*V44","v":15}]
["Acqua Frizzante",null,null,null,null,null,null,null,null,null,1,null,null,null,null,null,null,null,null,null,null,1,2.5,2.5]
["Patatine",1,null,null,null,null,null,null,null,null,null,null,null,null,null,null,null,1,null,null,null,0,2,0]
["Kit Kat",null,null,null,null,null,null,null,null,null,null,null,null,null,null,null,null,null,null,null,null,0,2,0]
[]
[null,1001,1002,1003,1004,1005,1006,1007,1008,1009,1010,1101,1102,1103,1104,1105,1106,1107,1108,1109,1110,"TOT","PREZZO"]
["Coca Cola",null,null,null,null,null,null,null,null,null,null,null,null,null,null,null,null,null,null,null,null,{"$f":"SUM(B50:U50)","v":0},3,0]
["Coca Cola Light",null,null,null,null,null,null,null,null,null,null,null,null,null,null,null,null,null,null,null,null,0,3,0]
["Tè",null,null,null,null,null,null,null,null,null,null,null,null,null,null,null,null,null,null,null,null,0,3,0]
["Acqua Tonica",null,null,null,null,null,null,null,null,null,null,null,null,null,null,null,null,null,null,null,null,0,3,0]
["Succo",null,null,null,null,null,null,null,null,null,null,null,null,null,null,null,null,null,null,null,null,0,3,0]
["Birra",null,null,null,null,null,null,null,null,null,null,null,null,null,null,null,null,null,null,null,null,0,3.5,0]
["Acqua Naturale",null,null,null,null,null,null,1,null,null,null,1,null,null,null,null,null,null,null,2,null,{"$f":"SUM(B56:U56)","v":4},2.5,{"$f":"W56*V56","v":10}]
["Acqua Frizzante",null,1,null,null,null,null,2,null,1,null,null,null,null,null,null,null,1,null,null,1,6,2.5,15]
["Patatine",null,null,null,null,null,null,null,null,null,null,null,null,null,null,null,null,null,null,null,null,0,2,0]
["Kit Kat",null,null,null,null,null,null,null,null,null,null,null,null,null,null,null,null,null,null,null,null,0,2,0]
[]
[null,1201,1202,1203,1204,1205,1206,1207,1208,1209,1210,1301,1302,1303,1304,1305,1306,1307,1308,1309,1310,"TOT","PREZZO"]
["Coca Cola",null,null,null,null,null,null,null,null,null,null,null,null,null,null,null,null,null,null,null,null,{"$f":"SUM(B62:U62)","v":0},3,0]
["Coca Cola Light",null,1,null,null,null,null,null,null,null,null,null,null,null,null,null,null,null,null,null,null,{"$f":"SUM(B63:U63)","v":1},3,0]
["Tè",null,null,null,null,null,null,null,null,null,null,null,null,null,null,null,null,null,null,null,null,0,3,0]
["Acqua Tonica",null,null,null,null,null,null,null,null,null,null,null,null,null,null,null,null,null,null,null,null,0,3,0]
["Succo",null,null,null,null,null,null,null,null,1,null,null,null,null,null,null,null,null,null,null,null,1,3,0]
["Birra",null,null,null,null,null,null,null,null,null,null,null,null,null,null,null,null,null,null,null,null,0,3.5,0]
["Acqua Naturale",null,1,null,null,1,null,null,null,1,null,null,null,null,1,2,1,null,null,null,null,7,2.5,{"$f":"W68*V68","v":17.5}]
["Acqua Frizzante",null,null,null,null,null,null,null,null,null,null,null,null,1,1,null,null,null,null,null,null,2,2.5,5]
["Patatine",null,null,null,null,null,null,null,null,null,null,null,null,null,null,null,null,null,null,null,null,0,2,0]
["Kit Kat",null,null,null,null,null,null,null,null,null,null,null,null,null,1,null,null,null,null,null,null,1,2,0]
[]
[null,1401,1402,1403,1404,1405,1406,1407,1408,1409,1410,1501,1502,1503,1504,1505,1506,1507,1508,1509,1510,"TOT","PREZZO"]
["Coca Cola",null,null,null,null,null,null,null,null,null,null,null,null,null,null,null,null,null,null,null,null,{"$f":"SUM(B74:U74)","v":0},3,0]
["Coca Cola Light",null,null,null,null,null,null,null,null,null,null,null,null,null,null,null,null,null,null,null,null,{"$f":"SUM(B75:U75)","v":0},3,0]
["Tè",null,null,null,null,null,null,null,null,null,null,null,null,null,null,null,null,null,null,null,null,0,3,0]
["Acqua Tonica",null,null,null,null,null,null,null,null,null,null,null,null,null,null,null,null,null,null,null,null,0,3,0]
["Succo",null,null,null,null,null,null,null,null,null,null,null,null,null,null,null,null,null,null,null,null,0,3,0]
["Birra",null,null,null,null,null,null,null,null,null,null,null,null,null,null,null,null,null,null,null,null,0,3.5,0]
["Acqua Naturale",null,null,null,null,null,null,null,null,null,null,null,null,2,null,null,null,null,null,null,null,2,2.5,{"$f":"W80*V80","v":5}]
["Acqua Frizzante",null,null,2,null,null,null,null,null,null,null,null,null,null,1,null,null,null,null,null,null,3,2.5,7.5]
["Patatine",null,null,null,null,null,null,null,null,null,null,null,null,null,null,null,null,null,null,null,null,0,2,0]
["Kit Kat",null,null,null,null,null,null,null,null,null,null,null,null,null,null,null,null,null,null,null,null,0,2,0]
[]
[null,1601,1602,1603,1604,1605,1606,1607,1608,1609,1610,1701,1702,1703,1704,1705,1706,1707,1708,null,null,"TOT","PREZZO"]
["Coca Cola",null,null,null,null,null,null,null,null,null,null,null,null,null,null,null,null,null,null,null,null,{"$f":"SUM(B86:U86)","v":0},3,0]
["Coca Cola Light",null,null,null,null,null,null,null,1,null,null,null,null,null,null,null,null,null,null,null,null,{"$f":"SUM(B87:U87)","v":1},3,0]
["Tè",null,null,null,null,null,null,null,null,null,null,null,null,null,null,null,null,null,null,null,null,0,3,0]
["Acqua Tonica",null,null,null,null,null,null,null,null,null,null,null,null,null,null,null,null,null,null,null,null,0,3,0]
["Succo",null,null,null,null,null,null,null,null,null,null,null,null,null,null,null,null,null,null,null,null,0,3,0]
["Birra",null,null,null,null,null,null,null,null,null,null,null,null,null,null,null,null,null,null,null,null,0,3.5,0]
["Acqua Naturale",1,null,null,null,1,null,null,1,null,null,null,null,null,null,null,null,null,null,null,null,3,2.5,{"$f":"W92*V92","v":7.5}]
["Acqua Frizzante",null,null,null,null,null,null,null,1,null,null,null,null,null,null,null,null,null,null,null,null,1,2.5,2.5]
["Patatine",null,null,null,null,null,null,null,null,null,null,null,null,null,null,null,null,null,null,null,null,0,2,0]
["Kit Kat",null,null,null,null,null,null,null,null,null,null,null,null,null,null,null,null,null,null,null,null,0,2,0]

{"sheet":"17","index":16,"n_rows":95,"n_cols":24,"rows_kept":95,"cut":false,"hidden":false,"merged":[[11,24,11,47]]}
[null,101,102,103,104,105,201,202,203,206,207,301,302,303,304,305,306,307,308,309,310,"TOT","PREZZO","PREZZO"]
["Coca Cola",null,null,null,null,null,null,null,null,null,null,null,null,null,null,null,null,null,null,null,null,{"$f":"SUM(B2:U2)","v":0},3,0]
["Coca Cola Light",null,null,null,null,null,null,null,null,null,null,null,null,null,null,null,null,null,null,null,null,{"$f":"SUM(B3:U3)","v":0},3,0]
["Tè",null,null,null,null,null,null,null,null,null,null,null,null,null,null,null,null,null,null,null,null,0,3,0]
["Acqua Tonica",null,null,null,null,null,null,null,null,null,null,null,null,null,null,null,null,null,null,null,null,0,3,0]
["Succo",null,null,null,null,null,null,null,null,null,null,null,null,null,null,null,null,null,null,null,null,0,3,0]
["Birra",null,null,null,null,null,null,null,null,null,null,null,null,null,null,null,null,null,null,null,null,0,3.5,0]
["Acqua Naturale",null,null,null,null,null,null,null,null,null,null,null,null,null,null,null,null,null,null,null,null,0,2.5,{"$f":"W8*V8","v":0}]
["Acqua Frizzante",null,null,null,null,null,null,null,null,null,null,null,null,null,null,null,null,null,null,null,null,0,2.5,0]
["Patatine",null,null,null,null,null,null,null,null,null,null,null,null,null,null,null,null,null,null,null,null,0,2,0]
["Kit Kat",null,null,null,null,null,null,null,null,null,null,null,null,null,null,null,null,null,null,null,null,0,2,0]
[]
[null,401,402,403,404,405,406,407,408,409,410,501,502,503,504,505,506,507,508,509,510,"TOT","PREZZO"]
["Coca Cola",null,null,null,null,null,null,null,null,null,null,null,null,null,null,null,null,null,null,null,null,{"$f":"SUM(B14:U14)","v":0},3,0]
["Coca Cola Light",null,null,null,null,null,null,null,null,null,null,null,null,null,null,null,null,null,null,null,null,{"$f":"SUM(B15:U15)","v":0},3,0]
["Tè",null,null,null,null,null,null,null,null,null,null,null,null,null,null,null,null,null,null,null,null,0,3,0]
["Acqua Tonica",null,null,null,null,null,null,null,null,null,null,null,null,null,null,null,null,null,null,null,null,0,3,0]
["Succo",null,null,null,null,null,null,null,null,null,null,null,null,null,null,null,null,null,null,null,null,0,3,0]
["Birra",null,null,null,null,null,null,null,null,null,null,null,null,null,null,null,null,null,null,null,null,0,3.5,0]
["Acqua Naturale",null,null,null,null,null,null,null,null,null,null,null,null,null,null,null,null,null,null,null,null,0,2.5,{"$f":"W20*V20","v":0}]
["Acqua Frizzante",null,null,null,null,null,null,null,null,null,null,null,null,null,null,null,null,null,null,null,null,0,2.5,0]
["Patatine",null,null,null,null,null,null,null,null,null,null,null,null,null,null,null,null,null,null,null,null,0,2,0]
["Kit Kat",null,null,null,null,null,null,null,null,null,null,null,null,null,null,null,null,null,null,null,null,0,2,0]
[]
[null,601,602,603,604,605,606,607,608,609,610,701,702,703,704,705,706,707,708,709,710,"TOT","PREZZO"]
["Coca Cola",null,null,null,null,null,null,null,null,null,null,null,null,null,null,null,null,null,null,null,null,{"$f":"SUM(B26:U26)","v":0},3,0]
["Coca Cola Light",null,null,null,null,null,null,null,null,null,null,null,null,null,null,null,null,null,null,null,null,{"$f":"SUM(B27:U27)","v":0},3,0]
["Tè",null,null,null,null,null,null,null,null,null,null,null,null,null,null,null,null,null,null,null,null,0,3,0]
["Acqua Tonica",null,null,null,null,null,null,null,null,null,null,null,null,null,null,null,null,null,null,null,null,0,3,0]
["Succo",null,null,null,null,null,null,null,null,null,null,null,null,null,null,null,null,null,null,null,null,0,3,0]
["Birra",null,null,null,null,null,null,null,null,null,null,null,null,null,null,null,null,null,null,null,null,0,3.5,0]
["Acqua Naturale",null,null,null,null,null,null,null,null,null,null,null,null,null,null,null,null,null,null,null,null,0,2.5,{"$f":"W32*V32","v":0}]
["Acqua Frizzante",null,null,null,null,null,null,null,null,null,null,null,null,null,null,null,null,null,null,null,null,0,2.5,0]
["Patatine",null,null,null,null,null,null,null,null,null,null,null,null,null,null,null,null,null,null,null,null,0,2,0]
["Kit Kat",null,null,null,null,null,null,null,null,null,null,null,null,null,null,null,null,null,null,null,null,0,2,0]
[]
[null,801,802,803,804,805,806,807,808,809,810,901,902,903,904,905,906,907,908,909,910,"TOT","PREZZO"]
["Coca Cola",null,null,null,null,null,null,null,null,null,null,null,null,null,null,null,null,null,null,null,null,{"$f":"SUM(B38:U38)","v":0},3,0]
["Coca Cola Light",null,null,null,null,null,null,null,null,null,null,null,null,null,null,null,null,null,null,null,null,0,3,0]
["Tè",null,null,null,null,null,null,null,null,null,null,null,null,null,null,null,null,null,null,null,null,0,3,0]
["Acqua Tonica",null,null,null,null,null,null,null,null,null,null,null,null,null,null,null,null,null,null,null,null,0,3,0]
["Succo",null,null,null,null,null,null,null,null,null,null,null,null,null,null,null,null,null,null,null,null,0,3,0]
["Birra",null,null,null,null,null,null,null,null,null,null,null,null,null,null,null,null,null,null,null,null,0,3.5,0]
["Acqua Naturale",null,null,null,null,null,null,null,null,null,null,null,null,null,null,null,null,null,null,null,null,{"$f":"SUM(B44:U44)","v":0},2.5,{"$f":"W44*V44","v":0}]
["Acqua Frizzante",null,null,null,null,null,null,null,null,null,null,null,null,null,null,null,null,null,null,null,null,0,2.5,0]
["Patatine",null,null,null,null,null,null,null,null,null,null,null,null,null,null,null,null,null,null,null,null,0,2,0]
["Kit Kat",null,null,null,null,null,null,null,null,null,null,null,null,null,null,null,null,null,null,null,null,0,2,0]
[]
[null,1001,1002,1003,1004,1005,1006,1007,1008,1009,1010,1101,1102,1103,1104,1105,1106,1107,1108,1109,1110,"TOT","PREZZO"]
["Coca Cola",null,null,null,null,null,null,null,null,null,null,null,null,null,null,null,null,null,null,null,null,{"$f":"SUM(B50:U50)","v":0},3,0]
["Coca Cola Light",null,null,null,null,null,null,null,null,null,null,null,null,null,null,null,null,null,null,null,null,0,3,0]
["Tè",null,null,null,null,null,null,null,null,null,null,null,null,null,null,null,null,null,null,null,null,0,3,0]
["Acqua Tonica",null,null,null,null,null,null,null,null,null,null,null,null,null,null,null,null,null,null,null,null,0,3,0]
["Succo",null,null,null,null,null,null,null,null,null,null,null,null,null,null,null,null,null,null,null,null,0,3,0]
["Birra",null,null,null,null,null,null,null,null,null,null,null,null,null,null,null,null,null,null,null,null,0,3.5,0]
["Acqua Naturale",null,null,null,null,null,null,null,null,null,null,null,null,null,null,null,null,null,null,null,null,{"$f":"SUM(B56:U56)","v":0},2.5,{"$f":"W56*V56","v":0}]
["Acqua Frizzante",null,null,null,null,null,null,null,null,null,null,null,null,null,null,null,null,null,null,null,null,0,2.5,0]
["Patatine",null,null,null,null,null,null,null,null,null,null,null,null,null,null,null,null,null,null,null,null,0,2,0]
["Kit Kat",null,null,null,null,null,null,null,null,null,null,null,null,null,null,null,null,null,null,null,null,0,2,0]
[]
[null,1201,1202,1203,1204,1205,1206,1207,1208,1209,1210,1301,1302,1303,1304,1305,1306,1307,1308,1309,1310,"TOT","PREZZO"]
["Coca Cola",null,null,null,null,null,null,null,null,null,null,null,null,null,null,null,null,null,null,null,null,{"$f":"SUM(B62:U62)","v":0},3,0]
["Coca Cola Light",null,null,null,null,null,null,null,null,null,null,null,null,null,null,null,null,null,null,null,null,{"$f":"SUM(B63:U63)","v":0},3,0]
["Tè",null,null,null,null,null,null,null,null,null,null,null,null,null,null,null,null,null,null,null,null,0,3,0]
["Acqua Tonica",null,null,null,null,null,null,null,null,null,null,null,null,null,null,null,null,null,null,null,null,0,3,0]
["Succo",null,null,null,null,null,null,null,null,null,null,null,null,null,null,null,null,null,null,null,null,0,3,0]
["Birra",null,null,null,null,null,null,null,null,null,null,null,null,null,null,null,null,null,null,null,null,0,3.5,0]
["Acqua Naturale",null,null,null,null,null,null,null,null,null,null,null,null,null,null,null,null,null,null,null,null,0,2.5,{"$f":"W68*V68","v":0}]
["Acqua Frizzante",null,null,null,null,null,null,null,null,null,null,null,null,null,null,null,null,null,null,null,null,0,2.5,0]
["Patatine",null,null,null,null,null,null,null,null,null,null,null,null,null,null,null,null,null,null,null,null,0,2,0]
["Kit Kat",null,null,null,null,null,null,null,null,null,null,null,null,null,null,null,null,null,null,null,null,0,2,0]
[]
[null,1401,1402,1403,1404,1405,1406,1407,1408,1409,1410,1501,1502,1503,1504,1505,1506,1507,1508,1509,1510,"TOT","PREZZO"]
["Coca Cola",null,null,null,null,null,null,null,null,null,null,null,null,null,null,null,null,null,null,null,null,{"$f":"SUM(B74:U74)","v":0},3,0]
["Coca Cola Light",null,null,null,null,null,null,null,null,null,null,null,null,null,null,null,null,null,null,null,null,{"$f":"SUM(B75:U75)","v":0},3,0]
["Tè",null,null,null,null,null,null,null,null,null,null,null,null,null,null,null,null,null,null,null,null,0,3,0]
["Acqua Tonica",null,null,null,null,null,null,null,null,null,null,null,null,null,null,null,null,null,null,null,null,0,3,0]
["Succo",null,null,null,null,null,null,null,null,null,null,null,null,null,null,null,null,null,null,null,null,0,3,0]
["Birra",null,null,null,null,null,null,null,null,null,null,null,null,null,null,null,null,null,null,null,null,0,3.5,0]
["Acqua Naturale",null,null,null,null,null,null,null,null,null,null,null,null,null,null,null,null,null,null,null,null,0,2.5,{"$f":"W80*V80","v":0}]
["Acqua Frizzante",null,null,null,null,null,null,null,null,null,null,null,null,null,null,null,null,null,null,null,null,0,2.5,0]
["Patatine",null,null,null,null,null,null,null,null,null,null,null,null,null,null,null,null,null,null,null,null,0,2,0]
["Kit Kat",null,null,null,null,null,null,null,null,null,null,null,null,null,null,null,null,null,null,null,null,0,2,0]
[]
[null,1601,1602,1603,1604,1605,1606,1607,1608,1609,1610,1701,1702,1703,1704,1705,1706,1707,1708,null,null,"TOT","PREZZO"]
["Coca Cola",null,null,null,null,null,null,null,null,null,null,null,null,null,null,null,null,null,null,null,null,{"$f":"SUM(B86:U86)","v":0},3,0]
["Coca Cola Light",null,null,null,null,null,null,null,null,null,null,null,null,null,null,null,null,null,null,null,null,{"$f":"SUM(B87:U87)","v":0},3,0]
["Tè",null,null,null,null,null,null,null,null,null,null,null,null,null,null,null,null,null,null,null,null,0,3,0]
["Acqua Tonica",null,null,null,null,null,null,null,null,null,null,null,null,null,null,null,null,null,null,null,null,0,3,0]
["Succo",null,null,null,null,null,null,null,null,null,null,null,null,null,null,null,null,null,null,null,null,0,3,0]
["Birra",null,null,null,null,null,null,null,null,null,null,null,null,null,null,null,null,null,null,null,null,0,3.5,0]
["Acqua Naturale",null,null,null,null,null,null,null,null,null,null,null,null,null,null,null,null,null,null,null,null,0,2.5,{"$f":"W92*V92","v":0}]
["Acqua Frizzante",null,null,null,null,null,null,null,null,null,null,null,null,null,null,null,null,null,null,null,null,0,2.5,0]
["Patatine",null,null,null,null,null,null,null,null,null,null,null,null,null,null,null,null,null,null,null,null,0,2,0]
["Kit Kat",null,null,null,null,null,null,null,null,null,null,null,null,null,null,null,null,null,null,null,null,0,2,0]

{"sheet":"18","index":17,"n_rows":95,"n_cols":24,"rows_kept":95,"cut":false,"hidden":false,"merged":[[11,24,11,47]]}
[null,101,102,103,104,105,201,202,203,206,207,301,302,303,304,305,306,307,308,309,310,"TOT","PREZZO","PREZZO"]
["Coca Cola",null,null,null,null,null,null,null,null,null,null,null,null,null,null,null,null,null,null,null,null,{"$f":"SUM(B2:U2)","v":0},3,0]
["Coca Cola Light",null,null,null,null,null,null,null,null,null,null,null,null,null,null,null,null,null,null,null,null,{"$f":"SUM(B3:U3)","v":0},3,0]
["Tè",null,null,null,null,null,null,null,null,null,null,null,null,null,null,null,null,null,null,null,null,0,3,0]
["Acqua Tonica",null,null,null,null,null,null,null,null,null,null,null,null,null,null,null,null,null,null,null,null,0,3,0]
["Succo",null,null,null,null,null,null,null,null,null,null,null,null,null,null,null,null,null,null,null,null,0,3,0]
["Birra",null,null,null,null,null,null,null,null,null,null,null,null,null,null,null,null,null,null,null,null,0,3.5,0]
["Acqua Naturale",null,null,null,null,null,null,null,null,null,null,null,null,null,null,null,null,null,null,null,null,0,2.5,{"$f":"W8*V8","v":0}]
["Acqua Frizzante",null,null,null,null,null,null,null,null,null,null,null,null,null,null,null,null,null,null,null,null,0,2.5,0]
["Patatine",null,null,null,null,null,null,null,null,null,null,null,null,null,null,null,null,null,null,null,null,0,2,0]
["Kit Kat",null,null,null,null,null,null,null,null,null,null,null,null,null,null,null,null,null,null,null,null,0,2,0]
[]
[null,401,402,403,404,405,406,407,408,409,410,501,502,503,504,505,506,507,508,509,510,"TOT","PREZZO"]
["Coca Cola",null,null,null,null,null,null,null,null,null,null,null,null,null,null,null,null,null,null,null,null,{"$f":"SUM(B14:U14)","v":0},3,0]
["Coca Cola Light",null,null,null,null,null,null,null,null,null,null,null,null,null,null,null,null,null,null,null,null,{"$f":"SUM(B15:U15)","v":0},3,0]
["Tè",null,null,null,null,null,null,null,null,null,null,null,null,null,null,null,null,null,null,null,null,0,3,0]
["Acqua Tonica",null,null,null,null,null,null,null,null,null,null,null,null,null,null,null,null,null,null,null,null,0,3,0]
["Succo",null,null,null,null,null,null,null,null,null,null,null,null,null,null,null,null,null,null,null,null,0,3,0]
["Birra",null,null,null,null,null,null,null,null,null,null,null,null,null,null,null,null,null,null,null,null,0,3.5,0]
["Acqua Naturale",null,null,null,null,null,null,null,null,null,null,null,null,null,null,null,null,null,null,null,null,0,2.5,{"$f":"W20*V20","v":0}]
["Acqua Frizzante",null,null,null,null,null,null,null,null,null,null,null,null,null,null,null,null,null,null,null,null,0,2.5,0]
["Patatine",null,null,null,null,null,null,null,null,null,null,null,null,null,null,null,null,null,null,null,null,0,2,0]
["Kit Kat",null,null,null,null,null,null,null,null,null,null,null,null,null,null,null,null,null,null,null,null,0,2,0]
[]
[null,601,602,603,604,605,606,607,608,609,610,701,702,703,704,705,706,707,708,709,710,"TOT","PREZZO"]
["Coca Cola",null,null,null,null,null,null,null,null,null,null,null,null,null,null,null,null,null,null,null,null,{"$f":"SUM(B26:U26)","v":0},3,0]
["Coca Cola Light",null,null,null,null,null,null,null,null,null,null,null,null,null,null,null,null,null,null,null,null,{"$f":"SUM(B27:U27)","v":0},3,0]
["Tè",null,null,null,null,null,null,null,null,null,null,null,null,null,null,null,null,null,null,null,null,0,3,0]
["Acqua Tonica",null,null,null,null,null,null,null,null,null,null,null,null,null,null,null,null,null,null,null,null,0,3,0]
["Succo",null,null,null,null,null,null,null,null,null,null,null,null,null,null,null,null,null,null,null,null,0,3,0]
["Birra",null,null,null,null,null,null,null,null,null,null,null,null,null,null,null,null,null,null,null,null,0,3.5,0]
["Acqua Naturale",null,null,null,null,null,null,null,null,null,null,null,null,null,null,null,null,null,null,null,null,0,2.5,{"$f":"W32*V32","v":0}]
["Acqua Frizzante",null,null,null,null,null,null,null,null,null,null,null,null,null,null,null,null,null,null,null,null,0,2.5,0]
["Patatine",null,null,null,null,null,null,null,null,null,null,null,null,null,null,null,null,null,null,null,null,0,2,0]
["Kit Kat",null,null,null,null,null,null,null,null,null,null,null,null,null,null,null,null,null,null,null,null,0,2,0]
[]
[null,801,802,803,804,805,806,807,808,809,810,901,902,903,904,905,906,907,908,909,910,"TOT","PREZZO"]
["Coca Cola",null,null,null,null,null,null,null,null,null,null,null,null,null,null,null,null,null,null,null,null,{"$f":"SUM(B38:U38)","v":0},3,0]
["Coca Cola Light",null,null,null,null,null,null,null,null,null,null,null,null,null,null,null,null,null,null,null,null,0,3,0]
["Tè",null,null,null,null,null,null,null,null,null,null,null,null,null,null,null,null,null,null,null,null,0,3,0]
["Acqua Tonica",null,null,null,null,null,null,null,null,null,null,null,null,null,null,null,null,null,null,null,null,0,3,0]
["Succo",null,null,null,null,null,null,null,null,null,null,null,null,null,null,null,null,null,null,null,null,0,3,0]
["Birra",null,null,null,null,null,null,null,null,null,null,null,null,null,null,null,null,null,null,null,null,0,3.5,0]
["Acqua Naturale",null,null,null,null,null,null,null,null,null,null,null,null,null,null,null,null,null,null,null,null,{"$f":"SUM(B44:U44)","v":0},2.5,{"$f":"W44*V44","v":0}]
["Acqua Frizzante",null,null,null,null,null,null,null,null,null,null,null,null,null,null,null,null,null,null,null,null,0,2.5,0]
["Patatine",null,null,null,null,null,null,null,null,null,null,null,null,null,null,null,null,null,null,null,null,0,2,0]
["Kit Kat",null,null,null,null,null,null,null,null,null,null,null,null,null,null,null,null,null,null,null,null,0,2,0]
[]
[null,1001,1002,1003,1004,1005,1006,1007,1008,1009,1010,1101,1102,1103,1104,1105,1106,1107,1108,1109,1110,"TOT","PREZZO"]
["Coca Cola",null,null,null,null,null,null,null,null,null,null,null,null,null,null,null,null,null,null,null,null,{"$f":"SUM(B50:U50)","v":0},3,0]
["Coca Cola Light",null,null,null,null,null,null,null,null,null,null,null,null,null,null,null,null,null,null,null,null,0,3,0]
["Tè",null,null,null,null,null,null,null,null,null,null,null,null,null,null,null,null,null,null,null,null,0,3,0]
["Acqua Tonica",null,null,null,null,null,null,null,null,null,null,null,null,null,null,null,null,null,null,null,null,0,3,0]
["Succo",null,null,null,null,null,null,null,null,null,null,null,null,null,null,null,null,null,null,null,null,0,3,0]
["Birra",null,null,null,null,null,null,null,null,null,null,null,null,null,null,null,null,null,null,null,null,0,3.5,0]
["Acqua Naturale",null,null,null,null,null,null,null,null,null,null,null,null,null,null,null,null,null,null,null,null,{"$f":"SUM(B56:U56)","v":0},2.5,{"$f":"W56*V56","v":0}]
["Acqua Frizzante",null,null,null,null,null,null,null,null,null,null,null,null,null,null,null,null,null,null,null,null,0,2.5,0]
["Patatine",null,null,null,null,null,null,null,null,null,null,null,null,null,null,null,null,null,null,null,null,0,2,0]
["Kit Kat",null,null,null,null,null,null,null,null,null,null,null,null,null,null,null,null,null,null,null,null,0,2,0]
[]
[null,1201,1202,1203,1204,1205,1206,1207,1208,1209,1210,1301,1302,1303,1304,1305,1306,1307,1308,1309,1310,"TOT","PREZZO"]
["Coca Cola",null,null,null,null,null,null,null,null,null,null,null,null,null,null,null,null,null,null,null,null,{"$f":"SUM(B62:U62)","v":0},3,0]
["Coca Cola Light",null,null,null,null,null,null,null,null,null,null,null,null,null,null,null,null,null,null,null,null,{"$f":"SUM(B63:U63)","v":0},3,0]
["Tè",null,null,null,null,null,null,null,null,null,null,null,null,null,null,null,null,null,null,null,null,0,3,0]
["Acqua Tonica",null,null,null,null,null,null,null,null,null,null,null,null,null,null,null,null,null,null,null,null,0,3,0]
["Succo",null,null,null,null,null,null,null,null,null,null,null,null,null,null,null,null,null,null,null,null,0,3,0]
["Birra",null,null,null,null,null,null,null,null,null,null,null,null,null,null,null,null,null,null,null,null,0,3.5,0]
["Acqua Naturale",null,null,null,null,null,null,null,null,null,null,null,null,null,null,null,null,null,null,null,null,0,2.5,{"$f":"W68*V68","v":0}]
["Acqua Frizzante",null,null,null,null,null,null,null,null,null,null,null,null,null,null,null,null,null,null,null,null,0,2.5,0]
["Patatine",null,null,null,null,null,null,null,null,null,null,null,null,null,null,null,null,null,null,null,null,0,2,0]
["Kit Kat",null,null,null,null,null,null,null,null,null,null,null,null,null,null,null,null,null,null,null,null,0,2,0]
[]
[null,1401,1402,1403,1404,1405,1406,1407,1408,1409,1410,1501,1502,1503,1504,1505,1506,1507,1508,1509,1510,"TOT","PREZZO"]
["Coca Cola",null,null,null,null,null,null,null,null,null,null,null,null,null,null,null,null,null,null,null,null,{"$f":"SUM(B74:U74)","v":0},3,0]
["Coca Cola Light",null,null,null,null,null,null,null,null,null,null,null,null,null,null,null,null,null,null,null,null,{"$f":"SUM(B75:U75)","v":0},3,0]
["Tè",null,null,null,null,null,null,null,null,null,null,null,null,null,null,null,null,null,null,null,null,0,3,0]
["Acqua Tonica",null,null,null,null,null,null,null,null,null,null,null,null,null,null,null,null,null,null,null,null,0,3,0]
["Succo",null,null,null,null,null,null,null,null,null,null,null,null,null,null,null,null,null,null,null,null,0,3,0]
["Birra",null,null,null,null,null,null,null,null,null,null,null,null,null,null,null,null,null,null,null,null,0,3.5,0]
["Acqua Naturale",null,null,null,null,null,null,null,null,null,null,null,null,null,null,null,null,null,null,null,null,0,2.5,{"$f":"W80*V80","v":0}]
["Acqua Frizzante",null,null,null,null,null,null,null,null,null,null,null,null,null,null,null,null,null,null,null,null,0,2.5,0]
["Patatine",null,null,null,null,null,null,null,null,null,null,null,null,null,null,null,null,null,null,null,null,0,2,0]
["Kit Kat",null,null,null,null,null,null,null,null,null,null,null,null,null,null,null,null,null,null,null,null,0,2,0]
[]
[null,1601,1602,1603,1604,1605,1606,1607,1608,1609,1610,1701,1702,1703,1704,1705,1706,1707,1708,null,null,"TOT","PREZZO"]
["Coca Cola",null,null,null,null,null,null,null,null,null,null,null,null,null,null,null,null,null,null,null,null,{"$f":"SUM(B86:U86)","v":0},3,0]
["Coca Cola Light",null,null,null,null,null,null,null,null,null,null,null,null,null,null,null,null,null,null,null,null,{"$f":"SUM(B87:U87)","v":0},3,0]
["Tè",null,null,null,null,null,null,null,null,null,null,null,null,null,null,null,null,null,null,null,null,0,3,0]
["Acqua Tonica",null,null,null,null,null,null,null,null,null,null,null,null,null,null,null,null,null,null,null,null,0,3,0]
["Succo",null,null,null,null,null,null,null,null,null,null,null,null,null,null,null,null,null,null,null,null,0,3,0]
["Birra",null,null,null,null,null,null,null,null,null,null,null,null,null,null,null,null,null,null,null,null,0,3.5,0]
["Acqua Naturale",null,null,null,null,null,null,null,null,null,null,null,null,null,null,null,null,null,null,null,null,0,2.5,{"$f":"W92*V92","v":0}]
["Acqua Frizzante",null,null,null,null,null,null,null,null,null,null,null,null,null,null,null,null,null,null,null,null,0,2.5,0]
["Patatine",null,null,null,null,null,null,null,null,null,null,null,null,null,null,null,null,null,null,null,null,0,2,0]
["Kit Kat",null,null,null,null,null,null,null,null,null,null,null,null,null,null,null,null,null,null,null,null,0,2,0]

{"sheet":"19","index":18,"n_rows":95,"n_cols":24,"rows_kept":95,"cut":false,"hidden":false,"merged":[[11,24,11,47]]}
[null,101,102,103,104,105,201,202,203,206,207,301,302,303,304,305,306,307,308,309,310,"TOT","PREZZO","PREZZO"]
["Coca Cola",null,null,null,null,null,null,null,null,null,null,null,null,null,null,null,null,null,null,null,null,{"$f":"SUM(B2:U2)","v":0},3,0]
["Coca Cola Light",null,null,null,null,null,null,null,null,null,null,null,null,null,null,null,null,null,null,null,null,{"$f":"SUM(B3:U3)","v":0},3,0]
["Tè",null,null,null,null,null,null,null,null,null,null,null,null,null,null,null,null,null,null,null,null,0,3,0]
["Acqua Tonica",null,null,null,null,null,null,null,null,null,null,null,null,null,null,null,null,null,null,null,null,0,3,0]
["Succo",null,null,null,null,null,null,null,null,null,null,null,null,null,null,null,null,null,null,null,null,0,3,0]
["Birra",null,null,null,null,null,null,null,null,null,null,null,null,null,null,null,null,null,null,null,null,0,3.5,0]
["Acqua Naturale",null,null,null,null,null,null,null,null,null,null,null,null,null,null,null,null,null,null,null,null,0,2.5,{"$f":"W8*V8","v":0}]
["Acqua Frizzante",null,null,null,null,null,null,null,null,null,null,null,null,null,null,null,null,null,null,null,null,0,2.5,0]
["Patatine",null,null,null,null,null,null,null,null,null,null,null,null,null,null,null,null,null,null,null,null,0,2,0]
["Kit Kat",null,null,null,null,null,null,null,null,null,null,null,null,null,null,null,null,null,null,null,null,0,2,0]
[]
[null,401,402,403,404,405,406,407,408,409,410,501,502,503,504,505,506,507,508,509,510,"TOT","PREZZO"]
["Coca Cola",null,null,null,null,null,null,null,null,null,null,null,null,null,null,null,null,null,null,null,null,{"$f":"SUM(B14:U14)","v":0},3,0]
["Coca Cola Light",null,null,null,null,null,null,null,null,null,null,null,null,null,null,null,null,null,null,null,null,{"$f":"SUM(B15:U15)","v":0},3,0]
["Tè",null,null,null,null,null,null,null,null,null,null,null,null,null,null,null,null,null,null,null,null,0,3,0]
["Acqua Tonica",null,null,null,null,null,null,null,null,null,null,null,null,null,null,null,null,null,null,null,null,0,3,0]
["Succo",null,null,null,null,null,null,null,null,null,null,null,null,null,null,null,null,null,null,null,null,0,3,0]
["Birra",null,null,null,null,null,null,null,null,null,null,null,null,null,null,null,null,null,null,null,null,0,3.5,0]
["Acqua Naturale",null,null,null,null,null,null,null,null,null,null,null,null,null,null,null,null,null,null,null,null,0,2.5,{"$f":"W20*V20","v":0}]
["Acqua Frizzante",null,null,null,null,null,null,null,null,null,null,null,null,null,null,null,null,null,null,null,null,0,2.5,0]
["Patatine",null,null,null,null,null,null,null,null,null,null,null,null,null,null,null,null,null,null,null,null,0,2,0]
["Kit Kat",null,null,null,null,null,null,null,null,null,null,null,null,null,null,null,null,null,null,null,null,0,2,0]
[]
[null,601,602,603,604,605,606,607,608,609,610,701,702,703,704,705,706,707,708,709,710,"TOT","PREZZO"]
["Coca Cola",null,null,null,null,null,null,null,null,null,null,null,null,null,null,null,null,null,null,null,null,{"$f":"SUM(B26:U26)","v":0},3,0]
["Coca Cola Light",null,null,null,null,null,null,null,null,null,null,null,null,null,null,null,null,null,null,null,null,{"$f":"SUM(B27:U27)","v":0},3,0]
["Tè",null,null,null,null,null,null,null,null,null,null,null,null,null,null,null,null,null,null,null,null,0,3,0]
["Acqua Tonica",null,null,null,null,null,null,null,null,null,null,null,null,null,null,null,null,null,null,null,null,0,3,0]
["Succo",null,null,null,null,null,null,null,null,null,null,null,null,null,null,null,null,null,null,null,null,0,3,0]
["Birra",null,null,null,null,null,null,null,null,null,null,null,null,null,null,null,null,null,null,null,null,0,3.5,0]
["Acqua Naturale",null,null,null,null,null,null,null,null,null,null,null,null,null,null,null,null,null,null,null,null,0,2.5,{"$f":"W32*V32","v":0}]
["Acqua Frizzante",null,null,null,null,null,null,null,null,null,null,null,null,null,null,null,null,null,null,null,null,0,2.5,0]
["Patatine",null,null,null,null,null,null,null,null,null,null,null,null,null,null,null,null,null,null,null,null,0,2,0]
["Kit Kat",null,null,null,null,null,null,null,null,null,null,null,null,null,null,null,null,null,null,null,null,0,2,0]
[]
[null,801,802,803,804,805,806,807,808,809,810,901,902,903,904,905,906,907,908,909,910,"TOT","PREZZO"]
["Coca Cola",null,null,null,null,null,null,null,null,null,null,null,null,null,null,null,null,null,null,null,null,{"$f":"SUM(B38:U38)","v":0},3,0]
["Coca Cola Light",null,null,null,null,null,null,null,null,null,null,null,null,null,null,null,null,null,null,null,null,0,3,0]
["Tè",null,null,null,null,null,null,null,null,null,null,null,null,null,null,null,null,null,null,null,null,0,3,0]
["Acqua Tonica",null,null,null,null,null,null,null,null,null,null,null,null,null,null,null,null,null,null,null,null,0,3,0]
["Succo",null,null,null,null,null,null,null,null,null,null,null,null,null,null,null,null,null,null,null,null,0,3,0]
["Birra",null,null,null,null,null,null,null,null,null,null,null,null,null,null,null,null,null,null,null,null,0,3.5,0]
["Acqua Naturale",null,null,null,null,null,null,null,null,null,null,null,null,null,null,null,null,null,null,null,null,{"$f":"SUM(B44:U44)","v":0},2.5,{"$f":"W44*V44","v":0}]
["Acqua Frizzante",null,null,null,null,null,null,null,null,null,null,null,null,null,null,null,null,null,null,null,null,0,2.5,0]
["Patatine",null,null,null,null,null,null,null,null,null,null,null,null,null,null,null,null,null,null,null,null,0,2,0]
["Kit Kat",null,null,null,null,null,null,null,null,null,null,null,null,null,null,null,null,null,null,null,null,0,2,0]
[]
[null,1001,1002,1003,1004,1005,1006,1007,1008,1009,1010,1101,1102,1103,1104,1105,1106,1107,1108,1109,1110,"TOT","PREZZO"]
["Coca Cola",null,null,null,null,null,null,null,null,null,null,null,null,null,null,null,null,null,null,null,null,{"$f":"SUM(B50:U50)","v":0},3,0]
["Coca Cola Light",null,null,null,null,null,null,null,null,null,null,null,null,null,null,null,null,null,null,null,null,0,3,0]
["Tè",null,null,null,null,null,null,null,null,null,null,null,null,null,null,null,null,null,null,null,null,0,3,0]
["Acqua Tonica",null,null,null,null,null,null,null,null,null,null,null,null,null,null,null,null,null,null,null,null,0,3,0]
["Succo",null,null,null,null,null,null,null,null,null,null,null,null,null,null,null,null,null,null,null,null,0,3,0]
["Birra",null,null,null,null,null,null,null,null,null,null,null,null,null,null,null,null,null,null,null,null,0,3.5,0]
["Acqua Naturale",null,null,null,null,null,null,null,null,null,null,null,null,null,null,null,null,null,null,null,null,{"$f":"SUM(B56:U56)","v":0},2.5,{"$f":"W56*V56","v":0}]
["Acqua Frizzante",null,null,null,null,null,null,null,null,null,null,null,null,null,null,null,null,null,null,null,null,0,2.5,0]
["Patatine",null,null,null,null,null,null,null,null,null,null,null,null,null,null,null,null,null,null,null,null,0,2,0]
["Kit Kat",null,null,null,null,null,null,null,null,null,null,null,null,null,null,null,null,null,null,null,null,0,2,0]
[]
[null,1201,1202,1203,1204,1205,1206,1207,1208,1209,1210,1301,1302,1303,1304,1305,1306,1307,1308,1309,1310,"TOT","PREZZO"]
["Coca Cola",null,null,null,null,null,null,null,null,null,null,null,null,null,null,null,null,null,null,null,null,{"$f":"SUM(B62:U62)","v":0},3,0]
["Coca Cola Light",null,null,null,null,null,null,null,null,null,null,null,null,null,null,null,null,null,null,null,null,{"$f":"SUM(B63:U63)","v":0},3,0]
["Tè",null,null,null,null,null,null,null,null,null,null,null,null,null,null,null,null,null,null,null,null,0,3,0]
["Acqua Tonica",null,null,null,null,null,null,null,null,null,null,null,null,null,null,null,null,null,null,null,null,0,3,0]
["Succo",null,null,null,null,null,null,null,null,null,null,null,null,null,null,null,null,null,null,null,null,0,3,0]
["Birra",null,null,null,null,null,null,null,null,null,null,null,null,null,null,null,null,null,null,null,null,0,3.5,0]
["Acqua Naturale",null,null,null,null,null,null,null,null,null,null,null,null,null,null,null,null,null,null,null,null,0,2.5,{"$f":"W68*V68","v":0}]
["Acqua Frizzante",null,null,null,null,null,null,null,null,null,null,null,null,null,null,null,null,null,null,null,null,0,2.5,0]
["Patatine",null,null,null,null,null,null,null,null,null,null,null,null,null,null,null,null,null,null,null,null,0,2,0]
["Kit Kat",null,null,null,null,null,null,null,null,null,null,null,null,null,null,null,null,null,null,null,null,0,2,0]
[]
[null,1401,1402,1403,1404,1405,1406,1407,1408,1409,1410,1501,1502,1503,1504,1505,1506,1507,1508,1509,1510,"TOT","PREZZO"]
["Coca Cola",null,null,null,null,null,null,null,null,null,null,null,null,null,null,null,null,null,null,null,null,{"$f":"SUM(B74:U74)","v":0},3,0]
["Coca Cola Light",null,null,null,null,null,null,null,null,null,null,null,null,null,null,null,null,null,null,null,null,{"$f":"SUM(B75:U75)","v":0},3,0]
["Tè",null,null,null,null,null,null,null,null,null,null,null,null,null,null,null,null,null,null,null,null,0,3,0]
["Acqua Tonica",null,null,null,null,null,null,null,null,null,null,null,null,null,null,null,null,null,null,null,null,0,3,0]
["Succo",null,null,null,null,null,null,null,null,null,null,null,null,null,null,null,null,null,null,null,null,0,3,0]
["Birra",null,null,null,null,null,null,null,null,null,null,null,null,null,null,null,null,null,null,null,null,0,3.5,0]
["Acqua Naturale",null,null,null,null,null,null,null,null,null,null,null,null,null,null,null,null,null,null,null,null,0,2.5,{"$f":"W80*V80","v":0}]
["Acqua Frizzante",null,null,null,null,null,null,null,null,null,null,null,null,null,null,null,null,null,null,null,null,0,2.5,0]
["Patatine",null,null,null,null,null,null,null,null,null,null,null,null,null,null,null,null,null,null,null,null,0,2,0]
["Kit Kat",null,null,null,null,null,null,null,null,null,null,null,null,null,null,null,null,null,null,null,null,0,2,0]
[]
[null,1601,1602,1603,1604,1605,1606,1607,1608,1609,1610,1701,1702,1703,1704,1705,1706,1707,1708,null,null,"TOT","PREZZO"]
["Coca Cola",null,null,null,null,null,null,null,null,null,null,null,null,null,null,null,null,null,null,null,null,{"$f":"SUM(B86:U86)","v":0},3,0]
["Coca Cola Light",null,null,null,null,null,null,null,null,null,null,null,null,null,null,null,null,null,null,null,null,{"$f":"SUM(B87:U87)","v":0},3,0]
["Tè",null,null,null,null,null,null,null,null,null,null,null,null,null,null,null,null,null,null,null,null,0,3,0]
["Acqua Tonica",null,null,null,null,null,null,null,null,null,null,null,null,null,null,null,null,null,null,null,null,0,3,0]
["Succo",null,null,null,null,null,null,null,null,null,null,null,null,null,null,null,null,null,null,null,null,0,3,0]
["Birra",null,null,null,null,null,null,null,null,null,null,null,null,null,null,null,null,null,null,null,null,0,3.5,0]
["Acqua Naturale",null,null,null,null,null,null,null,null,null,null,null,null,null,null,null,null,null,null,null,null,0,2.5,{"$f":"W92*V92","v":0}]
["Acqua Frizzante",null,null,null,null,null,null,null,null,null,null,null,null,null,null,null,null,null,null,null,null,0,2.5,0]
["Patatine",null,null,null,null,null,null,null,null,null,null,null,null,null,null,null,null,null,null,null,null,0,2,0]
["Kit Kat",null,null,null,null,null,null,null,null,null,null,null,null,null,null,null,null,null,null,null,null,0,2,0]

{"sheet":"20","index":19,"n_rows":95,"n_cols":24,"rows_kept":95,"cut":false,"hidden":false,"merged":[[11,24,11,47]]}
[null,101,102,103,104,105,201,202,203,206,207,301,302,303,304,305,306,307,308,309,310,"TOT","PREZZO","PREZZO"]
["Coca Cola",null,null,null,null,null,null,null,null,null,null,null,null,null,null,null,null,null,null,null,null,{"$f":"SUM(B2:U2)","v":0},3,0]
["Coca Cola Light",null,null,null,null,null,null,null,null,null,null,null,null,null,null,null,null,null,null,null,null,{"$f":"SUM(B3:U3)","v":0},3,0]
["Tè",null,null,null,null,null,null,null,null,null,null,null,null,null,null,null,null,null,null,null,null,0,3,0]
["Acqua Tonica",null,null,null,null,null,null,null,null,null,null,null,null,null,null,null,null,null,null,null,null,0,3,0]
["Succo",null,null,null,null,null,null,null,null,null,null,null,null,null,null,null,null,null,null,null,null,0,3,0]
["Birra",null,null,null,null,null,null,null,null,null,null,null,null,null,null,null,null,null,null,null,null,0,3.5,0]
["Acqua Naturale",null,null,null,null,null,null,null,null,null,null,null,null,null,null,null,null,null,null,null,null,0,2.5,{"$f":"W8*V8","v":0}]
["Acqua Frizzante",null,null,null,null,null,null,null,null,null,null,null,null,null,null,null,null,null,null,null,null,0,2.5,0]
["Patatine",null,null,null,null,null,null,null,null,null,null,null,null,null,null,null,null,null,null,null,null,0,2,0]
["Kit Kat",null,null,null,null,null,null,null,null,null,null,null,null,null,null,null,null,null,null,null,null,0,2,0]
[]
[null,401,402,403,404,405,406,407,408,409,410,501,502,503,504,505,506,507,508,509,510,"TOT","PREZZO"]
["Coca Cola",null,null,null,null,null,null,null,null,null,null,null,null,null,null,null,null,null,null,null,null,{"$f":"SUM(B14:U14)","v":0},3,0]
["Coca Cola Light",null,null,null,null,null,null,null,null,null,null,null,null,null,null,null,null,null,null,null,null,{"$f":"SUM(B15:U15)","v":0},3,0]
["Tè",null,null,null,null,null,null,null,null,null,null,null,null,null,null,null,null,null,null,null,null,0,3,0]
["Acqua Tonica",null,null,null,null,null,null,null,null,null,null,null,null,null,null,null,null,null,null,null,null,0,3,0]
["Succo",null,null,null,null,null,null,null,null,null,null,null,null,null,null,null,null,null,null,null,null,0,3,0]
["Birra",null,null,null,null,null,null,null,null,null,null,null,null,null,null,null,null,null,null,null,null,0,3.5,0]
["Acqua Naturale",null,null,null,null,null,null,null,null,null,null,null,null,null,null,null,null,null,null,null,null,0,2.5,{"$f":"W20*V20","v":0}]
["Acqua Frizzante",null,null,null,null,null,null,null,null,null,null,null,null,null,null,null,null,null,null,null,null,0,2.5,0]
["Patatine",null,null,null,null,null,null,null,null,null,null,null,null,null,null,null,null,null,null,null,null,0,2,0]
["Kit Kat",null,null,null,null,null,null,null,null,null,null,null,null,null,null,null,null,null,null,null,null,0,2,0]
[]
[null,601,602,603,604,605,606,607,608,609,610,701,702,703,704,705,706,707,708,709,710,"TOT","PREZZO"]
["Coca Cola",null,null,null,null,null,null,null,null,null,null,null,null,null,null,null,null,null,null,null,null,{"$f":"SUM(B26:U26)","v":0},3,0]
["Coca Cola Light",null,null,null,null,null,null,null,null,null,null,null,null,null,null,null,null,null,null,null,null,{"$f":"SUM(B27:U27)","v":0},3,0]
["Tè",null,null,null,null,null,null,null,null,null,null,null,null,null,null,null,null,null,null,null,null,0,3,0]
["Acqua Tonica",null,null,null,null,null,null,null,null,null,null,null,null,null,null,null,null,null,null,null,null,0,3,0]
["Succo",null,null,null,null,null,null,null,null,null,null,null,null,null,null,null,null,null,null,null,null,0,3,0]
["Birra",null,null,null,null,null,null,null,null,null,null,null,null,null,null,null,null,null,null,null,null,0,3.5,0]
["Acqua Naturale",null,null,null,null,null,null,null,null,null,null,null,null,null,null,null,null,null,null,null,null,0,2.5,{"$f":"W32*V32","v":0}]
["Acqua Frizzante",null,null,null,null,null,null,null,null,null,null,null,null,null,null,null,null,null,null,null,null,0,2.5,0]
["Patatine",null,null,null,null,null,null,null,null,null,null,null,null,null,null,null,null,null,null,null,null,0,2,0]
["Kit Kat",null,null,null,null,null,null,null,null,null,null,null,null,null,null,null,null,null,null,null,null,0,2,0]
[]
[null,801,802,803,804,805,806,807,808,809,810,901,902,903,904,905,906,907,908,909,910,"TOT","PREZZO"]
["Coca Cola",null,null,null,null,null,null,null,null,null,null,null,null,null,null,null,null,null,null,null,null,{"$f":"SUM(B38:U38)","v":0},3,0]
["Coca Cola Light",null,null,null,null,null,null,null,null,null,null,null,null,null,null,null,null,null,null,null,null,0,3,0]
["Tè",null,null,null,null,null,null,null,null,null,null,null,null,null,null,null,null,null,null,null,null,0,3,0]
["Acqua Tonica",null,null,null,null,null,null,null,null,null,null,null,null,null,null,null,null,null,null,null,null,0,3,0]
["Succo",null,null,null,null,null,null,null,null,null,null,null,null,null,null,null,null,null,null,null,null,0,3,0]
["Birra",null,null,null,null,null,null,null,null,null,null,null,null,null,null,null,null,null,null,null,null,0,3.5,0]
["Acqua Naturale",null,null,null,null,null,null,null,null,null,null,null,null,null,null,null,null,null,null,null,null,{"$f":"SUM(B44:U44)","v":0},2.5,{"$f":"W44*V44","v":0}]
["Acqua Frizzante",null,null,null,null,null,null,null,null,null,null,null,null,null,null,null,null,null,null,null,null,0,2.5,0]
["Patatine",null,null,null,null,null,null,null,null,null,null,null,null,null,null,null,null,null,null,null,null,0,2,0]
["Kit Kat",null,null,null,null,null,null,null,null,null,null,null,null,null,null,null,null,null,null,null,null,0,2,0]
[]
[null,1001,1002,1003,1004,1005,1006,1007,1008,1009,1010,1101,1102,1103,1104,1105,1106,1107,1108,1109,1110,"TOT","PREZZO"]
["Coca Cola",null,null,null,null,null,null,null,null,null,null,null,null,null,null,null,null,null,null,null,null,{"$f":"SUM(B50:U50)","v":0},3,0]
["Coca Cola Light",null,null,null,null,null,null,null,null,null,null,null,null,null,null,null,null,null,null,null,null,0,3,0]
["Tè",null,null,null,null,null,null,null,null,null,null,null,null,null,null,null,null,null,null,null,null,0,3,0]
["Acqua Tonica",null,null,null,null,null,null,null,null,null,null,null,null,null,null,null,null,null,null,null,null,0,3,0]
["Succo",null,null,null,null,null,null,null,null,null,null,null,null,null,null,null,null,null,null,null,null,0,3,0]
["Birra",null,null,null,null,null,null,null,null,null,null,null,null,null,null,null,null,null,null,null,null,0,3.5,0]
["Acqua Naturale",null,null,null,null,null,null,null,null,null,null,null,null,null,null,null,null,null,null,null,null,{"$f":"SUM(B56:U56)","v":0},2.5,{"$f":"W56*V56","v":0}]
["Acqua Frizzante",null,null,null,null,null,null,null,null,null,null,null,null,null,null,null,null,null,null,null,null,0,2.5,0]
["Patatine",null,null,null,null,null,null,null,null,null,null,null,null,null,null,null,null,null,null,null,null,0,2,0]
["Kit Kat",null,null,null,null,null,null,null,null,null,null,null,null,null,null,null,null,null,null,null,null,0,2,0]
[]
[null,1201,1202,1203,1204,1205,1206,1207,1208,1209,1210,1301,1302,1303,1304,1305,1306,1307,1308,1309,1310,"TOT","PREZZO"]
["Coca Cola",null,null,null,null,null,null,null,null,null,null,null,null,null,null,null,null,null,null,null,null,{"$f":"SUM(B62:U62)","v":0},3,0]
["Coca Cola Light",null,null,null,null,null,null,null,null,null,null,null,null,null,null,null,null,null,null,null,null,{"$f":"SUM(B63:U63)","v":0},3,0]
["Tè",null,null,null,null,null,null,null,null,null,null,null,null,null,null,null,null,null,null,null,null,0,3,0]
["Acqua Tonica",null,null,null,null,null,null,null,null,null,null,null,null,null,null,null,null,null,null,null,null,0,3,0]
["Succo",null,null,null,null,null,null,null,null,null,null,null,null,null,null,null,null,null,null,null,null,0,3,0]
["Birra",null,null,null,null,null,null,null,null,null,null,null,null,null,null,null,null,null,null,null,null,0,3.5,0]
["Acqua Naturale",null,null,null,null,null,null,null,null,null,null,null,null,null,null,null,null,null,null,null,null,0,2.5,{"$f":"W68*V68","v":0}]
["Acqua Frizzante",null,null,null,null,null,null,null,null,null,null,null,null,null,null,null,null,null,null,null,null,0,2.5,0]
["Patatine",null,null,null,null,null,null,null,null,null,null,null,null,null,null,null,null,null,null,null,null,0,2,0]
["Kit Kat",null,null,null,null,null,null,null,null,null,null,null,null,null,null,null,null,null,null,null,null,0,2,0]
[]
[null,1401,1402,1403,1404,1405,1406,1407,1408,1409,1410,1501,1502,1503,1504,1505,1506,1507,1508,1509,1510,"TOT","PREZZO"]
["Coca Cola",null,null,null,null,null,null,null,null,null,null,null,null,null,null,null,null,null,null,null,null,{"$f":"SUM(B74:U74)","v":0},3,0]
["Coca Cola Light",null,null,null,null,null,null,null,null,null,null,null,null,null,null,null,null,null,null,null,null,{"$f":"SUM(B75:U75)","v":0},3,0]
["Tè",null,null,null,null,null,null,null,null,null,null,null,null,null,null,null,null,null,null,null,null,0,3,0]
["Acqua Tonica",null,null,null,null,null,null,null,null,null,null,null,null,null,null,null,null,null,null,null,null,0,3,0]
["Succo",null,null,null,null,null,null,null,null,null,null,null,null,null,null,null,null,null,null,null,null,0,3,0]
["Birra",null,null,null,null,null,null,null,null,null,null,null,null,null,null,null,null,null,null,null,null,0,3.5,0]
["Acqua Naturale",null,null,null,null,null,null,null,null,null,null,null,null,null,null,null,null,null,null,null,null,0,2.5,{"$f":"W80*V80","v":0}]
["Acqua Frizzante",null,null,null,null,null,null,null,null,null,null,null,null,null,null,null,null,null,null,null,null,0,2.5,0]
["Patatine",null,null,null,null,null,null,null,null,null,null,null,null,null,null,null,null,null,null,null,null,0,2,0]
["Kit Kat",null,null,null,null,null,null,null,null,null,null,null,null,null,null,null,null,null,null,null,null,0,2,0]
[]
[null,1601,1602,1603,1604,1605,1606,1607,1608,1609,1610,1701,1702,1703,1704,1705,1706,1707,1708,null,null,"TOT","PREZZO"]
["Coca Cola",null,null,null,null,null,null,null,null,null,null,null,null,null,null,null,null,null,null,null,null,{"$f":"SUM(B86:U86)","v":0},3,0]
["Coca Cola Light",null,null,null,null,null,null,null,null,null,null,null,null,null,null,null,null,null,null,null,null,{"$f":"SUM(B87:U87)","v":0},3,0]
["Tè",null,null,null,null,null,null,null,null,null,null,null,null,null,null,null,null,null,null,null,null,0,3,0]
["Acqua Tonica",null,null,null,null,null,null,null,null,null,null,null,null,null,null,null,null,null,null,null,null,0,3,0]
["Succo",null,null,null,null,null,null,null,null,null,null,null,null,null,null,null,null,null,null,null,null,0,3,0]
["Birra",null,null,null,null,null,null,null,null,null,null,null,null,null,null,null,null,null,null,null,null,0,3.5,0]
["Acqua Naturale",null,null,null,null,null,null,null,null,null,null,null,null,null,null,null,null,null,null,null,null,0,2.5,{"$f":"W92*V92","v":0}]
["Acqua Frizzante",null,null,null,null,null,null,null,null,null,null,null,null,null,null,null,null,null,null,null,null,0,2.5,0]
["Patatine",null,null,null,null,null,null,null,null,null,null,null,null,null,null,null,null,null,null,null,null,0,2,0]
["Kit Kat",null,null,null,null,null,null,null,null,null,null,null,null,null,null,null,null,null,null,null,null,0,2,0]

{"sheet":"21","index":20,"n_rows":95,"n_cols":24,"rows_kept":95,"cut":false,"hidden":false,"merged":[[11,24,11,47]]}
[null,101,102,103,104,105,201,202,203,206,207,301,302,303,304,305,306,307,308,309,310,"TOT","PREZZO","PREZZO"]
["Coca Cola",null,null,null,null,null,null,null,null,null,null,null,null,null,null,null,null,null,null,null,null,{"$f":"SUM(B2:U2)","v":0},3,0]
["Coca Cola Light",null,null,null,null,null,null,null,null,null,null,null,null,null,null,null,null,null,null,null,null,{"$f":"SUM(B3:U3)","v":0},3,0]
["Tè",null,null,null,null,null,null,null,null,null,null,null,null,null,null,null,null,null,null,null,null,0,3,0]
["Acqua Tonica",null,null,null,null,null,null,null,null,null,null,null,null,null,null,null,null,null,null,null,null,0,3,0]
["Succo",null,null,null,null,null,null,null,null,null,null,null,null,null,null,null,null,null,null,null,null,0,3,0]
["Birra",null,null,null,null,null,null,null,null,null,null,null,null,null,null,null,null,null,null,null,null,0,3.5,0]
["Acqua Naturale",null,null,null,null,null,null,null,null,null,null,null,null,null,null,null,null,null,null,null,null,0,2.5,{"$f":"W8*V8","v":0}]
["Acqua Frizzante",null,null,null,null,null,null,null,null,null,null,null,null,null,null,null,null,null,null,null,null,0,2.5,0]
["Patatine",null,null,null,null,null,null,null,null,null,null,null,null,null,null,null,null,null,null,null,null,0,2,0]
["Kit Kat",null,null,null,null,null,null,null,null,null,null,null,null,null,null,null,null,null,null,null,null,0,2,0]
[]
[null,401,402,403,404,405,406,407,408,409,410,501,502,503,504,505,506,507,508,509,510,"TOT","PREZZO"]
["Coca Cola",null,null,null,null,null,null,null,null,null,null,null,null,null,null,null,null,null,null,null,null,{"$f":"SUM(B14:U14)","v":0},3,0]
["Coca Cola Light",null,null,null,null,null,null,null,null,null,null,null,null,null,null,null,null,null,null,null,null,{"$f":"SUM(B15:U15)","v":0},3,0]
["Tè",null,null,null,null,null,null,null,null,null,null,null,null,null,null,null,null,null,null,null,null,0,3,0]
["Acqua Tonica",null,null,null,null,null,null,null,null,null,null,null,null,null,null,null,null,null,null,null,null,0,3,0]
["Succo",null,null,null,null,null,null,null,null,null,null,null,null,null,null,null,null,null,null,null,null,0,3,0]
["Birra",null,null,null,null,null,null,null,null,null,null,null,null,null,null,null,null,null,null,null,null,0,3.5,0]
["Acqua Naturale",null,null,null,null,null,null,null,null,null,null,null,null,null,null,null,null,null,null,null,null,0,2.5,{"$f":"W20*V20","v":0}]
["Acqua Frizzante",null,null,null,null,null,null,null,null,null,null,null,null,null,null,null,null,null,null,null,null,0,2.5,0]
["Patatine",null,null,null,null,null,null,null,null,null,null,null,null,null,null,null,null,null,null,null,null,0,2,0]
["Kit Kat",null,null,null,null,null,null,null,null,null,null,null,null,null,null,null,null,null,null,null,null,0,2,0]
[]
[null,601,602,603,604,605,606,607,608,609,610,701,702,703,704,705,706,707,708,709,710,"TOT","PREZZO"]
["Coca Cola",null,null,null,null,null,null,null,null,null,null,null,null,null,null,null,null,null,null,null,null,{"$f":"SUM(B26:U26)","v":0},3,0]
["Coca Cola Light",null,null,null,null,null,null,null,null,null,null,null,null,null,null,null,null,null,null,null,null,{"$f":"SUM(B27:U27)","v":0},3,0]
["Tè",null,null,null,null,null,null,null,null,null,null,null,null,null,null,null,null,null,null,null,null,0,3,0]
["Acqua Tonica",null,null,null,null,null,null,null,null,null,null,null,null,null,null,null,null,null,null,null,null,0,3,0]
["Succo",null,null,null,null,null,null,null,null,null,null,null,null,null,null,null,null,null,null,null,null,0,3,0]
["Birra",null,null,null,null,null,null,null,null,null,null,null,null,null,null,null,null,null,null,null,null,0,3.5,0]
["Acqua Naturale",null,null,null,null,null,null,null,null,null,null,null,null,null,null,null,null,null,null,null,null,0,2.5,{"$f":"W32*V32","v":0}]
["Acqua Frizzante",null,null,null,null,null,null,null,null,null,null,null,null,null,null,null,null,null,null,null,null,0,2.5,0]
["Patatine",null,null,null,null,null,null,null,null,null,null,null,null,null,null,null,null,null,null,null,null,0,2,0]
["Kit Kat",null,null,null,null,null,null,null,null,null,null,null,null,null,null,null,null,null,null,null,null,0,2,0]
[]
[null,801,802,803,804,805,806,807,808,809,810,901,902,903,904,905,906,907,908,909,910,"TOT","PREZZO"]
["Coca Cola",null,null,null,null,null,null,null,null,null,null,null,null,null,null,null,null,null,null,null,null,{"$f":"SUM(B38:U38)","v":0},3,0]
["Coca Cola Light",null,null,null,null,null,null,null,null,null,null,null,null,null,null,null,null,null,null,null,null,0,3,0]
["Tè",null,null,null,null,null,null,null,null,null,null,null,null,null,null,null,null,null,null,null,null,0,3,0]
["Acqua Tonica",null,null,null,null,null,null,null,null,null,null,null,null,null,null,null,null,null,null,null,null,0,3,0]
["Succo",null,null,null,null,null,null,null,null,null,null,null,null,null,null,null,null,null,null,null,null,0,3,0]
["Birra",null,null,null,null,null,null,null,null,null,null,null,null,null,null,null,null,null,null,null,null,0,3.5,0]
["Acqua Naturale",null,null,null,null,null,null,null,null,null,null,null,null,null,null,null,null,null,null,null,null,{"$f":"SUM(B44:U44)","v":0},2.5,{"$f":"W44*V44","v":0}]
["Acqua Frizzante",null,null,null,null,null,null,null,null,null,null,null,null,null,null,null,null,null,null,null,null,0,2.5,0]
["Patatine",null,null,null,null,null,null,null,null,null,null,null,null,null,null,null,null,null,null,null,null,0,2,0]
["Kit Kat",null,null,null,null,null,null,null,null,null,null,null,null,null,null,null,null,null,null,null,null,0,2,0]
[]
[null,1001,1002,1003,1004,1005,1006,1007,1008,1009,1010,1101,1102,1103,1104,1105,1106,1107,1108,1109,1110,"TOT","PREZZO"]
["Coca Cola",null,null,null,null,null,null,null,null,null,null,null,null,null,null,null,null,null,null,null,null,{"$f":"SUM(B50:U50)","v":0},3,0]
["Coca Cola Light",null,null,null,null,null,null,null,null,null,null,null,null,null,null,null,null,null,null,null,null,0,3,0]
["Tè",null,null,null,null,null,null,null,null,null,null,null,null,null,null,null,null,null,null,null,null,0,3,0]
["Acqua Tonica",null,null,null,null,null,null,null,null,null,null,null,null,null,null,null,null,null,null,null,null,0,3,0]
["Succo",null,null,null,null,null,null,null,null,null,null,null,null,null,null,null,null,null,null,null,null,0,3,0]
["Birra",null,null,null,null,null,null,null,null,null,null,null,null,null,null,null,null,null,null,null,null,0,3.5,0]
["Acqua Naturale",null,null,null,null,null,null,null,null,null,null,null,null,null,null,null,null,null,null,null,null,{"$f":"SUM(B56:U56)","v":0},2.5,{"$f":"W56*V56","v":0}]
["Acqua Frizzante",null,null,null,null,null,null,null,null,null,null,null,null,null,null,null,null,null,null,null,null,0,2.5,0]
["Patatine",null,null,null,null,null,null,null,null,null,null,null,null,null,null,null,null,null,null,null,null,0,2,0]
["Kit Kat",null,null,null,null,null,null,null,null,null,null,null,null,null,null,null,null,null,null,null,null,0,2,0]
[]
[null,1201,1202,1203,1204,1205,1206,1207,1208,1209,1210,1301,1302,1303,1304,1305,1306,1307,1308,1309,1310,"TOT","PREZZO"]
["Coca Cola",null,null,null,null,null,null,null,null,null,null,null,null,null,null,null,null,null,null,null,null,{"$f":"SUM(B62:U62)","v":0},3,0]
["Coca Cola Light",null,null,null,null,null,null,null,null,null,null,null,null,null,null,null,null,null,null,null,null,{"$f":"SUM(B63:U63)","v":0},3,0]
["Tè",null,null,null,null,null,null,null,null,null,null,null,null,null,null,null,null,null,null,null,null,0,3,0]
["Acqua Tonica",null,null,null,null,null,null,null,null,null,null,null,null,null,null,null,null,null,null,null,null,0,3,0]
["Succo",null,null,null,null,null,null,null,null,null,null,null,null,null,null,null,null,null,null,null,null,0,3,0]
["Birra",null,null,null,null,null,null,null,null,null,null,null,null,null,null,null,null,null,null,null,null,0,3.5,0]
["Acqua Naturale",null,null,null,null,null,null,null,null,null,null,null,null,null,null,null,null,null,null,null,null,0,2.5,{"$f":"W68*V68","v":0}]
["Acqua Frizzante",null,null,null,null,null,null,null,null,null,null,null,null,null,null,null,null,null,null,null,null,0,2.5,0]
["Patatine",null,null,null,null,null,null,null,null,null,null,null,null,null,null,null,null,null,null,null,null,0,2,0]
["Kit Kat",null,null,null,null,null,null,null,null,null,null,null,null,null,null,null,null,null,null,null,null,0,2,0]
[]
[null,1401,1402,1403,1404,1405,1406,1407,1408,1409,1410,1501,1502,1503,1504,1505,1506,1507,1508,1509,1510,"TOT","PREZZO"]
["Coca Cola",null,null,null,null,null,null,null,null,null,null,null,null,null,null,null,null,null,null,null,null,{"$f":"SUM(B74:U74)","v":0},3,0]
["Coca Cola Light",null,null,null,null,null,null,null,null,null,null,null,null,null,null,null,null,null,null,null,null,{"$f":"SUM(B75:U75)","v":0},3,0]
["Tè",null,null,null,null,null,null,null,null,null,null,null,null,null,null,null,null,null,null,null,null,0,3,0]
["Acqua Tonica",null,null,null,null,null,null,null,null,null,null,null,null,null,null,null,null,null,null,null,null,0,3,0]
["Succo",null,null,null,null,null,null,null,null,null,null,null,null,null,null,null,null,null,null,null,null,0,3,0]
["Birra",null,null,null,null,null,null,null,null,null,null,null,null,null,null,null,null,null,null,null,null,0,3.5,0]
["Acqua Naturale",null,null,null,null,null,null,null,null,null,null,null,null,null,null,null,null,null,null,null,null,0,2.5,{"$f":"W80*V80","v":0}]
["Acqua Frizzante",null,null,null,null,null,null,null,null,null,null,null,null,null,null,null,null,null,null,null,null,0,2.5,0]
["Patatine",null,null,null,null,null,null,null,null,null,null,null,null,null,null,null,null,null,null,null,null,0,2,0]
["Kit Kat",null,null,null,null,null,null,null,null,null,null,null,null,null,null,null,null,null,null,null,null,0,2,0]
[]
[null,1601,1602,1603,1604,1605,1606,1607,1608,1609,1610,1701,1702,1703,1704,1705,1706,1707,1708,null,null,"TOT","PREZZO"]
["Coca Cola",null,null,null,null,null,null,null,null,null,null,null,null,null,null,null,null,null,null,null,null,{"$f":"SUM(B86:U86)","v":0},3,0]
["Coca Cola Light",null,null,null,null,null,null,null,null,null,null,null,null,null,null,null,null,null,null,null,null,{"$f":"SUM(B87:U87)","v":0},3,0]
["Tè",null,null,null,null,null,null,null,null,null,null,null,null,null,null,null,null,null,null,null,null,0,3,0]
["Acqua Tonica",null,null,null,null,null,null,null,null,null,null,null,null,null,null,null,null,null,null,null,null,0,3,0]
["Succo",null,null,null,null,null,null,null,null,null,null,null,null,null,null,null,null,null,null,null,null,0,3,0]
["Birra",null,null,null,null,null,null,null,null,null,null,null,null,null,null,null,null,null,null,null,null,0,3.5,0]
["Acqua Naturale",null,null,null,null,null,null,null,null,null,null,null,null,null,null,null,null,null,null,null,null,0,2.5,{"$f":"W92*V92","v":0}]
["Acqua Frizzante",null,null,null,null,null,null,null,null,null,null,null,null,null,null,null,null,null,null,null,null,0,2.5,0]
["Patatine",null,null,null,null,null,null,null,null,null,null,null,null,null,null,null,null,null,null,null,null,0,2,0]
["Kit Kat",null,null,null,null,null,null,null,null,null,null,null,null,null,null,null,null,null,null,null,null,0,2,0]

{"sheet":"22","index":21,"n_rows":95,"n_cols":24,"rows_kept":95,"cut":false,"hidden":false,"merged":[[11,24,11,47]]}
[null,101,102,103,104,105,201,202,203,206,207,301,302,303,304,305,306,307,308,309,310,"TOT","PREZZO","PREZZO"]
["Coca Cola",null,null,null,null,null,null,null,null,null,null,null,null,null,null,null,null,null,null,null,null,{"$f":"SUM(B2:U2)","v":0},3,0]
["Coca Cola Light",null,null,null,null,null,null,null,null,null,null,null,null,null,null,null,null,null,null,null,null,{"$f":"SUM(B3:U3)","v":0},3,0]
["Tè",null,null,null,null,null,null,null,null,null,null,null,null,null,null,null,null,null,null,null,null,0,3,0]
["Acqua Tonica",null,null,null,null,null,null,null,null,null,null,null,null,null,null,null,null,null,null,null,null,0,3,0]
["Succo",null,null,null,null,null,null,null,null,null,null,null,null,null,null,null,null,null,null,null,null,0,3,0]
["Birra",null,null,null,null,null,null,null,null,null,null,null,null,null,null,null,null,null,null,null,null,0,3.5,0]
["Acqua Naturale",null,null,null,null,null,null,null,null,null,null,null,null,null,null,null,null,null,null,null,null,0,2.5,{"$f":"W8*V8","v":0}]
["Acqua Frizzante",null,null,null,null,null,null,null,null,null,null,null,null,null,null,null,null,null,null,null,null,0,2.5,0]
["Patatine",null,null,null,null,null,null,null,null,null,null,null,null,null,null,null,null,null,null,null,null,0,2,0]
["Kit Kat",null,null,null,null,null,null,null,null,null,null,null,null,null,null,null,null,null,null,null,null,0,2,0]
[]
[null,401,402,403,404,405,406,407,408,409,410,501,502,503,504,505,506,507,508,509,510,"TOT","PREZZO"]
["Coca Cola",null,null,null,null,null,null,null,null,null,null,null,null,null,null,null,null,null,null,null,null,{"$f":"SUM(B14:U14)","v":0},3,0]
["Coca Cola Light",null,null,null,null,null,null,null,null,null,null,null,null,null,null,null,null,null,null,null,null,{"$f":"SUM(B15:U15)","v":0},3,0]
["Tè",null,null,null,null,null,null,null,null,null,null,null,null,null,null,null,null,null,null,null,null,0,3,0]
["Acqua Tonica",null,null,null,null,null,null,null,null,null,null,null,null,null,null,null,null,null,null,null,null,0,3,0]
["Succo",null,null,null,null,null,null,null,null,null,null,null,null,null,null,null,null,null,null,null,null,0,3,0]
["Birra",null,null,null,null,null,null,null,null,null,null,null,null,null,null,null,null,null,null,null,null,0,3.5,0]
["Acqua Naturale",null,null,null,null,null,null,null,null,null,null,null,null,null,null,null,null,null,null,null,null,0,2.5,{"$f":"W20*V20","v":0}]
["Acqua Frizzante",null,null,null,null,null,null,null,null,null,null,null,null,null,null,null,null,null,null,null,null,0,2.5,0]
["Patatine",null,null,null,null,null,null,null,null,null,null,null,null,null,null,null,null,null,null,null,null,0,2,0]
["Kit Kat",null,null,null,null,null,null,null,null,null,null,null,null,null,null,null,null,null,null,null,null,0,2,0]
[]
[null,601,602,603,604,605,606,607,608,609,610,701,702,703,704,705,706,707,708,709,710,"TOT","PREZZO"]
["Coca Cola",null,null,null,null,null,null,null,null,null,null,null,null,null,null,null,null,null,null,null,null,{"$f":"SUM(B26:U26)","v":0},3,0]
["Coca Cola Light",null,null,null,null,null,null,null,null,null,null,null,null,null,null,null,null,null,null,null,null,{"$f":"SUM(B27:U27)","v":0},3,0]
["Tè",null,null,null,null,null,null,null,null,null,null,null,null,null,null,null,null,null,null,null,null,0,3,0]
["Acqua Tonica",null,null,null,null,null,null,null,null,null,null,null,null,null,null,null,null,null,null,null,null,0,3,0]
["Succo",null,null,null,null,null,null,null,null,null,null,null,null,null,null,null,null,null,null,null,null,0,3,0]
["Birra",null,null,null,null,null,null,null,null,null,null,null,null,null,null,null,null,null,null,null,null,0,3.5,0]
["Acqua Naturale",null,null,null,null,null,null,null,null,null,null,null,null,null,null,null,null,null,null,null,null,0,2.5,{"$f":"W32*V32","v":0}]
["Acqua Frizzante",null,null,null,null,null,null,null,null,null,null,null,null,null,null,null,null,null,null,null,null,0,2.5,0]
["Patatine",null,null,null,null,null,null,null,null,null,null,null,null,null,null,null,null,null,null,null,null,0,2,0]
["Kit Kat",null,null,null,null,null,null,null,null,null,null,null,null,null,null,null,null,null,null,null,null,0,2,0]
[]
[null,801,802,803,804,805,806,807,808,809,810,901,902,903,904,905,906,907,908,909,910,"TOT","PREZZO"]
["Coca Cola",null,null,null,null,null,null,null,null,null,null,null,null,null,null,null,null,null,null,null,null,{"$f":"SUM(B38:U38)","v":0},3,0]
["Coca Cola Light",null,null,null,null,null,null,null,null,null,null,null,null,null,null,null,null,null,null,null,null,0,3,0]
["Tè",null,null,null,null,null,null,null,null,null,null,null,null,null,null,null,null,null,null,null,null,0,3,0]
["Acqua Tonica",null,null,null,null,null,null,null,null,null,null,null,null,null,null,null,null,null,null,null,null,0,3,0]
["Succo",null,null,null,null,null,null,null,null,null,null,null,null,null,null,null,null,null,null,null,null,0,3,0]
["Birra",null,null,null,null,null,null,null,null,null,null,null,null,null,null,null,null,null,null,null,null,0,3.5,0]
["Acqua Naturale",null,null,null,null,null,null,null,null,null,null,null,null,null,null,null,null,null,null,null,null,{"$f":"SUM(B44:U44)","v":0},2.5,{"$f":"W44*V44","v":0}]
["Acqua Frizzante",null,null,null,null,null,null,null,null,null,null,null,null,null,null,null,null,null,null,null,null,0,2.5,0]
["Patatine",null,null,null,null,null,null,null,null,null,null,null,null,null,null,null,null,null,null,null,null,0,2,0]
["Kit Kat",null,null,null,null,null,null,null,null,null,null,null,null,null,null,null,null,null,null,null,null,0,2,0]
[]
[null,1001,1002,1003,1004,1005,1006,1007,1008,1009,1010,1101,1102,1103,1104,1105,1106,1107,1108,1109,1110,"TOT","PREZZO"]
["Coca Cola",null,null,null,null,null,null,null,null,null,null,null,null,null,null,null,null,null,null,null,null,{"$f":"SUM(B50:U50)","v":0},3,0]
["Coca Cola Light",null,null,null,null,null,null,null,null,null,null,null,null,null,null,null,null,null,null,null,null,0,3,0]
["Tè",null,null,null,null,null,null,null,null,null,null,null,null,null,null,null,null,null,null,null,null,0,3,0]
["Acqua Tonica",null,null,null,null,null,null,null,null,null,null,null,null,null,null,null,null,null,null,null,null,0,3,0]
["Succo",null,null,null,null,null,null,null,null,null,null,null,null,null,null,null,null,null,null,null,null,0,3,0]
["Birra",null,null,null,null,null,null,null,null,null,null,null,null,null,null,null,null,null,null,null,null,0,3.5,0]
["Acqua Naturale",null,null,null,null,null,null,null,null,null,null,null,null,null,null,null,null,null,null,null,null,{"$f":"SUM(B56:U56)","v":0},2.5,{"$f":"W56*V56","v":0}]
["Acqua Frizzante",null,null,null,null,null,null,null,null,null,null,null,null,null,null,null,null,null,null,null,null,0,2.5,0]
["Patatine",null,null,null,null,null,null,null,null,null,null,null,null,null,null,null,null,null,null,null,null,0,2,0]
["Kit Kat",null,null,null,null,null,null,null,null,null,null,null,null,null,null,null,null,null,null,null,null,0,2,0]
[]
[null,1201,1202,1203,1204,1205,1206,1207,1208,1209,1210,1301,1302,1303,1304,1305,1306,1307,1308,1309,1310,"TOT","PREZZO"]
["Coca Cola",null,null,null,null,null,null,null,null,null,null,null,null,null,null,null,null,null,null,null,null,{"$f":"SUM(B62:U62)","v":0},3,0]
["Coca Cola Light",null,null,null,null,null,null,null,null,null,null,null,null,null,null,null,null,null,null,null,null,{"$f":"SUM(B63:U63)","v":0},3,0]
["Tè",null,null,null,null,null,null,null,null,null,null,null,null,null,null,null,null,null,null,null,null,0,3,0]
["Acqua Tonica",null,null,null,null,null,null,null,null,null,null,null,null,null,null,null,null,null,null,null,null,0,3,0]
["Succo",null,null,null,null,null,null,null,null,null,null,null,null,null,null,null,null,null,null,null,null,0,3,0]
["Birra",null,null,null,null,null,null,null,null,null,null,null,null,null,null,null,null,null,null,null,null,0,3.5,0]
["Acqua Naturale",null,null,null,null,null,null,null,null,null,null,null,null,null,null,null,null,null,null,null,null,0,2.5,{"$f":"W68*V68","v":0}]
["Acqua Frizzante",null,null,null,null,null,null,null,null,null,null,null,null,null,null,null,null,null,null,null,null,0,2.5,0]
["Patatine",null,null,null,null,null,null,null,null,null,null,null,null,null,null,null,null,null,null,null,null,0,2,0]
["Kit Kat",null,null,null,null,null,null,null,null,null,null,null,null,null,null,null,null,null,null,null,null,0,2,0]
[]
[null,1401,1402,1403,1404,1405,1406,1407,1408,1409,1410,1501,1502,1503,1504,1505,1506,1507,1508,1509,1510,"TOT","PREZZO"]
["Coca Cola",null,null,null,null,null,null,null,null,null,null,null,null,null,null,null,null,null,null,null,null,{"$f":"SUM(B74:U74)","v":0},3,0]
["Coca Cola Light",null,null,null,null,null,null,null,null,null,null,null,null,null,null,null,null,null,null,null,null,{"$f":"SUM(B75:U75)","v":0},3,0]
["Tè",null,null,null,null,null,null,null,null,null,null,null,null,null,null,null,null,null,null,null,null,0,3,0]
["Acqua Tonica",null,null,null,null,null,null,null,null,null,null,null,null,null,null,null,null,null,null,null,null,0,3,0]
["Succo",null,null,null,null,null,null,null,null,null,null,null,null,null,null,null,null,null,null,null,null,0,3,0]
["Birra",null,null,null,null,null,null,null,null,null,null,null,null,null,null,null,null,null,null,null,null,0,3.5,0]
["Acqua Naturale",null,null,null,null,null,null,null,null,null,null,null,null,null,null,null,null,null,null,null,null,0,2.5,{"$f":"W80*V80","v":0}]
["Acqua Frizzante",null,null,null,null,null,null,null,null,null,null,null,null,null,null,null,null,null,null,null,null,0,2.5,0]
["Patatine",null,null,null,null,null,null,null,null,null,null,null,null,null,null,null,null,null,null,null,null,0,2,0]
["Kit Kat",null,null,null,null,null,null,null,null,null,null,null,null,null,null,null,null,null,null,null,null,0,2,0]
[]
[null,1601,1602,1603,1604,1605,1606,1607,1608,1609,1610,1701,1702,1703,1704,1705,1706,1707,1708,null,null,"TOT","PREZZO"]
["Coca Cola",null,null,null,null,null,null,null,null,null,null,null,null,null,null,null,null,null,null,null,null,{"$f":"SUM(B86:U86)","v":0},3,0]
["Coca Cola Light",null,null,null,null,null,null,null,null,null,null,null,null,null,null,null,null,null,null,null,null,{"$f":"SUM(B87:U87)","v":0},3,0]
["Tè",null,null,null,null,null,null,null,null,null,null,null,null,null,null,null,null,null,null,null,null,0,3,0]
["Acqua Tonica",null,null,null,null,null,null,null,null,null,null,null,null,null,null,null,null,null,null,null,null,0,3,0]
["Succo",null,null,null,null,null,null,null,null,null,null,null,null,null,null,null,null,null,null,null,null,0,3,0]
["Birra",null,null,null,null,null,null,null,null,null,null,null,null,null,null,null,null,null,null,null,null,0,3.5,0]
["Acqua Naturale",null,null,null,null,null,null,null,null,null,null,null,null,null,null,null,null,null,null,null,null,0,2.5,{"$f":"W92*V92","v":0}]
["Acqua Frizzante",null,null,null,null,null,null,null,null,null,null,null,null,null,null,null,null,null,null,null,null,0,2.5,0]
["Patatine",null,null,null,null,null,null,null,null,null,null,null,null,null,null,null,null,null,null,null,null,0,2,0]
["Kit Kat",null,null,null,null,null,null,null,null,null,null,null,null,null,null,null,null,null,null,null,null,0,2,0]

{"sheet":"23","index":22,"n_rows":95,"n_cols":24,"rows_kept":95,"cut":false,"hidden":false,"merged":[[11,24,11,47]]}
[null,101,102,103,104,105,201,202,203,206,207,301,302,303,304,305,306,307,308,309,310,"TOT","PREZZO","PREZZO"]
["Coca Cola",null,null,null,null,null,null,null,null,null,null,null,null,null,null,null,null,null,null,null,null,{"$f":"SUM(B2:U2)","v":0},3,0]
["Coca Cola Light",null,null,null,null,null,null,null,null,null,null,null,null,null,null,null,null,null,null,null,null,{"$f":"SUM(B3:U3)","v":0},3,0]
["Tè",null,null,null,null,null,null,null,null,null,null,null,null,null,null,null,null,null,null,null,null,0,3,0]
["Acqua Tonica",null,null,null,null,null,null,null,null,null,null,null,null,null,null,null,null,null,null,null,null,0,3,0]
["Succo",null,null,null,null,null,null,null,null,null,null,null,null,null,null,null,null,null,null,null,null,0,3,0]
["Birra",null,null,null,null,null,null,null,null,null,null,null,null,null,null,null,null,null,null,null,null,0,3.5,0]
["Acqua Naturale",null,null,null,null,null,null,null,null,null,null,null,null,null,null,null,null,null,null,null,null,0,2.5,{"$f":"W8*V8","v":0}]
["Acqua Frizzante",null,null,null,null,null,null,null,null,null,null,null,null,null,null,null,null,null,null,null,null,0,2.5,0]
["Patatine",null,null,null,null,null,null,null,null,null,null,null,null,null,null,null,null,null,null,null,null,0,2,0]
["Kit Kat",null,null,null,null,null,null,null,null,null,null,null,null,null,null,null,null,null,null,null,null,0,2,0]
[]
[null,401,402,403,404,405,406,407,408,409,410,501,502,503,504,505,506,507,508,509,510,"TOT","PREZZO"]
["Coca Cola",null,null,null,null,null,null,null,null,null,null,null,null,null,null,null,null,null,null,null,null,{"$f":"SUM(B14:U14)","v":0},3,0]
["Coca Cola Light",null,null,null,null,null,null,null,null,null,null,null,null,null,null,null,null,null,null,null,null,{"$f":"SUM(B15:U15)","v":0},3,0]
["Tè",null,null,null,null,null,null,null,null,null,null,null,null,null,null,null,null,null,null,null,null,0,3,0]
["Acqua Tonica",null,null,null,null,null,null,null,null,null,null,null,null,null,null,null,null,null,null,null,null,0,3,0]
["Succo",null,null,null,null,null,null,null,null,null,null,null,null,null,null,null,null,null,null,null,null,0,3,0]
["Birra",null,null,null,null,null,null,null,null,null,null,null,null,null,null,null,null,null,null,null,null,0,3.5,0]
["Acqua Naturale",null,null,null,null,null,null,null,null,null,null,null,null,null,null,null,null,null,null,null,null,0,2.5,{"$f":"W20*V20","v":0}]
["Acqua Frizzante",null,null,null,null,null,null,null,null,null,null,null,null,null,null,null,null,null,null,null,null,0,2.5,0]
["Patatine",null,null,null,null,null,null,null,null,null,null,null,null,null,null,null,null,null,null,null,null,0,2,0]
["Kit Kat",null,null,null,null,null,null,null,null,null,null,null,null,null,null,null,null,null,null,null,null,0,2,0]
[]
[null,601,602,603,604,605,606,607,608,609,610,701,702,703,704,705,706,707,708,709,710,"TOT","PREZZO"]
["Coca Cola",null,null,null,null,null,null,null,null,null,null,null,null,null,null,null,null,null,null,null,null,{"$f":"SUM(B26:U26)","v":0},3,0]
["Coca Cola Light",null,null,null,null,null,null,null,null,null,null,null,null,null,null,null,null,null,null,null,null,{"$f":"SUM(B27:U27)","v":0},3,0]
["Tè",null,null,null,null,null,null,null,null,null,null,null,null,null,null,null,null,null,null,null,null,0,3,0]
["Acqua Tonica",null,null,null,null,null,null,null,null,null,null,null,null,null,null,null,null,null,null,null,null,0,3,0]
["Succo",null,null,null,null,null,null,null,null,null,null,null,null,null,null,null,null,null,null,null,null,0,3,0]
["Birra",null,null,null,null,null,null,null,null,null,null,null,null,null,null,null,null,null,null,null,null,0,3.5,0]
["Acqua Naturale",null,null,null,null,null,null,null,null,null,null,null,null,null,null,null,null,null,null,null,null,0,2.5,{"$f":"W32*V32","v":0}]
["Acqua Frizzante",null,null,null,null,null,null,null,null,null,null,null,null,null,null,null,null,null,null,null,null,0,2.5,0]
["Patatine",null,null,null,null,null,null,null,null,null,null,null,null,null,null,null,null,null,null,null,null,0,2,0]
["Kit Kat",null,null,null,null,null,null,null,null,null,null,null,null,null,null,null,null,null,null,null,null,0,2,0]
[]
[null,801,802,803,804,805,806,807,808,809,810,901,902,903,904,905,906,907,908,909,910,"TOT","PREZZO"]
["Coca Cola",null,null,null,null,null,null,null,null,null,null,null,null,null,null,null,null,null,null,null,null,{"$f":"SUM(B38:U38)","v":0},3,0]
["Coca Cola Light",null,null,null,null,null,null,null,null,null,null,null,null,null,null,null,null,null,null,null,null,0,3,0]
["Tè",null,null,null,null,null,null,null,null,null,null,null,null,null,null,null,null,null,null,null,null,0,3,0]
["Acqua Tonica",null,null,null,null,null,null,null,null,null,null,null,null,null,null,null,null,null,null,null,null,0,3,0]
["Succo",null,null,null,null,null,null,null,null,null,null,null,null,null,null,null,null,null,null,null,null,0,3,0]
["Birra",null,null,null,null,null,null,null,null,null,null,null,null,null,null,null,null,null,null,null,null,0,3.5,0]
["Acqua Naturale",null,null,null,null,null,null,null,null,null,null,null,null,null,null,null,null,null,null,null,null,{"$f":"SUM(B44:U44)","v":0},2.5,{"$f":"W44*V44","v":0}]
["Acqua Frizzante",null,null,null,null,null,null,null,null,null,null,null,null,null,null,null,null,null,null,null,null,0,2.5,0]
["Patatine",null,null,null,null,null,null,null,null,null,null,null,null,null,null,null,null,null,null,null,null,0,2,0]
["Kit Kat",null,null,null,null,null,null,null,null,null,null,null,null,null,null,null,null,null,null,null,null,0,2,0]
[]
[null,1001,1002,1003,1004,1005,1006,1007,1008,1009,1010,1101,1102,1103,1104,1105,1106,1107,1108,1109,1110,"TOT","PREZZO"]
["Coca Cola",null,null,null,null,null,null,null,null,null,null,null,null,null,null,null,null,null,null,null,null,{"$f":"SUM(B50:U50)","v":0},3,0]
["Coca Cola Light",null,null,null,null,null,null,null,null,null,null,null,null,null,null,null,null,null,null,null,null,0,3,0]
["Tè",null,null,null,null,null,null,null,null,null,null,null,null,null,null,null,null,null,null,null,null,0,3,0]
["Acqua Tonica",null,null,null,null,null,null,null,null,null,null,null,null,null,null,null,null,null,null,null,null,0,3,0]
["Succo",null,null,null,null,null,null,null,null,null,null,null,null,null,null,null,null,null,null,null,null,0,3,0]
["Birra",null,null,null,null,null,null,null,null,null,null,null,null,null,null,null,null,null,null,null,null,0,3.5,0]
["Acqua Naturale",null,null,null,null,null,null,null,null,null,null,null,null,null,null,null,null,null,null,null,null,{"$f":"SUM(B56:U56)","v":0},2.5,{"$f":"W56*V56","v":0}]
["Acqua Frizzante",null,null,null,null,null,null,null,null,null,null,null,null,null,null,null,null,null,null,null,null,0,2.5,0]
["Patatine",null,null,null,null,null,null,null,null,null,null,null,null,null,null,null,null,null,null,null,null,0,2,0]
["Kit Kat",null,null,null,null,null,null,null,null,null,null,null,null,null,null,null,null,null,null,null,null,0,2,0]
[]
[null,1201,1202,1203,1204,1205,1206,1207,1208,1209,1210,1301,1302,1303,1304,1305,1306,1307,1308,1309,1310,"TOT","PREZZO"]
["Coca Cola",null,null,null,null,null,null,null,null,null,null,null,null,null,null,null,null,null,null,null,null,{"$f":"SUM(B62:U62)","v":0},3,0]
["Coca Cola Light",null,null,null,null,null,null,null,null,null,null,null,null,null,null,null,null,null,null,null,null,{"$f":"SUM(B63:U63)","v":0},3,0]
["Tè",null,null,null,null,null,null,null,null,null,null,null,null,null,null,null,null,null,null,null,null,0,3,0]
["Acqua Tonica",null,null,null,null,null,null,null,null,null,null,null,null,null,null,null,null,null,null,null,null,0,3,0]
["Succo",null,null,null,null,null,null,null,null,null,null,null,null,null,null,null,null,null,null,null,null,0,3,0]
["Birra",null,null,null,null,null,null,null,null,null,null,null,null,null,null,null,null,null,null,null,null,0,3.5,0]
["Acqua Naturale",null,null,null,null,null,null,null,null,null,null,null,null,null,null,null,null,null,null,null,null,0,2.5,{"$f":"W68*V68","v":0}]
["Acqua Frizzante",null,null,null,null,null,null,null,null,null,null,null,null,null,null,null,null,null,null,null,null,0,2.5,0]
["Patatine",null,null,null,null,null,null,null,null,null,null,null,null,null,null,null,null,null,null,null,null,0,2,0]
["Kit Kat",null,null,null,null,null,null,null,null,null,null,null,null,null,null,null,null,null,null,null,null,0,2,0]
[]
[null,1401,1402,1403,1404,1405,1406,1407,1408,1409,1410,1501,1502,1503,1504,1505,1506,1507,1508,1509,1510,"TOT","PREZZO"]
["Coca Cola",null,null,null,null,null,null,null,null,null,null,null,null,null,null,null,null,null,null,null,null,{"$f":"SUM(B74:U74)","v":0},3,0]
["Coca Cola Light",null,null,null,null,null,null,null,null,null,null,null,null,null,null,null,null,null,null,null,null,{"$f":"SUM(B75:U75)","v":0},3,0]
["Tè",null,null,null,null,null,null,null,null,null,null,null,null,null,null,null,null,null,null,null,null,0,3,0]
["Acqua Tonica",null,null,null,null,null,null,null,null,null,null,null,null,null,null,null,null,null,null,null,null,0,3,0]
["Succo",null,null,null,null,null,null,null,null,null,null,null,null,null,null,null,null,null,null,null,null,0,3,0]
["Birra",null,null,null,null,null,null,null,null,null,null,null,null,null,null,null,null,null,null,null,null,0,3.5,0]
["Acqua Naturale",null,null,null,null,null,null,null,null,null,null,null,null,null,null,null,null,null,null,null,null,0,2.5,{"$f":"W80*V80","v":0}]
["Acqua Frizzante",null,null,null,null,null,null,null,null,null,null,null,null,null,null,null,null,null,null,null,null,0,2.5,0]
["Patatine",null,null,null,null,null,null,null,null,null,null,null,null,null,null,null,null,null,null,null,null,0,2,0]
["Kit Kat",null,null,null,null,null,null,null,null,null,null,null,null,null,null,null,null,null,null,null,null,0,2,0]
[]
[null,1601,1602,1603,1604,1605,1606,1607,1608,1609,1610,1701,1702,1703,1704,1705,1706,1707,1708,null,null,"TOT","PREZZO"]
["Coca Cola",null,null,null,null,null,null,null,null,null,null,null,null,null,null,null,null,null,null,null,null,{"$f":"SUM(B86:U86)","v":0},3,0]
["Coca Cola Light",null,null,null,null,null,null,null,null,null,null,null,null,null,null,null,null,null,null,null,null,{"$f":"SUM(B87:U87)","v":0},3,0]
["Tè",null,null,null,null,null,null,null,null,null,null,null,null,null,null,null,null,null,null,null,null,0,3,0]
["Acqua Tonica",null,null,null,null,null,null,null,null,null,null,null,null,null,null,null,null,null,null,null,null,0,3,0]
["Succo",null,null,null,null,null,null,null,null,null,null,null,null,null,null,null,null,null,null,null,null,0,3,0]
["Birra",null,null,null,null,null,null,null,null,null,null,null,null,null,null,null,null,null,null,null,null,0,3.5,0]
["Acqua Naturale",null,null,null,null,null,null,null,null,null,null,null,null,null,null,null,null,null,null,null,null,0,2.5,{"$f":"W92*V92","v":0}]
["Acqua Frizzante",null,null,null,null,null,null,null,null,null,null,null,null,null,null,null,null,null,null,null,null,0,2.5,0]
["Patatine",null,null,null,null,null,null,null,null,null,null,null,null,null,null,null,null,null,null,null,null,0,2,0]
["Kit Kat",null,null,null,null,null,null,null,null,null,null,null,null,null,null,null,null,null,null,null,null,0,2,0]

{"sheet":"24","index":23,"n_rows":95,"n_cols":24,"rows_kept":95,"cut":false,"hidden":false,"merged":[[11,24,11,47]]}
[null,101,102,103,104,105,201,202,203,206,207,301,302,303,304,305,306,307,308,309,310,"TOT","PREZZO","PREZZO"]
["Coca Cola",null,null,null,null,null,null,null,null,null,null,null,null,null,null,null,null,null,null,null,null,{"$f":"SUM(B2:U2)","v":0},3,0]
["Coca Cola Light",null,null,null,null,null,null,null,null,null,null,null,null,null,null,null,null,null,null,null,null,{"$f":"SUM(B3:U3)","v":0},3,0]
["Tè",null,null,null,null,null,null,null,null,null,null,null,null,null,null,null,null,null,null,null,null,0,3,0]
["Acqua Tonica",null,null,null,null,null,null,null,null,null,null,null,null,null,null,null,null,null,null,null,null,0,3,0]
["Succo",null,null,null,null,null,null,null,null,null,null,null,null,null,null,null,null,null,null,null,null,0,3,0]
["Birra",null,null,null,null,null,null,null,null,null,null,null,null,null,null,null,null,null,null,null,null,0,3.5,0]
["Acqua Naturale",null,null,null,null,null,null,null,null,null,null,null,null,null,null,null,null,null,null,null,null,0,2.5,{"$f":"W8*V8","v":0}]
["Acqua Frizzante",null,null,null,null,null,null,null,null,null,null,null,null,null,null,null,null,null,null,null,null,0,2.5,0]
["Patatine",null,null,null,null,null,null,null,null,null,null,null,null,null,null,null,null,null,null,null,null,0,2,0]
["Kit Kat",null,null,null,null,null,null,null,null,null,null,null,null,null,null,null,null,null,null,null,null,0,2,0]
[]
[null,401,402,403,404,405,406,407,408,409,410,501,502,503,504,505,506,507,508,509,510,"TOT","PREZZO"]
["Coca Cola",null,null,null,null,null,null,null,null,null,null,null,null,null,null,null,null,null,null,null,null,{"$f":"SUM(B14:U14)","v":0},3,0]
["Coca Cola Light",null,null,null,null,null,null,null,null,null,null,null,null,null,null,null,null,null,null,null,null,{"$f":"SUM(B15:U15)","v":0},3,0]
["Tè",null,null,null,null,null,null,null,null,null,null,null,null,null,null,null,null,null,null,null,null,0,3,0]
["Acqua Tonica",null,null,null,null,null,null,null,null,null,null,null,null,null,null,null,null,null,null,null,null,0,3,0]
["Succo",null,null,null,null,null,null,null,null,null,null,null,null,null,null,null,null,null,null,null,null,0,3,0]
["Birra",null,null,null,null,null,null,null,null,null,null,null,null,null,null,null,null,null,null,null,null,0,3.5,0]
["Acqua Naturale",null,null,null,null,null,null,null,null,null,null,null,null,null,null,null,null,null,null,null,null,0,2.5,{"$f":"W20*V20","v":0}]
["Acqua Frizzante",null,null,null,null,null,null,null,null,null,null,null,null,null,null,null,null,null,null,null,null,0,2.5,0]
["Patatine",null,null,null,null,null,null,null,null,null,null,null,null,null,null,null,null,null,null,null,null,0,2,0]
["Kit Kat",null,null,null,null,null,null,null,null,null,null,null,null,null,null,null,null,null,null,null,null,0,2,0]
[]
[null,601,602,603,604,605,606,607,608,609,610,701,702,703,704,705,706,707,708,709,710,"TOT","PREZZO"]
["Coca Cola",null,null,null,null,null,null,null,null,null,null,null,null,null,null,null,null,null,null,null,null,{"$f":"SUM(B26:U26)","v":0},3,0]
["Coca Cola Light",null,null,null,null,null,null,null,null,null,null,null,null,null,null,null,null,null,null,null,null,{"$f":"SUM(B27:U27)","v":0},3,0]
["Tè",null,null,null,null,null,null,null,null,null,null,null,null,null,null,null,null,null,null,null,null,0,3,0]
["Acqua Tonica",null,null,null,null,null,null,null,null,null,null,null,null,null,null,null,null,null,null,null,null,0,3,0]
["Succo",null,null,null,null,null,null,null,null,null,null,null,null,null,null,null,null,null,null,null,null,0,3,0]
["Birra",null,null,null,null,null,null,null,null,null,null,null,null,null,null,null,null,null,null,null,null,0,3.5,0]
["Acqua Naturale",null,null,null,null,null,null,null,null,null,null,null,null,null,null,null,null,null,null,null,null,0,2.5,{"$f":"W32*V32","v":0}]
["Acqua Frizzante",null,null,null,null,null,null,null,null,null,null,null,null,null,null,null,null,null,null,null,null,0,2.5,0]
["Patatine",null,null,null,null,null,null,null,null,null,null,null,null,null,null,null,null,null,null,null,null,0,2,0]
["Kit Kat",null,null,null,null,null,null,null,null,null,null,null,null,null,null,null,null,null,null,null,null,0,2,0]
[]
[null,801,802,803,804,805,806,807,808,809,810,901,902,903,904,905,906,907,908,909,910,"TOT","PREZZO"]
["Coca Cola",null,null,null,null,null,null,null,null,null,null,null,null,null,null,null,null,null,null,null,null,{"$f":"SUM(B38:U38)","v":0},3,0]
["Coca Cola Light",null,null,null,null,null,null,null,null,null,null,null,null,null,null,null,null,null,null,null,null,0,3,0]
["Tè",null,null,null,null,null,null,null,null,null,null,null,null,null,null,null,null,null,null,null,null,0,3,0]
["Acqua Tonica",null,null,null,null,null,null,null,null,null,null,null,null,null,null,null,null,null,null,null,null,0,3,0]
["Succo",null,null,null,null,null,null,null,null,null,null,null,null,null,null,null,null,null,null,null,null,0,3,0]
["Birra",null,null,null,null,null,null,null,null,null,null,null,null,null,null,null,null,null,null,null,null,0,3.5,0]
["Acqua Naturale",null,null,null,null,null,null,null,null,null,null,null,null,null,null,null,null,null,null,null,null,{"$f":"SUM(B44:U44)","v":0},2.5,{"$f":"W44*V44","v":0}]
["Acqua Frizzante",null,null,null,null,null,null,null,null,null,null,null,null,null,null,null,null,null,null,null,null,0,2.5,0]
["Patatine",null,null,null,null,null,null,null,null,null,null,null,null,null,null,null,null,null,null,null,null,0,2,0]
["Kit Kat",null,null,null,null,null,null,null,null,null,null,null,null,null,null,null,null,null,null,null,null,0,2,0]
[]
[null,1001,1002,1003,1004,1005,1006,1007,1008,1009,1010,1101,1102,1103,1104,1105,1106,1107,1108,1109,1110,"TOT","PREZZO"]
["Coca Cola",null,null,null,null,null,null,null,null,null,null,null,null,null,null,null,null,null,null,null,null,{"$f":"SUM(B50:U50)","v":0},3,0]
["Coca Cola Light",null,null,null,null,null,null,null,null,null,null,null,null,null,null,null,null,null,null,null,null,0,3,0]
["Tè",null,null,null,null,null,null,null,null,null,null,null,null,null,null,null,null,null,null,null,null,0,3,0]
["Acqua Tonica",null,null,null,null,null,null,null,null,null,null,null,null,null,null,null,null,null,null,null,null,0,3,0]
["Succo",null,null,null,null,null,null,null,null,null,null,null,null,null,null,null,null,null,null,null,null,0,3,0]
["Birra",null,null,null,null,null,null,null,null,null,null,null,null,null,null,null,null,null,null,null,null,0,3.5,0]
["Acqua Naturale",null,null,null,null,null,null,null,null,null,null,null,null,null,null,null,null,null,null,null,null,{"$f":"SUM(B56:U56)","v":0},2.5,{"$f":"W56*V56","v":0}]
["Acqua Frizzante",null,null,null,null,null,null,null,null,null,null,null,null,null,null,null,null,null,null,null,null,0,2.5,0]
["Patatine",null,null,null,null,null,null,null,null,null,null,null,null,null,null,null,null,null,null,null,null,0,2,0]
["Kit Kat",null,null,null,null,null,null,null,null,null,null,null,null,null,null,null,null,null,null,null,null,0,2,0]
[]
[null,1201,1202,1203,1204,1205,1206,1207,1208,1209,1210,1301,1302,1303,1304,1305,1306,1307,1308,1309,1310,"TOT","PREZZO"]
["Coca Cola",null,null,null,null,null,null,null,null,null,null,null,null,null,null,null,null,null,null,null,null,{"$f":"SUM(B62:U62)","v":0},3,0]
["Coca Cola Light",null,null,null,null,null,null,null,null,null,null,null,null,null,null,null,null,null,null,null,null,{"$f":"SUM(B63:U63)","v":0},3,0]
["Tè",null,null,null,null,null,null,null,null,null,null,null,null,null,null,null,null,null,null,null,null,0,3,0]
["Acqua Tonica",null,null,null,null,null,null,null,null,null,null,null,null,null,null,null,null,null,null,null,null,0,3,0]
["Succo",null,null,null,null,null,null,null,null,null,null,null,null,null,null,null,null,null,null,null,null,0,3,0]
["Birra",null,null,null,null,null,null,null,null,null,null,null,null,null,null,null,null,null,null,null,null,0,3.5,0]
["Acqua Naturale",null,null,null,null,null,null,null,null,null,null,null,null,null,null,null,null,null,null,null,null,0,2.5,{"$f":"W68*V68","v":0}]
["Acqua Frizzante",null,null,null,null,null,null,null,null,null,null,null,null,null,null,null,null,null,null,null,null,0,2.5,0]
["Patatine",null,null,null,null,null,null,null,null,null,null,null,null,null,null,null,null,null,null,null,null,0,2,0]
["Kit Kat",null,null,null,null,null,null,null,null,null,null,null,null,null,null,null,null,null,null,null,null,0,2,0]
[]
[null,1401,1402,1403,1404,1405,1406,1407,1408,1409,1410,1501,1502,1503,1504,1505,1506,1507,1508,1509,1510,"TOT","PREZZO"]
["Coca Cola",null,null,null,null,null,null,null,null,null,null,null,null,null,null,null,null,null,null,null,null,{"$f":"SUM(B74:U74)","v":0},3,0]
["Coca Cola Light",null,null,null,null,null,null,null,null,null,null,null,null,null,null,null,null,null,null,null,null,{"$f":"SUM(B75:U75)","v":0},3,0]
["Tè",null,null,null,null,null,null,null,null,null,null,null,null,null,null,null,null,null,null,null,null,0,3,0]
["Acqua Tonica",null,null,null,null,null,null,null,null,null,null,null,null,null,null,null,null,null,null,null,null,0,3,0]
["Succo",null,null,null,null,null,null,null,null,null,null,null,null,null,null,null,null,null,null,null,null,0,3,0]
["Birra",null,null,null,null,null,null,null,null,null,null,null,null,null,null,null,null,null,null,null,null,0,3.5,0]
["Acqua Naturale",null,null,null,null,null,null,null,null,null,null,null,null,null,null,null,null,null,null,null,null,0,2.5,{"$f":"W80*V80","v":0}]
["Acqua Frizzante",null,null,null,null,null,null,null,null,null,null,null,null,null,null,null,null,null,null,null,null,0,2.5,0]
["Patatine",null,null,null,null,null,null,null,null,null,null,null,null,null,null,null,null,null,null,null,null,0,2,0]
["Kit Kat",null,null,null,null,null,null,null,null,null,null,null,null,null,null,null,null,null,null,null,null,0,2,0]
[]
[null,1601,1602,1603,1604,1605,1606,1607,1608,1609,1610,1701,1702,1703,1704,1705,1706,1707,1708,null,null,"TOT","PREZZO"]
["Coca Cola",null,null,null,null,null,null,null,null,null,null,null,null,null,null,null,null,null,null,null,null,{"$f":"SUM(B86:U86)","v":0},3,0]
["Coca Cola Light",null,null,null,null,null,null,null,null,null,null,null,null,null,null,null,null,null,null,null,null,{"$f":"SUM(B87:U87)","v":0},3,0]
["Tè",null,null,null,null,null,null,null,null,null,null,null,null,null,null,null,null,null,null,null,null,0,3,0]
["Acqua Tonica",null,null,null,null,null,null,null,null,null,null,null,null,null,null,null,null,null,null,null,null,0,3,0]
["Succo",null,null,null,null,null,null,null,null,null,null,null,null,null,null,null,null,null,null,null,null,0,3,0]
["Birra",null,null,null,null,null,null,null,null,null,null,null,null,null,null,null,null,null,null,null,null,0,3.5,0]
["Acqua Naturale",null,null,null,null,null,null,null,null,null,null,null,null,null,null,null,null,null,null,null,null,0,2.5,{"$f":"W92*V92","v":0}]
["Acqua Frizzante",null,null,null,null,null,null,null,null,null,null,null,null,null,null,null,null,null,null,null,null,0,2.5,0]
["Patatine",null,null,null,null,null,null,null,null,null,null,null,null,null,null,null,null,null,null,null,null,0,2,0]
["Kit Kat",null,null,null,null,null,null,null,null,null,null,null,null,null,null,null,null,null,null,null,null,0,2,0]

{"sheet":"25","index":24,"n_rows":95,"n_cols":24,"rows_kept":95,"cut":false,"hidden":false,"merged":[[11,24,11,47]]}
[null,101,102,103,104,105,201,202,203,206,207,301,302,303,304,305,306,307,308,309,310,"TOT","PREZZO","PREZZO"]
["Coca Cola",null,null,null,null,null,null,null,null,null,null,null,null,null,null,null,null,null,null,null,null,{"$f":"SUM(B2:U2)","v":0},3,0]
["Coca Cola Light",null,null,null,null,null,null,null,null,null,null,null,null,null,null,null,null,null,null,null,null,{"$f":"SUM(B3:U3)","v":0},3,0]
["Tè",null,null,null,null,null,null,null,null,null,null,null,null,null,null,null,null,null,null,null,null,0,3,0]
["Acqua Tonica",null,null,null,null,null,null,null,null,null,null,null,null,null,null,null,null,null,null,null,null,0,3,0]
["Succo",null,null,null,null,null,null,null,null,null,null,null,null,null,null,null,null,null,null,null,null,0,3,0]
["Birra",null,null,null,null,null,null,null,null,null,null,null,null,null,null,null,null,null,null,null,null,0,3.5,0]
["Acqua Naturale",null,null,null,null,null,null,null,null,null,null,null,null,null,null,null,null,null,null,null,null,0,2.5,{"$f":"W8*V8","v":0}]
["Acqua Frizzante",null,null,null,null,null,null,null,null,null,null,null,null,null,null,null,null,null,null,null,null,0,2.5,0]
["Patatine",null,null,null,null,null,null,null,null,null,null,null,null,null,null,null,null,null,null,null,null,0,2,0]
["Kit Kat",null,null,null,null,null,null,null,null,null,null,null,null,null,null,null,null,null,null,null,null,0,2,0]
[]
[null,401,402,403,404,405,406,407,408,409,410,501,502,503,504,505,506,507,508,509,510,"TOT","PREZZO"]
["Coca Cola",null,null,null,null,null,null,null,null,null,null,null,null,null,null,null,null,null,null,null,null,{"$f":"SUM(B14:U14)","v":0},3,0]
["Coca Cola Light",null,null,null,null,null,null,null,null,null,null,null,null,null,null,null,null,null,null,null,null,{"$f":"SUM(B15:U15)","v":0},3,0]
["Tè",null,null,null,null,null,null,null,null,null,null,null,null,null,null,null,null,null,null,null,null,0,3,0]
["Acqua Tonica",null,null,null,null,null,null,null,null,null,null,null,null,null,null,null,null,null,null,null,null,0,3,0]
["Succo",null,null,null,null,null,null,null,null,null,null,null,null,null,null,null,null,null,null,null,null,0,3,0]
["Birra",null,null,null,null,null,null,null,null,null,null,null,null,null,null,null,null,null,null,null,null,0,3.5,0]
["Acqua Naturale",null,null,null,null,null,null,null,null,null,null,null,null,null,null,null,null,null,null,null,null,0,2.5,{"$f":"W20*V20","v":0}]
["Acqua Frizzante",null,null,null,null,null,null,null,null,null,null,null,null,null,null,null,null,null,null,null,null,0,2.5,0]
["Patatine",null,null,null,null,null,null,null,null,null,null,null,null,null,null,null,null,null,null,null,null,0,2,0]
["Kit Kat",null,null,null,null,null,null,null,null,null,null,null,null,null,null,null,null,null,null,null,null,0,2,0]
[]
[null,601,602,603,604,605,606,607,608,609,610,701,702,703,704,705,706,707,708,709,710,"TOT","PREZZO"]
["Coca Cola",null,null,null,null,null,null,null,null,null,null,null,null,null,null,null,null,null,null,null,null,{"$f":"SUM(B26:U26)","v":0},3,0]
["Coca Cola Light",null,null,null,null,null,null,null,null,null,null,null,null,null,null,null,null,null,null,null,null,{"$f":"SUM(B27:U27)","v":0},3,0]
["Tè",null,null,null,null,null,null,null,null,null,null,null,null,null,null,null,null,null,null,null,null,0,3,0]
["Acqua Tonica",null,null,null,null,null,null,null,null,null,null,null,null,null,null,null,null,null,null,null,null,0,3,0]
["Succo",null,null,null,null,null,null,null,null,null,null,null,null,null,null,null,null,null,null,null,null,0,3,0]
["Birra",null,null,null,null,null,null,null,null,null,null,null,null,null,null,null,null,null,null,null,null,0,3.5,0]
["Acqua Naturale",null,null,null,null,null,null,null,null,null,null,null,null,null,null,null,null,null,null,null,null,0,2.5,{"$f":"W32*V32","v":0}]
["Acqua Frizzante",null,null,null,null,null,null,null,null,null,null,null,null,null,null,null,null,null,null,null,null,0,2.5,0]
["Patatine",null,null,null,null,null,null,null,null,null,null,null,null,null,null,null,null,null,null,null,null,0,2,0]
["Kit Kat",null,null,null,null,null,null,null,null,null,null,null,null,null,null,null,null,null,null,null,null,0,2,0]
[]
[null,801,802,803,804,805,806,807,808,809,810,901,902,903,904,905,906,907,908,909,910,"TOT","PREZZO"]
["Coca Cola",null,null,null,null,null,null,null,null,null,null,null,null,null,null,null,null,null,null,null,null,{"$f":"SUM(B38:U38)","v":0},3,0]
["Coca Cola Light",null,null,null,null,null,null,null,null,null,null,null,null,null,null,null,null,null,null,null,null,0,3,0]
["Tè",null,null,null,null,null,null,null,null,null,null,null,null,null,null,null,null,null,null,null,null,0,3,0]
["Acqua Tonica",null,null,null,null,null,null,null,null,null,null,null,null,null,null,null,null,null,null,null,null,0,3,0]
["Succo",null,null,null,null,null,null,null,null,null,null,null,null,null,null,null,null,null,null,null,null,0,3,0]
["Birra",null,null,null,null,null,null,null,null,null,null,null,null,null,null,null,null,null,null,null,null,0,3.5,0]
["Acqua Naturale",null,null,null,null,null,null,null,null,null,null,null,null,null,null,null,null,null,null,null,null,{"$f":"SUM(B44:U44)","v":0},2.5,{"$f":"W44*V44","v":0}]
["Acqua Frizzante",null,null,null,null,null,null,null,null,null,null,null,null,null,null,null,null,null,null,null,null,0,2.5,0]
["Patatine",null,null,null,null,null,null,null,null,null,null,null,null,null,null,null,null,null,null,null,null,0,2,0]
["Kit Kat",null,null,null,null,null,null,null,null,null,null,null,null,null,null,null,null,null,null,null,null,0,2,0]
[]
[null,1001,1002,1003,1004,1005,1006,1007,1008,1009,1010,1101,1102,1103,1104,1105,1106,1107,1108,1109,1110,"TOT","PREZZO"]
["Coca Cola",null,null,null,null,null,null,null,null,null,null,null,null,null,null,null,null,null,null,null,null,{"$f":"SUM(B50:U50)","v":0},3,0]
["Coca Cola Light",null,null,null,null,null,null,null,null,null,null,null,null,null,null,null,null,null,null,null,null,0,3,0]
["Tè",null,null,null,null,null,null,null,null,null,null,null,null,null,null,null,null,null,null,null,null,0,3,0]
["Acqua Tonica",null,null,null,null,null,null,null,null,null,null,null,null,null,null,null,null,null,null,null,null,0,3,0]
["Succo",null,null,null,null,null,null,null,null,null,null,null,null,null,null,null,null,null,null,null,null,0,3,0]
["Birra",null,null,null,null,null,null,null,null,null,null,null,null,null,null,null,null,null,null,null,null,0,3.5,0]
["Acqua Naturale",null,null,null,null,null,null,null,null,null,null,null,null,null,null,null,null,null,null,null,null,{"$f":"SUM(B56:U56)","v":0},2.5,{"$f":"W56*V56","v":0}]
["Acqua Frizzante",null,null,null,null,null,null,null,null,null,null,null,null,null,null,null,null,null,null,null,null,0,2.5,0]
["Patatine",null,null,null,null,null,null,null,null,null,null,null,null,null,null,null,null,null,null,null,null,0,2,0]
["Kit Kat",null,null,null,null,null,null,null,null,null,null,null,null,null,null,null,null,null,null,null,null,0,2,0]
[]
[null,1201,1202,1203,1204,1205,1206,1207,1208,1209,1210,1301,1302,1303,1304,1305,1306,1307,1308,1309,1310,"TOT","PREZZO"]
["Coca Cola",null,null,null,null,null,null,null,null,null,null,null,null,null,null,null,null,null,null,null,null,{"$f":"SUM(B62:U62)","v":0},3,0]
["Coca Cola Light",null,null,null,null,null,null,null,null,null,null,null,null,null,null,null,null,null,null,null,null,{"$f":"SUM(B63:U63)","v":0},3,0]
["Tè",null,null,null,null,null,null,null,null,null,null,null,null,null,null,null,null,null,null,null,null,0,3,0]
["Acqua Tonica",null,null,null,null,null,null,null,null,null,null,null,null,null,null,null,null,null,null,null,null,0,3,0]
["Succo",null,null,null,null,null,null,null,null,null,null,null,null,null,null,null,null,null,null,null,null,0,3,0]
["Birra",null,null,null,null,null,null,null,null,null,null,null,null,null,null,null,null,null,null,null,null,0,3.5,0]
["Acqua Naturale",null,null,null,null,null,null,null,null,null,null,null,null,null,null,null,null,null,null,null,null,0,2.5,{"$f":"W68*V68","v":0}]
["Acqua Frizzante",null,null,null,null,null,null,null,null,null,null,null,null,null,null,null,null,null,null,null,null,0,2.5,0]
["Patatine",null,null,null,null,null,null,null,null,null,null,null,null,null,null,null,null,null,null,null,null,0,2,0]
["Kit Kat",null,null,null,null,null,null,null,null,null,null,null,null,null,null,null,null,null,null,null,null,0,2,0]
[]
[null,1401,1402,1403,1404,1405,1406,1407,1408,1409,1410,1501,1502,1503,1504,1505,1506,1507,1508,1509,1510,"TOT","PREZZO"]
["Coca Cola",null,null,null,null,null,null,null,null,null,null,null,null,null,null,null,null,null,null,null,null,{"$f":"SUM(B74:U74)","v":0},3,0]
["Coca Cola Light",null,null,null,null,null,null,null,null,null,null,null,null,null,null,null,null,null,null,null,null,{"$f":"SUM(B75:U75)","v":0},3,0]
["Tè",null,null,null,null,null,null,null,null,null,null,null,null,null,null,null,null,null,null,null,null,0,3,0]
["Acqua Tonica",null,null,null,null,null,null,null,null,null,null,null,null,null,null,null,null,null,null,null,null,0,3,0]
["Succo",null,null,null,null,null,null,null,null,null,null,null,null,null,null,null,null,null,null,null,null,0,3,0]
["Birra",null,null,null,null,null,null,null,null,null,null,null,null,null,null,null,null,null,null,null,null,0,3.5,0]
["Acqua Naturale",null,null,null,null,null,null,null,null,null,null,null,null,null,null,null,null,null,null,null,null,0,2.5,{"$f":"W80*V80","v":0}]
["Acqua Frizzante",null,null,null,null,null,null,null,null,null,null,null,null,null,null,null,null,null,null,null,null,0,2.5,0]
["Patatine",null,null,null,null,null,null,null,null,null,null,null,null,null,null,null,null,null,null,null,null,0,2,0]
["Kit Kat",null,null,null,null,null,null,null,null,null,null,null,null,null,null,null,null,null,null,null,null,0,2,0]
[]
[null,1601,1602,1603,1604,1605,1606,1607,1608,1609,1610,1701,1702,1703,1704,1705,1706,1707,1708,null,null,"TOT","PREZZO"]
["Coca Cola",null,null,null,null,null,null,null,null,null,null,null,null,null,null,null,null,null,null,null,null,{"$f":"SUM(B86:U86)","v":0},3,0]
["Coca Cola Light",null,null,null,null,null,null,null,null,null,null,null,null,null,null,null,null,null,null,null,null,{"$f":"SUM(B87:U87)","v":0},3,0]
["Tè",null,null,null,null,null,null,null,null,null,null,null,null,null,null,null,null,null,null,null,null,0,3,0]
["Acqua Tonica",null,null,null,null,null,null,null,null,null,null,null,null,null,null,null,null,null,null,null,null,0,3,0]
["Succo",null,null,null,null,null,null,null,null,null,null,null,null,null,null,null,null,null,null,null,null,0,3,0]
["Birra",null,null,null,null,null,null,null,null,null,null,null,null,null,null,null,null,null,null,null,null,0,3.5,0]
["Acqua Naturale",null,null,null,null,null,null,null,null,null,null,null,null,null,null,null,null,null,null,null,null,0,2.5,{"$f":"W92*V92","v":0}]
["Acqua Frizzante",null,null,null,null,null,null,null,null,null,null,null,null,null,null,null,null,null,null,null,null,0,2.5,0]
["Patatine",null,null,null,null,null,null,null,null,null,null,null,null,null,null,null,null,null,null,null,null,0,2,0]
["Kit Kat",null,null,null,null,null,null,null,null,null,null,null,null,null,null,null,null,null,null,null,null,0,2,0]

{"sheet":"26","index":25,"n_rows":95,"n_cols":24,"rows_kept":95,"cut":false,"hidden":false,"merged":[[11,24,11,47]]}
[null,101,102,103,104,105,201,202,203,206,207,301,302,303,304,305,306,307,308,309,310,"TOT","PREZZO","PREZZO"]
["Coca Cola",null,null,null,null,null,null,null,null,null,null,null,null,null,null,null,null,null,null,null,null,{"$f":"SUM(B2:U2)","v":0},3,0]
["Coca Cola Light",null,null,null,null,null,null,null,null,null,null,null,null,null,null,null,null,null,null,null,null,{"$f":"SUM(B3:U3)","v":0},3,0]
["Tè",null,null,null,null,null,null,null,null,null,null,null,null,null,null,null,null,null,null,null,null,0,3,0]
["Acqua Tonica",null,null,null,null,null,null,null,null,null,null,null,null,null,null,null,null,null,null,null,null,0,3,0]
["Succo",null,null,null,null,null,null,null,null,null,null,null,null,null,null,null,null,null,null,null,null,0,3,0]
["Birra",null,null,null,null,null,null,null,null,null,null,null,null,null,null,null,null,null,null,null,null,0,3.5,0]
["Acqua Naturale",null,null,null,null,null,null,null,null,null,null,null,null,null,null,null,null,null,null,null,null,0,2.5,{"$f":"W8*V8","v":0}]
["Acqua Frizzante",null,null,null,null,null,null,null,null,null,null,null,null,null,null,null,null,null,null,null,null,0,2.5,0]
["Patatine",null,null,null,null,null,null,null,null,null,null,null,null,null,null,null,null,null,null,null,null,0,2,0]
["Kit Kat",null,null,null,null,null,null,null,null,null,null,null,null,null,null,null,null,null,null,null,null,0,2,0]
[]
[null,401,402,403,404,405,406,407,408,409,410,501,502,503,504,505,506,507,508,509,510,"TOT","PREZZO"]
["Coca Cola",null,null,null,null,null,null,null,null,null,null,null,null,null,null,null,null,null,null,null,null,{"$f":"SUM(B14:U14)","v":0},3,0]
["Coca Cola Light",null,null,null,null,null,null,null,null,null,null,null,null,null,null,null,null,null,null,null,null,{"$f":"SUM(B15:U15)","v":0},3,0]
["Tè",null,null,null,null,null,null,null,null,null,null,null,null,null,null,null,null,null,null,null,null,0,3,0]
["Acqua Tonica",null,null,null,null,null,null,null,null,null,null,null,null,null,null,null,null,null,null,null,null,0,3,0]
["Succo",null,null,null,null,null,null,null,null,null,null,null,null,null,null,null,null,null,null,null,null,0,3,0]
["Birra",null,null,null,null,null,null,null,null,null,null,null,null,null,null,null,null,null,null,null,null,0,3.5,0]
["Acqua Naturale",null,null,null,null,null,null,null,null,null,null,null,null,null,null,null,null,null,null,null,null,0,2.5,{"$f":"W20*V20","v":0}]
["Acqua Frizzante",null,null,null,null,null,null,null,null,null,null,null,null,null,null,null,null,null,null,null,null,0,2.5,0]
["Patatine",null,null,null,null,null,null,null,null,null,null,null,null,null,null,null,null,null,null,null,null,0,2,0]
["Kit Kat",null,null,null,null,null,null,null,null,null,null,null,null,null,null,null,null,null,null,null,null,0,2,0]
[]
[null,601,602,603,604,605,606,607,608,609,610,701,702,703,704,705,706,707,708,709,710,"TOT","PREZZO"]
["Coca Cola",null,null,null,null,null,null,null,null,null,null,null,null,null,null,null,null,null,null,null,null,{"$f":"SUM(B26:U26)","v":0},3,0]
["Coca Cola Light",null,null,null,null,null,null,null,null,null,null,null,null,null,null,null,null,null,null,null,null,{"$f":"SUM(B27:U27)","v":0},3,0]
["Tè",null,null,null,null,null,null,null,null,null,null,null,null,null,null,null,null,null,null,null,null,0,3,0]
["Acqua Tonica",null,null,null,null,null,null,null,null,null,null,null,null,null,null,null,null,null,null,null,null,0,3,0]
["Succo",null,null,null,null,null,null,null,null,null,null,null,null,null,null,null,null,null,null,null,null,0,3,0]
["Birra",null,null,null,null,null,null,null,null,null,null,null,null,null,null,null,null,null,null,null,null,0,3.5,0]
["Acqua Naturale",null,null,null,null,null,null,null,null,null,null,null,null,null,null,null,null,null,null,null,null,0,2.5,{"$f":"W32*V32","v":0}]
["Acqua Frizzante",null,null,null,null,null,null,null,null,null,null,null,null,null,null,null,null,null,null,null,null,0,2.5,0]
["Patatine",null,null,null,null,null,null,null,null,null,null,null,null,null,null,null,null,null,null,null,null,0,2,0]
["Kit Kat",null,null,null,null,null,null,null,null,null,null,null,null,null,null,null,null,null,null,null,null,0,2,0]
[]
[null,801,802,803,804,805,806,807,808,809,810,901,902,903,904,905,906,907,908,909,910,"TOT","PREZZO"]
["Coca Cola",null,null,null,null,null,null,null,null,null,null,null,null,null,null,null,null,null,null,null,null,{"$f":"SUM(B38:U38)","v":0},3,0]
["Coca Cola Light",null,null,null,null,null,null,null,null,null,null,null,null,null,null,null,null,null,null,null,null,0,3,0]
["Tè",null,null,null,null,null,null,null,null,null,null,null,null,null,null,null,null,null,null,null,null,0,3,0]
["Acqua Tonica",null,null,null,null,null,null,null,null,null,null,null,null,null,null,null,null,null,null,null,null,0,3,0]
["Succo",null,null,null,null,null,null,null,null,null,null,null,null,null,null,null,null,null,null,null,null,0,3,0]
["Birra",null,null,null,null,null,null,null,null,null,null,null,null,null,null,null,null,null,null,null,null,0,3.5,0]
["Acqua Naturale",null,null,null,null,null,null,null,null,null,null,null,null,null,null,null,null,null,null,null,null,{"$f":"SUM(B44:U44)","v":0},2.5,{"$f":"W44*V44","v":0}]
["Acqua Frizzante",null,null,null,null,null,null,null,null,null,null,null,null,null,null,null,null,null,null,null,null,0,2.5,0]
["Patatine",null,null,null,null,null,null,null,null,null,null,null,null,null,null,null,null,null,null,null,null,0,2,0]
["Kit Kat",null,null,null,null,null,null,null,null,null,null,null,null,null,null,null,null,null,null,null,null,0,2,0]
[]
[null,1001,1002,1003,1004,1005,1006,1007,1008,1009,1010,1101,1102,1103,1104,1105,1106,1107,1108,1109,1110,"TOT","PREZZO"]
["Coca Cola",null,null,null,null,null,null,null,null,null,null,null,null,null,null,null,null,null,null,null,null,{"$f":"SUM(B50:U50)","v":0},3,0]
["Coca Cola Light",null,null,null,null,null,null,null,null,null,null,null,null,null,null,null,null,null,null,null,null,0,3,0]
["Tè",null,null,null,null,null,null,null,null,null,null,null,null,null,null,null,null,null,null,null,null,0,3,0]
["Acqua Tonica",null,null,null,null,null,null,null,null,null,null,null,null,null,null,null,null,null,null,null,null,0,3,0]
["Succo",null,null,null,null,null,null,null,null,null,null,null,null,null,null,null,null,null,null,null,null,0,3,0]
["Birra",null,null,null,null,null,null,null,null,null,null,null,null,null,null,null,null,null,null,null,null,0,3.5,0]
["Acqua Naturale",null,null,null,null,null,null,null,null,null,null,null,null,null,null,null,null,null,null,null,null,{"$f":"SUM(B56:U56)","v":0},2.5,{"$f":"W56*V56","v":0}]
["Acqua Frizzante",null,null,null,null,null,null,null,null,null,null,null,null,null,null,null,null,null,null,null,null,0,2.5,0]
["Patatine",null,null,null,null,null,null,null,null,null,null,null,null,null,null,null,null,null,null,null,null,0,2,0]
["Kit Kat",null,null,null,null,null,null,null,null,null,null,null,null,null,null,null,null,null,null,null,null,0,2,0]
[]
[null,1201,1202,1203,1204,1205,1206,1207,1208,1209,1210,1301,1302,1303,1304,1305,1306,1307,1308,1309,1310,"TOT","PREZZO"]
["Coca Cola",null,null,null,null,null,null,null,null,null,null,null,null,null,null,null,null,null,null,null,null,{"$f":"SUM(B62:U62)","v":0},3,0]
["Coca Cola Light",null,null,null,null,null,null,null,null,null,null,null,null,null,null,null,null,null,null,null,null,{"$f":"SUM(B63:U63)","v":0},3,0]
["Tè",null,null,null,null,null,null,null,null,null,null,null,null,null,null,null,null,null,null,null,null,0,3,0]
["Acqua Tonica",null,null,null,null,null,null,null,null,null,null,null,null,null,null,null,null,null,null,null,null,0,3,0]
["Succo",null,null,null,null,null,null,null,null,null,null,null,null,null,null,null,null,null,null,null,null,0,3,0]
["Birra",null,null,null,null,null,null,null,null,null,null,null,null,null,null,null,null,null,null,null,null,0,3.5,0]
["Acqua Naturale",null,null,null,null,null,null,null,null,null,null,null,null,null,null,null,null,null,null,null,null,0,2.5,{"$f":"W68*V68","v":0}]
["Acqua Frizzante",null,null,null,null,null,null,null,null,null,null,null,null,null,null,null,null,null,null,null,null,0,2.5,0]
["Patatine",null,null,null,null,null,null,null,null,null,null,null,null,null,null,null,null,null,null,null,null,0,2,0]
["Kit Kat",null,null,null,null,null,null,null,null,null,null,null,null,null,null,null,null,null,null,null,null,0,2,0]
[]
[null,1401,1402,1403,1404,1405,1406,1407,1408,1409,1410,1501,1502,1503,1504,1505,1506,1507,1508,1509,1510,"TOT","PREZZO"]
["Coca Cola",null,null,null,null,null,null,null,null,null,null,null,null,null,null,null,null,null,null,null,null,{"$f":"SUM(B74:U74)","v":0},3,0]
["Coca Cola Light",null,null,null,null,null,null,null,null,null,null,null,null,null,null,null,null,null,null,null,null,{"$f":"SUM(B75:U75)","v":0},3,0]
["Tè",null,null,null,null,null,null,null,null,null,null,null,null,null,null,null,null,null,null,null,null,0,3,0]
["Acqua Tonica",null,null,null,null,null,null,null,null,null,null,null,null,null,null,null,null,null,null,null,null,0,3,0]
["Succo",null,null,null,null,null,null,null,null,null,null,null,null,null,null,null,null,null,null,null,null,0,3,0]
["Birra",null,null,null,null,null,null,null,null,null,null,null,null,null,null,null,null,null,null,null,null,0,3.5,0]
["Acqua Naturale",null,null,null,null,null,null,null,null,null,null,null,null,null,null,null,null,null,null,null,null,0,2.5,{"$f":"W80*V80","v":0}]
["Acqua Frizzante",null,null,null,null,null,null,null,null,null,null,null,null,null,null,null,null,null,null,null,null,0,2.5,0]
["Patatine",null,null,null,null,null,null,null,null,null,null,null,null,null,null,null,null,null,null,null,null,0,2,0]
["Kit Kat",null,null,null,null,null,null,null,null,null,null,null,null,null,null,null,null,null,null,null,null,0,2,0]
[]
[null,1601,1602,1603,1604,1605,1606,1607,1608,1609,1610,1701,1702,1703,1704,1705,1706,1707,1708,null,null,"TOT","PREZZO"]
["Coca Cola",null,null,null,null,null,null,null,null,null,null,null,null,null,null,null,null,null,null,null,null,{"$f":"SUM(B86:U86)","v":0},3,0]
["Coca Cola Light",null,null,null,null,null,null,null,null,null,null,null,null,null,null,null,null,null,null,null,null,{"$f":"SUM(B87:U87)","v":0},3,0]
["Tè",null,null,null,null,null,null,null,null,null,null,null,null,null,null,null,null,null,null,null,null,0,3,0]
["Acqua Tonica",null,null,null,null,null,null,null,null,null,null,null,null,null,null,null,null,null,null,null,null,0,3,0]
["Succo",null,null,null,null,null,null,null,null,null,null,null,null,null,null,null,null,null,null,null,null,0,3,0]
["Birra",null,null,null,null,null,null,null,null,null,null,null,null,null,null,null,null,null,null,null,null,0,3.5,0]
["Acqua Naturale",null,null,null,null,null,null,null,null,null,null,null,null,null,null,null,null,null,null,null,null,0,2.5,{"$f":"W92*V92","v":0}]
["Acqua Frizzante",null,null,null,null,null,null,null,null,null,null,null,null,null,null,null,null,null,null,null,null,0,2.5,0]
["Patatine",null,null,null,null,null,null,null,null,null,null,null,null,null,null,null,null,null,null,null,null,0,2,0]
["Kit Kat",null,null,null,null,null,null,null,null,null,null,null,null,null,null,null,null,null,null,null,null,0,2,0]

{"sheet":"27","index":26,"n_rows":95,"n_cols":24,"rows_kept":95,"cut":false,"hidden":false,"merged":[[11,24,11,47]]}
[null,101,102,103,104,105,201,202,203,206,207,301,302,303,304,305,306,307,308,309,310,"TOT","PREZZO","PREZZO"]
["Coca Cola",null,null,null,null,null,null,null,null,null,null,null,null,null,null,null,null,null,null,null,null,{"$f":"SUM(B2:U2)","v":0},3,0]
["Coca Cola Light",null,null,null,null,null,null,null,null,null,null,null,null,null,null,null,null,null,null,null,null,{"$f":"SUM(B3:U3)","v":0},3,0]
["Tè",null,null,null,null,null,null,null,null,null,null,null,null,null,null,null,null,null,null,null,null,0,3,0]
["Acqua Tonica",null,null,null,null,null,null,null,null,null,null,null,null,null,null,null,null,null,null,null,null,0,3,0]
["Succo",null,null,null,null,null,null,null,null,null,null,null,null,null,null,null,null,null,null,null,null,0,3,0]
["Birra",null,null,null,null,null,null,null,null,null,null,null,null,null,null,null,null,null,null,null,null,0,3.5,0]
["Acqua Naturale",null,null,null,null,null,null,null,null,null,null,null,null,null,null,null,null,null,null,null,null,0,2.5,{"$f":"W8*V8","v":0}]
["Acqua Frizzante",null,null,null,null,null,null,null,null,null,null,null,null,null,null,null,null,null,null,null,null,0,2.5,0]
["Patatine",null,null,null,null,null,null,null,null,null,null,null,null,null,null,null,null,null,null,null,null,0,2,0]
["Kit Kat",null,null,null,null,null,null,null,null,null,null,null,null,null,null,null,null,null,null,null,null,0,2,0]
[]
[null,401,402,403,404,405,406,407,408,409,410,501,502,503,504,505,506,507,508,509,510,"TOT","PREZZO"]
["Coca Cola",null,null,null,null,null,null,null,null,null,null,null,null,null,null,null,null,null,null,null,null,{"$f":"SUM(B14:U14)","v":0},3,0]
["Coca Cola Light",null,null,null,null,null,null,null,null,null,null,null,null,null,null,null,null,null,null,null,null,{"$f":"SUM(B15:U15)","v":0},3,0]
["Tè",null,null,null,null,null,null,null,null,null,null,null,null,null,null,null,null,null,null,null,null,0,3,0]
["Acqua Tonica",null,null,null,null,null,null,null,null,null,null,null,null,null,null,null,null,null,null,null,null,0,3,0]
["Succo",null,null,null,null,null,null,null,null,null,null,null,null,null,null,null,null,null,null,null,null,0,3,0]
["Birra",null,null,null,null,null,null,null,null,null,null,null,null,null,null,null,null,null,null,null,null,0,3.5,0]
["Acqua Naturale",null,null,null,null,null,null,null,null,null,null,null,null,null,null,null,null,null,null,null,null,0,2.5,{"$f":"W20*V20","v":0}]
["Acqua Frizzante",null,null,null,null,null,null,null,null,null,null,null,null,null,null,null,null,null,null,null,null,0,2.5,0]
["Patatine",null,null,null,null,null,null,null,null,null,null,null,null,null,null,null,null,null,null,null,null,0,2,0]
["Kit Kat",null,null,null,null,null,null,null,null,null,null,null,null,null,null,null,null,null,null,null,null,0,2,0]
[]
[null,601,602,603,604,605,606,607,608,609,610,701,702,703,704,705,706,707,708,709,710,"TOT","PREZZO"]
["Coca Cola",null,null,null,null,null,null,null,null,null,null,null,null,null,null,null,null,null,null,null,null,{"$f":"SUM(B26:U26)","v":0},3,0]
["Coca Cola Light",null,null,null,null,null,null,null,null,null,null,null,null,null,null,null,null,null,null,null,null,{"$f":"SUM(B27:U27)","v":0},3,0]
["Tè",null,null,null,null,null,null,null,null,null,null,null,null,null,null,null,null,null,null,null,null,0,3,0]
["Acqua Tonica",null,null,null,null,null,null,null,null,null,null,null,null,null,null,null,null,null,null,null,null,0,3,0]
["Succo",null,null,null,null,null,null,null,null,null,null,null,null,null,null,null,null,null,null,null,null,0,3,0]
["Birra",null,null,null,null,null,null,null,null,null,null,null,null,null,null,null,null,null,null,null,null,0,3.5,0]
["Acqua Naturale",null,null,null,null,null,null,null,null,null,null,null,null,null,null,null,null,null,null,null,null,0,2.5,{"$f":"W32*V32","v":0}]
["Acqua Frizzante",null,null,null,null,null,null,null,null,null,null,null,null,null,null,null,null,null,null,null,null,0,2.5,0]
["Patatine",null,null,null,null,null,null,null,null,null,null,null,null,null,null,null,null,null,null,null,null,0,2,0]
["Kit Kat",null,null,null,null,null,null,null,null,null,null,null,null,null,null,null,null,null,null,null,null,0,2,0]
[]
[null,801,802,803,804,805,806,807,808,809,810,901,902,903,904,905,906,907,908,909,910,"TOT","PREZZO"]
["Coca Cola",null,null,null,null,null,null,null,null,null,null,null,null,null,null,null,null,null,null,null,null,{"$f":"SUM(B38:U38)","v":0},3,0]
["Coca Cola Light",null,null,null,null,null,null,null,null,null,null,null,null,null,null,null,null,null,null,null,null,0,3,0]
["Tè",null,null,null,null,null,null,null,null,null,null,null,null,null,null,null,null,null,null,null,null,0,3,0]
["Acqua Tonica",null,null,null,null,null,null,null,null,null,null,null,null,null,null,null,null,null,null,null,null,0,3,0]
["Succo",null,null,null,null,null,null,null,null,null,null,null,null,null,null,null,null,null,null,null,null,0,3,0]
["Birra",null,null,null,null,null,null,null,null,null,null,null,null,null,null,null,null,null,null,null,null,0,3.5,0]
["Acqua Naturale",null,null,null,null,null,null,null,null,null,null,null,null,null,null,null,null,null,null,null,null,{"$f":"SUM(B44:U44)","v":0},2.5,{"$f":"W44*V44","v":0}]
["Acqua Frizzante",null,null,null,null,null,null,null,null,null,null,null,null,null,null,null,null,null,null,null,null,0,2.5,0]
["Patatine",null,null,null,null,null,null,null,null,null,null,null,null,null,null,null,null,null,null,null,null,0,2,0]
["Kit Kat",null,null,null,null,null,null,null,null,null,null,null,null,null,null,null,null,null,null,null,null,0,2,0]
[]
[null,1001,1002,1003,1004,1005,1006,1007,1008,1009,1010,1101,1102,1103,1104,1105,1106,1107,1108,1109,1110,"TOT","PREZZO"]
["Coca Cola",null,null,null,null,null,null,null,null,null,null,null,null,null,null,null,null,null,null,null,null,{"$f":"SUM(B50:U50)","v":0},3,0]
["Coca Cola Light",null,null,null,null,null,null,null,null,null,null,null,null,null,null,null,null,null,null,null,null,0,3,0]
["Tè",null,null,null,null,null,null,null,null,null,null,null,null,null,null,null,null,null,null,null,null,0,3,0]
["Acqua Tonica",null,null,null,null,null,null,null,null,null,null,null,null,null,null,null,null,null,null,null,null,0,3,0]
["Succo",null,null,null,null,null,null,null,null,null,null,null,null,null,null,null,null,null,null,null,null,0,3,0]
["Birra",null,null,null,null,null,null,null,null,null,null,null,null,null,null,null,null,null,null,null,null,0,3.5,0]
["Acqua Naturale",null,null,null,null,null,null,null,null,null,null,null,null,null,null,null,null,null,null,null,null,{"$f":"SUM(B56:U56)","v":0},2.5,{"$f":"W56*V56","v":0}]
["Acqua Frizzante",null,null,null,null,null,null,null,null,null,null,null,null,null,null,null,null,null,null,null,null,0,2.5,0]
["Patatine",null,null,null,null,null,null,null,null,null,null,null,null,null,null,null,null,null,null,null,null,0,2,0]
["Kit Kat",null,null,null,null,null,null,null,null,null,null,null,null,null,null,null,null,null,null,null,null,0,2,0]
[]
[null,1201,1202,1203,1204,1205,1206,1207,1208,1209,1210,1301,1302,1303,1304,1305,1306,1307,1308,1309,1310,"TOT","PREZZO"]
["Coca Cola",null,null,null,null,null,null,null,null,null,null,null,null,null,null,null,null,null,null,null,null,{"$f":"SUM(B62:U62)","v":0},3,0]
["Coca Cola Light",null,null,null,null,null,null,null,null,null,null,null,null,null,null,null,null,null,null,null,null,{"$f":"SUM(B63:U63)","v":0},3,0]
["Tè",null,null,null,null,null,null,null,null,null,null,null,null,null,null,null,null,null,null,null,null,0,3,0]
["Acqua Tonica",null,null,null,null,null,null,null,null,null,null,null,null,null,null,null,null,null,null,null,null,0,3,0]
["Succo",null,null,null,null,null,null,null,null,null,null,null,null,null,null,null,null,null,null,null,null,0,3,0]
["Birra",null,null,null,null,null,null,null,null,null,null,null,null,null,null,null,null,null,null,null,null,0,3.5,0]
["Acqua Naturale",null,null,null,null,null,null,null,null,null,null,null,null,null,null,null,null,null,null,null,null,0,2.5,{"$f":"W68*V68","v":0}]
["Acqua Frizzante",null,null,null,null,null,null,null,null,null,null,null,null,null,null,null,null,null,null,null,null,0,2.5,0]
["Patatine",null,null,null,null,null,null,null,null,null,null,null,null,null,null,null,null,null,null,null,null,0,2,0]
["Kit Kat",null,null,null,null,null,null,null,null,null,null,null,null,null,null,null,null,null,null,null,null,0,2,0]
[]
[null,1401,1402,1403,1404,1405,1406,1407,1408,1409,1410,1501,1502,1503,1504,1505,1506,1507,1508,1509,1510,"TOT","PREZZO"]
["Coca Cola",null,null,null,null,null,null,null,null,null,null,null,null,null,null,null,null,null,null,null,null,{"$f":"SUM(B74:U74)","v":0},3,0]
["Coca Cola Light",null,null,null,null,null,null,null,null,null,null,null,null,null,null,null,null,null,null,null,null,{"$f":"SUM(B75:U75)","v":0},3,0]
["Tè",null,null,null,null,null,null,null,null,null,null,null,null,null,null,null,null,null,null,null,null,0,3,0]
["Acqua Tonica",null,null,null,null,null,null,null,null,null,null,null,null,null,null,null,null,null,null,null,null,0,3,0]
["Succo",null,null,null,null,null,null,null,null,null,null,null,null,null,null,null,null,null,null,null,null,0,3,0]
["Birra",null,null,null,null,null,null,null,null,null,null,null,null,null,null,null,null,null,null,null,null,0,3.5,0]
["Acqua Naturale",null,null,null,null,null,null,null,null,null,null,null,null,null,null,null,null,null,null,null,null,0,2.5,{"$f":"W80*V80","v":0}]
["Acqua Frizzante",null,null,null,null,null,null,null,null,null,null,null,null,null,null,null,null,null,null,null,null,0,2.5,0]
["Patatine",null,null,null,null,null,null,null,null,null,null,null,null,null,null,null,null,null,null,null,null,0,2,0]
["Kit Kat",null,null,null,null,null,null,null,null,null,null,null,null,null,null,null,null,null,null,null,null,0,2,0]
[]
[null,1601,1602,1603,1604,1605,1606,1607,1608,1609,1610,1701,1702,1703,1704,1705,1706,1707,1708,null,null,"TOT","PREZZO"]
["Coca Cola",null,null,null,null,null,null,null,null,null,null,null,null,null,null,null,null,null,null,null,null,{"$f":"SUM(B86:U86)","v":0},3,0]
["Coca Cola Light",null,null,null,null,null,null,null,null,null,null,null,null,null,null,null,null,null,null,null,null,{"$f":"SUM(B87:U87)","v":0},3,0]
["Tè",null,null,null,null,null,null,null,null,null,null,null,null,null,null,null,null,null,null,null,null,0,3,0]
["Acqua Tonica",null,null,null,null,null,null,null,null,null,null,null,null,null,null,null,null,null,null,null,null,0,3,0]
["Succo",null,null,null,null,null,null,null,null,null,null,null,null,null,null,null,null,null,null,null,null,0,3,0]
["Birra",null,null,null,null,null,null,null,null,null,null,null,null,null,null,null,null,null,null,null,null,0,3.5,0]
["Acqua Naturale",null,null,null,null,null,null,null,null,null,null,null,null,null,null,null,null,null,null,null,null,0,2.5,{"$f":"W92*V92","v":0}]
["Acqua Frizzante",null,null,null,null,null,null,null,null,null,null,null,null,null,null,null,null,null,null,null,null,0,2.5,0]
["Patatine",null,null,null,null,null,null,null,null,null,null,null,null,null,null,null,null,null,null,null,null,0,2,0]
["Kit Kat",null,null,null,null,null,null,null,null,null,null,null,null,null,null,null,null,null,null,null,null,0,2,0]

{"sheet":"28","index":27,"n_rows":95,"n_cols":24,"rows_kept":95,"cut":false,"hidden":false,"merged":[[11,24,11,47]]}
[null,101,102,103,104,105,201,202,203,206,207,301,302,303,304,305,306,307,308,309,310,"TOT","PREZZO","PREZZO"]
["Coca Cola",null,null,null,null,null,null,null,null,null,null,null,null,null,null,null,null,null,null,null,null,{"$f":"SUM(B2:U2)","v":0},3,0]
["Coca Cola Light",null,null,null,null,null,null,null,null,null,null,null,null,null,null,null,null,null,null,null,null,{"$f":"SUM(B3:U3)","v":0},3,0]
["Tè",null,null,null,null,null,null,null,null,null,null,null,null,null,null,null,null,null,null,null,null,0,3,0]
["Acqua Tonica",null,null,null,null,null,null,null,null,null,null,null,null,null,null,null,null,null,null,null,null,0,3,0]
["Succo",null,null,null,null,null,null,null,null,null,null,null,null,null,null,null,null,null,null,null,null,0,3,0]
["Birra",null,null,null,null,null,null,null,null,null,null,null,null,null,null,null,null,null,null,null,null,0,3.5,0]
["Acqua Naturale",null,null,null,null,null,null,null,null,null,null,null,null,null,null,null,null,null,null,null,null,0,2.5,{"$f":"W8*V8","v":0}]
["Acqua Frizzante",null,null,null,null,null,null,null,null,null,null,null,null,null,null,null,null,null,null,null,null,0,2.5,0]
["Patatine",null,null,null,null,null,null,null,null,null,null,null,null,null,null,null,null,null,null,null,null,0,2,0]
["Kit Kat",null,null,null,null,null,null,null,null,null,null,null,null,null,null,null,null,null,null,null,null,0,2,0]
[]
[null,401,402,403,404,405,406,407,408,409,410,501,502,503,504,505,506,507,508,509,510,"TOT","PREZZO"]
["Coca Cola",null,null,null,null,null,null,null,null,null,null,null,null,null,null,null,null,null,null,null,null,{"$f":"SUM(B14:U14)","v":0},3,0]
["Coca Cola Light",null,null,null,null,null,null,null,null,null,null,null,null,null,null,null,null,null,null,null,null,{"$f":"SUM(B15:U15)","v":0},3,0]
["Tè",null,null,null,null,null,null,null,null,null,null,null,null,null,null,null,null,null,null,null,null,0,3,0]
["Acqua Tonica",null,null,null,null,null,null,null,null,null,null,null,null,null,null,null,null,null,null,null,null,0,3,0]
["Succo",null,null,null,null,null,null,null,null,null,null,null,null,null,null,null,null,null,null,null,null,0,3,0]
["Birra",null,null,null,null,null,null,null,null,null,null,null,null,null,null,null,null,null,null,null,null,0,3.5,0]
["Acqua Naturale",null,null,null,null,null,null,null,null,null,null,null,null,null,null,null,null,null,null,null,null,0,2.5,{"$f":"W20*V20","v":0}]
["Acqua Frizzante",null,null,null,null,null,null,null,null,null,null,null,null,null,null,null,null,null,null,null,null,0,2.5,0]
["Patatine",null,null,null,null,null,null,null,null,null,null,null,null,null,null,null,null,null,null,null,null,0,2,0]
["Kit Kat",null,null,null,null,null,null,null,null,null,null,null,null,null,null,null,null,null,null,null,null,0,2,0]
[]
[null,601,602,603,604,605,606,607,608,609,610,701,702,703,704,705,706,707,708,709,710,"TOT","PREZZO"]
["Coca Cola",null,null,null,null,null,null,null,null,null,null,null,null,null,null,null,null,null,null,null,null,{"$f":"SUM(B26:U26)","v":0},3,0]
["Coca Cola Light",null,null,null,null,null,null,null,null,null,null,null,null,null,null,null,null,null,null,null,null,{"$f":"SUM(B27:U27)","v":0},3,0]
["Tè",null,null,null,null,null,null,null,null,null,null,null,null,null,null,null,null,null,null,null,null,0,3,0]
["Acqua Tonica",null,null,null,null,null,null,null,null,null,null,null,null,null,null,null,null,null,null,null,null,0,3,0]
["Succo",null,null,null,null,null,null,null,null,null,null,null,null,null,null,null,null,null,null,null,null,0,3,0]
["Birra",null,null,null,null,null,null,null,null,null,null,null,null,null,null,null,null,null,null,null,null,0,3.5,0]
["Acqua Naturale",null,null,null,null,null,null,null,null,null,null,null,null,null,null,null,null,null,null,null,null,0,2.5,{"$f":"W32*V32","v":0}]
["Acqua Frizzante",null,null,null,null,null,null,null,null,null,null,null,null,null,null,null,null,null,null,null,null,0,2.5,0]
["Patatine",null,null,null,null,null,null,null,null,null,null,null,null,null,null,null,null,null,null,null,null,0,2,0]
["Kit Kat",null,null,null,null,null,null,null,null,null,null,null,null,null,null,null,null,null,null,null,null,0,2,0]
[]
[null,801,802,803,804,805,806,807,808,809,810,901,902,903,904,905,906,907,908,909,910,"TOT","PREZZO"]
["Coca Cola",null,null,null,null,null,null,null,null,null,null,null,null,null,null,null,null,null,null,null,null,{"$f":"SUM(B38:U38)","v":0},3,0]
["Coca Cola Light",null,null,null,null,null,null,null,null,null,null,null,null,null,null,null,null,null,null,null,null,0,3,0]
["Tè",null,null,null,null,null,null,null,null,null,null,null,null,null,null,null,null,null,null,null,null,0,3,0]
["Acqua Tonica",null,null,null,null,null,null,null,null,null,null,null,null,null,null,null,null,null,null,null,null,0,3,0]
["Succo",null,null,null,null,null,null,null,null,null,null,null,null,null,null,null,null,null,null,null,null,0,3,0]
["Birra",null,null,null,null,null,null,null,null,null,null,null,null,null,null,null,null,null,null,null,null,0,3.5,0]
["Acqua Naturale",null,null,null,null,null,null,null,null,null,null,null,null,null,null,null,null,null,null,null,null,{"$f":"SUM(B44:U44)","v":0},2.5,{"$f":"W44*V44","v":0}]
["Acqua Frizzante",null,null,null,null,null,null,null,null,null,null,null,null,null,null,null,null,null,null,null,null,0,2.5,0]
["Patatine",null,null,null,null,null,null,null,null,null,null,null,null,null,null,null,null,null,null,null,null,0,2,0]
["Kit Kat",null,null,null,null,null,null,null,null,null,null,null,null,null,null,null,null,null,null,null,null,0,2,0]
[]
[null,1001,1002,1003,1004,1005,1006,1007,1008,1009,1010,1101,1102,1103,1104,1105,1106,1107,1108,1109,1110,"TOT","PREZZO"]
["Coca Cola",null,null,null,null,null,null,null,null,null,null,null,null,null,null,null,null,null,null,null,null,{"$f":"SUM(B50:U50)","v":0},3,0]
["Coca Cola Light",null,null,null,null,null,null,null,null,null,null,null,null,null,null,null,null,null,null,null,null,0,3,0]
["Tè",null,null,null,null,null,null,null,null,null,null,null,null,null,null,null,null,null,null,null,null,0,3,0]
["Acqua Tonica",null,null,null,null,null,null,null,null,null,null,null,null,null,null,null,null,null,null,null,null,0,3,0]
["Succo",null,null,null,null,null,null,null,null,null,null,null,null,null,null,null,null,null,null,null,null,0,3,0]
["Birra",null,null,null,null,null,null,null,null,null,null,null,null,null,null,null,null,null,null,null,null,0,3.5,0]
["Acqua Naturale",null,null,null,null,null,null,null,null,null,null,null,null,null,null,null,null,null,null,null,null,{"$f":"SUM(B56:U56)","v":0},2.5,{"$f":"W56*V56","v":0}]
["Acqua Frizzante",null,null,null,null,null,null,null,null,null,null,null,null,null,null,null,null,null,null,null,null,0,2.5,0]
["Patatine",null,null,null,null,null,null,null,null,null,null,null,null,null,null,null,null,null,null,null,null,0,2,0]
["Kit Kat",null,null,null,null,null,null,null,null,null,null,null,null,null,null,null,null,null,null,null,null,0,2,0]
[]
[null,1201,1202,1203,1204,1205,1206,1207,1208,1209,1210,1301,1302,1303,1304,1305,1306,1307,1308,1309,1310,"TOT","PREZZO"]
["Coca Cola",null,null,null,null,null,null,null,null,null,null,null,null,null,null,null,null,null,null,null,null,{"$f":"SUM(B62:U62)","v":0},3,0]
["Coca Cola Light",null,null,null,null,null,null,null,null,null,null,null,null,null,null,null,null,null,null,null,null,{"$f":"SUM(B63:U63)","v":0},3,0]
["Tè",null,null,null,null,null,null,null,null,null,null,null,null,null,null,null,null,null,null,null,null,0,3,0]
["Acqua Tonica",null,null,null,null,null,null,null,null,null,null,null,null,null,null,null,null,null,null,null,null,0,3,0]
["Succo",null,null,null,null,null,null,null,null,null,null,null,null,null,null,null,null,null,null,null,null,0,3,0]
["Birra",null,null,null,null,null,null,null,null,null,null,null,null,null,null,null,null,null,null,null,null,0,3.5,0]
["Acqua Naturale",null,null,null,null,null,null,null,null,null,null,null,null,null,null,null,null,null,null,null,null,0,2.5,{"$f":"W68*V68","v":0}]
["Acqua Frizzante",null,null,null,null,null,null,null,null,null,null,null,null,null,null,null,null,null,null,null,null,0,2.5,0]
["Patatine",null,null,null,null,null,null,null,null,null,null,null,null,null,null,null,null,null,null,null,null,0,2,0]
["Kit Kat",null,null,null,null,null,null,null,null,null,null,null,null,null,null,null,null,null,null,null,null,0,2,0]
[]
[null,1401,1402,1403,1404,1405,1406,1407,1408,1409,1410,1501,1502,1503,1504,1505,1506,1507,1508,1509,1510,"TOT","PREZZO"]
["Coca Cola",null,null,null,null,null,null,null,null,null,null,null,null,null,null,null,null,null,null,null,null,{"$f":"SUM(B74:U74)","v":0},3,0]
["Coca Cola Light",null,null,null,null,null,null,null,null,null,null,null,null,null,null,null,null,null,null,null,null,{"$f":"SUM(B75:U75)","v":0},3,0]
["Tè",null,null,null,null,null,null,null,null,null,null,null,null,null,null,null,null,null,null,null,null,0,3,0]
["Acqua Tonica",null,null,null,null,null,null,null,null,null,null,null,null,null,null,null,null,null,null,null,null,0,3,0]
["Succo",null,null,null,null,null,null,null,null,null,null,null,null,null,null,null,null,null,null,null,null,0,3,0]
["Birra",null,null,null,null,null,null,null,null,null,null,null,null,null,null,null,null,null,null,null,null,0,3.5,0]
["Acqua Naturale",null,null,null,null,null,null,null,null,null,null,null,null,null,null,null,null,null,null,null,null,0,2.5,{"$f":"W80*V80","v":0}]
["Acqua Frizzante",null,null,null,null,null,null,null,null,null,null,null,null,null,null,null,null,null,null,null,null,0,2.5,0]
["Patatine",null,null,null,null,null,null,null,null,null,null,null,null,null,null,null,null,null,null,null,null,0,2,0]
["Kit Kat",null,null,null,null,null,null,null,null,null,null,null,null,null,null,null,null,null,null,null,null,0,2,0]
[]
[null,1601,1602,1603,1604,1605,1606,1607,1608,1609,1610,1701,1702,1703,1704,1705,1706,1707,1708,null,null,"TOT","PREZZO"]
["Coca Cola",null,null,null,null,null,null,null,null,null,null,null,null,null,null,null,null,null,null,null,null,{"$f":"SUM(B86:U86)","v":0},3,0]
["Coca Cola Light",null,null,null,null,null,null,null,null,null,null,null,null,null,null,null,null,null,null,null,null,{"$f":"SUM(B87:U87)","v":0},3,0]
["Tè",null,null,null,null,null,null,null,null,null,null,null,null,null,null,null,null,null,null,null,null,0,3,0]
["Acqua Tonica",null,null,null,null,null,null,null,null,null,null,null,null,null,null,null,null,null,null,null,null,0,3,0]
["Succo",null,null,null,null,null,null,null,null,null,null,null,null,null,null,null,null,null,null,null,null,0,3,0]
["Birra",null,null,null,null,null,null,null,null,null,null,null,null,null,null,null,null,null,null,null,null,0,3.5,0]
["Acqua Naturale",null,null,null,null,null,null,null,null,null,null,null,null,null,null,null,null,null,null,null,null,0,2.5,{"$f":"W92*V92","v":0}]
["Acqua Frizzante",null,null,null,null,null,null,null,null,null,null,null,null,null,null,null,null,null,null,null,null,0,2.5,0]
["Patatine",null,null,null,null,null,null,null,null,null,null,null,null,null,null,null,null,null,null,null,null,0,2,0]
["Kit Kat",null,null,null,null,null,null,null,null,null,null,null,null,null,null,null,null,null,null,null,null,0,2,0]

{"sheet":"29","index":28,"n_rows":95,"n_cols":24,"rows_kept":95,"cut":false,"hidden":false,"merged":[[11,24,11,47]]}
[null,101,102,103,104,105,201,202,203,206,207,301,302,303,304,305,306,307,308,309,310,"TOT","PREZZO","PREZZO"]
["Coca Cola",null,null,null,null,null,null,null,null,null,null,null,null,null,null,null,null,null,null,null,null,{"$f":"SUM(B2:U2)","v":0},3,0]
["Coca Cola Light",null,null,null,null,null,null,null,null,null,null,null,null,null,null,null,null,null,null,null,null,{"$f":"SUM(B3:U3)","v":0},3,0]
["Tè",null,null,null,null,null,null,null,null,null,null,null,null,null,null,null,null,null,null,null,null,0,3,0]
["Acqua Tonica",null,null,null,null,null,null,null,null,null,null,null,null,null,null,null,null,null,null,null,null,0,3,0]
["Succo",null,null,null,null,null,null,null,null,null,null,null,null,null,null,null,null,null,null,null,null,0,3,0]
["Birra",null,null,null,null,null,null,null,null,null,null,null,null,null,null,null,null,null,null,null,null,0,3.5,0]
["Acqua Naturale",null,null,null,null,null,null,null,null,null,null,null,null,null,null,null,null,null,null,null,null,0,2.5,{"$f":"W8*V8","v":0}]
["Acqua Frizzante",null,null,null,null,null,null,null,null,null,null,null,null,null,null,null,null,null,null,null,null,0,2.5,0]
["Patatine",null,null,null,null,null,null,null,null,null,null,null,null,null,null,null,null,null,null,null,null,0,2,0]
["Kit Kat",null,null,null,null,null,null,null,null,null,null,null,null,null,null,null,null,null,null,null,null,0,2,0]
[]
[null,401,402,403,404,405,406,407,408,409,410,501,502,503,504,505,506,507,508,509,510,"TOT","PREZZO"]
["Coca Cola",null,null,null,null,null,null,null,null,null,null,null,null,null,null,null,null,null,null,null,null,{"$f":"SUM(B14:U14)","v":0},3,0]
["Coca Cola Light",null,null,null,null,null,null,null,null,null,null,null,null,null,null,null,null,null,null,null,null,{"$f":"SUM(B15:U15)","v":0},3,0]
["Tè",null,null,null,null,null,null,null,null,null,null,null,null,null,null,null,null,null,null,null,null,0,3,0]
["Acqua Tonica",null,null,null,null,null,null,null,null,null,null,null,null,null,null,null,null,null,null,null,null,0,3,0]
["Succo",null,null,null,null,null,null,null,null,null,null,null,null,null,null,null,null,null,null,null,null,0,3,0]
["Birra",null,null,null,null,null,null,null,null,null,null,null,null,null,null,null,null,null,null,null,null,0,3.5,0]
["Acqua Naturale",null,null,null,null,null,null,null,null,null,null,null,null,null,null,null,null,null,null,null,null,0,2.5,{"$f":"W20*V20","v":0}]
["Acqua Frizzante",null,null,null,null,null,null,null,null,null,null,null,null,null,null,null,null,null,null,null,null,0,2.5,0]
["Patatine",null,null,null,null,null,null,null,null,null,null,null,null,null,null,null,null,null,null,null,null,0,2,0]
["Kit Kat",null,null,null,null,null,null,null,null,null,null,null,null,null,null,null,null,null,null,null,null,0,2,0]
[]
[null,601,602,603,604,605,606,607,608,609,610,701,702,703,704,705,706,707,708,709,710,"TOT","PREZZO"]
["Coca Cola",null,null,null,null,null,null,null,null,null,null,null,null,null,null,null,null,null,null,null,null,{"$f":"SUM(B26:U26)","v":0},3,0]
["Coca Cola Light",null,null,null,null,null,null,null,null,null,null,null,null,null,null,null,null,null,null,null,null,{"$f":"SUM(B27:U27)","v":0},3,0]
["Tè",null,null,null,null,null,null,null,null,null,null,null,null,null,null,null,null,null,null,null,null,0,3,0]
["Acqua Tonica",null,null,null,null,null,null,null,null,null,null,null,null,null,null,null,null,null,null,null,null,0,3,0]
["Succo",null,null,null,null,null,null,null,null,null,null,null,null,null,null,null,null,null,null,null,null,0,3,0]
["Birra",null,null,null,null,null,null,null,null,null,null,null,null,null,null,null,null,null,null,null,null,0,3.5,0]
["Acqua Naturale",null,null,null,null,null,null,null,null,null,null,null,null,null,null,null,null,null,null,null,null,0,2.5,{"$f":"W32*V32","v":0}]
["Acqua Frizzante",null,null,null,null,null,null,null,null,null,null,null,null,null,null,null,null,null,null,null,null,0,2.5,0]
["Patatine",null,null,null,null,null,null,null,null,null,null,null,null,null,null,null,null,null,null,null,null,0,2,0]
["Kit Kat",null,null,null,null,null,null,null,null,null,null,null,null,null,null,null,null,null,null,null,null,0,2,0]
[]
[null,801,802,803,804,805,806,807,808,809,810,901,902,903,904,905,906,907,908,909,910,"TOT","PREZZO"]
["Coca Cola",null,null,null,null,null,null,null,null,null,null,null,null,null,null,null,null,null,null,null,null,{"$f":"SUM(B38:U38)","v":0},3,0]
["Coca Cola Light",null,null,null,null,null,null,null,null,null,null,null,null,null,null,null,null,null,null,null,null,0,3,0]
["Tè",null,null,null,null,null,null,null,null,null,null,null,null,null,null,null,null,null,null,null,null,0,3,0]
["Acqua Tonica",null,null,null,null,null,null,null,null,null,null,null,null,null,null,null,null,null,null,null,null,0,3,0]
["Succo",null,null,null,null,null,null,null,null,null,null,null,null,null,null,null,null,null,null,null,null,0,3,0]
["Birra",null,null,null,null,null,null,null,null,null,null,null,null,null,null,null,null,null,null,null,null,0,3.5,0]
["Acqua Naturale",null,null,null,null,null,null,null,null,null,null,null,null,null,null,null,null,null,null,null,null,{"$f":"SUM(B44:U44)","v":0},2.5,{"$f":"W44*V44","v":0}]
["Acqua Frizzante",null,null,null,null,null,null,null,null,null,null,null,null,null,null,null,null,null,null,null,null,0,2.5,0]
["Patatine",null,null,null,null,null,null,null,null,null,null,null,null,null,null,null,null,null,null,null,null,0,2,0]
["Kit Kat",null,null,null,null,null,null,null,null,null,null,null,null,null,null,null,null,null,null,null,null,0,2,0]
[]
[null,1001,1002,1003,1004,1005,1006,1007,1008,1009,1010,1101,1102,1103,1104,1105,1106,1107,1108,1109,1110,"TOT","PREZZO"]
["Coca Cola",null,null,null,null,null,null,null,null,null,null,null,null,null,null,null,null,null,null,null,null,{"$f":"SUM(B50:U50)","v":0},3,0]
["Coca Cola Light",null,null,null,null,null,null,null,null,null,null,null,null,null,null,null,null,null,null,null,null,0,3,0]
["Tè",null,null,null,null,null,null,null,null,null,null,null,null,null,null,null,null,null,null,null,null,0,3,0]
["Acqua Tonica",null,null,null,null,null,null,null,null,null,null,null,null,null,null,null,null,null,null,null,null,0,3,0]
["Succo",null,null,null,null,null,null,null,null,null,null,null,null,null,null,null,null,null,null,null,null,0,3,0]
["Birra",null,null,null,null,null,null,null,null,null,null,null,null,null,null,null,null,null,null,null,null,0,3.5,0]
["Acqua Naturale",null,null,null,null,null,null,null,null,null,null,null,null,null,null,null,null,null,null,null,null,{"$f":"SUM(B56:U56)","v":0},2.5,{"$f":"W56*V56","v":0}]
["Acqua Frizzante",null,null,null,null,null,null,null,null,null,null,null,null,null,null,null,null,null,null,null,null,0,2.5,0]
["Patatine",null,null,null,null,null,null,null,null,null,null,null,null,null,null,null,null,null,null,null,null,0,2,0]
["Kit Kat",null,null,null,null,null,null,null,null,null,null,null,null,null,null,null,null,null,null,null,null,0,2,0]
[]
[null,1201,1202,1203,1204,1205,1206,1207,1208,1209,1210,1301,1302,1303,1304,1305,1306,1307,1308,1309,1310,"TOT","PREZZO"]
["Coca Cola",null,null,null,null,null,null,null,null,null,null,null,null,null,null,null,null,null,null,null,null,{"$f":"SUM(B62:U62)","v":0},3,0]
["Coca Cola Light",null,null,null,null,null,null,null,null,null,null,null,null,null,null,null,null,null,null,null,null,{"$f":"SUM(B63:U63)","v":0},3,0]
["Tè",null,null,null,null,null,null,null,null,null,null,null,null,null,null,null,null,null,null,null,null,0,3,0]
["Acqua Tonica",null,null,null,null,null,null,null,null,null,null,null,null,null,null,null,null,null,null,null,null,0,3,0]
["Succo",null,null,null,null,null,null,null,null,null,null,null,null,null,null,null,null,null,null,null,null,0,3,0]
["Birra",null,null,null,null,null,null,null,null,null,null,null,null,null,null,null,null,null,null,null,null,0,3.5,0]
["Acqua Naturale",null,null,null,null,null,null,null,null,null,null,null,null,null,null,null,null,null,null,null,null,0,2.5,{"$f":"W68*V68","v":0}]
["Acqua Frizzante",null,null,null,null,null,null,null,null,null,null,null,null,null,null,null,null,null,null,null,null,0,2.5,0]
["Patatine",null,null,null,null,null,null,null,null,null,null,null,null,null,null,null,null,null,null,null,null,0,2,0]
["Kit Kat",null,null,null,null,null,null,null,null,null,null,null,null,null,null,null,null,null,null,null,null,0,2,0]
[]
[null,1401,1402,1403,1404,1405,1406,1407,1408,1409,1410,1501,1502,1503,1504,1505,1506,1507,1508,1509,1510,"TOT","PREZZO"]
["Coca Cola",null,null,null,null,null,null,null,null,null,null,null,null,null,null,null,null,null,null,null,null,{"$f":"SUM(B74:U74)","v":0},3,0]
["Coca Cola Light",null,null,null,null,null,null,null,null,null,null,null,null,null,null,null,null,null,null,null,null,{"$f":"SUM(B75:U75)","v":0},3,0]
["Tè",null,null,null,null,null,null,null,null,null,null,null,null,null,null,null,null,null,null,null,null,0,3,0]
["Acqua Tonica",null,null,null,null,null,null,null,null,null,null,null,null,null,null,null,null,null,null,null,null,0,3,0]
["Succo",null,null,null,null,null,null,null,null,null,null,null,null,null,null,null,null,null,null,null,null,0,3,0]
["Birra",null,null,null,null,null,null,null,null,null,null,null,null,null,null,null,null,null,null,null,null,0,3.5,0]
["Acqua Naturale",null,null,null,null,null,null,null,null,null,null,null,null,null,null,null,null,null,null,null,null,0,2.5,{"$f":"W80*V80","v":0}]
["Acqua Frizzante",null,null,null,null,null,null,null,null,null,null,null,null,null,null,null,null,null,null,null,null,0,2.5,0]
["Patatine",null,null,null,null,null,null,null,null,null,null,null,null,null,null,null,null,null,null,null,null,0,2,0]
["Kit Kat",null,null,null,null,null,null,null,null,null,null,null,null,null,null,null,null,null,null,null,null,0,2,0]
[]
[null,1601,1602,1603,1604,1605,1606,1607,1608,1609,1610,1701,1702,1703,1704,1705,1706,1707,1708,null,null,"TOT","PREZZO"]
["Coca Cola",null,null,null,null,null,null,null,null,null,null,null,null,null,null,null,null,null,null,null,null,{"$f":"SUM(B86:U86)","v":0},3,0]
["Coca Cola Light",null,null,null,null,null,null,null,null,null,null,null,null,null,null,null,null,null,null,null,null,{"$f":"SUM(B87:U87)","v":0},3,0]
["Tè",null,null,null,null,null,null,null,null,null,null,null,null,null,null,null,null,null,null,null,null,0,3,0]
["Acqua Tonica",null,null,null,null,null,null,null,null,null,null,null,null,null,null,null,null,null,null,null,null,0,3,0]
["Succo",null,null,null,null,null,null,null,null,null,null,null,null,null,null,null,null,null,null,null,null,0,3,0]
["Birra",null,null,null,null,null,null,null,null,null,null,null,null,null,null,null,null,null,null,null,null,0,3.5,0]
["Acqua Naturale",null,null,null,null,null,null,null,null,null,null,null,null,null,null,null,null,null,null,null,null,0,2.5,{"$f":"W92*V92","v":0}]
["Acqua Frizzante",null,null,null,null,null,null,null,null,null,null,null,null,null,null,null,null,null,null,null,null,0,2.5,0]
["Patatine",null,null,null,null,null,null,null,null,null,null,null,null,null,null,null,null,null,null,null,null,0,2,0]
["Kit Kat",null,null,null,null,null,null,null,null,null,null,null,null,null,null,null,null,null,null,null,null,0,2,0]

{"sheet":"30","index":29,"n_rows":95,"n_cols":24,"rows_kept":95,"cut":false,"hidden":false,"merged":[[11,24,11,47]]}
[null,101,102,103,104,105,201,202,203,206,207,301,302,303,304,305,306,307,308,309,310,"TOT","PREZZO","PREZZO"]
["Coca Cola",null,null,null,null,null,null,null,null,null,null,null,null,null,null,null,null,null,null,null,null,{"$f":"SUM(B2:U2)","v":0},3,0]
["Coca Cola Light",null,null,null,null,null,null,null,null,null,null,null,null,null,null,null,null,null,null,null,null,{"$f":"SUM(B3:U3)","v":0},3,0]
["Tè",null,null,null,null,null,null,null,null,null,null,null,null,null,null,null,null,null,null,null,null,0,3,0]
["Acqua Tonica",null,null,null,null,null,null,null,null,null,null,null,null,null,null,null,null,null,null,null,null,0,3,0]
["Succo",null,null,null,null,null,null,null,null,null,null,null,null,null,null,null,null,null,null,null,null,0,3,0]
["Birra",null,null,null,null,null,null,null,null,null,null,null,null,null,null,null,null,null,null,null,null,0,3.5,0]
["Acqua Naturale",null,null,null,null,null,null,null,null,null,null,null,null,null,null,null,null,null,null,null,null,0,2.5,{"$f":"W8*V8","v":0}]
["Acqua Frizzante",null,null,null,null,null,null,null,null,null,null,null,null,null,null,null,null,null,null,null,null,0,2.5,0]
["Patatine",null,null,null,null,null,null,null,null,null,null,null,null,null,null,null,null,null,null,null,null,0,2,0]
["Kit Kat",null,null,null,null,null,null,null,null,null,null,null,null,null,null,null,null,null,null,null,null,0,2,0]
[]
[null,401,402,403,404,405,406,407,408,409,410,501,502,503,504,505,506,507,508,509,510,"TOT","PREZZO"]
["Coca Cola",null,null,null,null,null,null,null,null,null,null,null,null,null,null,null,null,null,null,null,null,{"$f":"SUM(B14:U14)","v":0},3,0]
["Coca Cola Light",null,null,null,null,null,null,null,null,null,null,null,null,null,null,null,null,null,null,null,null,{"$f":"SUM(B15:U15)","v":0},3,0]
["Tè",null,null,null,null,null,null,null,null,null,null,null,null,null,null,null,null,null,null,null,null,0,3,0]
["Acqua Tonica",null,null,null,null,null,null,null,null,null,null,null,null,null,null,null,null,null,null,null,null,0,3,0]
["Succo",null,null,null,null,null,null,null,null,null,null,null,null,null,null,null,null,null,null,null,null,0,3,0]
["Birra",null,null,null,null,null,null,null,null,null,null,null,null,null,null,null,null,null,null,null,null,0,3.5,0]
["Acqua Naturale",null,null,null,null,null,null,null,null,null,null,null,null,null,null,null,null,null,null,null,null,0,2.5,{"$f":"W20*V20","v":0}]
["Acqua Frizzante",null,null,null,null,null,null,null,null,null,null,null,null,null,null,null,null,null,null,null,null,0,2.5,0]
["Patatine",null,null,null,null,null,null,null,null,null,null,null,null,null,null,null,null,null,null,null,null,0,2,0]
["Kit Kat",null,null,null,null,null,null,null,null,null,null,null,null,null,null,null,null,null,null,null,null,0,2,0]
[]
[null,601,602,603,604,605,606,607,608,609,610,701,702,703,704,705,706,707,708,709,710,"TOT","PREZZO"]
["Coca Cola",null,null,null,null,null,null,null,null,null,null,null,null,null,null,null,null,null,null,null,null,{"$f":"SUM(B26:U26)","v":0},3,0]
["Coca Cola Light",null,null,null,null,null,null,null,null,null,null,null,null,null,null,null,null,null,null,null,null,{"$f":"SUM(B27:U27)","v":0},3,0]
["Tè",null,null,null,null,null,null,null,null,null,null,null,null,null,null,null,null,null,null,null,null,0,3,0]
["Acqua Tonica",null,null,null,null,null,null,null,null,null,null,null,null,null,null,null,null,null,null,null,null,0,3,0]
["Succo",null,null,null,null,null,null,null,null,null,null,null,null,null,null,null,null,null,null,null,null,0,3,0]
["Birra",null,null,null,null,null,null,null,null,null,null,null,null,null,null,null,null,null,null,null,null,0,3.5,0]
["Acqua Naturale",null,null,null,null,null,null,null,null,null,null,null,null,null,null,null,null,null,null,null,null,0,2.5,{"$f":"W32*V32","v":0}]
["Acqua Frizzante",null,null,null,null,null,null,null,null,null,null,null,null,null,null,null,null,null,null,null,null,0,2.5,0]
["Patatine",null,null,null,null,null,null,null,null,null,null,null,null,null,null,null,null,null,null,null,null,0,2,0]
["Kit Kat",null,null,null,null,null,null,null,null,null,null,null,null,null,null,null,null,null,null,null,null,0,2,0]
[]
[null,801,802,803,804,805,806,807,808,809,810,901,902,903,904,905,906,907,908,909,910,"TOT","PREZZO"]
["Coca Cola",null,null,null,null,null,null,null,null,null,null,null,null,null,null,null,null,null,null,null,null,{"$f":"SUM(B38:U38)","v":0},3,0]
["Coca Cola Light",null,null,null,null,null,null,null,null,null,null,null,null,null,null,null,null,null,null,null,null,0,3,0]
["Tè",null,null,null,null,null,null,null,null,null,null,null,null,null,null,null,null,null,null,null,null,0,3,0]
["Acqua Tonica",null,null,null,null,null,null,null,null,null,null,null,null,null,null,null,null,null,null,null,null,0,3,0]
["Succo",null,null,null,null,null,null,null,null,null,null,null,null,null,null,null,null,null,null,null,null,0,3,0]
["Birra",null,null,null,null,null,null,null,null,null,null,null,null,null,null,null,null,null,null,null,null,0,3.5,0]
["Acqua Naturale",null,null,null,null,null,null,null,null,null,null,null,null,null,null,null,null,null,null,null,null,{"$f":"SUM(B44:U44)","v":0},2.5,{"$f":"W44*V44","v":0}]
["Acqua Frizzante",null,null,null,null,null,null,null,null,null,null,null,null,null,null,null,null,null,null,null,null,0,2.5,0]
["Patatine",null,null,null,null,null,null,null,null,null,null,null,null,null,null,null,null,null,null,null,null,0,2,0]
["Kit Kat",null,null,null,null,null,null,null,null,null,null,null,null,null,null,null,null,null,null,null,null,0,2,0]
[]
[null,1001,1002,1003,1004,1005,1006,1007,1008,1009,1010,1101,1102,1103,1104,1105,1106,1107,1108,1109,1110,"TOT","PREZZO"]
["Coca Cola",null,null,null,null,null,null,null,null,null,null,null,null,null,null,null,null,null,null,null,null,{"$f":"SUM(B50:U50)","v":0},3,0]
["Coca Cola Light",null,null,null,null,null,null,null,null,null,null,null,null,null,null,null,null,null,null,null,null,0,3,0]
["Tè",null,null,null,null,null,null,null,null,null,null,null,null,null,null,null,null,null,null,null,null,0,3,0]
["Acqua Tonica",null,null,null,null,null,null,null,null,null,null,null,null,null,null,null,null,null,null,null,null,0,3,0]
["Succo",null,null,null,null,null,null,null,null,null,null,null,null,null,null,null,null,null,null,null,null,0,3,0]
["Birra",null,null,null,null,null,null,null,null,null,null,null,null,null,null,null,null,null,null,null,null,0,3.5,0]
["Acqua Naturale",null,null,null,null,null,null,null,null,null,null,null,null,null,null,null,null,null,null,null,null,{"$f":"SUM(B56:U56)","v":0},2.5,{"$f":"W56*V56","v":0}]
["Acqua Frizzante",null,null,null,null,null,null,null,null,null,null,null,null,null,null,null,null,null,null,null,null,0,2.5,0]
["Patatine",null,null,null,null,null,null,null,null,null,null,null,null,null,null,null,null,null,null,null,null,0,2,0]
["Kit Kat",null,null,null,null,null,null,null,null,null,null,null,null,null,null,null,null,null,null,null,null,0,2,0]
[]
[null,1201,1202,1203,1204,1205,1206,1207,1208,1209,1210,1301,1302,1303,1304,1305,1306,1307,1308,1309,1310,"TOT","PREZZO"]
["Coca Cola",null,null,null,null,null,null,null,null,null,null,null,null,null,null,null,null,null,null,null,null,{"$f":"SUM(B62:U62)","v":0},3,0]
["Coca Cola Light",null,null,null,null,null,null,null,null,null,null,null,null,null,null,null,null,null,null,null,null,{"$f":"SUM(B63:U63)","v":0},3,0]
["Tè",null,null,null,null,null,null,null,null,null,null,null,null,null,null,null,null,null,null,null,null,0,3,0]
["Acqua Tonica",null,null,null,null,null,null,null,null,null,null,null,null,null,null,null,null,null,null,null,null,0,3,0]
["Succo",null,null,null,null,null,null,null,null,null,null,null,null,null,null,null,null,null,null,null,null,0,3,0]
["Birra",null,null,null,null,null,null,null,null,null,null,null,null,null,null,null,null,null,null,null,null,0,3.5,0]
["Acqua Naturale",null,null,null,null,null,null,null,null,null,null,null,null,null,null,null,null,null,null,null,null,0,2.5,{"$f":"W68*V68","v":0}]
["Acqua Frizzante",null,null,null,null,null,null,null,null,null,null,null,null,null,null,null,null,null,null,null,null,0,2.5,0]
["Patatine",null,null,null,null,null,null,null,null,null,null,null,null,null,null,null,null,null,null,null,null,0,2,0]
["Kit Kat",null,null,null,null,null,null,null,null,null,null,null,null,null,null,null,null,null,null,null,null,0,2,0]
[]
[null,1401,1402,1403,1404,1405,1406,1407,1408,1409,1410,1501,1502,1503,1504,1505,1506,1507,1508,1509,1510,"TOT","PREZZO"]
["Coca Cola",null,null,null,null,null,null,null,null,null,null,null,null,null,null,null,null,null,null,null,null,{"$f":"SUM(B74:U74)","v":0},3,0]
["Coca Cola Light",null,null,null,null,null,null,null,null,null,null,null,null,null,null,null,null,null,null,null,null,{"$f":"SUM(B75:U75)","v":0},3,0]
["Tè",null,null,null,null,null,null,null,null,null,null,null,null,null,null,null,null,null,null,null,null,0,3,0]
["Acqua Tonica",null,null,null,null,null,null,null,null,null,null,null,null,null,null,null,null,null,null,null,null,0,3,0]
["Succo",null,null,null,null,null,null,null,null,null,null,null,null,null,null,null,null,null,null,null,null,0,3,0]
["Birra",null,null,null,null,null,null,null,null,null,null,null,null,null,null,null,null,null,null,null,null,0,3.5,0]
["Acqua Naturale",null,null,null,null,null,null,null,null,null,null,null,null,null,null,null,null,null,null,null,null,0,2.5,{"$f":"W80*V80","v":0}]
["Acqua Frizzante",null,null,null,null,null,null,null,null,null,null,null,null,null,null,null,null,null,null,null,null,0,2.5,0]
["Patatine",null,null,null,null,null,null,null,null,null,null,null,null,null,null,null,null,null,null,null,null,0,2,0]
["Kit Kat",null,null,null,null,null,null,null,null,null,null,null,null,null,null,null,null,null,null,null,null,0,2,0]
[]
[null,1601,1602,1603,1604,1605,1606,1607,1608,1609,1610,1701,1702,1703,1704,1705,1706,1707,1708,null,null,"TOT","PREZZO"]
["Coca Cola",null,null,null,null,null,null,null,null,null,null,null,null,null,null,null,null,null,null,null,null,{"$f":"SUM(B86:U86)","v":0},3,0]
["Coca Cola Light",null,null,null,null,null,null,null,null,null,null,null,null,null,null,null,null,null,null,null,null,{"$f":"SUM(B87:U87)","v":0},3,0]
["Tè",null,null,null,null,null,null,null,null,null,null,null,null,null,null,null,null,null,null,null,null,0,3,0]
["Acqua Tonica",null,null,null,null,null,null,null,null,null,null,null,null,null,null,null,null,null,null,null,null,0,3,0]
["Succo",null,null,null,null,null,null,null,null,null,null,null,null,null,null,null,null,null,null,null,null,0,3,0]
["Birra",null,null,null,null,null,null,null,null,null,null,null,null,null,null,null,null,null,null,null,null,0,3.5,0]
["Acqua Naturale",null,null,null,null,null,null,null,null,null,null,null,null,null,null,null,null,null,null,null,null,0,2.5,{"$f":"W92*V92","v":0}]
["Acqua Frizzante",null,null,null,null,null,null,null,null,null,null,null,null,null,null,null,null,null,null,null,null,0,2.5,0]
["Patatine",null,null,null,null,null,null,null,null,null,null,null,null,null,null,null,null,null,null,null,null,0,2,0]
["Kit Kat",null,null,null,null,null,null,null,null,null,null,null,null,null,null,null,null,null,null,null,null,0,2,0]

{"sheet":"31","index":30,"n_rows":95,"n_cols":24,"rows_kept":95,"cut":false,"hidden":false,"merged":[[11,24,11,47]]}
[null,101,102,103,104,105,201,202,203,206,207,301,302,303,304,305,306,307,308,309,310,"TOT","PREZZO","PREZZO"]
["Coca Cola",null,null,null,null,null,null,null,null,null,null,null,null,null,null,null,null,null,null,null,null,{"$f":"SUM(B2:U2)","v":0},3,0]
["Coca Cola Light",null,null,null,null,null,null,null,null,null,null,null,null,null,null,null,null,null,null,null,null,{"$f":"SUM(B3:U3)","v":0},3,0]
["Tè",null,null,null,null,null,null,null,null,null,null,null,null,null,null,null,null,null,null,null,null,0,3,0]
["Acqua Tonica",null,null,null,null,null,null,null,null,null,null,null,null,null,null,null,null,null,null,null,null,0,3,0]
["Succo",null,null,null,null,null,null,null,null,null,null,null,null,null,null,null,null,null,null,null,null,0,3,0]
["Birra",null,null,null,null,null,null,null,null,null,null,null,null,null,null,null,null,null,null,null,null,0,3.5,0]
["Acqua Naturale",null,null,null,null,null,null,null,null,null,null,null,null,null,null,null,null,null,null,null,null,0,2.5,{"$f":"W8*V8","v":0}]
["Acqua Frizzante",null,null,null,null,null,null,null,null,null,null,null,null,null,null,null,null,null,null,null,null,0,2.5,0]
["Patatine",null,null,null,null,null,null,null,null,null,null,null,null,null,null,null,null,null,null,null,null,0,2,0]
["Kit Kat",null,null,null,null,null,null,null,null,null,null,null,null,null,null,null,null,null,null,null,null,0,2,0]
[]
[null,401,402,403,404,405,406,407,408,409,410,501,502,503,504,505,506,507,508,509,510,"TOT","PREZZO"]
["Coca Cola",null,null,null,null,null,null,null,null,null,null,null,null,null,null,null,null,null,null,null,null,{"$f":"SUM(B14:U14)","v":0},3,0]
["Coca Cola Light",null,null,null,null,null,null,null,null,null,null,null,null,null,null,null,null,null,null,null,null,{"$f":"SUM(B15:U15)","v":0},3,0]
["Tè",null,null,null,null,null,null,null,null,null,null,null,null,null,null,null,null,null,null,null,null,0,3,0]
["Acqua Tonica",null,null,null,null,null,null,null,null,null,null,null,null,null,null,null,null,null,null,null,null,0,3,0]
["Succo",null,null,null,null,null,null,null,null,null,null,null,null,null,null,null,null,null,null,null,null,0,3,0]
["Birra",null,null,null,null,null,null,null,null,null,null,null,null,null,null,null,null,null,null,null,null,0,3.5,0]
["Acqua Naturale",null,null,null,null,null,null,null,null,null,null,null,null,null,null,null,null,null,null,null,null,0,2.5,{"$f":"W20*V20","v":0}]
["Acqua Frizzante",null,null,null,null,null,null,null,null,null,null,null,null,null,null,null,null,null,null,null,null,0,2.5,0]
["Patatine",null,null,null,null,null,null,null,null,null,null,null,null,null,null,null,null,null,null,null,null,0,2,0]
["Kit Kat",null,null,null,null,null,null,null,null,null,null,null,null,null,null,null,null,null,null,null,null,0,2,0]
[]
[null,601,602,603,604,605,606,607,608,609,610,701,702,703,704,705,706,707,708,709,710,"TOT","PREZZO"]
["Coca Cola",null,null,null,null,null,null,null,null,null,null,null,null,null,null,null,null,null,null,null,null,{"$f":"SUM(B26:U26)","v":0},3,0]
["Coca Cola Light",null,null,null,null,null,null,null,null,null,null,null,null,null,null,null,null,null,null,null,null,{"$f":"SUM(B27:U27)","v":0},3,0]
["Tè",null,null,null,null,null,null,null,null,null,null,null,null,null,null,null,null,null,null,null,null,0,3,0]
["Acqua Tonica",null,null,null,null,null,null,null,null,null,null,null,null,null,null,null,null,null,null,null,null,0,3,0]
["Succo",null,null,null,null,null,null,null,null,null,null,null,null,null,null,null,null,null,null,null,null,0,3,0]
["Birra",null,null,null,null,null,null,null,null,null,null,null,null,null,null,null,null,null,null,null,null,0,3.5,0]
["Acqua Naturale",null,null,null,null,null,null,null,null,null,null,null,null,null,null,null,null,null,null,null,null,0,2.5,{"$f":"W32*V32","v":0}]
["Acqua Frizzante",null,null,null,null,null,null,null,null,null,null,null,null,null,null,null,null,null,null,null,null,0,2.5,0]
["Patatine",null,null,null,null,null,null,null,null,null,null,null,null,null,null,null,null,null,null,null,null,0,2,0]
["Kit Kat",null,null,null,null,null,null,null,null,null,null,null,null,null,null,null,null,null,null,null,null,0,2,0]
[]
[null,801,802,803,804,805,806,807,808,809,810,901,902,903,904,905,906,907,908,909,910,"TOT","PREZZO"]
["Coca Cola",null,null,null,null,null,null,null,null,null,null,null,null,null,null,null,null,null,null,null,null,{"$f":"SUM(B38:U38)","v":0},3,0]
["Coca Cola Light",null,null,null,null,null,null,null,null,null,null,null,null,null,null,null,null,null,null,null,null,0,3,0]
["Tè",null,null,null,null,null,null,null,null,null,null,null,null,null,null,null,null,null,null,null,null,0,3,0]
["Acqua Tonica",null,null,null,null,null,null,null,null,null,null,null,null,null,null,null,null,null,null,null,null,0,3,0]
["Succo",null,null,null,null,null,null,null,null,null,null,null,null,null,null,null,null,null,null,null,null,0,3,0]
["Birra",null,null,null,null,null,null,null,null,null,null,null,null,null,null,null,null,null,null,null,null,0,3.5,0]
["Acqua Naturale",null,null,null,null,null,null,null,null,null,null,null,null,null,null,null,null,null,null,null,null,{"$f":"SUM(B44:U44)","v":0},2.5,{"$f":"W44*V44","v":0}]
["Acqua Frizzante",null,null,null,null,null,null,null,null,null,null,null,null,null,null,null,null,null,null,null,null,0,2.5,0]
["Patatine",null,null,null,null,null,null,null,null,null,null,null,null,null,null,null,null,null,null,null,null,0,2,0]
["Kit Kat",null,null,null,null,null,null,null,null,null,null,null,null,null,null,null,null,null,null,null,null,0,2,0]
[]
[null,1001,1002,1003,1004,1005,1006,1007,1008,1009,1010,1101,1102,1103,1104,1105,1106,1107,1108,1109,1110,"TOT","PREZZO"]
["Coca Cola",null,null,null,null,null,null,null,null,null,null,null,null,null,null,null,null,null,null,null,null,{"$f":"SUM(B50:U50)","v":0},3,0]
["Coca Cola Light",null,null,null,null,null,null,null,null,null,null,null,null,null,null,null,null,null,null,null,null,0,3,0]
["Tè",null,null,null,null,null,null,null,null,null,null,null,null,null,null,null,null,null,null,null,null,0,3,0]
["Acqua Tonica",null,null,null,null,null,null,null,null,null,null,null,null,null,null,null,null,null,null,null,null,0,3,0]
["Succo",null,null,null,null,null,null,null,null,null,null,null,null,null,null,null,null,null,null,null,null,0,3,0]
["Birra",null,null,null,null,null,null,null,null,null,null,null,null,null,null,null,null,null,null,null,null,0,3.5,0]
["Acqua Naturale",null,null,null,null,null,null,null,null,null,null,null,null,null,null,null,null,null,null,null,null,{"$f":"SUM(B56:U56)","v":0},2.5,{"$f":"W56*V56","v":0}]
["Acqua Frizzante",null,null,null,null,null,null,null,null,null,null,null,null,null,null,null,null,null,null,null,null,0,2.5,0]
["Patatine",null,null,null,null,null,null,null,null,null,null,null,null,null,null,null,null,null,null,null,null,0,2,0]
["Kit Kat",null,null,null,null,null,null,null,null,null,null,null,null,null,null,null,null,null,null,null,null,0,2,0]
[]
[null,1201,1202,1203,1204,1205,1206,1207,1208,1209,1210,1301,1302,1303,1304,1305,1306,1307,1308,1309,1310,"TOT","PREZZO"]
["Coca Cola",null,null,null,null,null,null,null,null,null,null,null,null,null,null,null,null,null,null,null,null,{"$f":"SUM(B62:U62)","v":0},3,0]
["Coca Cola Light",null,null,null,null,null,null,null,null,null,null,null,null,null,null,null,null,null,null,null,null,{"$f":"SUM(B63:U63)","v":0},3,0]
["Tè",null,null,null,null,null,null,null,null,null,null,null,null,null,null,null,null,null,null,null,null,0,3,0]
["Acqua Tonica",null,null,null,null,null,null,null,null,null,null,null,null,null,null,null,null,null,null,null,null,0,3,0]
["Succo",null,null,null,null,null,null,null,null,null,null,null,null,null,null,null,null,null,null,null,null,0,3,0]
["Birra",null,null,null,null,null,null,null,null,null,null,null,null,null,null,null,null,null,null,null,null,0,3.5,0]
["Acqua Naturale",null,null,null,null,null,null,null,null,null,null,null,null,null,null,null,null,null,null,null,null,0,2.5,{"$f":"W68*V68","v":0}]
["Acqua Frizzante",null,null,null,null,null,null,null,null,null,null,null,null,null,null,null,null,null,null,null,null,0,2.5,0]
["Patatine",null,null,null,null,null,null,null,null,null,null,null,null,null,null,null,null,null,null,null,null,0,2,0]
["Kit Kat",null,null,null,null,null,null,null,null,null,null,null,null,null,null,null,null,null,null,null,null,0,2,0]
[]
[null,1401,1402,1403,1404,1405,1406,1407,1408,1409,1410,1501,1502,1503,1504,1505,1506,1507,1508,1509,1510,"TOT","PREZZO"]
["Coca Cola",null,null,null,null,null,null,null,null,null,null,null,null,null,null,null,null,null,null,null,null,{"$f":"SUM(B74:U74)","v":0},3,0]
["Coca Cola Light",null,null,null,null,null,null,null,null,null,null,null,null,null,null,null,null,null,null,null,null,{"$f":"SUM(B75:U75)","v":0},3,0]
["Tè",null,null,null,null,null,null,null,null,null,null,null,null,null,null,null,null,null,null,null,null,0,3,0]
["Acqua Tonica",null,null,null,null,null,null,null,null,null,null,null,null,null,null,null,null,null,null,null,null,0,3,0]
["Succo",null,null,null,null,null,null,null,null,null,null,null,null,null,null,null,null,null,null,null,null,0,3,0]
["Birra",null,null,null,null,null,null,null,null,null,null,null,null,null,null,null,null,null,null,null,null,0,3.5,0]
["Acqua Naturale",null,null,null,null,null,null,null,null,null,null,null,null,null,null,null,null,null,null,null,null,0,2.5,{"$f":"W80*V80","v":0}]
["Acqua Frizzante",null,null,null,null,null,null,null,null,null,null,null,null,null,null,null,null,null,null,null,null,0,2.5,0]
["Patatine",null,null,null,null,null,null,null,null,null,null,null,null,null,null,null,null,null,null,null,null,0,2,0]
["Kit Kat",null,null,null,null,null,null,null,null,null,null,null,null,null,null,null,null,null,null,null,null,0,2,0]
[]
[null,1601,1602,1603,1604,1605,1606,1607,1608,1609,1610,1701,1702,1703,1704,1705,1706,1707,1708,null,null,"TOT","PREZZO"]
["Coca Cola",null,null,null,null,null,null,null,null,null,null,null,null,null,null,null,null,null,null,null,null,{"$f":"SUM(B86:U86)","v":0},3,0]
["Coca Cola Light",null,null,null,null,null,null,null,null,null,null,null,null,null,null,null,null,null,null,null,null,{"$f":"SUM(B87:U87)","v":0},3,0]
["Tè",null,null,null,null,null,null,null,null,null,null,null,null,null,null,null,null,null,null,null,null,0,3,0]
["Acqua Tonica",null,null,null,null,null,null,null,null,null,null,null,null,null,null,null,null,null,null,null,null,0,3,0]
["Succo",null,null,null,null,null,null,null,null,null,null,null,null,null,null,null,null,null,null,null,null,0,3,0]
["Birra",null,null,null,null,null,null,null,null,null,null,null,null,null,null,null,null,null,null,null,null,0,3.5,0]
["Acqua Naturale",null,null,null,null,null,null,null,null,null,null,null,null,null,null,null,null,null,null,null,null,0,2.5,{"$f":"W92*V92","v":0}]
["Acqua Frizzante",null,null,null,null,null,null,null,null,null,null,null,null,null,null,null,null,null,null,null,null,0,2.5,0]
["Patatine",null,null,null,null,null,null,null,null,null,null,null,null,null,null,null,null,null,null,null,null,0,2,0]
["Kit Kat",null,null,null,null,null,null,null,null,null,null,null,null,null,null,null,null,null,null,null,null,0,2,0]

{"sheet":"TotMeseCamera","index":31,"n_rows":95,"n_cols":24,"rows_kept":95,"cut":false,"hidden":false,"merged":[]}
["Camere",101,102,103,104,105,201,202,203,206,207,301,302,303,304,305,306,307,308,309,310,"TOT","PREZZO","PREZZO"]
["Coca Cola",{"$f":"SUM('1:31'!B2)","v":0},{"$f":"SUM('1:31'!C2)","v":0},{"$f":"SUM('1:31'!D2)","v":0},{"$f":"SUM('1:31'!E2)","v":0},{"$f":"SUM('1:31'!F2)","v":0},{"$f":"SUM('1:31'!G2)","v":0},{"$f":"SUM('1:31'!H2)","v":0},{"$f":"SUM('1:31'!I2)","v":0},{"$f":"SUM('1:31'!J2)","v":0},{"$f":"SUM('1:31'!K2)","v":0},{"$f":"SUM('1:31'!L2)","v":0},{"$f":"SUM('1:31'!M2)","v":0},{"$f":"SUM('1:31'!N2)","v":0},{"$f":"SUM('1:31'!O2)","v":0},{"$f":"SUM('1:31'!P2)","v":0},{"$f":"SUM('1:31'!Q2)","v":0},{"$f":"SUM('1:31'!R2)","v":0},{"$f":"SUM('1:31'!S2)","v":0},{"$f":"SUM('1:31'!T2)","v":0},{"$f":"SUM('1:31'!U2)","v":2},{"$f":"SUM(B2:U2)","v":2},3,{"$f":"W2*V2","v":6}]
["Coca Cola Light",{"$f":"SUM('1:31'!B3)","v":1},{"$f":"SUM('1:31'!C3)","v":0},{"$f":"SUM('1:31'!D3)","v":0},{"$f":"SUM('1:31'!E3)","v":0},{"$f":"SUM('1:31'!F3)","v":1},{"$f":"SUM('1:31'!G3)","v":0},{"$f":"SUM('1:31'!H3)","v":0},{"$f":"SUM('1:31'!I3)","v":1},{"$f":"SUM('1:31'!J3)","v":0},{"$f":"SUM('1:31'!K3)","v":0},{"$f":"SUM('1:31'!L3)","v":0},{"$f":"SUM('1:31'!M3)","v":0},{"$f":"SUM('1:31'!N3)","v":0},{"$f":"SUM('1:31'!O3)","v":0},{"$f":"SUM('1:31'!P3)","v":0},{"$f":"SUM('1:31'!Q3)","v":0},{"$f":"SUM('1:31'!R3)","v":0},{"$f":"SUM('1:31'!S3)","v":0},{"$f":"SUM('1:31'!T3)","v":0},{"$f":"SUM('1:31'!U3)","v":0},{"$f":"SUM(B3:U3)","v":3},3,{"$f":"W3*V3","v":9}]
["Tè",{"$f":"SUM('1:31'!B4)","v":1},{"$f":"SUM('1:31'!C4)","v":0},{"$f":"SUM('1:31'!D4)","v":0},{"$f":"SUM('1:31'!E4)","v":0},{"$f":"SUM('1:31'!F4)","v":0},{"$f":"SUM('1:31'!G4)","v":0},{"$f":"SUM('1:31'!H4)","v":0},{"$f":"SUM('1:31'!I4)","v":0},{"$f":"SUM('1:31'!J4)","v":1},{"$f":"SUM('1:31'!K4)","v":0},{"$f":"SUM('1:31'!L4)","v":0},{"$f":"SUM('1:31'!M4)","v":0},{"$f":"SUM('1:31'!N4)","v":0},{"$f":"SUM('1:31'!O4)","v":0},{"$f":"SUM('1:31'!P4)","v":0},{"$f":"SUM('1:31'!Q4)","v":0},{"$f":"SUM('1:31'!R4)","v":0},{"$f":"SUM('1:31'!S4)","v":0},{"$f":"SUM('1:31'!T4)","v":0},{"$f":"SUM('1:31'!U4)","v":0},2,3,6]
["Acqua Tonica",{"$f":"SUM('1:31'!B5)","v":0},{"$f":"SUM('1:31'!C5)","v":0},{"$f":"SUM('1:31'!D5)","v":0},{"$f":"SUM('1:31'!E5)","v":0},{"$f":"SUM('1:31'!F5)","v":0},{"$f":"SUM('1:31'!G5)","v":0},{"$f":"SUM('1:31'!H5)","v":0},{"$f":"SUM('1:31'!I5)","v":0},{"$f":"SUM('1:31'!J5)","v":0},{"$f":"SUM('1:31'!K5)","v":0},{"$f":"SUM('1:31'!L5)","v":0},{"$f":"SUM('1:31'!M5)","v":0},{"$f":"SUM('1:31'!N5)","v":0},{"$f":"SUM('1:31'!O5)","v":0},{"$f":"SUM('1:31'!P5)","v":0},{"$f":"SUM('1:31'!Q5)","v":0},{"$f":"SUM('1:31'!R5)","v":0},{"$f":"SUM('1:31'!S5)","v":0},{"$f":"SUM('1:31'!T5)","v":0},{"$f":"SUM('1:31'!U5)","v":0},0,3,0]
["Succo",{"$f":"SUM('1:31'!B6)","v":0},{"$f":"SUM('1:31'!C6)","v":0},{"$f":"SUM('1:31'!D6)","v":1},{"$f":"SUM('1:31'!E6)","v":0},{"$f":"SUM('1:31'!F6)","v":1},{"$f":"SUM('1:31'!G6)","v":0},{"$f":"SUM('1:31'!H6)","v":1},{"$f":"SUM('1:31'!I6)","v":3},{"$f":"SUM('1:31'!J6)","v":0},{"$f":"SUM('1:31'!K6)","v":0},{"$f":"SUM('1:31'!L6)","v":0},{"$f":"SUM('1:31'!M6)","v":2},{"$f":"SUM('1:31'!N6)","v":0},{"$f":"SUM('1:31'!O6)","v":0},{"$f":"SUM('1:31'!P6)","v":0},{"$f":"SUM('1:31'!Q6)","v":0},{"$f":"SUM('1:31'!R6)","v":0},{"$f":"SUM('1:31'!S6)","v":0},{"$f":"SUM('1:31'!T6)","v":0},{"$f":"SUM('1:31'!U6)","v":0},8,3,24]
["Birra",{"$f":"SUM('1:31'!B7)","v":0},{"$f":"SUM('1:31'!C7)","v":0},{"$f":"SUM('1:31'!D7)","v":0},{"$f":"SUM('1:31'!E7)","v":0},{"$f":"SUM('1:31'!F7)","v":0},{"$f":"SUM('1:31'!G7)","v":2},{"$f":"SUM('1:31'!H7)","v":3},{"$f":"SUM('1:31'!I7)","v":0},{"$f":"SUM('1:31'!J7)","v":0},{"$f":"SUM('1:31'!K7)","v":0},{"$f":"SUM('1:31'!L7)","v":0},{"$f":"SUM('1:31'!M7)","v":1},{"$f":"SUM('1:31'!N7)","v":0},{"$f":"SUM('1:31'!O7)","v":0},{"$f":"SUM('1:31'!P7)","v":0},{"$f":"SUM('1:31'!Q7)","v":0},{"$f":"SUM('1:31'!R7)","v":0},{"$f":"SUM('1:31'!S7)","v":0},{"$f":"SUM('1:31'!T7)","v":0},{"$f":"SUM('1:31'!U7)","v":0},6,3.5,21]
["Acqua Naturale",{"$f":"SUM('1:31'!B8)","v":4},{"$f":"SUM('1:31'!C8)","v":3},{"$f":"SUM('1:31'!D8)","v":3},{"$f":"SUM('1:31'!E8)","v":5},{"$f":"SUM('1:31'!F8)","v":7},{"$f":"SUM('1:31'!G8)","v":4},{"$f":"SUM('1:31'!H8)","v":2},{"$f":"SUM('1:31'!I8)","v":4},{"$f":"SUM('1:31'!J8)","v":3},{"$f":"SUM('1:31'!K8)","v":5},{"$f":"SUM('1:31'!L8)","v":1},{"$f":"SUM('1:31'!M8)","v":1},{"$f":"SUM('1:31'!N8)","v":3},{"$f":"SUM('1:31'!O8)","v":4},{"$f":"SUM('1:31'!P8)","v":5},{"$f":"SUM('1:31'!Q8)","v":4},{"$f":"SUM('1:31'!R8)","v":4},{"$f":"SUM('1:31'!S8)","v":7},{"$f":"SUM('1:31'!T8)","v":6},{"$f":"SUM('1:31'!U8)","v":4},79,2.5,197.5]
["Acqua Frizzante",{"$f":"SUM('1:31'!B9)","v":3},{"$f":"SUM('1:31'!C9)","v":3},{"$f":"SUM('1:31'!D9)","v":1},{"$f":"SUM('1:31'!E9)","v":3},{"$f":"SUM('1:31'!F9)","v":2},{"$f":"SUM('1:31'!G9)","v":1},{"$f":"SUM('1:31'!H9)","v":3},{"$f":"SUM('1:31'!I9)","v":0},{"$f":"SUM('1:31'!J9)","v":2},{"$f":"SUM('1:31'!K9)","v":0},{"$f":"SUM('1:31'!L9)","v":1},{"$f":"SUM('1:31'!M9)","v":2},{"$f":"SUM('1:31'!N9)","v":1},{"$f":"SUM('1:31'!O9)","v":1},{"$f":"SUM('1:31'!P9)","v":1},{"$f":"SUM('1:31'!Q9)","v":0},{"$f":"SUM('1:31'!R9)","v":0},{"$f":"SUM('1:31'!S9)","v":3},{"$f":"SUM('1:31'!T9)","v":1},{"$f":"SUM('1:31'!U9)","v":0},28,2.5,70]
["Patatine",{"$f":"SUM('1:31'!B10)","v":0},{"$f":"SUM('1:31'!C10)","v":0},{"$f":"SUM('1:31'!D10)","v":0},{"$f":"SUM('1:31'!E10)","v":0},{"$f":"SUM('1:31'!F10)","v":1},{"$f":"SUM('1:31'!G10)","v":0},{"$f":"SUM('1:31'!H10)","v":0},{"$f":"SUM('1:31'!I10)","v":0},{"$f":"SUM('1:31'!J10)","v":1},{"$f":"SUM('1:31'!K10)","v":0},{"$f":"SUM('1:31'!L10)","v":0},{"$f":"SUM('1:31'!M10)","v":0},{"$f":"SUM('1:31'!N10)","v":0},{"$f":"SUM('1:31'!O10)","v":0},{"$f":"SUM('1:31'!P10)","v":0},{"$f":"SUM('1:31'!Q10)","v":1},{"$f":"SUM('1:31'!R10)","v":0},{"$f":"SUM('1:31'!S10)","v":1},{"$f":"SUM('1:31'!T10)","v":3},{"$f":"SUM('1:31'!U10)","v":0},7,2,14]
["Kit Kat",{"$f":"SUM('1:31'!B11)","v":0},{"$f":"SUM('1:31'!C11)","v":3},{"$f":"SUM('1:31'!D11)","v":0},{"$f":"SUM('1:31'!E11)","v":0},{"$f":"SUM('1:31'!F11)","v":2},{"$f":"SUM('1:31'!G11)","v":0},{"$f":"SUM('1:31'!H11)","v":0},{"$f":"SUM('1:31'!I11)","v":1},{"$f":"SUM('1:31'!J11)","v":2},{"$f":"SUM('1:31'!K11)","v":1},{"$f":"SUM('1:31'!L11)","v":0},{"$f":"SUM('1:31'!M11)","v":0},{"$f":"SUM('1:31'!N11)","v":1},{"$f":"SUM('1:31'!O11)","v":2},{"$f":"SUM('1:31'!P11)","v":1},{"$f":"SUM('1:31'!Q11)","v":0},{"$f":"SUM('1:31'!R11)","v":0},{"$f":"SUM('1:31'!S11)","v":4},{"$f":"SUM('1:31'!T11)","v":0},{"$f":"SUM('1:31'!U11)","v":0},17,2,34]
[]
["Camere",401,402,403,404,405,406,407,408,409,410,501,502,503,504,505,506,507,508,509,510,"TOT","PREZZO","Tot parziale"]
["Coca Cola",{"$f":"SUM('1:31'!B14)","v":0},{"$f":"SUM('1:31'!C14)","v":2},{"$f":"SUM('1:31'!D14)","v":0},{"$f":"SUM('1:31'!E14)","v":0},{"$f":"SUM('1:31'!F14)","v":0},{"$f":"SUM('1:31'!G14)","v":0},{"$f":"SUM('1:31'!H14)","v":0},{"$f":"SUM('1:31'!I14)","v":0},{"$f":"SUM('1:31'!J14)","v":0},{"$f":"SUM('1:31'!K14)","v":0},{"$f":"SUM('1:31'!L14)","v":0},{"$f":"SUM('1:31'!M14)","v":0},{"$f":"SUM('1:31'!N14)","v":1},{"$f":"SUM('1:31'!O14)","v":0},{"$f":"SUM('1:31'!P14)","v":0},{"$f":"SUM('1:31'!Q14)","v":0},{"$f":"SUM('1:31'!R14)","v":0},{"$f":"SUM('1:31'!S14)","v":0},{"$f":"SUM('1:31'!T14)","v":0},{"$f":"SUM('1:31'!U14)","v":0},{"$f":"SUM(B14:U14)","v":3},3,{"$f":"W14*V14","v":9}]
["Coca Cola Light",{"$f":"SUM('1:31'!B15)","v":0},{"$f":"SUM('1:31'!C15)","v":0},{"$f":"SUM('1:31'!D15)","v":0},{"$f":"SUM('1:31'!E15)","v":0},{"$f":"SUM('1:31'!F15)","v":0},{"$f":"SUM('1:31'!G15)","v":0},{"$f":"SUM('1:31'!H15)","v":0},{"$f":"SUM('1:31'!I15)","v":0},{"$f":"SUM('1:31'!J15)","v":0},{"$f":"SUM('1:31'!K15)","v":0},{"$f":"SUM('1:31'!L15)","v":0},{"$f":"SUM('1:31'!M15)","v":4},{"$f":"SUM('1:31'!N15)","v":0},{"$f":"SUM('1:31'!O15)","v":1},{"$f":"SUM('1:31'!P15)","v":1},{"$f":"SUM('1:31'!Q15)","v":0},{"$f":"SUM('1:31'!R15)","v":0},{"$f":"SUM('1:31'!S15)","v":0},{"$f":"SUM('1:31'!T15)","v":0},{"$f":"SUM('1:31'!U15)","v":1},{"$f":"SUM(B15:U15)","v":7},3,21]
["Tè",{"$f":"SUM('1:31'!B16)","v":0},{"$f":"SUM('1:31'!C16)","v":0},{"$f":"SUM('1:31'!D16)","v":1},{"$f":"SUM('1:31'!E16)","v":0},{"$f":"SUM('1:31'!F16)","v":0},{"$f":"SUM('1:31'!G16)","v":0},{"$f":"SUM('1:31'!H16)","v":1},{"$f":"SUM('1:31'!I16)","v":0},{"$f":"SUM('1:31'!J16)","v":0},{"$f":"SUM('1:31'!K16)","v":0},{"$f":"SUM('1:31'!L16)","v":0},{"$f":"SUM('1:31'!M16)","v":0},{"$f":"SUM('1:31'!N16)","v":0},{"$f":"SUM('1:31'!O16)","v":0},{"$f":"SUM('1:31'!P16)","v":0},{"$f":"SUM('1:31'!Q16)","v":0},{"$f":"SUM('1:31'!R16)","v":1},{"$f":"SUM('1:31'!S16)","v":0},{"$f":"SUM('1:31'!T16)","v":0},{"$f":"SUM('1:31'!U16)","v":0},3,3,9]
["Acqua Tonica",{"$f":"SUM('1:31'!B17)","v":0},{"$f":"SUM('1:31'!C17)","v":0},{"$f":"SUM('1:31'!D17)","v":0},{"$f":"SUM('1:31'!E17)","v":0},{"$f":"SUM('1:31'!F17)","v":0},{"$f":"SUM('1:31'!G17)","v":0},{"$f":"SUM('1:31'!H17)","v":0},{"$f":"SUM('1:31'!I17)","v":0},{"$f":"SUM('1:31'!J17)","v":0},{"$f":"SUM('1:31'!K17)","v":0},{"$f":"SUM('1:31'!L17)","v":0},{"$f":"SUM('1:31'!M17)","v":0},{"$f":"SUM('1:31'!N17)","v":0},{"$f":"SUM('1:31'!O17)","v":1},{"$f":"SUM('1:31'!P17)","v":0},{"$f":"SUM('1:31'!Q17)","v":0},{"$f":"SUM('1:31'!R17)","v":0},{"$f":"SUM('1:31'!S17)","v":0},{"$f":"SUM('1:31'!T17)","v":0},{"$f":"SUM('1:31'!U17)","v":0},1,3,3]
["Succo",{"$f":"SUM('1:31'!B18)","v":0},{"$f":"SUM('1:31'!C18)","v":0},{"$f":"SUM('1:31'!D18)","v":2},{"$f":"SUM('1:31'!E18)","v":0},{"$f":"SUM('1:31'!F18)","v":0},{"$f":"SUM('1:31'!G18)","v":2},{"$f":"SUM('1:31'!H18)","v":1},{"$f":"SUM('1:31'!I18)","v":0},{"$f":"SUM('1:31'!J18)","v":0},{"$f":"SUM('1:31'!K18)","v":0},{"$f":"SUM('1:31'!L18)","v":0},{"$f":"SUM('1:31'!M18)","v":0},{"$f":"SUM('1:31'!N18)","v":0},{"$f":"SUM('1:31'!O18)","v":0},{"$f":"SUM('1:31'!P18)","v":0},{"$f":"SUM('1:31'!Q18)","v":0},{"$f":"SUM('1:31'!R18)","v":0},{"$f":"SUM('1:31'!S18)","v":0},{"$f":"SUM('1:31'!T18)","v":0},{"$f":"SUM('1:31'!U18)","v":0},5,3,15]
["Birra",{"$f":"SUM('1:31'!B19)","v":1},{"$f":"SUM('1:31'!C19)","v":1},{"$f":"SUM('1:31'!D19)","v":2},{"$f":"SUM('1:31'!E19)","v":0},{"$f":"SUM('1:31'!F19)","v":0},{"$f":"SUM('1:31'!G19)","v":0},{"$f":"SUM('1:31'!H19)","v":6},{"$f":"SUM('1:31'!I19)","v":0},{"$f":"SUM('1:31'!J19)","v":2},{"$f":"SUM('1:31'!K19)","v":6},{"$f":"SUM('1:31'!L19)","v":0},{"$f":"SUM('1:31'!M19)","v":1},{"$f":"SUM('1:31'!N19)","v":1},{"$f":"SUM('1:31'!O19)","v":0},{"$f":"SUM('1:31'!P19)","v":0},{"$f":"SUM('1:31'!Q19)","v":0},{"$f":"SUM('1:31'!R19)","v":0},{"$f":"SUM('1:31'!S19)","v":0},{"$f":"SUM('1:31'!T19)","v":0},{"$f":"SUM('1:31'!U19)","v":1},21,3.5,73.5]
["Acqua Naturale",{"$f":"SUM('1:31'!B20)","v":2},{"$f":"SUM('1:31'!C20)","v":2},{"$f":"SUM('1:31'!D20)","v":2},{"$f":"SUM('1:31'!E20)","v":3},{"$f":"SUM('1:31'!F20)","v":9},{"$f":"SUM('1:31'!G20)","v":1},{"$f":"SUM('1:31'!H20)","v":6},{"$f":"SUM('1:31'!I20)","v":2},{"$f":"SUM('1:31'!J20)","v":6},{"$f":"SUM('1:31'!K20)","v":0},{"$f":"SUM('1:31'!L20)","v":5},{"$f":"SUM('1:31'!M20)","v":6},{"$f":"SUM('1:31'!N20)","v":5},{"$f":"SUM('1:31'!O20)","v":4},{"$f":"SUM('1:31'!P20)","v":4},{"$f":"SUM('1:31'!Q20)","v":9},{"$f":"SUM('1:31'!R20)","v":11},{"$f":"SUM('1:31'!S20)","v":4},{"$f":"SUM('1:31'!T20)","v":2},{"$f":"SUM('1:31'!U20)","v":2},85,2.5,212.5]
["Acqua Frizzante",{"$f":"SUM('1:31'!B21)","v":1},{"$f":"SUM('1:31'!C21)","v":5},{"$f":"SUM('1:31'!D21)","v":5},{"$f":"SUM('1:31'!E21)","v":1},{"$f":"SUM('1:31'!F21)","v":1},{"$f":"SUM('1:31'!G21)","v":2},{"$f":"SUM('1:31'!H21)","v":6},{"$f":"SUM('1:31'!I21)","v":3},{"$f":"SUM('1:31'!J21)","v":2},{"$f":"SUM('1:31'!K21)","v":0},{"$f":"SUM('1:31'!L21)","v":4},{"$f":"SUM('1:31'!M21)","v":1},{"$f":"SUM('1:31'!N21)","v":5},{"$f":"SUM('1:31'!O21)","v":2},{"$f":"SUM('1:31'!P21)","v":2},{"$f":"SUM('1:31'!Q21)","v":5},{"$f":"SUM('1:31'!R21)","v":0},{"$f":"SUM('1:31'!S21)","v":3},{"$f":"SUM('1:31'!T21)","v":1},{"$f":"SUM('1:31'!U21)","v":6},55,2.5,137.5]
["Patatine",{"$f":"SUM('1:31'!B22)","v":1},{"$f":"SUM('1:31'!C22)","v":0},{"$f":"SUM('1:31'!D22)","v":1},{"$f":"SUM('1:31'!E22)","v":1},{"$f":"SUM('1:31'!F22)","v":1},{"$f":"SUM('1:31'!G22)","v":0},{"$f":"SUM('1:31'!H22)","v":1},{"$f":"SUM('1:31'!I22)","v":0},{"$f":"SUM('1:31'!J22)","v":0},{"$f":"SUM('1:31'!K22)","v":2},{"$f":"SUM('1:31'!L22)","v":0},{"$f":"SUM('1:31'!M22)","v":2},{"$f":"SUM('1:31'!N22)","v":0},{"$f":"SUM('1:31'!O22)","v":0},{"$f":"SUM('1:31'!P22)","v":1},{"$f":"SUM('1:31'!Q22)","v":0},{"$f":"SUM('1:31'!R22)","v":0},{"$f":"SUM('1:31'!S22)","v":0},{"$f":"SUM('1:31'!T22)","v":0},{"$f":"SUM('1:31'!U22)","v":2},12,2,24]
["Kit Kat",{"$f":"SUM('1:31'!B23)","v":0},{"$f":"SUM('1:31'!C23)","v":0},{"$f":"SUM('1:31'!D23)","v":0},{"$f":"SUM('1:31'!E23)","v":1},{"$f":"SUM('1:31'!F23)","v":0},{"$f":"SUM('1:31'!G23)","v":1},{"$f":"SUM('1:31'!H23)","v":1},{"$f":"SUM('1:31'!I23)","v":0},{"$f":"SUM('1:31'!J23)","v":0},{"$f":"SUM('1:31'!K23)","v":2},{"$f":"SUM('1:31'!L23)","v":2},{"$f":"SUM('1:31'!M23)","v":5},{"$f":"SUM('1:31'!N23)","v":0},{"$f":"SUM('1:31'!O23)","v":1},{"$f":"SUM('1:31'!P23)","v":0},{"$f":"SUM('1:31'!Q23)","v":2},{"$f":"SUM('1:31'!R23)","v":1},{"$f":"SUM('1:31'!S23)","v":1},{"$f":"SUM('1:31'!T23)","v":0},{"$f":"SUM('1:31'!U23)","v":4},21,2,42]
[]
["Camere",601,602,603,604,605,606,607,608,609,610,701,702,703,704,705,706,707,708,709,710,"TOT","PREZZO","Tot parziale"]
["Coca Cola",{"$f":"SUM('1:31'!B26)","v":0},{"$f":"SUM('1:31'!C26)","v":2},{"$f":"SUM('1:31'!D26)","v":0},{"$f":"SUM('1:31'!E26)","v":0},{"$f":"SUM('1:31'!F26)","v":0},{"$f":"SUM('1:31'!G26)","v":0},{"$f":"SUM('1:31'!H26)","v":1},{"$f":"SUM('1:31'!I26)","v":0},{"$f":"SUM('1:31'!J26)","v":0},{"$f":"SUM('1:31'!K26)","v":0},{"$f":"SUM('1:31'!L26)","v":0},{"$f":"SUM('1:31'!M26)","v":0},{"$f":"SUM('1:31'!N26)","v":0},{"$f":"SUM('1:31'!O26)","v":0},{"$f":"SUM('1:31'!P26)","v":0},{"$f":"SUM('1:31'!Q26)","v":0},{"$f":"SUM('1:31'!R26)","v":0},{"$f":"SUM('1:31'!S26)","v":0},{"$f":"SUM('1:31'!T26)","v":0},{"$f":"SUM('1:31'!U26)","v":0},{"$f":"SUM(B26:U26)","v":3},3,9]
["Coca Cola Light",{"$f":"SUM('1:31'!B27)","v":0},{"$f":"SUM('1:31'!C27)","v":1},{"$f":"SUM('1:31'!D27)","v":0},{"$f":"SUM('1:31'!E27)","v":1},{"$f":"SUM('1:31'!F27)","v":0},{"$f":"SUM('1:31'!G27)","v":0},{"$f":"SUM('1:31'!H27)","v":0},{"$f":"SUM('1:31'!I27)","v":0},{"$f":"SUM('1:31'!J27)","v":0},{"$f":"SUM('1:31'!K27)","v":1},{"$f":"SUM('1:31'!L27)","v":0},{"$f":"SUM('1:31'!M27)","v":0},{"$f":"SUM('1:31'!N27)","v":0},{"$f":"SUM('1:31'!O27)","v":3},{"$f":"SUM('1:31'!P27)","v":0},{"$f":"SUM('1:31'!Q27)","v":0},{"$f":"SUM('1:31'!R27)","v":0},{"$f":"SUM('1:31'!S27)","v":0},{"$f":"SUM('1:31'!T27)","v":0},{"$f":"SUM('1:31'!U27)","v":0},{"$f":"SUM(B27:U27)","v":6},3,18]
["Tè",{"$f":"SUM('1:31'!B28)","v":4},{"$f":"SUM('1:31'!C28)","v":3},{"$f":"SUM('1:31'!D28)","v":0},{"$f":"SUM('1:31'!E28)","v":0},{"$f":"SUM('1:31'!F28)","v":0},{"$f":"SUM('1:31'!G28)","v":0},{"$f":"SUM('1:31'!H28)","v":1},{"$f":"SUM('1:31'!I28)","v":0},{"$f":"SUM('1:31'!J28)","v":0},{"$f":"SUM('1:31'!K28)","v":0},{"$f":"SUM('1:31'!L28)","v":0},{"$f":"SUM('1:31'!M28)","v":0},{"$f":"SUM('1:31'!N28)","v":0},{"$f":"SUM('1:31'!O28)","v":0},{"$f":"SUM('1:31'!P28)","v":0},{"$f":"SUM('1:31'!Q28)","v":0},{"$f":"SUM('1:31'!R28)","v":0},{"$f":"SUM('1:31'!S28)","v":0},{"$f":"SUM('1:31'!T28)","v":0},{"$f":"SUM('1:31'!U28)","v":0},8,3,24]
["Acqua Tonica",{"$f":"SUM('1:31'!B29)","v":0},{"$f":"SUM('1:31'!C29)","v":0},{"$f":"SUM('1:31'!D29)","v":0},{"$f":"SUM('1:31'!E29)","v":0},{"$f":"SUM('1:31'!F29)","v":0},{"$f":"SUM('1:31'!G29)","v":0},{"$f":"SUM('1:31'!H29)","v":0},{"$f":"SUM('1:31'!I29)","v":0},{"$f":"SUM('1:31'!J29)","v":0},{"$f":"SUM('1:31'!K29)","v":0},{"$f":"SUM('1:31'!L29)","v":0},{"$f":"SUM('1:31'!M29)","v":0},{"$f":"SUM('1:31'!N29)","v":0},{"$f":"SUM('1:31'!O29)","v":0},{"$f":"SUM('1:31'!P29)","v":0},{"$f":"SUM('1:31'!Q29)","v":0},{"$f":"SUM('1:31'!R29)","v":0},{"$f":"SUM('1:31'!S29)","v":0},{"$f":"SUM('1:31'!T29)","v":0},{"$f":"SUM('1:31'!U29)","v":0},0,3,0]
["Succo",{"$f":"SUM('1:31'!B30)","v":0},{"$f":"SUM('1:31'!C30)","v":0},{"$f":"SUM('1:31'!D30)","v":0},{"$f":"SUM('1:31'!E30)","v":0},{"$f":"SUM('1:31'!F30)","v":1},{"$f":"SUM('1:31'!G30)","v":3},{"$f":"SUM('1:31'!H30)","v":1},{"$f":"SUM('1:31'!I30)","v":0},{"$f":"SUM('1:31'!J30)","v":0},{"$f":"SUM('1:31'!K30)","v":1},{"$f":"SUM('1:31'!L30)","v":0},{"$f":"SUM('1:31'!M30)","v":0},{"$f":"SUM('1:31'!N30)","v":0},{"$f":"SUM('1:31'!O30)","v":0},{"$f":"SUM('1:31'!P30)","v":0},{"$f":"SUM('1:31'!Q30)","v":0},{"$f":"SUM('1:31'!R30)","v":0},{"$f":"SUM('1:31'!S30)","v":0},{"$f":"SUM('1:31'!T30)","v":0},{"$f":"SUM('1:31'!U30)","v":0},6,3,18]
["Birra",{"$f":"SUM('1:31'!B31)","v":0},{"$f":"SUM('1:31'!C31)","v":1},{"$f":"SUM('1:31'!D31)","v":0},{"$f":"SUM('1:31'!E31)","v":3},{"$f":"SUM('1:31'!F31)","v":0},{"$f":"SUM('1:31'!G31)","v":0},{"$f":"SUM('1:31'!H31)","v":1},{"$f":"SUM('1:31'!I31)","v":0},{"$f":"SUM('1:31'!J31)","v":2},{"$f":"SUM('1:31'!K31)","v":0},{"$f":"SUM('1:31'!L31)","v":0},{"$f":"SUM('1:31'!M31)","v":0},{"$f":"SUM('1:31'!N31)","v":0},{"$f":"SUM('1:31'!O31)","v":1},{"$f":"SUM('1:31'!P31)","v":0},{"$f":"SUM('1:31'!Q31)","v":0},{"$f":"SUM('1:31'!R31)","v":0},{"$f":"SUM('1:31'!S31)","v":1},{"$f":"SUM('1:31'!T31)","v":0},{"$f":"SUM('1:31'!U31)","v":1},10,3.5,35]
["Acqua Naturale",{"$f":"SUM('1:31'!B32)","v":0},{"$f":"SUM('1:31'!C32)","v":4},{"$f":"SUM('1:31'!D32)","v":2},{"$f":"SUM('1:31'!E32)","v":7},{"$f":"SUM('1:31'!F32)","v":0},{"$f":"SUM('1:31'!G32)","v":4},{"$f":"SUM('1:31'!H32)","v":2},{"$f":"SUM('1:31'!I32)","v":4},{"$f":"SUM('1:31'!J32)","v":3},{"$f":"SUM('1:31'!K32)","v":3},{"$f":"SUM('1:31'!L32)","v":0},{"$f":"SUM('1:31'!M32)","v":0},{"$f":"SUM('1:31'!N32)","v":0},{"$f":"SUM('1:31'!O32)","v":0},{"$f":"SUM('1:31'!P32)","v":0},{"$f":"SUM('1:31'!Q32)","v":0},{"$f":"SUM('1:31'!R32)","v":0},{"$f":"SUM('1:31'!S32)","v":0},{"$f":"SUM('1:31'!T32)","v":0},{"$f":"SUM('1:31'!U32)","v":0},29,2.5,72.5]
["Acqua Frizzante",{"$f":"SUM('1:31'!B33)","v":5},{"$f":"SUM('1:31'!C33)","v":3},{"$f":"SUM('1:31'!D33)","v":4},{"$f":"SUM('1:31'!E33)","v":1},{"$f":"SUM('1:31'!F33)","v":0},{"$f":"SUM('1:31'!G33)","v":0},{"$f":"SUM('1:31'!H33)","v":4},{"$f":"SUM('1:31'!I33)","v":1},{"$f":"SUM('1:31'!J33)","v":0},{"$f":"SUM('1:31'!K33)","v":1},{"$f":"SUM('1:31'!L33)","v":0},{"$f":"SUM('1:31'!M33)","v":0},{"$f":"SUM('1:31'!N33)","v":0},{"$f":"SUM('1:31'!O33)","v":0},{"$f":"SUM('1:31'!P33)","v":0},{"$f":"SUM('1:31'!Q33)","v":0},{"$f":"SUM('1:31'!R33)","v":0},{"$f":"SUM('1:31'!S33)","v":0},{"$f":"SUM('1:31'!T33)","v":0},{"$f":"SUM('1:31'!U33)","v":0},19,2.5,47.5]
["Patatine",{"$f":"SUM('1:31'!B34)","v":3},{"$f":"SUM('1:31'!C34)","v":1},{"$f":"SUM('1:31'!D34)","v":0},{"$f":"SUM('1:31'!E34)","v":1},{"$f":"SUM('1:31'!F34)","v":0},{"$f":"SUM('1:31'!G34)","v":0},{"$f":"SUM('1:31'!H34)","v":0},{"$f":"SUM('1:31'!I34)","v":1},{"$f":"SUM('1:31'!J34)","v":0},{"$f":"SUM('1:31'!K34)","v":1},{"$f":"SUM('1:31'!L34)","v":1},{"$f":"SUM('1:31'!M34)","v":1},{"$f":"SUM('1:31'!N34)","v":0},{"$f":"SUM('1:31'!O34)","v":0},{"$f":"SUM('1:31'!P34)","v":0},{"$f":"SUM('1:31'!Q34)","v":0},{"$f":"SUM('1:31'!R34)","v":0},{"$f":"SUM('1:31'!S34)","v":0},{"$f":"SUM('1:31'!T34)","v":0},{"$f":"SUM('1:31'!U34)","v":0},9,2,18]
["Kit Kat",{"$f":"SUM('1:31'!B35)","v":4},{"$f":"SUM('1:31'!C35)","v":3},{"$f":"SUM('1:31'!D35)","v":0},{"$f":"SUM('1:31'!E35)","v":2},{"$f":"SUM('1:31'!F35)","v":0},{"$f":"SUM('1:31'!G35)","v":0},{"$f":"SUM('1:31'!H35)","v":1},{"$f":"SUM('1:31'!I35)","v":1},{"$f":"SUM('1:31'!J35)","v":0},{"$f":"SUM('1:31'!K35)","v":2},{"$f":"SUM('1:31'!L35)","v":0},{"$f":"SUM('1:31'!M35)","v":1},{"$f":"SUM('1:31'!N35)","v":0},{"$f":"SUM('1:31'!O35)","v":1},{"$f":"SUM('1:31'!P35)","v":0},{"$f":"SUM('1:31'!Q35)","v":0},{"$f":"SUM('1:31'!R35)","v":0},{"$f":"SUM('1:31'!S35)","v":0},{"$f":"SUM('1:31'!T35)","v":0},{"$f":"SUM('1:31'!U35)","v":1},16,2,32]
[]
["Camere",801,802,803,804,805,806,807,808,809,810,901,902,903,904,905,906,907,908,909,910,"TOT","PREZZO","Tot parziale"]
["Coca Cola",{"$f":"SUM('1:31'!B38)","v":0},{"$f":"SUM('1:31'!C38)","v":0},{"$f":"SUM('1:31'!D38)","v":0},{"$f":"SUM('1:31'!E38)","v":0},{"$f":"SUM('1:31'!F38)","v":0},{"$f":"SUM('1:31'!G38)","v":0},{"$f":"SUM('1:31'!H38)","v":1},{"$f":"SUM('1:31'!I38)","v":1},{"$f":"SUM('1:31'!J38)","v":0},{"$f":"SUM('1:31'!K38)","v":0},{"$f":"SUM('1:31'!L38)","v":0},{"$f":"SUM('1:31'!M38)","v":0},{"$f":"SUM('1:31'!N38)","v":1},{"$f":"SUM('1:31'!O38)","v":0},{"$f":"SUM('1:31'!P38)","v":0},{"$f":"SUM('1:31'!Q38)","v":0},{"$f":"SUM('1:31'!R38)","v":0},{"$f":"SUM('1:31'!S38)","v":0},{"$f":"SUM('1:31'!T38)","v":0},{"$f":"SUM('1:31'!U38)","v":0},{"$f":"SUM(B38:U38)","v":3},3,9]
["Coca Cola Light",{"$f":"SUM('1:31'!B39)","v":0},{"$f":"SUM('1:31'!C39)","v":0},{"$f":"SUM('1:31'!D39)","v":0},{"$f":"SUM('1:31'!E39)","v":3},{"$f":"SUM('1:31'!F39)","v":0},{"$f":"SUM('1:31'!G39)","v":0},{"$f":"SUM('1:31'!H39)","v":0},{"$f":"SUM('1:31'!I39)","v":0},{"$f":"SUM('1:31'!J39)","v":0},{"$f":"SUM('1:31'!K39)","v":0},{"$f":"SUM('1:31'!L39)","v":0},{"$f":"SUM('1:31'!M39)","v":0},{"$f":"SUM('1:31'!N39)","v":0},{"$f":"SUM('1:31'!O39)","v":2},{"$f":"SUM('1:31'!P39)","v":1},{"$f":"SUM('1:31'!Q39)","v":0},{"$f":"SUM('1:31'!R39)","v":0},{"$f":"SUM('1:31'!S39)","v":0},{"$f":"SUM('1:31'!T39)","v":0},{"$f":"SUM('1:31'!U39)","v":0},0,3,0]
["Tè",{"$f":"SUM('1:31'!B40)","v":0},{"$f":"SUM('1:31'!C40)","v":0},{"$f":"SUM('1:31'!D40)","v":0},{"$f":"SUM('1:31'!E40)","v":1},{"$f":"SUM('1:31'!F40)","v":0},{"$f":"SUM('1:31'!G40)","v":1},{"$f":"SUM('1:31'!H40)","v":2},{"$f":"SUM('1:31'!I40)","v":0},{"$f":"SUM('1:31'!J40)","v":0},{"$f":"SUM('1:31'!K40)","v":0},{"$f":"SUM('1:31'!L40)","v":0},{"$f":"SUM('1:31'!M40)","v":0},{"$f":"SUM('1:31'!N40)","v":0},{"$f":"SUM('1:31'!O40)","v":0},{"$f":"SUM('1:31'!P40)","v":0},{"$f":"SUM('1:31'!Q40)","v":1},{"$f":"SUM('1:31'!R40)","v":0},{"$f":"SUM('1:31'!S40)","v":0},{"$f":"SUM('1:31'!T40)","v":0},{"$f":"SUM('1:31'!U40)","v":0},0,3,0]
["Acqua Tonica",{"$f":"SUM('1:31'!B41)","v":0},{"$f":"SUM('1:31'!C41)","v":0},{"$f":"SUM('1:31'!D41)","v":0},{"$f":"SUM('1:31'!E41)","v":0},{"$f":"SUM('1:31'!F41)","v":0},{"$f":"SUM('1:31'!G41)","v":0},{"$f":"SUM('1:31'!H41)","v":0},{"$f":"SUM('1:31'!I41)","v":0},{"$f":"SUM('1:31'!J41)","v":0},{"$f":"SUM('1:31'!K41)","v":0},{"$f":"SUM('1:31'!L41)","v":0},{"$f":"SUM('1:31'!M41)","v":0},{"$f":"SUM('1:31'!N41)","v":0},{"$f":"SUM('1:31'!O41)","v":0},{"$f":"SUM('1:31'!P41)","v":0},{"$f":"SUM('1:31'!Q41)","v":0},{"$f":"SUM('1:31'!R41)","v":0},{"$f":"SUM('1:31'!S41)","v":0},{"$f":"SUM('1:31'!T41)","v":0},{"$f":"SUM('1:31'!U41)","v":0},0,3,0]
["Succo",{"$f":"SUM('1:31'!B42)","v":0},{"$f":"SUM('1:31'!C42)","v":0},{"$f":"SUM('1:31'!D42)","v":1},{"$f":"SUM('1:31'!E42)","v":1},{"$f":"SUM('1:31'!F42)","v":0},{"$f":"SUM('1:31'!G42)","v":1},{"$f":"SUM('1:31'!H42)","v":2},{"$f":"SUM('1:31'!I42)","v":0},{"$f":"SUM('1:31'!J42)","v":0},{"$f":"SUM('1:31'!K42)","v":0},{"$f":"SUM('1:31'!L42)","v":0},{"$f":"SUM('1:31'!M42)","v":1},{"$f":"SUM('1:31'!N42)","v":0},{"$f":"SUM('1:31'!O42)","v":0},{"$f":"SUM('1:31'!P42)","v":0},{"$f":"SUM('1:31'!Q42)","v":0},{"$f":"SUM('1:31'!R42)","v":0},{"$f":"SUM('1:31'!S42)","v":0},{"$f":"SUM('1:31'!T42)","v":0},{"$f":"SUM('1:31'!U42)","v":0},0,3,0]
["Birra",{"$f":"SUM('1:31'!B43)","v":1},{"$f":"SUM('1:31'!C43)","v":0},{"$f":"SUM('1:31'!D43)","v":3},{"$f":"SUM('1:31'!E43)","v":0},{"$f":"SUM('1:31'!F43)","v":0},{"$f":"SUM('1:31'!G43)","v":0},{"$f":"SUM('1:31'!H43)","v":4},{"$f":"SUM('1:31'!I43)","v":0},{"$f":"SUM('1:31'!J43)","v":0},{"$f":"SUM('1:31'!K43)","v":0},{"$f":"SUM('1:31'!L43)","v":1},{"$f":"SUM('1:31'!M43)","v":1},{"$f":"SUM('1:31'!N43)","v":3},{"$f":"SUM('1:31'!O43)","v":1},{"$f":"SUM('1:31'!P43)","v":0},{"$f":"SUM('1:31'!Q43)","v":0},{"$f":"SUM('1:31'!R43)","v":2},{"$f":"SUM('1:31'!S43)","v":1},{"$f":"SUM('1:31'!T43)","v":0},{"$f":"SUM('1:31'!U43)","v":0},0,3.5,0]
["Acqua Naturale",{"$f":"SUM('1:31'!B44)","v":0},{"$f":"SUM('1:31'!C44)","v":1},{"$f":"SUM('1:31'!D44)","v":6},{"$f":"SUM('1:31'!E44)","v":7},{"$f":"SUM('1:31'!F44)","v":3},{"$f":"SUM('1:31'!G44)","v":0},{"$f":"SUM('1:31'!H44)","v":8},{"$f":"SUM('1:31'!I44)","v":0},{"$f":"SUM('1:31'!J44)","v":0},{"$f":"SUM('1:31'!K44)","v":7},{"$f":"SUM('1:31'!L44)","v":6},{"$f":"SUM('1:31'!M44)","v":6},{"$f":"SUM('1:31'!N44)","v":1},{"$f":"SUM('1:31'!O44)","v":4},{"$f":"SUM('1:31'!P44)","v":4},{"$f":"SUM('1:31'!Q44)","v":4},{"$f":"SUM('1:31'!R44)","v":4},{"$f":"SUM('1:31'!S44)","v":3},{"$f":"SUM('1:31'!T44)","v":1},{"$f":"SUM('1:31'!U44)","v":2},{"$f":"SUM(B44:U44)","v":67},2.5,167.5]
["Acqua Frizzante",{"$f":"SUM('1:31'!B45)","v":0},{"$f":"SUM('1:31'!C45)","v":2},{"$f":"SUM('1:31'!D45)","v":0},{"$f":"SUM('1:31'!E45)","v":2},{"$f":"SUM('1:31'!F45)","v":1},{"$f":"SUM('1:31'!G45)","v":1},{"$f":"SUM('1:31'!H45)","v":2},{"$f":"SUM('1:31'!I45)","v":0},{"$f":"SUM('1:31'!J45)","v":0},{"$f":"SUM('1:31'!K45)","v":1},{"$f":"SUM('1:31'!L45)","v":2},{"$f":"SUM('1:31'!M45)","v":0},{"$f":"SUM('1:31'!N45)","v":1},{"$f":"SUM('1:31'!O45)","v":3},{"$f":"SUM('1:31'!P45)","v":2},{"$f":"SUM('1:31'!Q45)","v":0},{"$f":"SUM('1:31'!R45)","v":1},{"$f":"SUM('1:31'!S45)","v":7},{"$f":"SUM('1:31'!T45)","v":1},{"$f":"SUM('1:31'!U45)","v":0},26,2.5,65]
["Patatine",{"$f":"SUM('1:31'!B46)","v":1},{"$f":"SUM('1:31'!C46)","v":0},{"$f":"SUM('1:31'!D46)","v":2},{"$f":"SUM('1:31'!E46)","v":0},{"$f":"SUM('1:31'!F46)","v":0},{"$f":"SUM('1:31'!G46)","v":0},{"$f":"SUM('1:31'!H46)","v":1},{"$f":"SUM('1:31'!I46)","v":1},{"$f":"SUM('1:31'!J46)","v":0},{"$f":"SUM('1:31'!K46)","v":0},{"$f":"SUM('1:31'!L46)","v":0},{"$f":"SUM('1:31'!M46)","v":1},{"$f":"SUM('1:31'!N46)","v":0},{"$f":"SUM('1:31'!O46)","v":1},{"$f":"SUM('1:31'!P46)","v":5},{"$f":"SUM('1:31'!Q46)","v":0},{"$f":"SUM('1:31'!R46)","v":2},{"$f":"SUM('1:31'!S46)","v":0},{"$f":"SUM('1:31'!T46)","v":0},{"$f":"SUM('1:31'!U46)","v":0},0,2,0]
["Kit Kat",{"$f":"SUM('1:31'!B47)","v":0},{"$f":"SUM('1:31'!C47)","v":0},{"$f":"SUM('1:31'!D47)","v":1},{"$f":"SUM('1:31'!E47)","v":0},{"$f":"SUM('1:31'!F47)","v":0},{"$f":"SUM('1:31'!G47)","v":0},{"$f":"SUM('1:31'!H47)","v":2},{"$f":"SUM('1:31'!I47)","v":1},{"$f":"SUM('1:31'!J47)","v":0},{"$f":"SUM('1:31'!K47)","v":0},{"$f":"SUM('1:31'!L47)","v":1},{"$f":"SUM('1:31'!M47)","v":3},{"$f":"SUM('1:31'!N47)","v":1},{"$f":"SUM('1:31'!O47)","v":2},{"$f":"SUM('1:31'!P47)","v":1},{"$f":"SUM('1:31'!Q47)","v":0},{"$f":"SUM('1:31'!R47)","v":0},{"$f":"SUM('1:31'!S47)","v":1},{"$f":"SUM('1:31'!T47)","v":0},{"$f":"SUM('1:31'!U47)","v":0},0,2,0]
[]
["Camere",1001,1002,1003,1004,1005,1006,1007,1008,1009,1010,1101,1102,1103,1104,1105,1106,1107,1108,1109,1110,"TOT","PREZZO","Tot parziale"]
["Coca Cola",{"$f":"SUM('1:31'!B50)","v":0},{"$f":"SUM('1:31'!C50)","v":0},{"$f":"SUM('1:31'!D50)","v":0},{"$f":"SUM('1:31'!E50)","v":0},{"$f":"SUM('1:31'!F50)","v":0},{"$f":"SUM('1:31'!G50)","v":0},{"$f":"SUM('1:31'!H50)","v":0},{"$f":"SUM('1:31'!I50)","v":0},{"$f":"SUM('1:31'!J50)","v":1},{"$f":"SUM('1:31'!K50)","v":0},{"$f":"SUM('1:31'!L50)","v":1},{"$f":"SUM('1:31'!M50)","v":0},{"$f":"SUM('1:31'!N50)","v":0},{"$f":"SUM('1:31'!O50)","v":0},{"$f":"SUM('1:31'!P50)","v":1},{"$f":"SUM('1:31'!Q50)","v":0},{"$f":"SUM('1:31'!R50)","v":0},{"$f":"SUM('1:31'!S50)","v":0},{"$f":"SUM('1:31'!T50)","v":0},{"$f":"SUM('1:31'!U50)","v":0},{"$f":"SUM(B50:U50)","v":3},3,9]
["Coca Cola Light",{"$f":"SUM('1:31'!B51)","v":0},{"$f":"SUM('1:31'!C51)","v":1},{"$f":"SUM('1:31'!D51)","v":0},{"$f":"SUM('1:31'!E51)","v":0},{"$f":"SUM('1:31'!F51)","v":0},{"$f":"SUM('1:31'!G51)","v":0},{"$f":"SUM('1:31'!H51)","v":0},{"$f":"SUM('1:31'!I51)","v":0},{"$f":"SUM('1:31'!J51)","v":0},{"$f":"SUM('1:31'!K51)","v":0},{"$f":"SUM('1:31'!L51)","v":0},{"$f":"SUM('1:31'!M51)","v":2},{"$f":"SUM('1:31'!N51)","v":0},{"$f":"SUM('1:31'!O51)","v":0},{"$f":"SUM('1:31'!P51)","v":0},{"$f":"SUM('1:31'!Q51)","v":0},{"$f":"SUM('1:31'!R51)","v":0},{"$f":"SUM('1:31'!S51)","v":0},{"$f":"SUM('1:31'!T51)","v":0},{"$f":"SUM('1:31'!U51)","v":0},0,3,0]
["Tè",{"$f":"SUM('1:31'!B52)","v":0},{"$f":"SUM('1:31'!C52)","v":0},{"$f":"SUM('1:31'!D52)","v":0},{"$f":"SUM('1:31'!E52)","v":0},{"$f":"SUM('1:31'!F52)","v":0},{"$f":"SUM('1:31'!G52)","v":0},{"$f":"SUM('1:31'!H52)","v":0},{"$f":"SUM('1:31'!I52)","v":0},{"$f":"SUM('1:31'!J52)","v":0},{"$f":"SUM('1:31'!K52)","v":0},{"$f":"SUM('1:31'!L52)","v":0},{"$f":"SUM('1:31'!M52)","v":0},{"$f":"SUM('1:31'!N52)","v":0},{"$f":"SUM('1:31'!O52)","v":0},{"$f":"SUM('1:31'!P52)","v":0},{"$f":"SUM('1:31'!Q52)","v":0},{"$f":"SUM('1:31'!R52)","v":0},{"$f":"SUM('1:31'!S52)","v":0},{"$f":"SUM('1:31'!T52)","v":0},{"$f":"SUM('1:31'!U52)","v":0},0,3,0]
["Acqua Tonica",{"$f":"SUM('1:31'!B53)","v":0},{"$f":"SUM('1:31'!C53)","v":0},{"$f":"SUM('1:31'!D53)","v":0},{"$f":"SUM('1:31'!E53)","v":0},{"$f":"SUM('1:31'!F53)","v":0},{"$f":"SUM('1:31'!G53)","v":0},{"$f":"SUM('1:31'!H53)","v":0},{"$f":"SUM('1:31'!I53)","v":0},{"$f":"SUM('1:31'!J53)","v":0},{"$f":"SUM('1:31'!K53)","v":0},{"$f":"SUM('1:31'!L53)","v":0},{"$f":"SUM('1:31'!M53)","v":0},{"$f":"SUM('1:31'!N53)","v":0},{"$f":"SUM('1:31'!O53)","v":0},{"$f":"SUM('1:31'!P53)","v":0},{"$f":"SUM('1:31'!Q53)","v":0},{"$f":"SUM('1:31'!R53)","v":0},{"$f":"SUM('1:31'!S53)","v":0},{"$f":"SUM('1:31'!T53)","v":0},{"$f":"SUM('1:31'!U53)","v":0},0,3,0]
["Succo",{"$f":"SUM('1:31'!B54)","v":0},{"$f":"SUM('1:31'!C54)","v":0},{"$f":"SUM('1:31'!D54)","v":0},{"$f":"SUM('1:31'!E54)","v":0},{"$f":"SUM('1:31'!F54)","v":0},{"$f":"SUM('1:31'!G54)","v":0},{"$f":"SUM('1:31'!H54)","v":0},{"$f":"SUM('1:31'!I54)","v":0},{"$f":"SUM('1:31'!J54)","v":1},{"$f":"SUM('1:31'!K54)","v":0},{"$f":"SUM('1:31'!L54)","v":0},{"$f":"SUM('1:31'!M54)","v":0},{"$f":"SUM('1:31'!N54)","v":0},{"$f":"SUM('1:31'!O54)","v":0},{"$f":"SUM('1:31'!P54)","v":1},{"$f":"SUM('1:31'!Q54)","v":0},{"$f":"SUM('1:31'!R54)","v":0},{"$f":"SUM('1:31'!S54)","v":0},{"$f":"SUM('1:31'!T54)","v":0},{"$f":"SUM('1:31'!U54)","v":0},0,3,0]
["Birra",{"$f":"SUM('1:31'!B55)","v":0},{"$f":"SUM('1:31'!C55)","v":0},{"$f":"SUM('1:31'!D55)","v":0},{"$f":"SUM('1:31'!E55)","v":0},{"$f":"SUM('1:31'!F55)","v":0},{"$f":"SUM('1:31'!G55)","v":1},{"$f":"SUM('1:31'!H55)","v":2},{"$f":"SUM('1:31'!I55)","v":0},{"$f":"SUM('1:31'!J55)","v":0},{"$f":"SUM('1:31'!K55)","v":0},{"$f":"SUM('1:31'!L55)","v":0},{"$f":"SUM('1:31'!M55)","v":0},{"$f":"SUM('1:31'!N55)","v":0},{"$f":"SUM('1:31'!O55)","v":0},{"$f":"SUM('1:31'!P55)","v":2},{"$f":"SUM('1:31'!Q55)","v":0},{"$f":"SUM('1:31'!R55)","v":1},{"$f":"SUM('1:31'!S55)","v":0},{"$f":"SUM('1:31'!T55)","v":2},{"$f":"SUM('1:31'!U55)","v":0},0,3.5,0]
["Acqua Naturale",{"$f":"SUM('1:31'!B56)","v":3},{"$f":"SUM('1:31'!C56)","v":3},{"$f":"SUM('1:31'!D56)","v":2},{"$f":"SUM('1:31'!E56)","v":0},{"$f":"SUM('1:31'!F56)","v":3},{"$f":"SUM('1:31'!G56)","v":3},{"$f":"SUM('1:31'!H56)","v":2},{"$f":"SUM('1:31'!I56)","v":1},{"$f":"SUM('1:31'!J56)","v":2},{"$f":"SUM('1:31'!K56)","v":2},{"$f":"SUM('1:31'!L56)","v":4},{"$f":"SUM('1:31'!M56)","v":1},{"$f":"SUM('1:31'!N56)","v":8},{"$f":"SUM('1:31'!O56)","v":1},{"$f":"SUM('1:31'!P56)","v":6},{"$f":"SUM('1:31'!Q56)","v":1},{"$f":"SUM('1:31'!R56)","v":2},{"$f":"SUM('1:31'!S56)","v":1},{"$f":"SUM('1:31'!T56)","v":3},{"$f":"SUM('1:31'!U56)","v":0},{"$f":"SUM(B56:U56)","v":48},2.5,120]
["Acqua Frizzante",{"$f":"SUM('1:31'!B57)","v":0},{"$f":"SUM('1:31'!C57)","v":2},{"$f":"SUM('1:31'!D57)","v":1},{"$f":"SUM('1:31'!E57)","v":0},{"$f":"SUM('1:31'!F57)","v":1},{"$f":"SUM('1:31'!G57)","v":0},{"$f":"SUM('1:31'!H57)","v":5},{"$f":"SUM('1:31'!I57)","v":0},{"$f":"SUM('1:31'!J57)","v":2},{"$f":"SUM('1:31'!K57)","v":0},{"$f":"SUM('1:31'!L57)","v":3},{"$f":"SUM('1:31'!M57)","v":0},{"$f":"SUM('1:31'!N57)","v":2},{"$f":"SUM('1:31'!O57)","v":2},{"$f":"SUM('1:31'!P57)","v":3},{"$f":"SUM('1:31'!Q57)","v":2},{"$f":"SUM('1:31'!R57)","v":1},{"$f":"SUM('1:31'!S57)","v":0},{"$f":"SUM('1:31'!T57)","v":1},{"$f":"SUM('1:31'!U57)","v":2},27,2.5,67.5]
["Patatine",{"$f":"SUM('1:31'!B58)","v":0},{"$f":"SUM('1:31'!C58)","v":1},{"$f":"SUM('1:31'!D58)","v":0},{"$f":"SUM('1:31'!E58)","v":0},{"$f":"SUM('1:31'!F58)","v":0},{"$f":"SUM('1:31'!G58)","v":0},{"$f":"SUM('1:31'!H58)","v":1},{"$f":"SUM('1:31'!I58)","v":0},{"$f":"SUM('1:31'!J58)","v":0},{"$f":"SUM('1:31'!K58)","v":0},{"$f":"SUM('1:31'!L58)","v":0},{"$f":"SUM('1:31'!M58)","v":0},{"$f":"SUM('1:31'!N58)","v":1},{"$f":"SUM('1:31'!O58)","v":0},{"$f":"SUM('1:31'!P58)","v":0},{"$f":"SUM('1:31'!Q58)","v":0},{"$f":"SUM('1:31'!R58)","v":0},{"$f":"SUM('1:31'!S58)","v":1},{"$f":"SUM('1:31'!T58)","v":0},{"$f":"SUM('1:31'!U58)","v":0},0,2,0]
["Kit Kat",{"$f":"SUM('1:31'!B59)","v":0},{"$f":"SUM('1:31'!C59)","v":2},{"$f":"SUM('1:31'!D59)","v":0},{"$f":"SUM('1:31'!E59)","v":0},{"$f":"SUM('1:31'!F59)","v":0},{"$f":"SUM('1:31'!G59)","v":0},{"$f":"SUM('1:31'!H59)","v":0},{"$f":"SUM('1:31'!I59)","v":0},{"$f":"SUM('1:31'!J59)","v":0},{"$f":"SUM('1:31'!K59)","v":1},{"$f":"SUM('1:31'!L59)","v":0},{"$f":"SUM('1:31'!M59)","v":1},{"$f":"SUM('1:31'!N59)","v":0},{"$f":"SUM('1:31'!O59)","v":0},{"$f":"SUM('1:31'!P59)","v":0},{"$f":"SUM('1:31'!Q59)","v":0},{"$f":"SUM('1:31'!R59)","v":0},{"$f":"SUM('1:31'!S59)","v":1},{"$f":"SUM('1:31'!T59)","v":0},{"$f":"SUM('1:31'!U59)","v":0},0,2,0]
[]
["Camere",1201,1202,1203,1204,1205,1206,1207,1208,1209,1210,1301,1302,1303,1304,1305,1306,1307,1308,1309,1310,"TOT","PREZZO","Tot parziale"]
["Coca Cola",{"$f":"SUM('1:31'!B62)","v":0},{"$f":"SUM('1:31'!C62)","v":0},{"$f":"SUM('1:31'!D62)","v":0},{"$f":"SUM('1:31'!E62)","v":1},{"$f":"SUM('1:31'!F62)","v":0},{"$f":"SUM('1:31'!G62)","v":0},{"$f":"SUM('1:31'!H62)","v":0},{"$f":"SUM('1:31'!I62)","v":0},{"$f":"SUM('1:31'!J62)","v":0},{"$f":"SUM('1:31'!K62)","v":2},{"$f":"SUM('1:31'!L62)","v":0},{"$f":"SUM('1:31'!M62)","v":0},{"$f":"SUM('1:31'!N62)","v":0},{"$f":"SUM('1:31'!O62)","v":0},{"$f":"SUM('1:31'!P62)","v":0},{"$f":"SUM('1:31'!Q62)","v":0},{"$f":"SUM('1:31'!R62)","v":0},{"$f":"SUM('1:31'!S62)","v":0},{"$f":"SUM('1:31'!T62)","v":0},{"$f":"SUM('1:31'!U62)","v":0},{"$f":"SUM(B62:U62)","v":3},3,9]
["Coca Cola Light",{"$f":"SUM('1:31'!B63)","v":0},{"$f":"SUM('1:31'!C63)","v":1},{"$f":"SUM('1:31'!D63)","v":0},{"$f":"SUM('1:31'!E63)","v":0},{"$f":"SUM('1:31'!F63)","v":0},{"$f":"SUM('1:31'!G63)","v":0},{"$f":"SUM('1:31'!H63)","v":0},{"$f":"SUM('1:31'!I63)","v":0},{"$f":"SUM('1:31'!J63)","v":0},{"$f":"SUM('1:31'!K63)","v":0},{"$f":"SUM('1:31'!L63)","v":0},{"$f":"SUM('1:31'!M63)","v":2},{"$f":"SUM('1:31'!N63)","v":0},{"$f":"SUM('1:31'!O63)","v":1},{"$f":"SUM('1:31'!P63)","v":0},{"$f":"SUM('1:31'!Q63)","v":1},{"$f":"SUM('1:31'!R63)","v":0},{"$f":"SUM('1:31'!S63)","v":0},{"$f":"SUM('1:31'!T63)","v":0},{"$f":"SUM('1:31'!U63)","v":1},{"$f":"SUM(B63:U63)","v":6},3,18]
["Tè",{"$f":"SUM('1:31'!B64)","v":0},{"$f":"SUM('1:31'!C64)","v":1},{"$f":"SUM('1:31'!D64)","v":1},{"$f":"SUM('1:31'!E64)","v":1},{"$f":"SUM('1:31'!F64)","v":0},{"$f":"SUM('1:31'!G64)","v":1},{"$f":"SUM('1:31'!H64)","v":0},{"$f":"SUM('1:31'!I64)","v":0},{"$f":"SUM('1:31'!J64)","v":0},{"$f":"SUM('1:31'!K64)","v":1},{"$f":"SUM('1:31'!L64)","v":0},{"$f":"SUM('1:31'!M64)","v":0},{"$f":"SUM('1:31'!N64)","v":0},{"$f":"SUM('1:31'!O64)","v":0},{"$f":"SUM('1:31'!P64)","v":0},{"$f":"SUM('1:31'!Q64)","v":0},{"$f":"SUM('1:31'!R64)","v":0},{"$f":"SUM('1:31'!S64)","v":0},{"$f":"SUM('1:31'!T64)","v":1},{"$f":"SUM('1:31'!U64)","v":0},6,3,18]
["Acqua Tonica",{"$f":"SUM('1:31'!B65)","v":0},{"$f":"SUM('1:31'!C65)","v":0},{"$f":"SUM('1:31'!D65)","v":0},{"$f":"SUM('1:31'!E65)","v":1},{"$f":"SUM('1:31'!F65)","v":0},{"$f":"SUM('1:31'!G65)","v":0},{"$f":"SUM('1:31'!H65)","v":0},{"$f":"SUM('1:31'!I65)","v":0},{"$f":"SUM('1:31'!J65)","v":0},{"$f":"SUM('1:31'!K65)","v":0},{"$f":"SUM('1:31'!L65)","v":1},{"$f":"SUM('1:31'!M65)","v":0},{"$f":"SUM('1:31'!N65)","v":0},{"$f":"SUM('1:31'!O65)","v":0},{"$f":"SUM('1:31'!P65)","v":0},{"$f":"SUM('1:31'!Q65)","v":0},{"$f":"SUM('1:31'!R65)","v":0},{"$f":"SUM('1:31'!S65)","v":0},{"$f":"SUM('1:31'!T65)","v":0},{"$f":"SUM('1:31'!U65)","v":0},2,3,6]
["Succo",{"$f":"SUM('1:31'!B66)","v":1},{"$f":"SUM('1:31'!C66)","v":1},{"$f":"SUM('1:31'!D66)","v":0},{"$f":"SUM('1:31'!E66)","v":1},{"$f":"SUM('1:31'!F66)","v":0},{"$f":"SUM('1:31'!G66)","v":0},{"$f":"SUM('1:31'!H66)","v":0},{"$f":"SUM('1:31'!I66)","v":1},{"$f":"SUM('1:31'!J66)","v":7},{"$f":"SUM('1:31'!K66)","v":1},{"$f":"SUM('1:31'!L66)","v":0},{"$f":"SUM('1:31'!M66)","v":0},{"$f":"SUM('1:31'!N66)","v":0},{"$f":"SUM('1:31'!O66)","v":0},{"$f":"SUM('1:31'!P66)","v":0},{"$f":"SUM('1:31'!Q66)","v":1},{"$f":"SUM('1:31'!R66)","v":0},{"$f":"SUM('1:31'!S66)","v":1},{"$f":"SUM('1:31'!T66)","v":0},{"$f":"SUM('1:31'!U66)","v":3},17,3,51]
["Birra",{"$f":"SUM('1:31'!B67)","v":0},{"$f":"SUM('1:31'!C67)","v":0},{"$f":"SUM('1:31'!D67)","v":1},{"$f":"SUM('1:31'!E67)","v":0},{"$f":"SUM('1:31'!F67)","v":2},{"$f":"SUM('1:31'!G67)","v":1},{"$f":"SUM('1:31'!H67)","v":0},{"$f":"SUM('1:31'!I67)","v":0},{"$f":"SUM('1:31'!J67)","v":3},{"$f":"SUM('1:31'!K67)","v":0},{"$f":"SUM('1:31'!L67)","v":0},{"$f":"SUM('1:31'!M67)","v":0},{"$f":"SUM('1:31'!N67)","v":1},{"$f":"SUM('1:31'!O67)","v":0},{"$f":"SUM('1:31'!P67)","v":0},{"$f":"SUM('1:31'!Q67)","v":0},{"$f":"SUM('1:31'!R67)","v":1},{"$f":"SUM('1:31'!S67)","v":1},{"$f":"SUM('1:31'!T67)","v":0},{"$f":"SUM('1:31'!U67)","v":0},10,3.5,35]
["Acqua Naturale",{"$f":"SUM('1:31'!B68)","v":1},{"$f":"SUM('1:31'!C68)","v":4},{"$f":"SUM('1:31'!D68)","v":6},{"$f":"SUM('1:31'!E68)","v":0},{"$f":"SUM('1:31'!F68)","v":2},{"$f":"SUM('1:31'!G68)","v":4},{"$f":"SUM('1:31'!H68)","v":5},{"$f":"SUM('1:31'!I68)","v":5},{"$f":"SUM('1:31'!J68)","v":4},{"$f":"SUM('1:31'!K68)","v":0},{"$f":"SUM('1:31'!L68)","v":1},{"$f":"SUM('1:31'!M68)","v":4},{"$f":"SUM('1:31'!N68)","v":0},{"$f":"SUM('1:31'!O68)","v":9},{"$f":"SUM('1:31'!P68)","v":5},{"$f":"SUM('1:31'!Q68)","v":5},{"$f":"SUM('1:31'!R68)","v":0},{"$f":"SUM('1:31'!S68)","v":6},{"$f":"SUM('1:31'!T68)","v":6},{"$f":"SUM('1:31'!U68)","v":5},72,2.5,180]
["Acqua Frizzante",{"$f":"SUM('1:31'!B69)","v":3},{"$f":"SUM('1:31'!C69)","v":0},{"$f":"SUM('1:31'!D69)","v":4},{"$f":"SUM('1:31'!E69)","v":1},{"$f":"SUM('1:31'!F69)","v":0},{"$f":"SUM('1:31'!G69)","v":2},{"$f":"SUM('1:31'!H69)","v":0},{"$f":"SUM('1:31'!I69)","v":0},{"$f":"SUM('1:31'!J69)","v":2},{"$f":"SUM('1:31'!K69)","v":3},{"$f":"SUM('1:31'!L69)","v":0},{"$f":"SUM('1:31'!M69)","v":3},{"$f":"SUM('1:31'!N69)","v":6},{"$f":"SUM('1:31'!O69)","v":3},{"$f":"SUM('1:31'!P69)","v":5},{"$f":"SUM('1:31'!Q69)","v":3},{"$f":"SUM('1:31'!R69)","v":1},{"$f":"SUM('1:31'!S69)","v":1},{"$f":"SUM('1:31'!T69)","v":5},{"$f":"SUM('1:31'!U69)","v":0},42,2.5,105]
["Patatine",{"$f":"SUM('1:31'!B70)","v":0},{"$f":"SUM('1:31'!C70)","v":1},{"$f":"SUM('1:31'!D70)","v":1},{"$f":"SUM('1:31'!E70)","v":0},{"$f":"SUM('1:31'!F70)","v":0},{"$f":"SUM('1:31'!G70)","v":1},{"$f":"SUM('1:31'!H70)","v":0},{"$f":"SUM('1:31'!I70)","v":0},{"$f":"SUM('1:31'!J70)","v":0},{"$f":"SUM('1:31'!K70)","v":0},{"$f":"SUM('1:31'!L70)","v":0},{"$f":"SUM('1:31'!M70)","v":0},{"$f":"SUM('1:31'!N70)","v":0},{"$f":"SUM('1:31'!O70)","v":0},{"$f":"SUM('1:31'!P70)","v":0},{"$f":"SUM('1:31'!Q70)","v":1},{"$f":"SUM('1:31'!R70)","v":0},{"$f":"SUM('1:31'!S70)","v":0},{"$f":"SUM('1:31'!T70)","v":1},{"$f":"SUM('1:31'!U70)","v":3},8,2,16]
["Kit Kat",{"$f":"SUM('1:31'!B71)","v":1},{"$f":"SUM('1:31'!C71)","v":0},{"$f":"SUM('1:31'!D71)","v":0},{"$f":"SUM('1:31'!E71)","v":0},{"$f":"SUM('1:31'!F71)","v":2},{"$f":"SUM('1:31'!G71)","v":1},{"$f":"SUM('1:31'!H71)","v":1},{"$f":"SUM('1:31'!I71)","v":0},{"$f":"SUM('1:31'!J71)","v":3},{"$f":"SUM('1:31'!K71)","v":1},{"$f":"SUM('1:31'!L71)","v":0},{"$f":"SUM('1:31'!M71)","v":0},{"$f":"SUM('1:31'!N71)","v":1},{"$f":"SUM('1:31'!O71)","v":1},{"$f":"SUM('1:31'!P71)","v":0},{"$f":"SUM('1:31'!Q71)","v":1},{"$f":"SUM('1:31'!R71)","v":1},{"$f":"SUM('1:31'!S71)","v":0},{"$f":"SUM('1:31'!T71)","v":4},{"$f":"SUM('1:31'!U71)","v":3},20,2,40]
[]
["Camere",1401,1402,1403,1404,1405,1406,1407,1408,1409,1410,1501,1502,1503,1504,1505,1506,1507,1508,1509,1510,"TOT","PREZZO","Tot parziale"]
["Coca Cola",{"$f":"SUM('1:31'!B74)","v":0},{"$f":"SUM('1:31'!C74)","v":2},{"$f":"SUM('1:31'!D74)","v":0},{"$f":"SUM('1:31'!E74)","v":0},{"$f":"SUM('1:31'!F74)","v":2},{"$f":"SUM('1:31'!G74)","v":0},{"$f":"SUM('1:31'!H74)","v":0},{"$f":"SUM('1:31'!I74)","v":0},{"$f":"SUM('1:31'!J74)","v":0},{"$f":"SUM('1:31'!K74)","v":0},{"$f":"SUM('1:31'!L74)","v":0},{"$f":"SUM('1:31'!M74)","v":0},{"$f":"SUM('1:31'!N74)","v":0},{"$f":"SUM('1:31'!O74)","v":0},{"$f":"SUM('1:31'!P74)","v":0},{"$f":"SUM('1:31'!Q74)","v":0},{"$f":"SUM('1:31'!R74)","v":2},{"$f":"SUM('1:31'!S74)","v":1},{"$f":"SUM('1:31'!T74)","v":1},{"$f":"SUM('1:31'!U74)","v":0},{"$f":"SUM(B74:U74)","v":8},3,24]
["Coca Cola Light",{"$f":"SUM('1:31'!B75)","v":2},{"$f":"SUM('1:31'!C75)","v":2},{"$f":"SUM('1:31'!D75)","v":2},{"$f":"SUM('1:31'!E75)","v":0},{"$f":"SUM('1:31'!F75)","v":1},{"$f":"SUM('1:31'!G75)","v":0},{"$f":"SUM('1:31'!H75)","v":1},{"$f":"SUM('1:31'!I75)","v":0},{"$f":"SUM('1:31'!J75)","v":1},{"$f":"SUM('1:31'!K75)","v":0},{"$f":"SUM('1:31'!L75)","v":0},{"$f":"SUM('1:31'!M75)","v":0},{"$f":"SUM('1:31'!N75)","v":0},{"$f":"SUM('1:31'!O75)","v":0},{"$f":"SUM('1:31'!P75)","v":1},{"$f":"SUM('1:31'!Q75)","v":0},{"$f":"SUM('1:31'!R75)","v":2},{"$f":"SUM('1:31'!S75)","v":0},{"$f":"SUM('1:31'!T75)","v":0},{"$f":"SUM('1:31'!U75)","v":0},{"$f":"SUM(B75:U75)","v":12},3,36]
["Tè",{"$f":"SUM('1:31'!B76)","v":0},{"$f":"SUM('1:31'!C76)","v":0},{"$f":"SUM('1:31'!D76)","v":0},{"$f":"SUM('1:31'!E76)","v":0},{"$f":"SUM('1:31'!F76)","v":0},{"$f":"SUM('1:31'!G76)","v":0},{"$f":"SUM('1:31'!H76)","v":0},{"$f":"SUM('1:31'!I76)","v":0},{"$f":"SUM('1:31'!J76)","v":1},{"$f":"SUM('1:31'!K76)","v":1},{"$f":"SUM('1:31'!L76)","v":1},{"$f":"SUM('1:31'!M76)","v":1},{"$f":"SUM('1:31'!N76)","v":0},{"$f":"SUM('1:31'!O76)","v":0},{"$f":"SUM('1:31'!P76)","v":1},{"$f":"SUM('1:31'!Q76)","v":0},{"$f":"SUM('1:31'!R76)","v":0},{"$f":"SUM('1:31'!S76)","v":1},{"$f":"SUM('1:31'!T76)","v":0},{"$f":"SUM('1:31'!U76)","v":1},7,3,21]
["Acqua Tonica",{"$f":"SUM('1:31'!B77)","v":0},{"$f":"SUM('1:31'!C77)","v":0},{"$f":"SUM('1:31'!D77)","v":0},{"$f":"SUM('1:31'!E77)","v":0},{"$f":"SUM('1:31'!F77)","v":0},{"$f":"SUM('1:31'!G77)","v":0},{"$f":"SUM('1:31'!H77)","v":0},{"$f":"SUM('1:31'!I77)","v":0},{"$f":"SUM('1:31'!J77)","v":0},{"$f":"SUM('1:31'!K77)","v":0},{"$f":"SUM('1:31'!L77)","v":0},{"$f":"SUM('1:31'!M77)","v":0},{"$f":"SUM('1:31'!N77)","v":0},{"$f":"SUM('1:31'!O77)","v":0},{"$f":"SUM('1:31'!P77)","v":0},{"$f":"SUM('1:31'!Q77)","v":0},{"$f":"SUM('1:31'!R77)","v":0},{"$f":"SUM('1:31'!S77)","v":0},{"$f":"SUM('1:31'!T77)","v":0},{"$f":"SUM('1:31'!U77)","v":0},0,3,{"$f":"W77*V77","v":0}]
["Succo",{"$f":"SUM('1:31'!B78)","v":4},{"$f":"SUM('1:31'!C78)","v":2},{"$f":"SUM('1:31'!D78)","v":4},{"$f":"SUM('1:31'!E78)","v":0},{"$f":"SUM('1:31'!F78)","v":1},{"$f":"SUM('1:31'!G78)","v":0},{"$f":"SUM('1:31'!H78)","v":3},{"$f":"SUM('1:31'!I78)","v":0},{"$f":"SUM('1:31'!J78)","v":0},{"$f":"SUM('1:31'!K78)","v":0},{"$f":"SUM('1:31'!L78)","v":0},{"$f":"SUM('1:31'!M78)","v":0},{"$f":"SUM('1:31'!N78)","v":1},{"$f":"SUM('1:31'!O78)","v":0},{"$f":"SUM('1:31'!P78)","v":0},{"$f":"SUM('1:31'!Q78)","v":1},{"$f":"SUM('1:31'!R78)","v":1},{"$f":"SUM('1:31'!S78)","v":0},{"$f":"SUM('1:31'!T78)","v":0},{"$f":"SUM('1:31'!U78)","v":0},17,3,51]
["Birra",{"$f":"SUM('1:31'!B79)","v":4},{"$f":"SUM('1:31'!C79)","v":1},{"$f":"SUM('1:31'!D79)","v":2},{"$f":"SUM('1:31'!E79)","v":2},{"$f":"SUM('1:31'!F79)","v":0},{"$f":"SUM('1:31'!G79)","v":0},{"$f":"SUM('1:31'!H79)","v":2},{"$f":"SUM('1:31'!I79)","v":2},{"$f":"SUM('1:31'!J79)","v":2},{"$f":"SUM('1:31'!K79)","v":0},{"$f":"SUM('1:31'!L79)","v":1},{"$f":"SUM('1:31'!M79)","v":9},{"$f":"SUM('1:31'!N79)","v":1},{"$f":"SUM('1:31'!O79)","v":0},{"$f":"SUM('1:31'!P79)","v":0},{"$f":"SUM('1:31'!Q79)","v":0},{"$f":"SUM('1:31'!R79)","v":1},{"$f":"SUM('1:31'!S79)","v":0},{"$f":"SUM('1:31'!T79)","v":1},{"$f":"SUM('1:31'!U79)","v":1},29,3.5,101.5]
["Acqua Naturale",{"$f":"SUM('1:31'!B80)","v":1},{"$f":"SUM('1:31'!C80)","v":5},{"$f":"SUM('1:31'!D80)","v":10},{"$f":"SUM('1:31'!E80)","v":9},{"$f":"SUM('1:31'!F80)","v":7},{"$f":"SUM('1:31'!G80)","v":2},{"$f":"SUM('1:31'!H80)","v":5},{"$f":"SUM('1:31'!I80)","v":4},{"$f":"SUM('1:31'!J80)","v":9},{"$f":"SUM('1:31'!K80)","v":5},{"$f":"SUM('1:31'!L80)","v":4},{"$f":"SUM('1:31'!M80)","v":5},{"$f":"SUM('1:31'!N80)","v":7},{"$f":"SUM('1:31'!O80)","v":2},{"$f":"SUM('1:31'!P80)","v":1},{"$f":"SUM('1:31'!Q80)","v":5},{"$f":"SUM('1:31'!R80)","v":1},{"$f":"SUM('1:31'!S80)","v":2},{"$f":"SUM('1:31'!T80)","v":1},{"$f":"SUM('1:31'!U80)","v":5},90,2.5,225]
["Acqua Frizzante",{"$f":"SUM('1:31'!B81)","v":2},{"$f":"SUM('1:31'!C81)","v":4},{"$f":"SUM('1:31'!D81)","v":8},{"$f":"SUM('1:31'!E81)","v":3},{"$f":"SUM('1:31'!F81)","v":0},{"$f":"SUM('1:31'!G81)","v":1},{"$f":"SUM('1:31'!H81)","v":4},{"$f":"SUM('1:31'!I81)","v":1},{"$f":"SUM('1:31'!J81)","v":0},{"$f":"SUM('1:31'!K81)","v":1},{"$f":"SUM('1:31'!L81)","v":3},{"$f":"SUM('1:31'!M81)","v":1},{"$f":"SUM('1:31'!N81)","v":0},{"$f":"SUM('1:31'!O81)","v":3},{"$f":"SUM('1:31'!P81)","v":2},{"$f":"SUM('1:31'!Q81)","v":1},{"$f":"SUM('1:31'!R81)","v":2},{"$f":"SUM('1:31'!S81)","v":0},{"$f":"SUM('1:31'!T81)","v":0},{"$f":"SUM('1:31'!U81)","v":2},38,2.5,95]
["Patatine",{"$f":"SUM('1:31'!B82)","v":3},{"$f":"SUM('1:31'!C82)","v":2},{"$f":"SUM('1:31'!D82)","v":3},{"$f":"SUM('1:31'!E82)","v":3},{"$f":"SUM('1:31'!F82)","v":0},{"$f":"SUM('1:31'!G82)","v":0},{"$f":"SUM('1:31'!H82)","v":2},{"$f":"SUM('1:31'!I82)","v":2},{"$f":"SUM('1:31'!J82)","v":1},{"$f":"SUM('1:31'!K82)","v":1},{"$f":"SUM('1:31'!L82)","v":0},{"$f":"SUM('1:31'!M82)","v":1},{"$f":"SUM('1:31'!N82)","v":0},{"$f":"SUM('1:31'!O82)","v":0},{"$f":"SUM('1:31'!P82)","v":0},{"$f":"SUM('1:31'!Q82)","v":1},{"$f":"SUM('1:31'!R82)","v":2},{"$f":"SUM('1:31'!S82)","v":0},{"$f":"SUM('1:31'!T82)","v":0},{"$f":"SUM('1:31'!U82)","v":1},22,2,44]
["Kit Kat",{"$f":"SUM('1:31'!B83)","v":6},{"$f":"SUM('1:31'!C83)","v":2},{"$f":"SUM('1:31'!D83)","v":2},{"$f":"SUM('1:31'!E83)","v":2},{"$f":"SUM('1:31'!F83)","v":0},{"$f":"SUM('1:31'!G83)","v":0},{"$f":"SUM('1:31'!H83)","v":2},{"$f":"SUM('1:31'!I83)","v":1},{"$f":"SUM('1:31'!J83)","v":4},{"$f":"SUM('1:31'!K83)","v":2},{"$f":"SUM('1:31'!L83)","v":0},{"$f":"SUM('1:31'!M83)","v":1},{"$f":"SUM('1:31'!N83)","v":1},{"$f":"SUM('1:31'!O83)","v":0},{"$f":"SUM('1:31'!P83)","v":0},{"$f":"SUM('1:31'!Q83)","v":2},{"$f":"SUM('1:31'!R83)","v":2},{"$f":"SUM('1:31'!S83)","v":2},{"$f":"SUM('1:31'!T83)","v":0},{"$f":"SUM('1:31'!U83)","v":3},32,2,64]
[]
["Camere",1601,1602,1603,1604,1605,1606,1607,1608,1609,1610,1701,1702,1703,1704,1705,1706,1707,1708,null,null,"TOT","PREZZO","Tot parziale"]
["Coca Cola",{"$f":"SUM('1:31'!B86)","v":1},{"$f":"SUM('1:31'!C86)","v":0},{"$f":"SUM('1:31'!D86)","v":0},{"$f":"SUM('1:31'!E86)","v":1},{"$f":"SUM('1:31'!F86)","v":0},{"$f":"SUM('1:31'!G86)","v":0},{"$f":"SUM('1:31'!H86)","v":0},{"$f":"SUM('1:31'!I86)","v":0},{"$f":"SUM('1:31'!J86)","v":0},{"$f":"SUM('1:31'!K86)","v":0},{"$f":"SUM('1:31'!L86)","v":6},{"$f":"SUM('1:31'!M86)","v":3},{"$f":"SUM('1:31'!N86)","v":0},{"$f":"SUM('1:31'!O86)","v":0},{"$f":"SUM('1:31'!P86)","v":0},{"$f":"SUM('1:31'!Q86)","v":0},{"$f":"SUM('1:31'!R86)","v":0},{"$f":"SUM('1:31'!S86)","v":1},null,null,{"$f":"SUM(B86:U86)","v":12},3,36]
["Coca Cola Light",{"$f":"SUM('1:31'!B87)","v":0},{"$f":"SUM('1:31'!C87)","v":0},{"$f":"SUM('1:31'!D87)","v":1},{"$f":"SUM('1:31'!E87)","v":0},{"$f":"SUM('1:31'!F87)","v":1},{"$f":"SUM('1:31'!G87)","v":0},{"$f":"SUM('1:31'!H87)","v":0},{"$f":"SUM('1:31'!I87)","v":2},{"$f":"SUM('1:31'!J87)","v":0},{"$f":"SUM('1:31'!K87)","v":0},{"$f":"SUM('1:31'!L87)","v":0},{"$f":"SUM('1:31'!M87)","v":0},{"$f":"SUM('1:31'!N87)","v":0},{"$f":"SUM('1:31'!O87)","v":4},{"$f":"SUM('1:31'!P87)","v":0},{"$f":"SUM('1:31'!Q87)","v":1},{"$f":"SUM('1:31'!R87)","v":2},{"$f":"SUM('1:31'!S87)","v":0},null,null,{"$f":"SUM(B87:U87)","v":11},3,33]
["Tè",{"$f":"SUM('1:31'!B88)","v":0},{"$f":"SUM('1:31'!C88)","v":0},{"$f":"SUM('1:31'!D88)","v":0},{"$f":"SUM('1:31'!E88)","v":0},{"$f":"SUM('1:31'!F88)","v":1},{"$f":"SUM('1:31'!G88)","v":0},{"$f":"SUM('1:31'!H88)","v":0},{"$f":"SUM('1:31'!I88)","v":0},{"$f":"SUM('1:31'!J88)","v":0},{"$f":"SUM('1:31'!K88)","v":0},{"$f":"SUM('1:31'!L88)","v":3},{"$f":"SUM('1:31'!M88)","v":1},{"$f":"SUM('1:31'!N88)","v":0},{"$f":"SUM('1:31'!O88)","v":4},{"$f":"SUM('1:31'!P88)","v":0},{"$f":"SUM('1:31'!Q88)","v":0},{"$f":"SUM('1:31'!R88)","v":0},{"$f":"SUM('1:31'!S88)","v":0},null,null,9,3,27]
["Acqua Tonica",{"$f":"SUM('1:31'!B89)","v":0},{"$f":"SUM('1:31'!C89)","v":0},{"$f":"SUM('1:31'!D89)","v":0},{"$f":"SUM('1:31'!E89)","v":0},{"$f":"SUM('1:31'!F89)","v":0},{"$f":"SUM('1:31'!G89)","v":0},{"$f":"SUM('1:31'!H89)","v":0},{"$f":"SUM('1:31'!I89)","v":0},{"$f":"SUM('1:31'!J89)","v":0},{"$f":"SUM('1:31'!K89)","v":0},{"$f":"SUM('1:31'!L89)","v":0},{"$f":"SUM('1:31'!M89)","v":4},{"$f":"SUM('1:31'!N89)","v":0},{"$f":"SUM('1:31'!O89)","v":0},{"$f":"SUM('1:31'!P89)","v":0},{"$f":"SUM('1:31'!Q89)","v":0},{"$f":"SUM('1:31'!R89)","v":0},{"$f":"SUM('1:31'!S89)","v":0},null,null,4,3,12]
["Succo",{"$f":"SUM('1:31'!B90)","v":1},{"$f":"SUM('1:31'!C90)","v":0},{"$f":"SUM('1:31'!D90)","v":0},{"$f":"SUM('1:31'!E90)","v":0},{"$f":"SUM('1:31'!F90)","v":0},{"$f":"SUM('1:31'!G90)","v":1},{"$f":"SUM('1:31'!H90)","v":0},{"$f":"SUM('1:31'!I90)","v":1},{"$f":"SUM('1:31'!J90)","v":0},{"$f":"SUM('1:31'!K90)","v":0},{"$f":"SUM('1:31'!L90)","v":6},{"$f":"SUM('1:31'!M90)","v":3},{"$f":"SUM('1:31'!N90)","v":0},{"$f":"SUM('1:31'!O90)","v":2},{"$f":"SUM('1:31'!P90)","v":0},{"$f":"SUM('1:31'!Q90)","v":1},{"$f":"SUM('1:31'!R90)","v":1},{"$f":"SUM('1:31'!S90)","v":0},null,null,16,3,48]
["Birra",{"$f":"SUM('1:31'!B91)","v":0},{"$f":"SUM('1:31'!C91)","v":0},{"$f":"SUM('1:31'!D91)","v":2},{"$f":"SUM('1:31'!E91)","v":0},{"$f":"SUM('1:31'!F91)","v":0},{"$f":"SUM('1:31'!G91)","v":1},{"$f":"SUM('1:31'!H91)","v":0},{"$f":"SUM('1:31'!I91)","v":0},{"$f":"SUM('1:31'!J91)","v":0},{"$f":"SUM('1:31'!K91)","v":0},{"$f":"SUM('1:31'!L91)","v":1},{"$f":"SUM('1:31'!M91)","v":1},{"$f":"SUM('1:31'!N91)","v":0},{"$f":"SUM('1:31'!O91)","v":3},{"$f":"SUM('1:31'!P91)","v":0},{"$f":"SUM('1:31'!Q91)","v":2},{"$f":"SUM('1:31'!R91)","v":0},{"$f":"SUM('1:31'!S91)","v":0},null,null,10,3.5,35]
["Acqua Naturale",{"$f":"SUM('1:31'!B92)","v":3},{"$f":"SUM('1:31'!C92)","v":6},{"$f":"SUM('1:31'!D92)","v":1},{"$f":"SUM('1:31'!E92)","v":13},{"$f":"SUM('1:31'!F92)","v":3},{"$f":"SUM('1:31'!G92)","v":6},{"$f":"SUM('1:31'!H92)","v":1},{"$f":"SUM('1:31'!I92)","v":10},{"$f":"SUM('1:31'!J92)","v":0},{"$f":"SUM('1:31'!K92)","v":1},{"$f":"SUM('1:31'!L92)","v":3},{"$f":"SUM('1:31'!M92)","v":0},{"$f":"SUM('1:31'!N92)","v":0},{"$f":"SUM('1:31'!O92)","v":5},{"$f":"SUM('1:31'!P92)","v":0},{"$f":"SUM('1:31'!Q92)","v":1},{"$f":"SUM('1:31'!R92)","v":3},{"$f":"SUM('1:31'!S92)","v":8},null,null,64,2.5,160]
["Acqua Frizzante",{"$f":"SUM('1:31'!B93)","v":0},{"$f":"SUM('1:31'!C93)","v":0},{"$f":"SUM('1:31'!D93)","v":0},{"$f":"SUM('1:31'!E93)","v":3},{"$f":"SUM('1:31'!F93)","v":3},{"$f":"SUM('1:31'!G93)","v":0},{"$f":"SUM('1:31'!H93)","v":0},{"$f":"SUM('1:31'!I93)","v":1},{"$f":"SUM('1:31'!J93)","v":0},{"$f":"SUM('1:31'!K93)","v":4},{"$f":"SUM('1:31'!L93)","v":1},{"$f":"SUM('1:31'!M93)","v":2},{"$f":"SUM('1:31'!N93)","v":1},{"$f":"SUM('1:31'!O93)","v":7},{"$f":"SUM('1:31'!P93)","v":0},{"$f":"SUM('1:31'!Q93)","v":0},{"$f":"SUM('1:31'!R93)","v":0},{"$f":"SUM('1:31'!S93)","v":3},null,null,25,2.5,62.5]
["Patatine",{"$f":"SUM('1:31'!B94)","v":1},{"$f":"SUM('1:31'!C94)","v":1},{"$f":"SUM('1:31'!D94)","v":1},{"$f":"SUM('1:31'!E94)","v":0},{"$f":"SUM('1:31'!F94)","v":1},{"$f":"SUM('1:31'!G94)","v":0},{"$f":"SUM('1:31'!H94)","v":0},{"$f":"SUM('1:31'!I94)","v":1},{"$f":"SUM('1:31'!J94)","v":0},{"$f":"SUM('1:31'!K94)","v":0},{"$f":"SUM('1:31'!L94)","v":0},{"$f":"SUM('1:31'!M94)","v":0},{"$f":"SUM('1:31'!N94)","v":0},{"$f":"SUM('1:31'!O94)","v":3},{"$f":"SUM('1:31'!P94)","v":0},{"$f":"SUM('1:31'!Q94)","v":3},{"$f":"SUM('1:31'!R94)","v":1},{"$f":"SUM('1:31'!S94)","v":1},null,null,13,2,26]
["Kit Kat",{"$f":"SUM('1:31'!B95)","v":1},{"$f":"SUM('1:31'!C95)","v":0},{"$f":"SUM('1:31'!D95)","v":1},{"$f":"SUM('1:31'!E95)","v":0},{"$f":"SUM('1:31'!F95)","v":1},{"$f":"SUM('1:31'!G95)","v":1},{"$f":"SUM('1:31'!H95)","v":0},{"$f":"SUM('1:31'!I95)","v":1},{"$f":"SUM('1:31'!J95)","v":0},{"$f":"SUM('1:31'!K95)","v":0},{"$f":"SUM('1:31'!L95)","v":0},{"$f":"SUM('1:31'!M95)","v":3},{"$f":"SUM('1:31'!N95)","v":0},{"$f":"SUM('1:31'!O95)","v":0},{"$f":"SUM('1:31'!P95)","v":0},{"$f":"SUM('1:31'!Q95)","v":1},{"$f":"SUM('1:31'!R95)","v":0},{"$f":"SUM('1:31'!S95)","v":0},null,null,9,2,18]

{"sheet":"TotMese","index":32,"n_rows":20,"n_cols":4,"rows_kept":20,"cut":false,"hidden":false,"merged":[]}
["Mese","Settembre"]
[]
["Coca Cola",{"$f":"SUMPRODUCT(--(TotMeseCamera!$A$2:$A$95=A3)*TotMeseCamera!$B$2:$U$95)","v":37},3,{"$f":"B3*C3","v":111}]
["Coca Cola Light",{"$f":"SUMPRODUCT(--(TotMeseCamera!$A$2:$A$95=A4)*TotMeseCamera!$B$2:$U$95)","v":54},3,{"$f":"B4*C4","v":162}]
["Tè",{"$f":"SUMPRODUCT(--(TotMeseCamera!$A$2:$A$95=A5)*TotMeseCamera!$B$2:$U$95)","v":40},3,120]
["Acqua Tonica",{"$f":"SUMPRODUCT(--(TotMeseCamera!$A$2:$A$95=A6)*TotMeseCamera!$B$2:$U$95)","v":7},3,21]
["Succo",{"$f":"SUMPRODUCT(--(TotMeseCamera!$A$2:$A$95=A7)*TotMeseCamera!$B$2:$U$95)","v":77},3,231]
["Birra",{"$f":"SUMPRODUCT(--(TotMeseCamera!$A$2:$A$95=A8)*TotMeseCamera!$B$2:$U$95)","v":111},3.5,388.5]
["Acqua Naturale",{"$f":"SUMPRODUCT(--(TotMeseCamera!$A$2:$A$95=A9)*TotMeseCamera!$B$2:$U$95)","v":534},2.5,1335]
["Acqua Frizzante",{"$f":"SUMPRODUCT(--(TotMeseCamera!$A$2:$A$95=A10)*TotMeseCamera!$B$2:$U$95)","v":260},2.5,650]
["Patatine",{"$f":"SUMPRODUCT(--(TotMeseCamera!$A$2:$A$95=A11)*TotMeseCamera!$B$2:$U$95)","v":89},2,178]
["Kit Kat",{"$f":"SUMPRODUCT(--(TotMeseCamera!$A$2:$A$95=A12)*TotMeseCamera!$B$2:$U$95)","v":133},2,266]
[]
[null,"Totale pezzi",null,"Totale incasso"]
[null,{"$f":"SUM(B3:B12)","v":1342},null,{"$f":"SUM(D3:D12)","v":3462.5}]
[]
[]
[]
["Formula Bloccata in B1 e copia in basso"]
["=MATR.SOMMA.PRODOTTO(--(TotMeseCamera!$A$2:$A$95=A1)*TotMeseCamera!$B$2:$U$95)"]

{"sheet":"Cancella Tutto","index":33,"n_rows":0,"n_cols":0,"rows_kept":0,"cut":false,"hidden":false,"merged":[]}